Workbook

Sheet EMCD Work programme
A1: OJ C14 16.1.15 | B1: Ver | C1: New ETSI Number | D1: wki_id | E1: Row Active EN | F1: Work Item for EMCD | I1: Latest version | K1: Working title | L1: Directive & article | N1: Current Status1 | O1: Current Status2 | P1: Current Status Name | Q1: Latest schedule date | R1: TB-WG | S1: TO Id | W1: Row0a | X1: Row1 | Y1: 7 row | Z1: 8 row | AA1: 8A row | AB1: 9B row | AC1: 9C Row | AD1: 9D Row | AE1: 9Da Row | AF1: 9E Row | AG1: 10F Row | AH1: 11 Row | AI1: 12 Row | AJ1: Row 12V | AK1: Row 12W | AL1: WI Adoption | AM1: Work start target | AN1: Work start achieved | AO1: WG Approval Target | AP1: WG Approval Achieved | AQ1: TB Approval Target | AR1: TB Approval Achieved | AS1: Edithelp Reg Target | AT1: Edithelp Reg Achieved | AU1: ENAP Start Target | AV1: ENAP start Achieved | AW1: ENAP End Target | AX1: ENAP End Achieved | AY1: TB Review Start Target | AZ1: TB Review Start Achieved | BA1: TB Appr for NV Target | BB1: TB Appr for NV Achieved | BC1: Edithelp Reg Target | BD1: Edithelp Reg Achieved | BE1: NV Start Target | BF1: NV Start Achieved | BG1: Adoption Target | BH1: Adoption Achieved | BI1: ETSI Publication Target | BJ1: ETSI Publication Achieved | BK1: Send to EU Target | BL1: Send to EU Achieved | BM1: OJEU Publication Target | BN1: OJEU Publication Achieved | BO1: Propose to withdraw | BP1: Comments | BQ1: Follow up after adoption | BR1: FollowUp Wiid | BS1: FollowUp Row EN | BT1: FollowUp WI
A2: Status 12 = Publication / ENs declared as "Citation in the OJ" in WPM | N2: =COUNTA(N4:N26) -> 5 | BP2: =TODAY() -> 2018-03-19
BP3: =BP2+30 -> 2018-04-18
A4: 300386 | B4: 1.4.1 1.5.1 1.6.1 | C4: 300386 | D4: 46633 | E4: =MATCH(D4,EN!A:A,0) -> 3830 | F4: =INDEX(EN!I:I,E4) -> REN/ERM-EMC-330 | G4: =_xlfn.IFNA(INDEX(EN!F:F,E4),"") -> EN | H4: =_xlfn.IFNA(INDEX(EN!G:G,E4),"") -> 300 386 | I4: =_xlfn.IFNA(IF(INDEX(EN!L:L,E4)<>0,INDEX(EN!L:L,E4),""),"") -> 2.1.1 | J4: =IF(D4=0,"",HYPERLINK(CONCATENATE("http://webapp.etsi.org/workProgram/Report_WorkItem.asp?wki_id=",D4))) -> http://webapp.etsi.org/workProgram/Report_WorkItem.asp?wki_id=46633 | K4: =_xlfn.IFNA(INDEX(EN!H:H,E4),"") -> Revision of EN300386 | L4: EMCD Emissions & Immunity | M4: Delivered | N4: =_xlfn.IFNA(INDEX(EN!J:J,E4),"") -> 12 | O4: =_xlfn.IFNA(INDEX(EN!K:K,E4),"") -> V | P4: =_xlfn.IFNA(INDEX(EN!M:M,E4),"") -> Delivery to the EC | Q4: =_xlfn.IFNA(INDEX(EN!N:N,E4),"") -> 2016-07-22 | R4: =_xlfn.IFNA(INDEX(EN!B:B,E4),"") -> ERM WGEMC | S4: =_xlfn.IFNA(INDEX(EN!O:O,E4),"") -> 26441 | T4: =MATCH(S4,Person!A:A) -> 7 | U4: =_xlfn.IFNA(INDEX(Person!B:B,T4),"") -> Igor | V4: =_xlfn.IFNA(INDEX(Person!C:C,T4),"") -> Minaev | W4: =MATCH(D4,'0a'!A:A,0) -> 3522 | X4: =MATCH(D4,'1'!A:A,0) -> 3430 | Y4: =MATCH(D4,'7'!A:A,0) -> 13532 | Z4: =MATCH(D4,'8'!A:A,0) -> 41987 | AA4: =MATCH(D4,'8A'!A:A,0) -> 43526 | AB4: =MATCH(D4,'9B'!A:A,0) -> 6230 | AC4: =MATCH(D4,'9C'!A:A,0) -> 3519 | AD4: =MATCH(D4,'9D'!A:A,0) -> 3367 | AE4: =MATCH(D4,'9Da'!A:A,0) -> 2182 | AF4: =MATCH(D4,'9E'!A:A,0) -> 3565 | AG4: =MATCH(D4,'10F'!A:A,0) -> 1614 | AH4: =MATCH(D4,'11'!A:A,0) -> 7828 | AI4: =MATCH(D4,'12'!A:A,0) -> 42676 | AJ4: =MATCH(D4,'12V'!A:A,0) -> 745 | AK4: =MATCH(D4,'12W'!A:A,0) -> 754 | AL4: =INDEX('0a'!E:E,W4) -> 2015-03-26 | AM4: =_xlfn.IFNA(IF(INDEX('1'!G:G,X4)=0,INDEX('1'!F:F,X4),""),"") ->  | AN4: =_xlfn.IFNA(IF(INDEX('1'!G:G,X4)<>0,INDEX('1'!G:G,X4),""),"") -> 2015-05-22 | AO4: =_xlfn.IFNA(IF(INDEX('7'!F:F,Y4)=0,INDEX('7'!E:E,Y4),""),"") ->  | AP4: =_xlfn.IFNA(IF(INDEX('7'!F:F,Y4)<>0,INDEX('7'!F:F,Y4),""),"") -> 2015-05-31 | AQ4: =_xlfn.IFNA(IF(INDEX('8'!F:F,Z4)=0,INDEX('8'!E:E,Z4),""),"") ->  | AR4: =_xlfn.IFNA(IF(INDEX('8'!F:F,Z4)<>0,INDEX('8'!F:F,Z4),""),"") -> 2015-08-18 | AS4: =_xlfn.IFNA(IF(INDEX('8A'!F:F,AA4)=0,INDEX('8A'!E:E,AA4),""),"") ->  | AT4: =_xlfn.IFNA(IF(INDEX('8A'!F:F,AA4)<>0,INDEX('8A'!F:F,AA4),""),"") -> 2015-08-27 | AU4: =_xlfn.IFNA(IF(INDEX('9B'!F:F,AB4)=0,INDEX('9B'!E:E,AB4),""),"") ->  | AV4: =_xlfn.IFNA(IF(INDEX('9B'!F:F,AB4)<>0,INDEX('9B'!F:F,AB4),""),"") -> 2015-09-17 | AW4: =_xlfn.IFNA(IF(INDEX('9C'!F:F,AC4)=0,INDEX('9C'!E:E,AC4),""),"") ->  | AX4: =_xlfn.IFNA(IF(INDEX('9C'!F:F,AC4)<>0,INDEX('9C'!F:F,AC4),""),"") -> 2015-12-16 | AY4: =_xlfn.IFNA(IF(INDEX('9D'!H:H,AD4)=0,INDEX('9D'!G:G,AD4),""),"") -> 00:00:00 | AZ4: =_xlfn.IFNA(IF(INDEX('9D'!H:H,AD4)<>0,INDEX('9D'!H:H,AD4),""),"") ->  | BA4: =_xlfn.IFNA(IF(INDEX('9Da'!F:F,AE4)=0,INDEX('9Da'!E:E,AE4),""),"") ->  | BB4: =_xlfn.IFNA(IF(INDEX('9Da'!F:F,AE4)<>0,INDEX('9Da'!F:F,AE4),""),"") -> 2016-02-23 | BC4: =_xlfn.IFNA(IF(INDEX('9E'!H:H,AF4)=0,INDEX('9E'!G:G,AF4),""),"") -> 00:00:00 | BD4: =_xlfn.IFNA(IF(INDEX('9E'!H:H,AF4)<>0,INDEX('9E'!H:H,AF4),""),"") ->  | BE4: =_xlfn.IFNA(IF(INDEX('10F'!F:F,AG4)=0,INDEX('10F'!E:E,AG4),""),"") ->  | BF4: =_xlfn.IFNA(IF(INDEX('10F'!F:F,AG4)<>0,INDEX('10F'!F:F,AG4),""),"") -> 2016-04-06 | BG4: =_xlfn.IFNA(IF(INDEX('11'!F:F,AH4)=0,INDEX('11'!E:E,AH4),""),"") ->  | BH4: =_xlfn.IFNA(IF(INDEX('11'!F:F,AH4)<>0,INDEX('11'!F:F,AH4),""),"") -> 2016-07-11 | BI4: =_xlfn.IFNA(IF(INDEX('12'!F:F,AI4)=0,INDEX('12'!E:E,AI4),""),"") ->  | BJ4: =_xlfn.IFNA(IF(INDEX('12'!F:F,AI4)<>0,INDEX('12'!F:F,AI4),""),"") -> 2016-07-18 | BK4: =_xlfn.IFNA(IF(INDEX('12V'!F:F,AJ4)=0,INDEX('12V'!E:E,AJ4),""),"") ->  | BL4: =_xlfn.IFNA(IF(INDEX('12V'!F:F,AJ4)<>0,INDEX('12V'!F:F,AJ4),""),"") -> 2016-07-22 | BM4: =_xlfn.IFNA(IF(INDEX('12W'!F:F,AK4)=0,INDEX('12W'!E:E,AK4),""),"") -> 2016-10-14 | BN4: =_xlfn.IFNA(IF(INDEX('12W'!F:F,AK4)<>0,INDEX('12W'!F:F,AK4),""),"") ->  | BQ4: Comments from EC - Revision WI open | BR4: 53551 | BS4: =MATCH(BR4,EN!A:A,0) -> 4308 | BT4: =_xlfn.IFNA(INDEX(EN!I:I,BS4),"") -> REN/ERM-EMC-392 | BU4: =IF(BR4=0,"",HYPERLINK(CONCATENATE("http://webapp.etsi.org/workProgram/Report_WorkItem.asp?wki_id=",BR4))) -> http://webapp.etsi.org/workProgram/Report_WorkItem.asp?wki_id=53551 | BV4: =_xlfn.IFNA(INDEX(EN!J:J,BS4),"") -> 7 | BW4: =_xlfn.IFNA(IF(INDEX(EN!K:K,BS4)<>0,INDEX(EN!K:K,BS4),""),"") -> 
D5: 53551 | E5: =MATCH(D5,EN!A:A,0) -> 4308 | F5: =INDEX(EN!I:I,E5) -> REN/ERM-EMC-392 | G5: =_xlfn.IFNA(INDEX(EN!F:F,E5),"") -> EN | H5: =_xlfn.IFNA(INDEX(EN!G:G,E5),"") -> 300 386 | I5: =_xlfn.IFNA(IF(INDEX(EN!L:L,E5)<>0,INDEX(EN!L:L,E5),""),"") ->  | J5: =IF(D5=0,"",HYPERLINK(CONCATENATE("http://webapp.etsi.org/workProgram/Report_WorkItem.asp?wki_id=",D5))) -> http://webapp.etsi.org/workProgram/Report_WorkItem.asp?wki_id=53551 | K5: =_xlfn.IFNA(INDEX(EN!H:H,E5),"") -> Revision of EN300386 | L5: EMCD Emissions & Immunity | M5: RevPending | N5: =_xlfn.IFNA(INDEX(EN!J:J,E5),"") -> 7 | O5: =_xlfn.IFNA(INDEX(EN!K:K,E5),"") -> 0 | P5: =_xlfn.IFNA(INDEX(EN!M:M,E5),"") -> WG approval | Q5: =_xlfn.IFNA(INDEX(EN!N:N,E5),"") -> 2017-09-27 | R5: =_xlfn.IFNA(INDEX(EN!B:B,E5),"") -> ERM WGEMC | S5: =_xlfn.IFNA(INDEX(EN!O:O,E5),"") -> 26441 | T5: =MATCH(S5,Person!A:A) -> 7 | U5: =_xlfn.IFNA(INDEX(Person!B:B,T5),"") -> Igor | V5: =_xlfn.IFNA(INDEX(Person!C:C,T5),"") -> Minaev | W5: =MATCH(D5,'0a'!A:A,0) -> 3963 | X5: =MATCH(D5,'1'!A:A,0) -> 3855 | Y5: =MATCH(D5,'7'!A:A,0) -> 14171 | Z5: =MATCH(D5,'8'!A:A,0) -> 48643 | AA5: =MATCH(D5,'8A'!A:A,0) -> 50297 | AB5: =MATCH(D5,'9B'!A:A,0) -> 6661 | AC5: =MATCH(D5,'9C'!A:A,0) -> 3949 | AD5: =MATCH(D5,'9D'!A:A,0) -> 3658 | AE5: =MATCH(D5,'9Da'!A:A,0) -> 2473 | AF5: =MATCH(D5,'9E'!A:A,0) -> 3869 | AG5: =MATCH(D5,'10F'!A:A,0) -> 1900 | AH5: =MATCH(D5,'11'!A:A,0) -> 8363 | AI5: =MATCH(D5,'12'!A:A,0) -> 49340 | AJ5: =MATCH(D5,'12V'!A:A,0) -> 1047 | AK5: =MATCH(D5,'12W'!A:A,0) -> 1073 | AL5: =INDEX('0a'!E:E,W5) -> 2017-10-17 | AM5: =_xlfn.IFNA(IF(INDEX('1'!G:G,X5)=0,INDEX('1'!F:F,X5),""),"") -> 2017-08-07 | AN5: =_xlfn.IFNA(IF(INDEX('1'!G:G,X5)<>0,INDEX('1'!G:G,X5),""),"") ->  | AO5: =_xlfn.IFNA(IF(INDEX('7'!F:F,Y5)=0,INDEX('7'!E:E,Y5),""),"") ->  | AP5: =_xlfn.IFNA(IF(INDEX('7'!F:F,Y5)<>0,INDEX('7'!F:F,Y5),""),"") -> 2017-09-27 | AQ5: =_xlfn.IFNA(IF(INDEX('8'!F:F,Z5)=0,INDEX('8'!E:E,Z5),""),"") -> 2017-10-31 | AR5: =_xlfn.IFNA(IF(INDEX('8'!F:F,Z5)<>0,INDEX('8'!F:F,Z5),""),"") ->  | AS5: =_xlfn.IFNA(IF(INDEX('8A'!F:F,AA5)=0,INDEX('8A'!E:E,AA5),""),"") -> 2017-11-14 | AT5: =_xlfn.IFNA(IF(INDEX('8A'!F:F,AA5)<>0,INDEX('8A'!F:F,AA5),""),"") ->  | AU5: =_xlfn.IFNA(IF(INDEX('9B'!F:F,AB5)=0,INDEX('9B'!E:E,AB5),""),"") -> 2017-11-28 | AV5: =_xlfn.IFNA(IF(INDEX('9B'!F:F,AB5)<>0,INDEX('9B'!F:F,AB5),""),"") ->  | AW5: =_xlfn.IFNA(IF(INDEX('9C'!F:F,AC5)=0,INDEX('9C'!E:E,AC5),""),"") -> 2018-02-27 | AX5: =_xlfn.IFNA(IF(INDEX('9C'!F:F,AC5)<>0,INDEX('9C'!F:F,AC5),""),"") ->  | AY5: =_xlfn.IFNA(IF(INDEX('9D'!H:H,AD5)=0,INDEX('9D'!G:G,AD5),""),"") -> 00:00:00 | AZ5: =_xlfn.IFNA(IF(INDEX('9D'!H:H,AD5)<>0,INDEX('9D'!H:H,AD5),""),"") ->  | BA5: =_xlfn.IFNA(IF(INDEX('9Da'!F:F,AE5)=0,INDEX('9Da'!E:E,AE5),""),"") -> 2018-05-29 | BB5: =_xlfn.IFNA(IF(INDEX('9Da'!F:F,AE5)<>0,INDEX('9Da'!F:F,AE5),""),"") ->  | BC5: =_xlfn.IFNA(IF(INDEX('9E'!H:H,AF5)=0,INDEX('9E'!G:G,AF5),""),"") -> 00:00:00 | BD5: =_xlfn.IFNA(IF(INDEX('9E'!H:H,AF5)<>0,INDEX('9E'!H:H,AF5),""),"") ->  | BE5: =_xlfn.IFNA(IF(INDEX('10F'!F:F,AG5)=0,INDEX('10F'!E:E,AG5),""),"") -> 2018-06-19 | BF5: =_xlfn.IFNA(IF(INDEX('10F'!F:F,AG5)<>0,INDEX('10F'!F:F,AG5),""),"") ->  | BG5: =_xlfn.IFNA(IF(INDEX('11'!F:F,AH5)=0,INDEX('11'!E:E,AH5),""),"") -> 2018-08-18 | BH5: =_xlfn.IFNA(IF(INDEX('11'!F:F,AH5)<>0,INDEX('11'!F:F,AH5),""),"") ->  | BI5: =_xlfn.IFNA(IF(INDEX('12'!F:F,AI5)=0,INDEX('12'!E:E,AI5),""),"") ->  | BJ5: =_xlfn.IFNA(IF(INDEX('12'!F:F,AI5)<>0,INDEX('12'!F:F,AI5),""),"") -> 2018-09-01 | BK5: =_xlfn.IFNA(IF(INDEX('12V'!F:F,AJ5)=0,INDEX('12V'!E:E,AJ5),""),"") -> 2018-09-22 | BL5: =_xlfn.IFNA(IF(INDEX('12V'!F:F,AJ5)<>0,INDEX('12V'!F:F,AJ5),""),"") ->  | BM5: =_xlfn.IFNA(IF(INDEX('12W'!F:F,AK5)=0,INDEX('12W'!E:E,AK5),""),"") -> 2018-12-15 | BN5: =_xlfn.IFNA(IF(INDEX('12W'!F:F,AK5)<>0,INDEX('12W'!F:F,AK5),""),"") ->  | BS5: =MATCH(BR5,EN!A:A,0) ->  | BT5: =_xlfn.IFNA(INDEX(EN!I:I,BS5),"") ->  | BU5: =IF(BR5=0,"",HYPERLINK(CONCATENATE("http://webapp.etsi.org/workProgram/Report_WorkItem.asp?wki_id=",BR5))) ->  | BV5: =_xlfn.IFNA(INDEX(EN!J:J,BS5),"") ->  | BW5: =_xlfn.IFNA(IF(INDEX(EN!K:K,BS5)<>0,INDEX(EN!K:K,BS5),""),"") -> 
A6: 301 489-1 | B6: 1.9.2 | C6: 301 489-1 | D6: 46710 | E6: =MATCH(D6,EN!A:A,0) -> 3860 | F6: =INDEX(EN!I:I,E6) -> REN/ERM-EMC-333 | G6: =_xlfn.IFNA(INDEX(EN!F:F,E6),"") -> EN | H6: =_xlfn.IFNA(INDEX(EN!G:G,E6),"") -> 301 489-1 | I6: =_xlfn.IFNA(IF(INDEX(EN!L:L,E6)<>0,INDEX(EN!L:L,E6),""),"") -> 2.1.1 | J6: =IF(D6=0,"",HYPERLINK(CONCATENATE("http://webapp.etsi.org/workProgram/Report_WorkItem.asp?wki_id=",D6))) -> http://webapp.etsi.org/workProgram/Report_WorkItem.asp?wki_id=46710 | K6: =_xlfn.IFNA(INDEX(EN!H:H,E6),"") -> EMC - Common technical requirements | L6: EMCD Emissions & Immunity | M6: Delivered | N6: =_xlfn.IFNA(INDEX(EN!J:J,E6),"") -> 12 | O6: =_xlfn.IFNA(INDEX(EN!K:K,E6),"") -> V | P6: =_xlfn.IFNA(INDEX(EN!M:M,E6),"") -> Delivery to the EC | Q6: =_xlfn.IFNA(INDEX(EN!N:N,E6),"") -> 2017-02-07 | R6: =_xlfn.IFNA(INDEX(EN!B:B,E6),"") -> ERM WGEMC | S6: =_xlfn.IFNA(INDEX(EN!O:O,E6),"") -> 26441 | T6: =MATCH(S6,Person!A:A) -> 7 | U6: =_xlfn.IFNA(INDEX(Person!B:B,T6),"") -> Igor | V6: =_xlfn.IFNA(INDEX(Person!C:C,T6),"") -> Minaev | W6: =MATCH(D6,'0a'!A:A,0) -> 3552 | X6: =MATCH(D6,'1'!A:A,0) -> 3460 | Y6: =MATCH(D6,'7'!A:A,0) -> 13575 | Z6: =MATCH(D6,'8'!A:A,0) -> 42060 | AA6: =MATCH(D6,'8A'!A:A,0) -> 43603 | AB6: =MATCH(D6,'9B'!A:A,0) -> 6260 | AC6: =MATCH(D6,'9C'!A:A,0) -> 3549 | AD6: =MATCH(D6,'9D'!A:A,0) -> 3384 | AE6: =MATCH(D6,'9Da'!A:A,0) -> 2199 | AF6: =MATCH(D6,'9E'!A:A,0) -> 3584 | AG6: =MATCH(D6,'10F'!A:A,0) -> 1632 | AH6: =MATCH(D6,'11'!A:A,0) -> 7871 | AI6: =MATCH(D6,'12'!A:A,0) -> 42748 | AJ6: =MATCH(D6,'12V'!A:A,0) -> 764 | AK6: =MATCH(D6,'12W'!A:A,0) -> 773 | AL6: =INDEX('0a'!E:E,W6) -> 2015-03-25 | AM6: =_xlfn.IFNA(IF(INDEX('1'!G:G,X6)=0,INDEX('1'!F:F,X6),""),"") ->  | AN6: =_xlfn.IFNA(IF(INDEX('1'!G:G,X6)<>0,INDEX('1'!G:G,X6),""),"") -> 2015-05-13 | AO6: =_xlfn.IFNA(IF(INDEX('7'!F:F,Y6)=0,INDEX('7'!E:E,Y6),""),"") ->  | AP6: =_xlfn.IFNA(IF(INDEX('7'!F:F,Y6)<>0,INDEX('7'!F:F,Y6),""),"") -> 2016-01-13 | AQ6: =_xlfn.IFNA(IF(INDEX('8'!F:F,Z6)=0,INDEX('8'!E:E,Z6),""),"") ->  | AR6: =_xlfn.IFNA(IF(INDEX('8'!F:F,Z6)<>0,INDEX('8'!F:F,Z6),""),"") -> 2016-02-23 | AS6: =_xlfn.IFNA(IF(INDEX('8A'!F:F,AA6)=0,INDEX('8A'!E:E,AA6),""),"") ->  | AT6: =_xlfn.IFNA(IF(INDEX('8A'!F:F,AA6)<>0,INDEX('8A'!F:F,AA6),""),"") -> 2016-03-04 | AU6: =_xlfn.IFNA(IF(INDEX('9B'!F:F,AB6)=0,INDEX('9B'!E:E,AB6),""),"") ->  | AV6: =_xlfn.IFNA(IF(INDEX('9B'!F:F,AB6)<>0,INDEX('9B'!F:F,AB6),""),"") -> 2016-04-06 | AW6: =_xlfn.IFNA(IF(INDEX('9C'!F:F,AC6)=0,INDEX('9C'!E:E,AC6),""),"") ->  | AX6: =_xlfn.IFNA(IF(INDEX('9C'!F:F,AC6)<>0,INDEX('9C'!F:F,AC6),""),"") -> 2016-07-05 | AY6: =_xlfn.IFNA(IF(INDEX('9D'!H:H,AD6)=0,INDEX('9D'!G:G,AD6),""),"") -> 00:00:00 | AZ6: =_xlfn.IFNA(IF(INDEX('9D'!H:H,AD6)<>0,INDEX('9D'!H:H,AD6),""),"") ->  | BA6: =_xlfn.IFNA(IF(INDEX('9Da'!F:F,AE6)=0,INDEX('9Da'!E:E,AE6),""),"") ->  | BB6: =_xlfn.IFNA(IF(INDEX('9Da'!F:F,AE6)<>0,INDEX('9Da'!F:F,AE6),""),"") -> 2016-10-12 | BC6: =_xlfn.IFNA(IF(INDEX('9E'!H:H,AF6)=0,INDEX('9E'!G:G,AF6),""),"") -> 00:00:00 | BD6: =_xlfn.IFNA(IF(INDEX('9E'!H:H,AF6)<>0,INDEX('9E'!H:H,AF6),""),"") ->  | BE6: =_xlfn.IFNA(IF(INDEX('10F'!F:F,AG6)=0,INDEX('10F'!E:E,AG6),""),"") ->  | BF6: =_xlfn.IFNA(IF(INDEX('10F'!F:F,AG6)<>0,INDEX('10F'!F:F,AG6),""),"") -> 2016-11-23 | BG6: =_xlfn.IFNA(IF(INDEX('11'!F:F,AH6)=0,INDEX('11'!E:E,AH6),""),"") ->  | BH6: =_xlfn.IFNA(IF(INDEX('11'!F:F,AH6)<>0,INDEX('11'!F:F,AH6),""),"") -> 2017-01-23 | BI6: =_xlfn.IFNA(IF(INDEX('12'!F:F,AI6)=0,INDEX('12'!E:E,AI6),""),"") ->  | BJ6: =_xlfn.IFNA(IF(INDEX('12'!F:F,AI6)<>0,INDEX('12'!F:F,AI6),""),"") -> 2017-02-06 | BK6: =_xlfn.IFNA(IF(INDEX('12V'!F:F,AJ6)=0,INDEX('12V'!E:E,AJ6),""),"") ->  | BL6: =_xlfn.IFNA(IF(INDEX('12V'!F:F,AJ6)<>0,INDEX('12V'!F:F,AJ6),""),"") -> 2017-02-07 | BM6: =_xlfn.IFNA(IF(INDEX('12W'!F:F,AK6)=0,INDEX('12W'!E:E,AK6),""),"") -> 2017-05-02 | BN6: =_xlfn.IFNA(IF(INDEX('12W'!F:F,AK6)<>0,INDEX('12W'!F:F,AK6),""),"") ->  | BP6: =IF(AND(ISNONTEXT(BL6),ISBLANK(#REF!),ISTEXT(BN6)),"Awaiting EC assessment","") ->  | BQ6: Comments from EC - Revision WI open | BR6: 51313 | BS6: =MATCH(BR6,EN!A:A,0) -> 4199 | BT6: =_xlfn.IFNA(INDEX(EN!I:I,BS6),"") -> REN/ERM-EMC-368 | BU6: http://webapp.etsi.org/workProgram/Report_WorkItem.asp?wki_id=51313 | BV6: =_xlfn.IFNA(INDEX(EN!J:J,BS6),"") -> 9 | BW6: =_xlfn.IFNA(IF(INDEX(EN!K:K,BS6)<>0,INDEX(EN!K:K,BS6),""),"") -> Dr
D7: 51313 | E7: =MATCH(D7,EN!A:A,0) -> 4199 | F7: =INDEX(EN!I:I,E7) -> REN/ERM-EMC-368 | G7: =_xlfn.IFNA(INDEX(EN!F:F,E7),"") -> EN | H7: =_xlfn.IFNA(INDEX(EN!G:G,E7),"") -> 301 489-1 | I7: =_xlfn.IFNA(IF(INDEX(EN!L:L,E7)<>0,INDEX(EN!L:L,E7),""),"") -> 0.0.4 | J7: =IF(D7=0,"",HYPERLINK(CONCATENATE("http://webapp.etsi.org/workProgram/Report_WorkItem.asp?wki_id=",D7))) -> http://webapp.etsi.org/workProgram/Report_WorkItem.asp?wki_id=51313 | K7: =_xlfn.IFNA(INDEX(EN!H:H,E7),"") -> EMC - Common technical requirements | L7: EMCD Emissions & Immunity | M7: RevPending | N7: =_xlfn.IFNA(INDEX(EN!J:J,E7),"") -> 9 | O7: =_xlfn.IFNA(INDEX(EN!K:K,E7),"") -> Dr | P7: =_xlfn.IFNA(INDEX(EN!M:M,E7),"") -> Draft Review after PE | Q7: =_xlfn.IFNA(INDEX(EN!N:N,E7),"") -> 2018-03-16 | R7: =_xlfn.IFNA(INDEX(EN!B:B,E7),"") -> ERM WGEMC | S7: =_xlfn.IFNA(INDEX(EN!O:O,E7),"") -> 26441 | T7: =MATCH(S7,Person!A:A) -> 7 | U7: =_xlfn.IFNA(INDEX(Person!B:B,T7),"") -> Igor | V7: =_xlfn.IFNA(INDEX(Person!C:C,T7),"") -> Minaev | W7: =MATCH(D7,'0a'!A:A,0) -> 3886 | X7: =MATCH(D7,'1'!A:A,0) -> 3782 | Y7: =MATCH(D7,'7'!A:A,0) -> 14039 | Z7: =MATCH(D7,'8'!A:A,0) -> 46482 | AA7: =MATCH(D7,'8A'!A:A,0) -> 48091 | AB7: =MATCH(D7,'9B'!A:A,0) -> 6588 | AC7: =MATCH(D7,'9C'!A:A,0) -> 3876 | AD7: =MATCH(D7,'9D'!A:A,0) -> 3604 | AE7: =MATCH(D7,'9Da'!A:A,0) -> 2419 | AF7: =MATCH(D7,'9E'!A:A,0) -> 3814 | AG7: =MATCH(D7,'10F'!A:A,0) -> 1846 | AH7: =MATCH(D7,'11'!A:A,0) -> 8273 | AI7: =MATCH(D7,'12'!A:A,0) -> 47172 | AJ7: =MATCH(D7,'12V'!A:A,0) -> 983 | AK7: =MATCH(D7,'12W'!A:A,0) -> 980 | AL7: =INDEX('0a'!E:E,W7) -> 2017-02-21 | AM7: =_xlfn.IFNA(IF(INDEX('1'!G:G,X7)=0,INDEX('1'!F:F,X7),""),"") ->  | AN7: =_xlfn.IFNA(IF(INDEX('1'!G:G,X7)<>0,INDEX('1'!G:G,X7),""),"") -> 2017-02-21 | AO7: =_xlfn.IFNA(IF(INDEX('7'!F:F,Y7)=0,INDEX('7'!E:E,Y7),""),"") ->  | AP7: =_xlfn.IFNA(IF(INDEX('7'!F:F,Y7)<>0,INDEX('7'!F:F,Y7),""),"") -> 2017-02-02 | AQ7: =_xlfn.IFNA(IF(INDEX('8'!F:F,Z7)=0,INDEX('8'!E:E,Z7),""),"") ->  | AR7: =_xlfn.IFNA(IF(INDEX('8'!F:F,Z7)<>0,INDEX('8'!F:F,Z7),""),"") -> 2017-02-21 | AS7: =_xlfn.IFNA(IF(INDEX('8A'!F:F,AA7)=0,INDEX('8A'!E:E,AA7),""),"") ->  | AT7: =_xlfn.IFNA(IF(INDEX('8A'!F:F,AA7)<>0,INDEX('8A'!F:F,AA7),""),"") -> 2017-02-21 | AU7: =_xlfn.IFNA(IF(INDEX('9B'!F:F,AB7)=0,INDEX('9B'!E:E,AB7),""),"") ->  | AV7: =_xlfn.IFNA(IF(INDEX('9B'!F:F,AB7)<>0,INDEX('9B'!F:F,AB7),""),"") -> 2017-03-08 | AW7: =_xlfn.IFNA(IF(INDEX('9C'!F:F,AC7)=0,INDEX('9C'!E:E,AC7),""),"") ->  | AX7: =_xlfn.IFNA(IF(INDEX('9C'!F:F,AC7)<>0,INDEX('9C'!F:F,AC7),""),"") -> 2017-06-06 | AY7: =_xlfn.IFNA(IF(INDEX('9D'!H:H,AD7)=0,INDEX('9D'!G:G,AD7),""),"") -> 00:00:00 | AZ7: =_xlfn.IFNA(IF(INDEX('9D'!H:H,AD7)<>0,INDEX('9D'!H:H,AD7),""),"") ->  | BA7: =_xlfn.IFNA(IF(INDEX('9Da'!F:F,AE7)=0,INDEX('9Da'!E:E,AE7),""),"") -> 2018-06-06 | BB7: =_xlfn.IFNA(IF(INDEX('9Da'!F:F,AE7)<>0,INDEX('9Da'!F:F,AE7),""),"") ->  | BC7: =_xlfn.IFNA(IF(INDEX('9E'!H:H,AF7)=0,INDEX('9E'!G:G,AF7),""),"") -> 00:00:00 | BD7: =_xlfn.IFNA(IF(INDEX('9E'!H:H,AF7)<>0,INDEX('9E'!H:H,AF7),""),"") ->  | BE7: =_xlfn.IFNA(IF(INDEX('10F'!F:F,AG7)=0,INDEX('10F'!E:E,AG7),""),"") -> 2018-06-27 | BF7: =_xlfn.IFNA(IF(INDEX('10F'!F:F,AG7)<>0,INDEX('10F'!F:F,AG7),""),"") ->  | BG7: =_xlfn.IFNA(IF(INDEX('11'!F:F,AH7)=0,INDEX('11'!E:E,AH7),""),"") -> 2018-08-26 | BH7: =_xlfn.IFNA(IF(INDEX('11'!F:F,AH7)<>0,INDEX('11'!F:F,AH7),""),"") ->  | BI7: =_xlfn.IFNA(IF(INDEX('12'!F:F,AI7)=0,INDEX('12'!E:E,AI7),""),"") ->  | BJ7: =_xlfn.IFNA(IF(INDEX('12'!F:F,AI7)<>0,INDEX('12'!F:F,AI7),""),"") -> 2018-09-09 | BK7: =_xlfn.IFNA(IF(INDEX('12V'!F:F,AJ7)=0,INDEX('12V'!E:E,AJ7),""),"") -> 2018-09-30 | BL7: =_xlfn.IFNA(IF(INDEX('12V'!F:F,AJ7)<>0,INDEX('12V'!F:F,AJ7),""),"") ->  | BM7: =_xlfn.IFNA(IF(INDEX('12W'!F:F,AK7)=0,INDEX('12W'!E:E,AK7),""),"") -> 2018-12-23 | BN7: =_xlfn.IFNA(IF(INDEX('12W'!F:F,AK7)<>0,INDEX('12W'!F:F,AK7),""),"") ->  | BS7: =MATCH(BR7,EN!A:A,0) ->  | BT7: =_xlfn.IFNA(INDEX(EN!I:I,BS7),"") ->  | BV7: =_xlfn.IFNA(INDEX(EN!J:J,BS7),"") ->  | BW7: =_xlfn.IFNA(IF(INDEX(EN!K:K,BS7)<>0,INDEX(EN!K:K,BS7),""),"") -> 
A8: 301 489-34 | B8: 1.4.1 | C8: 301 489-34 | D8: 47054 | E8: =MATCH(D8,EN!A:A,0) -> 3891 | F8: =INDEX(EN!I:I,E8) -> REN/ERM-EMC-339 | G8: =_xlfn.IFNA(INDEX(EN!F:F,E8),"") -> EN | H8: =_xlfn.IFNA(INDEX(EN!G:G,E8),"") -> 301 489-34 | I8: =_xlfn.IFNA(IF(INDEX(EN!L:L,E8)<>0,INDEX(EN!L:L,E8),""),"") -> 2.1.1 | J8: =IF(D8=0,"",HYPERLINK(CONCATENATE("http://webapp.etsi.org/workProgram/Report_WorkItem.asp?wki_id=",D8))) -> http://webapp.etsi.org/workProgram/Report_WorkItem.asp?wki_id=47054 | K8: =_xlfn.IFNA(INDEX(EN!H:H,E8),"") -> EMC requirements for mobile phone EPS | L8: EMCD Emissions & Immunity | M8: Pending | N8: =_xlfn.IFNA(INDEX(EN!J:J,E8),"") -> 11 | O8: =_xlfn.IFNA(INDEX(EN!K:K,E8),"") -> WI | P8: =_xlfn.IFNA(INDEX(EN!M:M,E8),"") -> Waiting - see "Remarks" | Q8: =_xlfn.IFNA(INDEX(EN!N:N,E8),"") -> 2017-06-05 | R8: =_xlfn.IFNA(INDEX(EN!B:B,E8),"") -> ERM WGEMC | S8: =_xlfn.IFNA(INDEX(EN!O:O,E8),"") -> 26441 | T8: =MATCH(S8,Person!A:A) -> 7 | U8: =_xlfn.IFNA(INDEX(Person!B:B,T8),"") -> Igor | V8: =_xlfn.IFNA(INDEX(Person!C:C,T8),"") -> Minaev | W8: =MATCH(D8,'0a'!A:A,0) -> 3583 | X8: =MATCH(D8,'1'!A:A,0) -> 3490 | Y8: =MATCH(D8,'7'!A:A,0) -> 13614 | Z8: =MATCH(D8,'8'!A:A,0) -> 42402 | AA8: =MATCH(D8,'8A'!A:A,0) -> 43957 | AB8: =MATCH(D8,'9B'!A:A,0) -> 6291 | AC8: =MATCH(D8,'9C'!A:A,0) -> 3580 | AD8: =MATCH(D8,'9D'!A:A,0) -> 3399 | AE8: =MATCH(D8,'9Da'!A:A,0) -> 2214 | AF8: =MATCH(D8,'9E'!A:A,0) -> 3601 | AG8: =MATCH(D8,'10F'!A:A,0) -> 1648 | AH8: =MATCH(D8,'11'!A:A,0) -> 7905 | AI8: =MATCH(D8,'12'!A:A,0) -> 43090 | AJ8: =MATCH(D8,'12V'!A:A,0) -> 791 | AK8: =MATCH(D8,'12W'!A:A,0) -> 795 | AL8: =INDEX('0a'!E:E,W8) -> 2015-03-26 | AM8: =_xlfn.IFNA(IF(INDEX('1'!G:G,X8)=0,INDEX('1'!F:F,X8),""),"") ->  | AN8: =_xlfn.IFNA(IF(INDEX('1'!G:G,X8)<>0,INDEX('1'!G:G,X8),""),"") -> 2015-05-11 | AO8: =_xlfn.IFNA(IF(INDEX('7'!F:F,Y8)=0,INDEX('7'!E:E,Y8),""),"") ->  | AP8: =_xlfn.IFNA(IF(INDEX('7'!F:F,Y8)<>0,INDEX('7'!F:F,Y8),""),"") -> 2016-02-01 | AQ8: =_xlfn.IFNA(IF(INDEX('8'!F:F,Z8)=0,INDEX('8'!E:E,Z8),""),"") ->  | AR8: =_xlfn.IFNA(IF(INDEX('8'!F:F,Z8)<>0,INDEX('8'!F:F,Z8),""),"") -> 2016-02-23 | AS8: =_xlfn.IFNA(IF(INDEX('8A'!F:F,AA8)=0,INDEX('8A'!E:E,AA8),""),"") ->  | AT8: =_xlfn.IFNA(IF(INDEX('8A'!F:F,AA8)<>0,INDEX('8A'!F:F,AA8),""),"") -> 2016-04-14 | AU8: =_xlfn.IFNA(IF(INDEX('9B'!F:F,AB8)=0,INDEX('9B'!E:E,AB8),""),"") ->  | AV8: =_xlfn.IFNA(IF(INDEX('9B'!F:F,AB8)<>0,INDEX('9B'!F:F,AB8),""),"") -> 2016-05-13 | AW8: =_xlfn.IFNA(IF(INDEX('9C'!F:F,AC8)=0,INDEX('9C'!E:E,AC8),""),"") ->  | AX8: =_xlfn.IFNA(IF(INDEX('9C'!F:F,AC8)<>0,INDEX('9C'!F:F,AC8),""),"") -> 2016-08-11 | AY8: =_xlfn.IFNA(IF(INDEX('9D'!H:H,AD8)=0,INDEX('9D'!G:G,AD8),""),"") -> 00:00:00 | AZ8: =_xlfn.IFNA(IF(INDEX('9D'!H:H,AD8)<>0,INDEX('9D'!H:H,AD8),""),"") ->  | BA8: =_xlfn.IFNA(IF(INDEX('9Da'!F:F,AE8)=0,INDEX('9Da'!E:E,AE8),""),"") ->  | BB8: =_xlfn.IFNA(IF(INDEX('9Da'!F:F,AE8)<>0,INDEX('9Da'!F:F,AE8),""),"") -> 2017-02-22 | BC8: =_xlfn.IFNA(IF(INDEX('9E'!H:H,AF8)=0,INDEX('9E'!G:G,AF8),""),"") -> 00:00:00 | BD8: =_xlfn.IFNA(IF(INDEX('9E'!H:H,AF8)<>0,INDEX('9E'!H:H,AF8),""),"") ->  | BE8: =_xlfn.IFNA(IF(INDEX('10F'!F:F,AG8)=0,INDEX('10F'!E:E,AG8),""),"") ->  | BF8: =_xlfn.IFNA(IF(INDEX('10F'!F:F,AG8)<>0,INDEX('10F'!F:F,AG8),""),"") -> 2017-04-06 | BG8: =_xlfn.IFNA(IF(INDEX('11'!F:F,AH8)=0,INDEX('11'!E:E,AH8),""),"") ->  | BH8: =_xlfn.IFNA(IF(INDEX('11'!F:F,AH8)<>0,INDEX('11'!F:F,AH8),""),"") -> 2017-06-05 | BI8: =_xlfn.IFNA(IF(INDEX('12'!F:F,AI8)=0,INDEX('12'!E:E,AI8),""),"") ->  | BJ8: =_xlfn.IFNA(IF(INDEX('12'!F:F,AI8)<>0,INDEX('12'!F:F,AI8),""),"") -> 2018-12-29 | BK8: =_xlfn.IFNA(IF(INDEX('12V'!F:F,AJ8)=0,INDEX('12V'!E:E,AJ8),""),"") -> 2019-01-19 | BL8: =_xlfn.IFNA(IF(INDEX('12V'!F:F,AJ8)<>0,INDEX('12V'!F:F,AJ8),""),"") ->  | BM8: =_xlfn.IFNA(IF(INDEX('12W'!F:F,AK8)=0,INDEX('12W'!E:E,AK8),""),"") -> 2019-04-13 | BN8: =_xlfn.IFNA(IF(INDEX('12W'!F:F,AK8)<>0,INDEX('12W'!F:F,AK8),""),"") ->  | BP8: Held waiting publication of EN 301 489-1 (normatively referenced) | BS8: =MATCH(BR8,EN!A:A,0) ->  | BT8: =_xlfn.IFNA(INDEX(EN!I:I,BS8),"") ->  | BV8: =_xlfn.IFNA(INDEX(EN!J:J,BS8),"") ->  | BW8: =_xlfn.IFNA(IF(INDEX(EN!K:K,BS8)<>0,INDEX(EN!K:K,BS8),""),"") -> 

Sheet EMCD Stats for slides
A1: Last saved on | B1: =lastsaved() -> 2018-03-19T09:55:25
A3: M/552 date | B3: 2016-11-30
A4: Original WP M/552 | B4: 3
A5: Original WP sent | B5: 2017-01-24
D11: 2017 | E11: 2018
A12: Pending first versions | B12: =COUNTIFS('EMCD Work programme'!M:M,"Pending") -> 1 | C12: Pending | D12: =COUNTIFS('EMCD Work programme'!M:M,C12,'EMCD Work programme'!BI:BI,"<1/1/2018") -> 0 | E12: =COUNTIFS('EMCD Work programme'!M:M,C12,'EMCD Work programme'!BI:BI,">31/12/2017",'EMCD Work programme'!BI:BI,"<1/1/2019") -> 0
A13: Revisions of published HS | B13: =COUNTIFS('EMCD Work programme'!M:M,"RevPending") -> 2 | C13: RevPending | D13: =COUNTIFS('EMCD Work programme'!M:M,C13,'EMCD Work programme'!BI:BI,"<1/1/2018") -> 0 | E13: =COUNTIFS('EMCD Work programme'!M:M,C13,'EMCD Work programme'!BI:BI,">31/12/2017",'EMCD Work programme'!BI:BI,"<1/1/2019") -> 0
B15: 2017Q3 | C15: 2017Q4 | D15: 2018Q1 | E15: 2018Q2 | F15: 2018Q3 | G15: 2018Q4
A16: Pending HS: Publication forecast | B16: =COUNTIFS('EMCD Work programme'!M:M,C12,'EMCD Work programme'!BI:BI,">30/6/2017",'EMCD Work programme'!BI:BI,"<1/10/2017") -> 0 | C16: =COUNTIFS('EMCD Work programme'!M:M,C12,'EMCD Work programme'!BI:BI,">30/9/2017",'EMCD Work programme'!BI:BI,"<1/1/2018") -> 0 | D16: =COUNTIFS('EMCD Work programme'!M:M,C12,'EMCD Work programme'!BI:BI,">31/12/2017",'EMCD Work programme'!BI:BI,"<1/4/2018") -> 0 | E16: =COUNTIFS('EMCD Work programme'!M:M,C12,'EMCD Work programme'!BI:BI,">31/3/2018",'EMCD Work programme'!BI:BI,"<1/7/2018") -> 0 | F16: =COUNTIFS('EMCD Work programme'!M:M,C12,'EMCD Work programme'!BI:BI,">30/6/2018",'EMCD Work programme'!BI:BI,"<1/10/2018") -> 0 | G16: =COUNTIFS('EMCD Work programme'!M:M,C12,'EMCD Work programme'!BI:BI,">30/9/2018",'EMCD Work programme'!BI:BI,"<1/1/2019") -> 0
A17: Revision of HS: Publication forecast | B17: =COUNTIFS('EMCD Work programme'!M:M,C13,'EMCD Work programme'!BI:BI,">30/6/2017",'EMCD Work programme'!BI:BI,"<1/10/2017") -> 0 | C17: =COUNTIFS('EMCD Work programme'!M:M,C13,'EMCD Work programme'!BI:BI,">30/9/2017",'EMCD Work programme'!BI:BI,"<1/1/2018") -> 0 | D17: =COUNTIFS('EMCD Work programme'!M:M,C13,'EMCD Work programme'!BI:BI,">31/12/2017",'EMCD Work programme'!BI:BI,"<1/4/2018") -> 0 | E17: =COUNTIFS('EMCD Work programme'!M:M,C13,'EMCD Work programme'!BI:BI,">31/3/2018",'EMCD Work programme'!BI:BI,"<1/7/2018") -> 0 | F17: =COUNTIFS('EMCD Work programme'!M:M,C13,'EMCD Work programme'!BI:BI,">30/6/2018",'EMCD Work programme'!BI:BI,"<1/10/2018") -> 0 | G17: =COUNTIFS('EMCD Work programme'!M:M,C13,'EMCD Work programme'!BI:BI,">30/9/2018",'EMCD Work programme'!BI:BI,"<1/1/2019") -> 0
B28: Total Work Programme | D28: Cited in OJ | E28: Delivered to EC | F28: Published by ETSI | I28: ENAP | J28: National Vote | K28: Adopted | L28: Total on Public Approval | N28: Total Publicly Available | P28: TB Approved | Q28: TB drafting | W28: In Withdrawal procedure | X28: Withdrawn
A29: Status | B29: Total | D29: Status 12W | E29: Status 12V | F29: Status 12 | G29: Status 12 all | I29: Status 9 | J29: Status 10 | K29: Status 11 | L29: Status 9, 10 or 11 | N29: Status 9 to 12W | P29: Status 8 | Q29: STATUS <8 | S29: Status 30 Withdrawal proposal verified | T29: Status 35 Withdrawal TB Approved | U29: Status 40 WV start | V29: Status 45 WV end | W29: Status 30 to 45 | X29: Status 50 Withdrawn
A30: EMCD Emissions & Immunity | B30: =COUNTIF('EMCD Work programme'!L:L,A30) -> 5 | D30: =COUNTIFS('EMCD Work programme'!L:L,A30,'EMCD Work programme'!N:N,"12",'EMCD Work programme'!O:O,"=W") -> 0 | E30: =COUNTIFS('EMCD Work programme'!L:L,A30,'EMCD Work programme'!N:N,"12",'EMCD Work programme'!O:O,"=V") -> 2 | F30: =COUNTIFS('EMCD Work programme'!L:L,A30,'EMCD Work programme'!N:N,"12",'EMCD Work programme'!O:O,"") -> 0 | G30: =COUNTIFS('EMCD Work programme'!L:L,A30,'EMCD Work programme'!N:N,"12") -> 2 | I30: =COUNTIFS('EMCD Work programme'!L:L,A30,'EMCD Work programme'!N:N,"9") -> 1 | J30: =COUNTIFS('EMCD Work programme'!L:L,A30,'EMCD Work programme'!N:N,"10") -> 0 | K30: =COUNTIFS('EMCD Work programme'!L:L,A30,'EMCD Work programme'!N:N,"11") -> 1 | L30: =SUM(I30:K30) -> 2 | N30: =L30+G30 -> 4 | P30: =COUNTIFS('EMCD Work programme'!L:L,A30,'EMCD Work programme'!N:N,"8") -> 0 | Q30: =COUNTIFS('EMCD Work programme'!L:L,A30,'EMCD Work programme'!N:N,"<8") -> 1 | S30: =COUNTIFS('EMCD Work programme'!L:L,A30,'EMCD Work programme'!N:N,"30") -> 0 | T30: =COUNTIFS('EMCD Work programme'!L:L,A30,'EMCD Work programme'!N:N,"35") -> 0 | U30: =COUNTIFS('EMCD Work programme'!L:L,A30,'EMCD Work programme'!N:N,"40") -> 0 | V30: =COUNTIFS('EMCD Work programme'!L:L,A30,'EMCD Work programme'!N:N,"45") -> 0 | X30: =COUNTIFS('EMCD Work programme'!L:L,A30,'EMCD Work programme'!N:N,"50") -> 0
A32: Totals for slides | B32: =SUM(B30:B30) -> 5 | D32: =SUM(D30:D30) -> 0 | E32: =SUM(E30:E30) -> 2 | F32: =SUM(F30:F30) -> 0 | G32: =SUM(G30:G30) -> 2 | I32: =SUM(I30:I30) -> 1 | J32: =SUM(J30:J30) -> 0 | K32: =SUM(K30:K30) -> 1 | L32: =SUM(L30:L30) -> 2 | N32: =SUM(N30:N30) -> 4 | P32: =SUM(P30:P30) -> 0 | Q32: =SUM(Q30:Q30) -> 1 | S32: =SUM(S30:S30) -> 0 | T32: 0 | U32: 0 | V32: 0 | W32: 0 | X32: 0
A34: % of total | B34: =B32/B32 -> 1 | D34: =D32/B32 -> 0 | E34: =E32/B32 -> 0.4 | F34: =F32/B32 -> 0 | G34: =G32/B32 -> 0.4 | L34: =L32/B32 -> 0.4 | N34: =N32/B32 -> 0.8 | P34: =P32/B32 -> 0 | Q34: =Q32/B32 -> 0.2 | S34: =S32/B32 -> 0 | T34: =T32/B32 -> 0 | U34: =U32/B32 -> 0 | V34: =V32/B32 -> 0 | W34: =W32/B32 -> 0 | X34: =X32/B32 -> 0
A35: % of original | B35: =B32/B4 -> 1.666666667 | D35: =D32/B4 -> 0 | E35: =E32/B4 -> 0.6666666667 | F35: =F32/B4 -> 0 | G35: =G32/B4 -> 0.6666666667 | L35: =L32/B4 -> 0.6666666667 | N35: =N32/B4 -> 1.333333333 | P35: =P32/B4 -> 0 | Q35: =Q32/B4 -> 0.3333333333 | S35: =S32/#REF! ->  | T35: =T32/#REF! ->  | U35: =U32/#REF! ->  | V35: =V32/#REF! ->  | W35: =W32/B4 -> 0 | X35: =X32/B4 -> 0
B37: Andrea | D37: =COUNTIF('EMCD Work programme'!U:U,"Andrea") -> 0
B38: Bernt | D38: =COUNTIF('EMCD Work programme'!U:U,"Bernt") -> 0
B39: Igor | D39: =COUNTIF('EMCD Work programme'!U:U,"Igor") -> 5
B40: Martin | D40: =COUNTIF('EMCD Work programme'!U:U,"Martin") -> 0
B41: Marcello | D41: =COUNTIF('EMCD Work programme'!U:U,"Marcello") -> 0

Sheet RED Work programme
A1: OJ 10.07.15 | B1: Ver | C1: (O)riginal (A)ddition | D1: wki_id | E1: Row EN | F1: Work Item for RED | G1: Link | J1: Latest version | K1: (Pending) (Published) (Cited) (LimitCited) (RevPending) (RevPublished) (Superseded) (Withdrawal) (NoMoreCited) | L1: Working title | M1: Directive & article | N1: Current Status1 | O1: Current Status2 | P1: Current Status Name | Q1: Latest schedule date | R1: TB-WG | S1: Tech Editor ID | T1: TechEd Row | W1: Row0a | X1: Row1 | Y1: 7 row | Z1: 8 row | AA1: 8A row | AB1: 9B row | AC1: 9C Row | AD1: 9D Row | AE1: 9Da Row | AF1: 9E Row | AG1: 10F Row | AH1: 11 Row | AI1: 12 Row | AJ1: Row 12V | AK1: Row 12W | AL1: Row30 | AM1: Row 35 | AN1: Row 40 | AO1: Row 45 | AP1: Row 50 | AQ1: WI Adoption | AR1: Work start target | AS1: Work start achieved | AT1: WG Approval Target | AU1: WG Approval Achieved | AV1: TB Approval Target | AW1: TB Approval Achieved | AX1: Edithelp Reg Target | AY1: Edithelp Reg Achieved | AZ1: ENAP Start Target | BA1: ENAP start Achieved | BB1: ENAP End Target | BC1: ENAP End Achieved | BD1: TB Review Start Target | BE1: TB Review Start Achieved | BF1: TB Appr for NV Target | BG1: TB Appr for NV Achieved | BH1: Edithelp Reg Target | BI1: Edithelp Reg Achieved | BJ1: NV Start Target | BK1: NV Start Achieved | BL1: Adoption Target | BM1: Adoption Achieved | BN1: ETSI Publication Target | BO1: ETSI Publication Achieved | BP1: Send to EU Target | BQ1: Send to EU Achieved | BR1: OJEU Publication Target | BS1: OJEU Publication Achieved | BT1: Withdrawal proposal verified Target | BU1: Withdrawal proposal verified Achieved | BV1: Withdrawal TB Approved Target | BW1: Withdrawal TB Approved Achieved | BX1: WV Start Target | BY1: WV Start Achieved | BZ1: WV End Target | CA1: WV End Achieved | CB1: Withdrawn Target | CC1: Withdrawn Achieved | CD1: Comments | CE1: Follow up after adoption | CF1: Measurement Uncertainty | CG1: Receiver requirements selection | CH1: Looser requirements | CJ1: Revision Wiid | CK1: Revision Row EN | CL1: Revision WI | CM1: Link
A2: Status 12 = Publication / ENs declared as "Citation in the OJ" in WPM | N2: =COUNTA(N4:N446) -> 419 | CD2: =TODAY() -> 2018-03-19 | CM2: =IF(CJ2=0,"",HYPERLINK(CONCATENATE("http://webapp.etsi.org/workProgram/Report_WorkItem.asp?wki_id=",CJ2))) -> 
CD3: =CD2+30 -> 2018-04-18 | CM3: =IF(CJ3=0,"",HYPERLINK(CONCATENATE("http://webapp.etsi.org/workProgram/Report_WorkItem.asp?wki_id=",CJ3))) -> 
A4: 300 065-2 300 065-3 | B4: 1.2.1 1.2.1 | C4: Original | D4: 46515 | E4: =MATCH(D4,EN!A:A,0) -> 3787 | F4: =INDEX(EN!I:I,E4) -> REN/ERM-TG26-133 | G4: =IF(D4=0,"",HYPERLINK(CONCATENATE("http://webapp.etsi.org/workProgram/Report_WorkItem.asp?wki_id=",D4))) -> http://webapp.etsi.org/workProgram/Report_WorkItem.asp?wki_id=46515 | H4: =_xlfn.IFNA(INDEX(EN!F:F,E4),"") -> EN | I4: =_xlfn.IFNA(INDEX(EN!G:G,E4),"") -> 300 065 | J4: =_xlfn.IFNA(IF(INDEX(EN!L:L,E4)<>0,INDEX(EN!L:L,E4),""),"") -> 2.1.1 | L4: =_xlfn.IFNA(INDEX(EN!H:H,E4),"") -> NAVTEX | M4: RED 3.2, 3.3g | N4: =_xlfn.IFNA(INDEX(EN!J:J,E4),"") -> 50 | O4: =_xlfn.IFNA(IF(INDEX(EN!K:K,E4)<>0,INDEX(EN!K:K,E4),""),"") ->  | P4: =_xlfn.IFNA(INDEX(EN!M:M,E4),"") -> Withdrawn | Q4: =_xlfn.IFNA(INDEX(EN!N:N,E4),"") -> 2017-08-21 | R4: =_xlfn.IFNA(INDEX(EN!B:B,E4),"") -> ERM TG26 | S4: =INDEX(EN!O:O,E4) -> 53812 | T4: =MATCH(S4,Person!A:A) -> 9 | U4: =_xlfn.IFNA(INDEX(Person!B:B,T4),"") -> Andrea | V4: =_xlfn.IFNA(INDEX(Person!C:C,T4),"") -> Lorelli | W4: =MATCH(D4,'0a'!A:A,0) -> 3481 | X4: =MATCH(D4,'1'!A:A,0) -> 3389 | Y4: =MATCH(D4,'7'!A:A,0) ->  | Z4: =MATCH(D4,'8'!A:A,0) -> 41868 | AA4: =MATCH(D4,'8A'!A:A,0) -> 43406 | AB4: =MATCH(D4,'9B'!A:A,0) -> 6187 | AC4: =MATCH(D4,'9C'!A:A,0) -> 3476 | AD4: =MATCH(D4,'9D'!A:A,0) ->  | AE4: =MATCH(D4,'9Da'!A:A,0) ->  | AF4: =MATCH(D4,'9E'!A:A,0) ->  | AG4: =MATCH(D4,'10F'!A:A,0) ->  | AH4: =MATCH(D4,'11'!A:A,0) -> 7786 | AI4: =MATCH(D4,'12'!A:A,0) -> 42560 | AJ4: =MATCH(D4,'12V'!A:A,0) -> 712 | AK4: =MATCH(D4,'12W'!A:A,0) ->  | AL4: =MATCH(D4,'30'!A:A,0) -> 745 | AM4: =MATCH(D4,'35'!A:A,0) -> 738 | AN4: =MATCH(D4,'40'!A:A,0) -> 99 | AO4: =MATCH(D4,'45'!A:A,0) -> 99 | AP4: =MATCH(D4,'50'!A:A,0) -> 837 | AQ4: =_xlfn.IFNA(INDEX('0a'!E:E,W4),"") -> 2015-02-09 | AR4: =_xlfn.IFNA(IF(INDEX('1'!G:G,X4)=0,INDEX('1'!F:F,X4),""),"") ->  | AS4: =_xlfn.IFNA(IF(INDEX('1'!G:G,X4)<>0,INDEX('1'!G:G,X4),""),"") -> 2015-05-22 | AT4: =_xlfn.IFNA(IF(INDEX('7'!F:F,Y4)=0,INDEX('7'!E:E,Y4),""),"") ->  | AU4: =_xlfn.IFNA(IF(INDEX('7'!F:F,Y4)<>0,INDEX('7'!F:F,Y4),""),"") ->  | AV4: =_xlfn.IFNA(IF(INDEX('8'!F:F,Z4)=0,INDEX('8'!E:E,Z4),""),"") ->  | AW4: =_xlfn.IFNA(IF(INDEX('8'!F:F,Z4)<>0,INDEX('8'!F:F,Z4),""),"") -> 2015-11-13 | AX4: =_xlfn.IFNA(IF(INDEX('8A'!F:F,AA4)=0,INDEX('8A'!E:E,AA4),""),"") ->  | AY4: =_xlfn.IFNA(IF(INDEX('8A'!F:F,AA4)<>0,INDEX('8A'!F:F,AA4),""),"") -> 2015-11-30 | AZ4: =_xlfn.IFNA(IF(INDEX('9B'!F:F,AB4)=0,INDEX('9B'!E:E,AB4),""),"") ->  | BA4: =_xlfn.IFNA(IF(INDEX('9B'!F:F,AB4)<>0,INDEX('9B'!F:F,AB4),""),"") -> 2015-12-22 | BB4: =_xlfn.IFNA(IF(INDEX('9C'!F:F,AC4)=0,INDEX('9C'!E:E,AC4),""),"") ->  | BC4: =_xlfn.IFNA(IF(INDEX('9C'!F:F,AC4)<>0,INDEX('9C'!F:F,AC4),""),"") -> 2016-03-21 | BD4: =_xlfn.IFNA(IF(INDEX('9D'!F:F,AD4)=0,INDEX('9D'!E:E,AD4),""),"") ->  | BE4: =_xlfn.IFNA(IF(INDEX('9D'!F:F,AD4)<>0,INDEX('9D'!F:F,AD4),""),"") ->  | BF4: =_xlfn.IFNA(IF(INDEX('9Da'!F:F,AE4)=0,INDEX('9Da'!E:E,AE4),""),"") ->  | BG4: =_xlfn.IFNA(IF(INDEX('9Da'!F:F,AE4)<>0,INDEX('9Da'!F:F,AE4),""),"") ->  | BH4: =_xlfn.IFNA(IF(INDEX('9E'!F:F,AF4)=0,INDEX('9E'!E:E,AF4),""),"") ->  | BI4: =_xlfn.IFNA(IF(INDEX('9E'!F:F,AF4)<>0,INDEX('9E'!F:F,AF4),""),"") ->  | BJ4: =_xlfn.IFNA(IF(INDEX('10F'!F:F,AG4)=0,INDEX('10F'!E:E,AG4),""),"") ->  | BK4: =_xlfn.IFNA(IF(INDEX('10F'!F:F,AG4)<>0,INDEX('10F'!F:F,AG4),""),"") ->  | BL4: =_xlfn.IFNA(IF(INDEX('11'!F:F,AH4)=0,INDEX('11'!E:E,AH4),""),"") ->  | BM4: =_xlfn.IFNA(IF(INDEX('11'!F:F,AH4)<>0,INDEX('11'!F:F,AH4),""),"") -> 2016-03-21 | BN4: =_xlfn.IFNA(IF(INDEX('12'!G:G,AI4)=0,INDEX('12'!F:F,AI4),""),"") ->  | BO4: =_xlfn.IFNA(IF(INDEX('12'!G:G,AI4)<>0,INDEX('12'!G:G,AI4),""),"") -> 2016-03-24 | BP4: =_xlfn.IFNA(IF(INDEX('12V'!F:F,AJ4)=0,INDEX('12V'!E:E,AJ4),""),"") ->  | BQ4: =_xlfn.IFNA(IF(INDEX('12V'!F:F,AJ4)<>0,INDEX('12V'!F:F,AJ4),""),"") -> 2016-03-29 | BR4: =_xlfn.IFNA(IF(INDEX('12W'!F:F,AK4)=0,INDEX('12W'!E:E,AK4),""),"") ->  | BS4: =_xlfn.IFNA(IF(INDEX('12W'!F:F,AK4)<>0,INDEX('12W'!F:F,AK4),""),"") ->  | BT4: =_xlfn.IFNA(IF(INDEX('30'!F:F,AL4)=0,INDEX('30'!E:E,AL4),""),"") ->  | BU4: =_xlfn.IFNA(IF(INDEX('30'!F:F,AL4)<>0,INDEX('30'!F:F,AL4),""),"") -> 2017-06-16 | BV4: =_xlfn.IFNA(IF(INDEX('35'!F:F,AM4)=0,INDEX('35'!E:E,AM4),""),"") ->  | BW4: =_xlfn.IFNA(IF(INDEX('35'!F:F,AM4)<>0,INDEX('35'!F:F,AM4),""),"") -> 2017-06-21 | BX4: =_xlfn.IFNA(IF(INDEX('40'!F:F,AN4)=0,INDEX('40'!E:E,AN4),""),"") ->  | BY4: =_xlfn.IFNA(IF(INDEX('40'!F:F,AN4)<>0,INDEX('40'!F:F,AN4),""),"") -> 2017-06-22 | BZ4: =_xlfn.IFNA(IF(INDEX('45'!F:F,AO4)=0,INDEX('45'!E:E,AO4),""),"") ->  | CA4: =_xlfn.IFNA(IF(INDEX('45'!F:F,AO4)<>0,INDEX('45'!F:F,AO4),""),"") -> 2017-08-21 | CB4: =_xlfn.IFNA(IF(INDEX('50'!F:F,AP4)=0,INDEX('50'!E:E,AP4),""),"") ->  | CC4: =_xlfn.IFNA(IF(INDEX('50'!F:F,AP4)<>0,INDEX('50'!F:F,AP4),""),"") -> 2017-08-21 | CJ4: 50111 | CK4: =MATCH(CJ4,EN!A:A,0) -> 4093 | CL4: =_xlfn.IFNA(INDEX(EN!I:I,CK4),"") -> REN/ERM-TG26-530 | CM4: http://webapp.etsi.org/workProgram/Report_WorkItem.asp?wki_id=50111 | CN4: =_xlfn.IFNA(INDEX(EN!J:J,CK4),"") -> 12 | CO4: =_xlfn.IFNA(IF(INDEX(EN!K:K,CK4)<>0,INDEX(EN!K:K,CK4),""),"") -> W
C5: Addition | D5: 50111 | E5: =MATCH(D5,EN!A:A,0) -> 4093 | F5: =INDEX(EN!I:I,E5) -> REN/ERM-TG26-530 | G5: =IF(D5=0,"",HYPERLINK(CONCATENATE("http://webapp.etsi.org/workProgram/Report_WorkItem.asp?wki_id=",D5))) -> http://webapp.etsi.org/workProgram/Report_WorkItem.asp?wki_id=50111 | H5: =_xlfn.IFNA(INDEX(EN!F:F,E5),"") -> EN | I5: =_xlfn.IFNA(INDEX(EN!G:G,E5),"") -> 300 065 | J5: =_xlfn.IFNA(IF(INDEX(EN!L:L,E5)<>0,INDEX(EN!L:L,E5),""),"") -> 2.1.2 | K5: Cited | L5: =_xlfn.IFNA(INDEX(EN!H:H,E5),"") -> NAVTEX | M5: RED 3.2, 3.3g | N5: =_xlfn.IFNA(INDEX(EN!J:J,E5),"") -> 12 | O5: =_xlfn.IFNA(IF(INDEX(EN!K:K,E5)<>0,INDEX(EN!K:K,E5),""),"") -> W | P5: =_xlfn.IFNA(INDEX(EN!M:M,E5),"") -> Citation in the OJ | Q5: =_xlfn.IFNA(INDEX(EN!N:N,E5),"") -> 2016-07-08 | R5: =_xlfn.IFNA(INDEX(EN!B:B,E5),"") -> ERM TG26 | S5: =INDEX(EN!O:O,E5) -> 53812 | T5: =MATCH(S5,Person!A:A) -> 9 | U5: =_xlfn.IFNA(INDEX(Person!B:B,T5),"") -> Andrea | V5: =_xlfn.IFNA(INDEX(Person!C:C,T5),"") -> Lorelli | W5: =MATCH(D5,'0a'!A:A,0) ->  | X5: =MATCH(D5,'1'!A:A,0) ->  | Y5: =MATCH(D5,'7'!A:A,0) ->  | Z5: =MATCH(D5,'8'!A:A,0) -> 45293 | AA5: =MATCH(D5,'8A'!A:A,0) -> 46890 | AB5: =MATCH(D5,'9B'!A:A,0) ->  | AC5: =MATCH(D5,'9C'!A:A,0) ->  | AD5: =MATCH(D5,'9D'!A:A,0) ->  | AE5: =MATCH(D5,'9Da'!A:A,0) ->  | AF5: =MATCH(D5,'9E'!A:A,0) ->  | AG5: =MATCH(D5,'10F'!A:A,0) ->  | AH5: =MATCH(D5,'11'!A:A,0) ->  | AI5: =MATCH(D5,'12'!A:A,0) -> 45982 | AJ5: =MATCH(D5,'12V'!A:A,0) -> 906 | AK5: =MATCH(D5,'12W'!A:A,0) -> 904 | AL5: =MATCH(D5,'30'!A:A,0) ->  | AM5: =MATCH(D5,'35'!A:A,0) ->  | AN5: =MATCH(D5,'40'!A:A,0) ->  | AO5: =MATCH(D5,'45'!A:A,0) ->  | AP5: =MATCH(D5,'50'!A:A,0) ->  | AQ5: =_xlfn.IFNA(INDEX('0a'!E:E,W5),"") ->  | AR5: =_xlfn.IFNA(IF(INDEX('1'!G:G,X5)=0,INDEX('1'!F:F,X5),""),"") ->  | AS5: =_xlfn.IFNA(IF(INDEX('1'!G:G,X5)<>0,INDEX('1'!G:G,X5),""),"") ->  | AT5: =_xlfn.IFNA(IF(INDEX('7'!F:F,Y5)=0,INDEX('7'!E:E,Y5),""),"") ->  | AU5: =_xlfn.IFNA(IF(INDEX('7'!F:F,Y5)<>0,INDEX('7'!F:F,Y5),""),"") ->  | AV5: =_xlfn.IFNA(IF(INDEX('8'!F:F,Z5)=0,INDEX('8'!E:E,Z5),""),"") ->  | AW5: =_xlfn.IFNA(IF(INDEX('8'!F:F,Z5)<>0,INDEX('8'!F:F,Z5),""),"") -> 2016-06-10 | AX5: =_xlfn.IFNA(IF(INDEX('8A'!F:F,AA5)=0,INDEX('8A'!E:E,AA5),""),"") ->  | AY5: =_xlfn.IFNA(IF(INDEX('8A'!F:F,AA5)<>0,INDEX('8A'!F:F,AA5),""),"") -> 2016-06-10 | AZ5: =_xlfn.IFNA(IF(INDEX('9B'!F:F,AB5)=0,INDEX('9B'!E:E,AB5),""),"") ->  | BA5: =_xlfn.IFNA(IF(INDEX('9B'!F:F,AB5)<>0,INDEX('9B'!F:F,AB5),""),"") ->  | BB5: =_xlfn.IFNA(IF(INDEX('9C'!F:F,AC5)=0,INDEX('9C'!E:E,AC5),""),"") ->  | BC5: =_xlfn.IFNA(IF(INDEX('9C'!F:F,AC5)<>0,INDEX('9C'!F:F,AC5),""),"") ->  | BD5: =_xlfn.IFNA(IF(INDEX('9D'!F:F,AD5)=0,INDEX('9D'!E:E,AD5),""),"") ->  | BE5: =_xlfn.IFNA(IF(INDEX('9D'!F:F,AD5)<>0,INDEX('9D'!F:F,AD5),""),"") ->  | BF5: =_xlfn.IFNA(IF(INDEX('9Da'!F:F,AE5)=0,INDEX('9Da'!E:E,AE5),""),"") ->  | BG5: =_xlfn.IFNA(IF(INDEX('9Da'!F:F,AE5)<>0,INDEX('9Da'!F:F,AE5),""),"") ->  | BH5: =_xlfn.IFNA(IF(INDEX('9E'!F:F,AF5)=0,INDEX('9E'!E:E,AF5),""),"") ->  | BI5: =_xlfn.IFNA(IF(INDEX('9E'!F:F,AF5)<>0,INDEX('9E'!F:F,AF5),""),"") ->  | BJ5: =_xlfn.IFNA(IF(INDEX('10F'!F:F,AG5)=0,INDEX('10F'!E:E,AG5),""),"") ->  | BK5: =_xlfn.IFNA(IF(INDEX('10F'!F:F,AG5)<>0,INDEX('10F'!F:F,AG5),""),"") ->  | BL5: =_xlfn.IFNA(IF(INDEX('11'!F:F,AH5)=0,INDEX('11'!E:E,AH5),""),"") ->  | BM5: =_xlfn.IFNA(IF(INDEX('11'!F:F,AH5)<>0,INDEX('11'!F:F,AH5),""),"") ->  | BN5: =_xlfn.IFNA(IF(INDEX('12'!G:G,AI5)=0,INDEX('12'!F:F,AI5),""),"") ->  | BO5: =_xlfn.IFNA(IF(INDEX('12'!G:G,AI5)<>0,INDEX('12'!G:G,AI5),""),"") -> 2016-06-13 | BP5: =_xlfn.IFNA(IF(INDEX('12V'!F:F,AJ5)=0,INDEX('12V'!E:E,AJ5),""),"") ->  | BQ5: =_xlfn.IFNA(IF(INDEX('12V'!F:F,AJ5)<>0,INDEX('12V'!F:F,AJ5),""),"") -> 2016-06-14 | BR5: =_xlfn.IFNA(IF(INDEX('12W'!F:F,AK5)=0,INDEX('12W'!E:E,AK5),""),"") ->  | BS5: =_xlfn.IFNA(IF(INDEX('12W'!F:F,AK5)<>0,INDEX('12W'!F:F,AK5),""),"") -> 2016-07-08 | BT5: =_xlfn.IFNA(IF(INDEX('30'!F:F,AL5)=0,INDEX('30'!E:E,AL5),""),"") ->  | BU5: =_xlfn.IFNA(IF(INDEX('30'!F:F,AL5)<>0,INDEX('30'!F:F,AL5),""),"") ->  | BV5: =_xlfn.IFNA(IF(INDEX('35'!F:F,AM5)=0,INDEX('35'!E:E,AM5),""),"") ->  | BW5: =_xlfn.IFNA(IF(INDEX('35'!F:F,AM5)<>0,INDEX('35'!F:F,AM5),""),"") ->  | BX5: =_xlfn.IFNA(IF(INDEX('40'!F:F,AN5)=0,INDEX('40'!E:E,AN5),""),"") ->  | BY5: =_xlfn.IFNA(IF(INDEX('40'!F:F,AN5)<>0,INDEX('40'!F:F,AN5),""),"") ->  | BZ5: =_xlfn.IFNA(IF(INDEX('45'!F:F,AO5)=0,INDEX('45'!E:E,AO5),""),"") ->  | CA5: =_xlfn.IFNA(IF(INDEX('45'!F:F,AO5)<>0,INDEX('45'!F:F,AO5),""),"") ->  | CB5: =_xlfn.IFNA(IF(INDEX('50'!F:F,AP5)=0,INDEX('50'!E:E,AP5),""),"") ->  | CC5: =_xlfn.IFNA(IF(INDEX('50'!F:F,AP5)<>0,INDEX('50'!F:F,AP5),""),"") ->  | CK5: =MATCH(CJ5,EN!A:A,0) ->  | CL5: =_xlfn.IFNA(INDEX(EN!I:I,CK5),"") ->  | CM5: =IF(CJ5=0,"",HYPERLINK(CONCATENATE("http://webapp.etsi.org/workProgram/Report_WorkItem.asp?wki_id=",CJ5))) ->  | CN5: =_xlfn.IFNA(INDEX(EN!J:J,CK5),"") ->  | CO5: =_xlfn.IFNA(IF(INDEX(EN!K:K,CK5)<>0,INDEX(EN!K:K,CK5),""),"") -> 
A6: 300 086-2 | B6: 1.3.1 | C6: Original | D6: 47173 | E6: =MATCH(D6,EN!A:A,0) -> 3930 | F6: =INDEX(EN!I:I,E6) -> REN/ERM-TGDMR-351 | G6: http://webapp.etsi.org/workProgram/Report_WorkItem.asp?wki_id=47173 | H6: =_xlfn.IFNA(INDEX(EN!F:F,E6),"") -> EN | I6: =_xlfn.IFNA(INDEX(EN!G:G,E6),"") -> 300 086 | J6: =_xlfn.IFNA(IF(INDEX(EN!L:L,E6)<>0,INDEX(EN!L:L,E6),""),"") -> 2.1.2 | K6: Cited | L6: =_xlfn.IFNA(INDEX(EN!H:H,E6),"") -> HEN - RE int or ext RF connector intended primarily for analogue speech | M6: RED 3.2 | N6: =_xlfn.IFNA(INDEX(EN!J:J,E6),"") -> 12 | O6: =_xlfn.IFNA(IF(INDEX(EN!K:K,E6)<>0,INDEX(EN!K:K,E6),""),"") -> W | P6: =_xlfn.IFNA(INDEX(EN!M:M,E6),"") -> Citation in the OJ | Q6: =_xlfn.IFNA(INDEX(EN!N:N,E6),"") -> 2016-12-09 | R6: =_xlfn.IFNA(INDEX(EN!B:B,E6),"") -> ERM TGDMR | S6: =INDEX(EN!O:O,E6) -> 14585 | T6: =MATCH(S6,Person!A:A) -> 6 | U6: =_xlfn.IFNA(INDEX(Person!B:B,T6),"") -> Bernt | V6: =_xlfn.IFNA(INDEX(Person!C:C,T6),"") -> Mattsson | W6: =MATCH(D6,'0a'!A:A,0) -> 3622 | X6: =MATCH(D6,'1'!A:A,0) -> 3528 | Y6: =MATCH(D6,'7'!A:A,0) -> 13653 | Z6: =MATCH(D6,'8'!A:A,0) -> 42507 | AA6: =MATCH(D6,'8A'!A:A,0) -> 44064 | AB6: =MATCH(D6,'9B'!A:A,0) -> 6330 | AC6: =MATCH(D6,'9C'!A:A,0) -> 3619 | AD6: =MATCH(D6,'9D'!A:A,0) -> 3418 | AE6: =MATCH(D6,'9Da'!A:A,0) -> 2233 | AF6: =MATCH(D6,'9E'!A:A,0) -> 3626 | AG6: =MATCH(D6,'10F'!A:A,0) -> 1667 | AH6: =MATCH(D6,'11'!A:A,0) -> 7946 | AI6: =MATCH(D6,'12'!A:A,0) -> 43193 | AJ6: =MATCH(D6,'12V'!A:A,0) -> 825 | AK6: =MATCH(D6,'12W'!A:A,0) -> 826 | AL6: =MATCH(D6,'30'!A:A,0) ->  | AM6: =MATCH(D6,'35'!A:A,0) ->  | AN6: =MATCH(D6,'40'!A:A,0) ->  | AO6: =MATCH(D6,'45'!A:A,0) ->  | AP6: =MATCH(D6,'50'!A:A,0) ->  | AQ6: =_xlfn.IFNA(INDEX('0a'!E:E,W6),"") -> 2015-06-11 | AR6: =_xlfn.IFNA(IF(INDEX('1'!G:G,X6)=0,INDEX('1'!F:F,X6),""),"") ->  | AS6: =_xlfn.IFNA(IF(INDEX('1'!G:G,X6)<>0,INDEX('1'!G:G,X6),""),"") -> 2015-05-22 | AT6: =_xlfn.IFNA(IF(INDEX('7'!F:F,Y6)=0,INDEX('7'!E:E,Y6),""),"") ->  | AU6: =_xlfn.IFNA(IF(INDEX('7'!F:F,Y6)<>0,INDEX('7'!F:F,Y6),""),"") -> 2015-10-07 | AV6: =_xlfn.IFNA(IF(INDEX('8'!F:F,Z6)=0,INDEX('8'!E:E,Z6),""),"") ->  | AW6: =_xlfn.IFNA(IF(INDEX('8'!F:F,Z6)<>0,INDEX('8'!F:F,Z6),""),"") -> 2015-11-18 | AX6: =_xlfn.IFNA(IF(INDEX('8A'!F:F,AA6)=0,INDEX('8A'!E:E,AA6),""),"") ->  | AY6: =_xlfn.IFNA(IF(INDEX('8A'!F:F,AA6)<>0,INDEX('8A'!F:F,AA6),""),"") -> 2015-11-25 | AZ6: =_xlfn.IFNA(IF(INDEX('9B'!F:F,AB6)=0,INDEX('9B'!E:E,AB6),""),"") ->  | BA6: =_xlfn.IFNA(IF(INDEX('9B'!F:F,AB6)<>0,INDEX('9B'!F:F,AB6),""),"") -> 2015-12-21 | BB6: =_xlfn.IFNA(IF(INDEX('9C'!F:F,AC6)=0,INDEX('9C'!E:E,AC6),""),"") ->  | BC6: =_xlfn.IFNA(IF(INDEX('9C'!F:F,AC6)<>0,INDEX('9C'!F:F,AC6),""),"") -> 2016-03-21 | BD6: =_xlfn.IFNA(IF(INDEX('9D'!F:F,AD6)=0,INDEX('9D'!E:E,AD6),""),"") ->  | BE6: =_xlfn.IFNA(IF(INDEX('9D'!F:F,AD6)<>0,INDEX('9D'!F:F,AD6),""),"") -> 2016-03-21 | BF6: =_xlfn.IFNA(IF(INDEX('9Da'!F:F,AE6)=0,INDEX('9Da'!E:E,AE6),""),"") ->  | BG6: =_xlfn.IFNA(IF(INDEX('9Da'!F:F,AE6)<>0,INDEX('9Da'!F:F,AE6),""),"") -> 2016-05-23 | BH6: =_xlfn.IFNA(IF(INDEX('9E'!F:F,AF6)=0,INDEX('9E'!E:E,AF6),""),"") ->  | BI6: =_xlfn.IFNA(IF(INDEX('9E'!F:F,AF6)<>0,INDEX('9E'!F:F,AF6),""),"") -> 2016-06-06 | BJ6: =_xlfn.IFNA(IF(INDEX('10F'!F:F,AG6)=0,INDEX('10F'!E:E,AG6),""),"") ->  | BK6: =_xlfn.IFNA(IF(INDEX('10F'!F:F,AG6)<>0,INDEX('10F'!F:F,AG6),""),"") -> 2016-06-22 | BL6: =_xlfn.IFNA(IF(INDEX('11'!F:F,AH6)=0,INDEX('11'!E:E,AH6),""),"") ->  | BM6: =_xlfn.IFNA(IF(INDEX('11'!F:F,AH6)<>0,INDEX('11'!F:F,AH6),""),"") -> 2016-08-22 | BN6: =_xlfn.IFNA(IF(INDEX('12'!G:G,AI6)=0,INDEX('12'!F:F,AI6),""),"") ->  | BO6: =_xlfn.IFNA(IF(INDEX('12'!G:G,AI6)<>0,INDEX('12'!G:G,AI6),""),"") -> 2016-08-30 | BP6: =_xlfn.IFNA(IF(INDEX('12V'!F:F,AJ6)=0,INDEX('12V'!E:E,AJ6),""),"") ->  | BQ6: =_xlfn.IFNA(IF(INDEX('12V'!F:F,AJ6)<>0,INDEX('12V'!F:F,AJ6),""),"") -> 2016-10-05 | BR6: =_xlfn.IFNA(IF(INDEX('12W'!F:F,AK6)=0,INDEX('12W'!E:E,AK6),""),"") ->  | BS6: =_xlfn.IFNA(IF(INDEX('12W'!F:F,AK6)<>0,INDEX('12W'!F:F,AK6),""),"") -> 2016-12-09 | BT6: =_xlfn.IFNA(IF(INDEX('30'!F:F,AL6)=0,INDEX('30'!E:E,AL6),""),"") ->  | BU6: =_xlfn.IFNA(IF(INDEX('30'!F:F,AL6)<>0,INDEX('30'!F:F,AL6),""),"") ->  | BV6: =_xlfn.IFNA(IF(INDEX('35'!F:F,AM6)=0,INDEX('35'!E:E,AM6),""),"") ->  | BW6: =_xlfn.IFNA(IF(INDEX('35'!F:F,AM6)<>0,INDEX('35'!F:F,AM6),""),"") ->  | BX6: =_xlfn.IFNA(IF(INDEX('40'!F:F,AN6)=0,INDEX('40'!E:E,AN6),""),"") ->  | BY6: =_xlfn.IFNA(IF(INDEX('40'!F:F,AN6)<>0,INDEX('40'!F:F,AN6),""),"") ->  | BZ6: =_xlfn.IFNA(IF(INDEX('45'!F:F,AO6)=0,INDEX('45'!E:E,AO6),""),"") ->  | CA6: =_xlfn.IFNA(IF(INDEX('45'!F:F,AO6)<>0,INDEX('45'!F:F,AO6),""),"") ->  | CB6: =_xlfn.IFNA(IF(INDEX('50'!F:F,AP6)=0,INDEX('50'!E:E,AP6),""),"") ->  | CC6: =_xlfn.IFNA(IF(INDEX('50'!F:F,AP6)<>0,INDEX('50'!F:F,AP6),""),"") ->  | CJ6: 51389 | CK6: =MATCH(CJ6,EN!A:A,0) -> 4229 | CL6: =_xlfn.IFNA(INDEX(EN!I:I,CK6),"") -> REN/ERM-TGDMR-372 | CM6: http://webapp.etsi.org/workProgram/Report_WorkItem.asp?wki_id=51389 | CN6: =_xlfn.IFNA(INDEX(EN!J:J,CK6),"") -> 8 | CO6: =_xlfn.IFNA(IF(INDEX(EN!K:K,CK6)<>0,INDEX(EN!K:K,CK6),""),"") -> WA
C7: Addition | D7: 51389 | E7: =MATCH(D7,EN!A:A,0) -> 4229 | F7: =INDEX(EN!I:I,E7) -> REN/ERM-TGDMR-372 | G7: http://webapp.etsi.org/workProgram/Report_WorkItem.asp?wki_id=51389 | H7: =_xlfn.IFNA(INDEX(EN!F:F,E7),"") -> EN | I7: =_xlfn.IFNA(INDEX(EN!G:G,E7),"") -> 300 086 | J7: =_xlfn.IFNA(IF(INDEX(EN!L:L,E7)<>0,INDEX(EN!L:L,E7),""),"") -> 0.0.3 | K7: RevPending | L7: =_xlfn.IFNA(INDEX(EN!H:H,E7),"") -> HEN - RE int or ext RF connector intended primarily for analogue speech | M7: RED 3.2 | N7: =_xlfn.IFNA(INDEX(EN!J:J,E7),"") -> 8 | O7: =_xlfn.IFNA(IF(INDEX(EN!K:K,E7)<>0,INDEX(EN!K:K,E7),""),"") -> WA | P7: =_xlfn.IFNA(INDEX(EN!M:M,E7),"") -> Waiting - see "Remarks" | Q7: =_xlfn.IFNA(INDEX(EN!N:N,E7),"") -> 2017-08-29 | R7: =_xlfn.IFNA(INDEX(EN!B:B,E7),"") -> ERM TGDMR | S7: =INDEX(EN!O:O,E7) -> 14585 | T7: =MATCH(S7,Person!A:A) -> 6 | U7: =_xlfn.IFNA(INDEX(Person!B:B,T7),"") -> Bernt | V7: =_xlfn.IFNA(INDEX(Person!C:C,T7),"") -> Mattsson | W7: =MATCH(D7,'0a'!A:A,0) -> 3916 | X7: =MATCH(D7,'1'!A:A,0) -> 3809 | Y7: =MATCH(D7,'7'!A:A,0) -> 14078 | Z7: =MATCH(D7,'8'!A:A,0) -> 46557 | AA7: =MATCH(D7,'8A'!A:A,0) -> 48175 | AB7: =MATCH(D7,'9B'!A:A,0) -> 6615 | AC7: =MATCH(D7,'9C'!A:A,0) -> 3903 | AD7: =MATCH(D7,'9D'!A:A,0) -> 3620 | AE7: =MATCH(D7,'9Da'!A:A,0) -> 2435 | AF7: =MATCH(D7,'9E'!A:A,0) -> 3830 | AG7: =MATCH(D7,'10F'!A:A,0) -> 1862 | AH7: =MATCH(D7,'11'!A:A,0) -> 8315 | AI7: =MATCH(D7,'12'!A:A,0) -> 47248 | AJ7: =MATCH(D7,'12V'!A:A,0) -> 1011 | AK7: =MATCH(D7,'12W'!A:A,0) -> 1008 | AL7: =MATCH(D7,'30'!A:A,0) ->  | AM7: =MATCH(D7,'35'!A:A,0) ->  | AN7: =MATCH(D7,'40'!A:A,0) ->  | AO7: =MATCH(D7,'45'!A:A,0) ->  | AP7: =MATCH(D7,'50'!A:A,0) ->  | AQ7: =_xlfn.IFNA(INDEX('0a'!E:E,W7),"") -> 2017-02-22 | AR7: =_xlfn.IFNA(IF(INDEX('1'!G:G,X7)=0,INDEX('1'!F:F,X7),""),"") ->  | AS7: =_xlfn.IFNA(IF(INDEX('1'!G:G,X7)<>0,INDEX('1'!G:G,X7),""),"") -> 2017-02-22 | AT7: =_xlfn.IFNA(IF(INDEX('7'!F:F,Y7)=0,INDEX('7'!E:E,Y7),""),"") ->  | AU7: =_xlfn.IFNA(IF(INDEX('7'!F:F,Y7)<>0,INDEX('7'!F:F,Y7),""),"") -> 2017-05-16 | AV7: =_xlfn.IFNA(IF(INDEX('8'!F:F,Z7)=0,INDEX('8'!E:E,Z7),""),"") ->  | AW7: =_xlfn.IFNA(IF(INDEX('8'!F:F,Z7)<>0,INDEX('8'!F:F,Z7),""),"") -> 2017-06-21 | AX7: =_xlfn.IFNA(IF(INDEX('8A'!F:F,AA7)=0,INDEX('8A'!E:E,AA7),""),"") -> 2018-03-14 | AY7: =_xlfn.IFNA(IF(INDEX('8A'!F:F,AA7)<>0,INDEX('8A'!F:F,AA7),""),"") ->  | AZ7: =_xlfn.IFNA(IF(INDEX('9B'!F:F,AB7)=0,INDEX('9B'!E:E,AB7),""),"") -> 2018-03-28 | BA7: =_xlfn.IFNA(IF(INDEX('9B'!F:F,AB7)<>0,INDEX('9B'!F:F,AB7),""),"") ->  | BB7: =_xlfn.IFNA(IF(INDEX('9C'!F:F,AC7)=0,INDEX('9C'!E:E,AC7),""),"") -> 2018-06-27 | BC7: =_xlfn.IFNA(IF(INDEX('9C'!F:F,AC7)<>0,INDEX('9C'!F:F,AC7),""),"") ->  | BD7: =_xlfn.IFNA(IF(INDEX('9D'!F:F,AD7)=0,INDEX('9D'!E:E,AD7),""),"") -> 2018-06-27 | BE7: =_xlfn.IFNA(IF(INDEX('9D'!F:F,AD7)<>0,INDEX('9D'!F:F,AD7),""),"") ->  | BF7: =_xlfn.IFNA(IF(INDEX('9Da'!F:F,AE7)=0,INDEX('9Da'!E:E,AE7),""),"") -> 2018-09-26 | BG7: =_xlfn.IFNA(IF(INDEX('9Da'!F:F,AE7)<>0,INDEX('9Da'!F:F,AE7),""),"") ->  | BH7: =_xlfn.IFNA(IF(INDEX('9E'!F:F,AF7)=0,INDEX('9E'!E:E,AF7),""),"") -> 2018-10-03 | BI7: =_xlfn.IFNA(IF(INDEX('9E'!F:F,AF7)<>0,INDEX('9E'!F:F,AF7),""),"") ->  | BJ7: =_xlfn.IFNA(IF(INDEX('10F'!F:F,AG7)=0,INDEX('10F'!E:E,AG7),""),"") -> 2018-10-17 | BK7: =_xlfn.IFNA(IF(INDEX('10F'!F:F,AG7)<>0,INDEX('10F'!F:F,AG7),""),"") ->  | BL7: =_xlfn.IFNA(IF(INDEX('11'!F:F,AH7)=0,INDEX('11'!E:E,AH7),""),"") -> 2018-12-16 | BM7: =_xlfn.IFNA(IF(INDEX('11'!F:F,AH7)<>0,INDEX('11'!F:F,AH7),""),"") ->  | BN7: =_xlfn.IFNA(IF(INDEX('12'!G:G,AI7)=0,INDEX('12'!F:F,AI7),""),"") -> 2018-12-30 | BO7: =_xlfn.IFNA(IF(INDEX('12'!G:G,AI7)<>0,INDEX('12'!G:G,AI7),""),"") ->  | BP7: =_xlfn.IFNA(IF(INDEX('12V'!F:F,AJ7)=0,INDEX('12V'!E:E,AJ7),""),"") -> 2019-01-20 | BQ7: =_xlfn.IFNA(IF(INDEX('12V'!F:F,AJ7)<>0,INDEX('12V'!F:F,AJ7),""),"") ->  | BR7: =_xlfn.IFNA(IF(INDEX('12W'!F:F,AK7)=0,INDEX('12W'!E:E,AK7),""),"") -> 2019-04-14 | BS7: =_xlfn.IFNA(IF(INDEX('12W'!F:F,AK7)<>0,INDEX('12W'!F:F,AK7),""),"") ->  | BT7: =_xlfn.IFNA(IF(INDEX('30'!F:F,AL7)=0,INDEX('30'!E:E,AL7),""),"") ->  | BU7: =_xlfn.IFNA(IF(INDEX('30'!F:F,AL7)<>0,INDEX('30'!F:F,AL7),""),"") ->  | BV7: =_xlfn.IFNA(IF(INDEX('35'!F:F,AM7)=0,INDEX('35'!E:E,AM7),""),"") ->  | BW7: =_xlfn.IFNA(IF(INDEX('35'!F:F,AM7)<>0,INDEX('35'!F:F,AM7),""),"") ->  | BX7: =_xlfn.IFNA(IF(INDEX('40'!F:F,AN7)=0,INDEX('40'!E:E,AN7),""),"") ->  | BY7: =_xlfn.IFNA(IF(INDEX('40'!F:F,AN7)<>0,INDEX('40'!F:F,AN7),""),"") ->  | BZ7: =_xlfn.IFNA(IF(INDEX('45'!F:F,AO7)=0,INDEX('45'!E:E,AO7),""),"") ->  | CA7: =_xlfn.IFNA(IF(INDEX('45'!F:F,AO7)<>0,INDEX('45'!F:F,AO7),""),"") ->  | CB7: =_xlfn.IFNA(IF(INDEX('50'!F:F,AP7)=0,INDEX('50'!E:E,AP7),""),"") ->  | CC7: =_xlfn.IFNA(IF(INDEX('50'!F:F,AP7)<>0,INDEX('50'!F:F,AP7),""),"") ->  | CE7: Pre-assessment comments | CK7: =MATCH(CJ7,EN!A:A,0) ->  | CL7: =_xlfn.IFNA(INDEX(EN!I:I,CK7),"") ->  | CN7: =_xlfn.IFNA(INDEX(EN!J:J,CK7),"") ->  | CO7: =_xlfn.IFNA(IF(INDEX(EN!K:K,CK7)<>0,INDEX(EN!K:K,CK7),""),"") -> 
A8: 300 113-2 | B8: 1.5.1 | C8: Original | D8: 47174 | E8: =MATCH(D8,EN!A:A,0) -> 3931 | F8: =INDEX(EN!I:I,E8) -> REN/ERM-TGDMR-350 | G8: http://webapp.etsi.org/workProgram/Report_WorkItem.asp?wki_id=47174 | H8: =_xlfn.IFNA(INDEX(EN!F:F,E8),"") -> EN | I8: =_xlfn.IFNA(INDEX(EN!G:G,E8),"") -> 300 113 | J8: =_xlfn.IFNA(IF(INDEX(EN!L:L,E8)<>0,INDEX(EN!L:L,E8),""),"") -> 2.1.1 | L8: =_xlfn.IFNA(INDEX(EN!H:H,E8),"") -> HEN - RE transmission of data (and/or speech) with antenna connector | M8: RED 3.2 | N8: =_xlfn.IFNA(INDEX(EN!J:J,E8),"") -> 50 | O8: =_xlfn.IFNA(IF(INDEX(EN!K:K,E8)<>0,INDEX(EN!K:K,E8),""),"") ->  | P8: =_xlfn.IFNA(INDEX(EN!M:M,E8),"") -> Withdrawn | Q8: =_xlfn.IFNA(INDEX(EN!N:N,E8),"") -> 2017-08-21 | R8: =_xlfn.IFNA(INDEX(EN!B:B,E8),"") -> ERM TGDMR | S8: =INDEX(EN!O:O,E8) -> 14585 | T8: =MATCH(S8,Person!A:A) -> 6 | U8: =_xlfn.IFNA(INDEX(Person!B:B,T8),"") -> Bernt | V8: =_xlfn.IFNA(INDEX(Person!C:C,T8),"") -> Mattsson | W8: =MATCH(D8,'0a'!A:A,0) -> 3623 | X8: =MATCH(D8,'1'!A:A,0) -> 3529 | Y8: =MATCH(D8,'7'!A:A,0) -> 13654 | Z8: =MATCH(D8,'8'!A:A,0) -> 42508 | AA8: =MATCH(D8,'8A'!A:A,0) -> 44065 | AB8: =MATCH(D8,'9B'!A:A,0) -> 6331 | AC8: =MATCH(D8,'9C'!A:A,0) -> 3620 | AD8: =MATCH(D8,'9D'!A:A,0) ->  | AE8: =MATCH(D8,'9Da'!A:A,0) ->  | AF8: =MATCH(D8,'9E'!A:A,0) ->  | AG8: =MATCH(D8,'10F'!A:A,0) ->  | AH8: =MATCH(D8,'11'!A:A,0) -> 7947 | AI8: =MATCH(D8,'12'!A:A,0) -> 43194 | AJ8: =MATCH(D8,'12V'!A:A,0) -> 826 | AK8: =MATCH(D8,'12W'!A:A,0) -> 827 | AL8: =MATCH(D8,'30'!A:A,0) -> 773 | AM8: =MATCH(D8,'35'!A:A,0) -> 766 | AN8: =MATCH(D8,'40'!A:A,0) -> 104 | AO8: =MATCH(D8,'45'!A:A,0) -> 104 | AP8: =MATCH(D8,'50'!A:A,0) -> 865 | AQ8: =_xlfn.IFNA(INDEX('0a'!E:E,W8),"") -> 2015-06-11 | AR8: =_xlfn.IFNA(IF(INDEX('1'!G:G,X8)=0,INDEX('1'!F:F,X8),""),"") ->  | AS8: =_xlfn.IFNA(IF(INDEX('1'!G:G,X8)<>0,INDEX('1'!G:G,X8),""),"") -> 2015-05-22 | AT8: =_xlfn.IFNA(IF(INDEX('7'!F:F,Y8)=0,INDEX('7'!E:E,Y8),""),"") ->  | AU8: =_xlfn.IFNA(IF(INDEX('7'!F:F,Y8)<>0,INDEX('7'!F:F,Y8),""),"") -> 2015-10-07 | AV8: =_xlfn.IFNA(IF(INDEX('8'!F:F,Z8)=0,INDEX('8'!E:E,Z8),""),"") ->  | AW8: =_xlfn.IFNA(IF(INDEX('8'!F:F,Z8)<>0,INDEX('8'!F:F,Z8),""),"") -> 2015-11-18 | AX8: =_xlfn.IFNA(IF(INDEX('8A'!F:F,AA8)=0,INDEX('8A'!E:E,AA8),""),"") ->  | AY8: =_xlfn.IFNA(IF(INDEX('8A'!F:F,AA8)<>0,INDEX('8A'!F:F,AA8),""),"") -> 2015-11-25 | AZ8: =_xlfn.IFNA(IF(INDEX('9B'!F:F,AB8)=0,INDEX('9B'!E:E,AB8),""),"") ->  | BA8: =_xlfn.IFNA(IF(INDEX('9B'!F:F,AB8)<>0,INDEX('9B'!F:F,AB8),""),"") -> 2015-12-21 | BB8: =_xlfn.IFNA(IF(INDEX('9C'!F:F,AC8)=0,INDEX('9C'!E:E,AC8),""),"") ->  | BC8: =_xlfn.IFNA(IF(INDEX('9C'!F:F,AC8)<>0,INDEX('9C'!F:F,AC8),""),"") -> 2016-03-21 | BD8: =_xlfn.IFNA(IF(INDEX('9D'!F:F,AD8)=0,INDEX('9D'!E:E,AD8),""),"") ->  | BE8: =_xlfn.IFNA(IF(INDEX('9D'!F:F,AD8)<>0,INDEX('9D'!F:F,AD8),""),"") ->  | BF8: =_xlfn.IFNA(IF(INDEX('9Da'!F:F,AE8)=0,INDEX('9Da'!E:E,AE8),""),"") ->  | BG8: =_xlfn.IFNA(IF(INDEX('9Da'!F:F,AE8)<>0,INDEX('9Da'!F:F,AE8),""),"") ->  | BH8: =_xlfn.IFNA(IF(INDEX('9E'!F:F,AF8)=0,INDEX('9E'!E:E,AF8),""),"") ->  | BI8: =_xlfn.IFNA(IF(INDEX('9E'!F:F,AF8)<>0,INDEX('9E'!F:F,AF8),""),"") ->  | BJ8: =_xlfn.IFNA(IF(INDEX('10F'!F:F,AG8)=0,INDEX('10F'!E:E,AG8),""),"") ->  | BK8: =_xlfn.IFNA(IF(INDEX('10F'!F:F,AG8)<>0,INDEX('10F'!F:F,AG8),""),"") ->  | BL8: =_xlfn.IFNA(IF(INDEX('11'!F:F,AH8)=0,INDEX('11'!E:E,AH8),""),"") ->  | BM8: =_xlfn.IFNA(IF(INDEX('11'!F:F,AH8)<>0,INDEX('11'!F:F,AH8),""),"") -> 2016-03-21 | BN8: =_xlfn.IFNA(IF(INDEX('12'!G:G,AI8)=0,INDEX('12'!F:F,AI8),""),"") ->  | BO8: =_xlfn.IFNA(IF(INDEX('12'!G:G,AI8)<>0,INDEX('12'!G:G,AI8),""),"") -> 2016-08-31 | BP8: =_xlfn.IFNA(IF(INDEX('12V'!F:F,AJ8)=0,INDEX('12V'!E:E,AJ8),""),"") ->  | BQ8: =_xlfn.IFNA(IF(INDEX('12V'!F:F,AJ8)<>0,INDEX('12V'!F:F,AJ8),""),"") -> 2016-09-02 | BR8: =_xlfn.IFNA(IF(INDEX('12W'!F:F,AK8)=0,INDEX('12W'!E:E,AK8),""),"") -> 2016-11-25 | BS8: =_xlfn.IFNA(IF(INDEX('12W'!F:F,AK8)<>0,INDEX('12W'!F:F,AK8),""),"") ->  | BT8: =_xlfn.IFNA(IF(INDEX('30'!F:F,AL8)=0,INDEX('30'!E:E,AL8),""),"") ->  | BU8: =_xlfn.IFNA(IF(INDEX('30'!F:F,AL8)<>0,INDEX('30'!F:F,AL8),""),"") -> 2017-06-16 | BV8: =_xlfn.IFNA(IF(INDEX('35'!F:F,AM8)=0,INDEX('35'!E:E,AM8),""),"") ->  | BW8: =_xlfn.IFNA(IF(INDEX('35'!F:F,AM8)<>0,INDEX('35'!F:F,AM8),""),"") -> 2017-06-21 | BX8: =_xlfn.IFNA(IF(INDEX('40'!F:F,AN8)=0,INDEX('40'!E:E,AN8),""),"") ->  | BY8: =_xlfn.IFNA(IF(INDEX('40'!F:F,AN8)<>0,INDEX('40'!F:F,AN8),""),"") -> 2017-06-22 | BZ8: =_xlfn.IFNA(IF(INDEX('45'!F:F,AO8)=0,INDEX('45'!E:E,AO8),""),"") ->  | CA8: =_xlfn.IFNA(IF(INDEX('45'!F:F,AO8)<>0,INDEX('45'!F:F,AO8),""),"") -> 2017-08-21 | CB8: =_xlfn.IFNA(IF(INDEX('50'!F:F,AP8)=0,INDEX('50'!E:E,AP8),""),"") ->  | CC8: =_xlfn.IFNA(IF(INDEX('50'!F:F,AP8)<>0,INDEX('50'!F:F,AP8),""),"") -> 2017-08-21 | CE8: Later version cited - awaiting withdrawal of old version | CJ8: 50060 | CK8: =MATCH(CJ8,EN!A:A,0) -> 4083 | CL8: =_xlfn.IFNA(INDEX(EN!I:I,CK8),"") -> REN/ERM-TGDMR-361 | CM8: http://webapp.etsi.org/workProgram/Report_WorkItem.asp?wki_id=50060 | CN8: =_xlfn.IFNA(INDEX(EN!J:J,CK8),"") -> 12 | CO8: =_xlfn.IFNA(IF(INDEX(EN!K:K,CK8)<>0,INDEX(EN!K:K,CK8),""),"") -> W
C9: Addition | D9: 50060 | E9: =MATCH(D9,EN!A:A,0) -> 4083 | F9: =INDEX(EN!I:I,E9) -> REN/ERM-TGDMR-361 | G9: http://webapp.etsi.org/workProgram/Report_WorkItem.asp?wki_id=50060 | H9: =_xlfn.IFNA(INDEX(EN!F:F,E9),"") -> EN | I9: =_xlfn.IFNA(INDEX(EN!G:G,E9),"") -> 300 113 | J9: =_xlfn.IFNA(IF(INDEX(EN!L:L,E9)<>0,INDEX(EN!L:L,E9),""),"") -> 2.2.1 | K9: Cited | L9: =_xlfn.IFNA(INDEX(EN!H:H,E9),"") -> HEN - RE transmission of data (and/or speech) with antenna connector | M9: RED 3.2 | N9: =_xlfn.IFNA(INDEX(EN!J:J,E9),"") -> 12 | O9: =_xlfn.IFNA(IF(INDEX(EN!K:K,E9)<>0,INDEX(EN!K:K,E9),""),"") -> W | P9: =_xlfn.IFNA(INDEX(EN!M:M,E9),"") -> Citation in the OJ | Q9: =_xlfn.IFNA(INDEX(EN!N:N,E9),"") -> 2017-04-12 | R9: =_xlfn.IFNA(INDEX(EN!B:B,E9),"") -> ERM TGDMR | S9: =INDEX(EN!O:O,E9) -> 14585 | T9: =MATCH(S9,Person!A:A) -> 6 | U9: =_xlfn.IFNA(INDEX(Person!B:B,T9),"") -> Bernt | V9: =_xlfn.IFNA(INDEX(Person!C:C,T9),"") -> Mattsson | W9: =MATCH(D9,'0a'!A:A,0) -> 3775 | X9: =MATCH(D9,'1'!A:A,0) -> 3680 | Y9: =MATCH(D9,'7'!A:A,0) ->  | Z9: =MATCH(D9,'8'!A:A,0) -> 45245 | AA9: =MATCH(D9,'8A'!A:A,0) -> 46840 | AB9: =MATCH(D9,'9B'!A:A,0) -> 6491 | AC9: =MATCH(D9,'9C'!A:A,0) -> 3780 | AD9: =MATCH(D9,'9D'!A:A,0) ->  | AE9: =MATCH(D9,'9Da'!A:A,0) ->  | AF9: =MATCH(D9,'9E'!A:A,0) ->  | AG9: =MATCH(D9,'10F'!A:A,0) ->  | AH9: =MATCH(D9,'11'!A:A,0) -> 8143 | AI9: =MATCH(D9,'12'!A:A,0) -> 45934 | AJ9: =MATCH(D9,'12V'!A:A,0) -> 903 | AK9: =MATCH(D9,'12W'!A:A,0) -> 901 | AL9: =MATCH(D9,'30'!A:A,0) ->  | AM9: =MATCH(D9,'35'!A:A,0) ->  | AN9: =MATCH(D9,'40'!A:A,0) ->  | AO9: =MATCH(D9,'45'!A:A,0) ->  | AP9: =MATCH(D9,'50'!A:A,0) ->  | AQ9: =_xlfn.IFNA(INDEX('0a'!E:E,W9),"") -> 2016-06-08 | AR9: =_xlfn.IFNA(IF(INDEX('1'!G:G,X9)=0,INDEX('1'!F:F,X9),""),"") ->  | AS9: =_xlfn.IFNA(IF(INDEX('1'!G:G,X9)<>0,INDEX('1'!G:G,X9),""),"") -> 2016-06-08 | AT9: =_xlfn.IFNA(IF(INDEX('7'!F:F,Y9)=0,INDEX('7'!E:E,Y9),""),"") ->  | AU9: =_xlfn.IFNA(IF(INDEX('7'!F:F,Y9)<>0,INDEX('7'!F:F,Y9),""),"") ->  | AV9: =_xlfn.IFNA(IF(INDEX('8'!F:F,Z9)=0,INDEX('8'!E:E,Z9),""),"") ->  | AW9: =_xlfn.IFNA(IF(INDEX('8'!F:F,Z9)<>0,INDEX('8'!F:F,Z9),""),"") -> 2016-06-08 | AX9: =_xlfn.IFNA(IF(INDEX('8A'!F:F,AA9)=0,INDEX('8A'!E:E,AA9),""),"") ->  | AY9: =_xlfn.IFNA(IF(INDEX('8A'!F:F,AA9)<>0,INDEX('8A'!F:F,AA9),""),"") -> 2016-08-30 | AZ9: =_xlfn.IFNA(IF(INDEX('9B'!F:F,AB9)=0,INDEX('9B'!E:E,AB9),""),"") ->  | BA9: =_xlfn.IFNA(IF(INDEX('9B'!F:F,AB9)<>0,INDEX('9B'!F:F,AB9),""),"") -> 2016-09-08 | BB9: =_xlfn.IFNA(IF(INDEX('9C'!F:F,AC9)=0,INDEX('9C'!E:E,AC9),""),"") ->  | BC9: =_xlfn.IFNA(IF(INDEX('9C'!F:F,AC9)<>0,INDEX('9C'!F:F,AC9),""),"") -> 2016-12-07 | BD9: =_xlfn.IFNA(IF(INDEX('9D'!F:F,AD9)=0,INDEX('9D'!E:E,AD9),""),"") ->  | BE9: =_xlfn.IFNA(IF(INDEX('9D'!F:F,AD9)<>0,INDEX('9D'!F:F,AD9),""),"") ->  | BF9: =_xlfn.IFNA(IF(INDEX('9Da'!F:F,AE9)=0,INDEX('9Da'!E:E,AE9),""),"") ->  | BG9: =_xlfn.IFNA(IF(INDEX('9Da'!F:F,AE9)<>0,INDEX('9Da'!F:F,AE9),""),"") ->  | BH9: =_xlfn.IFNA(IF(INDEX('9E'!F:F,AF9)=0,INDEX('9E'!E:E,AF9),""),"") ->  | BI9: =_xlfn.IFNA(IF(INDEX('9E'!F:F,AF9)<>0,INDEX('9E'!F:F,AF9),""),"") ->  | BJ9: =_xlfn.IFNA(IF(INDEX('10F'!F:F,AG9)=0,INDEX('10F'!E:E,AG9),""),"") ->  | BK9: =_xlfn.IFNA(IF(INDEX('10F'!F:F,AG9)<>0,INDEX('10F'!F:F,AG9),""),"") ->  | BL9: =_xlfn.IFNA(IF(INDEX('11'!F:F,AH9)=0,INDEX('11'!E:E,AH9),""),"") ->  | BM9: =_xlfn.IFNA(IF(INDEX('11'!F:F,AH9)<>0,INDEX('11'!F:F,AH9),""),"") -> 2016-12-07 | BN9: =_xlfn.IFNA(IF(INDEX('12'!G:G,AI9)=0,INDEX('12'!F:F,AI9),""),"") ->  | BO9: =_xlfn.IFNA(IF(INDEX('12'!G:G,AI9)<>0,INDEX('12'!G:G,AI9),""),"") -> 2016-12-15 | BP9: =_xlfn.IFNA(IF(INDEX('12V'!F:F,AJ9)=0,INDEX('12V'!E:E,AJ9),""),"") ->  | BQ9: =_xlfn.IFNA(IF(INDEX('12V'!F:F,AJ9)<>0,INDEX('12V'!F:F,AJ9),""),"") -> 2016-12-15 | BR9: =_xlfn.IFNA(IF(INDEX('12W'!F:F,AK9)=0,INDEX('12W'!E:E,AK9),""),"") ->  | BS9: =_xlfn.IFNA(IF(INDEX('12W'!F:F,AK9)<>0,INDEX('12W'!F:F,AK9),""),"") -> 2017-04-12 | BT9: =_xlfn.IFNA(IF(INDEX('30'!F:F,AL9)=0,INDEX('30'!E:E,AL9),""),"") ->  | BU9: =_xlfn.IFNA(IF(INDEX('30'!F:F,AL9)<>0,INDEX('30'!F:F,AL9),""),"") ->  | BV9: =_xlfn.IFNA(IF(INDEX('35'!F:F,AM9)=0,INDEX('35'!E:E,AM9),""),"") ->  | BW9: =_xlfn.IFNA(IF(INDEX('35'!F:F,AM9)<>0,INDEX('35'!F:F,AM9),""),"") ->  | BX9: =_xlfn.IFNA(IF(INDEX('40'!F:F,AN9)=0,INDEX('40'!E:E,AN9),""),"") ->  | BY9: =_xlfn.IFNA(IF(INDEX('40'!F:F,AN9)<>0,INDEX('40'!F:F,AN9),""),"") ->  | BZ9: =_xlfn.IFNA(IF(INDEX('45'!F:F,AO9)=0,INDEX('45'!E:E,AO9),""),"") ->  | CA9: =_xlfn.IFNA(IF(INDEX('45'!F:F,AO9)<>0,INDEX('45'!F:F,AO9),""),"") ->  | CB9: =_xlfn.IFNA(IF(INDEX('50'!F:F,AP9)=0,INDEX('50'!E:E,AP9),""),"") ->  | CC9: =_xlfn.IFNA(IF(INDEX('50'!F:F,AP9)<>0,INDEX('50'!F:F,AP9),""),"") ->  | CJ9: 51387 | CK9: =MATCH(CJ9,EN!A:A,0) -> 4227 | CL9: =_xlfn.IFNA(INDEX(EN!I:I,CK9),"") -> REN/ERM-TGDMR-370 | CM9: =IF(CJ9=0,"",HYPERLINK(CONCATENATE("http://webapp.etsi.org/workProgram/Report_WorkItem.asp?wki_id=",CJ9))) -> http://webapp.etsi.org/workProgram/Report_WorkItem.asp?wki_id=51387 | CN9: =_xlfn.IFNA(INDEX(EN!J:J,CK9),"") -> 8 | CO9: =_xlfn.IFNA(IF(INDEX(EN!K:K,CK9)<>0,INDEX(EN!K:K,CK9),""),"") -> WA
C10: Addition | D10: 51387 | E10: =MATCH(D10,EN!A:A,0) -> 4227 | F10: =INDEX(EN!I:I,E10) -> REN/ERM-TGDMR-370 | G10: http://webapp.etsi.org/workProgram/Report_WorkItem.asp?wki_id=51387 | H10: =_xlfn.IFNA(INDEX(EN!F:F,E10),"") -> EN | I10: =_xlfn.IFNA(INDEX(EN!G:G,E10),"") -> 300 113 | J10: =_xlfn.IFNA(IF(INDEX(EN!L:L,E10)<>0,INDEX(EN!L:L,E10),""),"") -> 0.0.2 | K10: RevPending | L10: =_xlfn.IFNA(INDEX(EN!H:H,E10),"") -> HEN - RE transmission of data (and/or speech) with antenna connector | M10: RED 3.2 | N10: =_xlfn.IFNA(INDEX(EN!J:J,E10),"") -> 8 | O10: =_xlfn.IFNA(IF(INDEX(EN!K:K,E10)<>0,INDEX(EN!K:K,E10),""),"") -> WA | P10: =_xlfn.IFNA(INDEX(EN!M:M,E10),"") -> Waiting - see "Remarks" | Q10: =_xlfn.IFNA(INDEX(EN!N:N,E10),"") -> 2017-08-29 | R10: =_xlfn.IFNA(INDEX(EN!B:B,E10),"") -> ERM TGDMR | S10: =INDEX(EN!O:O,E10) -> 14585 | T10: =MATCH(S10,Person!A:A) -> 6 | U10: =_xlfn.IFNA(INDEX(Person!B:B,T10),"") -> Bernt | V10: =_xlfn.IFNA(INDEX(Person!C:C,T10),"") -> Mattsson | W10: =MATCH(D10,'0a'!A:A,0) -> 3914 | X10: =MATCH(D10,'1'!A:A,0) -> 3807 | Y10: =MATCH(D10,'7'!A:A,0) -> 14076 | Z10: =MATCH(D10,'8'!A:A,0) -> 46555 | AA10: =MATCH(D10,'8A'!A:A,0) -> 48171 | AB10: =MATCH(D10,'9B'!A:A,0) -> 6613 | AC10: =MATCH(D10,'9C'!A:A,0) -> 3901 | AD10: =MATCH(D10,'9D'!A:A,0) -> 3618 | AE10: =MATCH(D10,'9Da'!A:A,0) -> 2433 | AF10: =MATCH(D10,'9E'!A:A,0) -> 3828 | AG10: =MATCH(D10,'10F'!A:A,0) -> 1860 | AH10: =MATCH(D10,'11'!A:A,0) -> 8313 | AI10: =MATCH(D10,'12'!A:A,0) -> 47246 | AJ10: =MATCH(D10,'12V'!A:A,0) -> 1009 | AK10: =MATCH(D10,'12W'!A:A,0) -> 1006 | AL10: =MATCH(D10,'30'!A:A,0) ->  | AM10: =MATCH(D10,'35'!A:A,0) ->  | AN10: =MATCH(D10,'40'!A:A,0) ->  | AO10: =MATCH(D10,'45'!A:A,0) ->  | AP10: =MATCH(D10,'50'!A:A,0) ->  | AQ10: =_xlfn.IFNA(INDEX('0a'!E:E,W10),"") -> 2017-02-22 | AR10: =_xlfn.IFNA(IF(INDEX('1'!G:G,X10)=0,INDEX('1'!F:F,X10),""),"") ->  | AS10: =_xlfn.IFNA(IF(INDEX('1'!G:G,X10)<>0,INDEX('1'!G:G,X10),""),"") -> 2017-02-22 | AT10: =_xlfn.IFNA(IF(INDEX('7'!F:F,Y10)=0,INDEX('7'!E:E,Y10),""),"") ->  | AU10: =_xlfn.IFNA(IF(INDEX('7'!F:F,Y10)<>0,INDEX('7'!F:F,Y10),""),"") -> 2017-05-16 | AV10: =_xlfn.IFNA(IF(INDEX('8'!F:F,Z10)=0,INDEX('8'!E:E,Z10),""),"") ->  | AW10: =_xlfn.IFNA(IF(INDEX('8'!F:F,Z10)<>0,INDEX('8'!F:F,Z10),""),"") -> 2017-06-21 | AX10: =_xlfn.IFNA(IF(INDEX('8A'!F:F,AA10)=0,INDEX('8A'!E:E,AA10),""),"") -> 2018-03-14 | AY10: =_xlfn.IFNA(IF(INDEX('8A'!F:F,AA10)<>0,INDEX('8A'!F:F,AA10),""),"") ->  | AZ10: =_xlfn.IFNA(IF(INDEX('9B'!F:F,AB10)=0,INDEX('9B'!E:E,AB10),""),"") -> 2018-03-28 | BA10: =_xlfn.IFNA(IF(INDEX('9B'!F:F,AB10)<>0,INDEX('9B'!F:F,AB10),""),"") ->  | BB10: =_xlfn.IFNA(IF(INDEX('9C'!F:F,AC10)=0,INDEX('9C'!E:E,AC10),""),"") -> 2018-06-27 | BC10: =_xlfn.IFNA(IF(INDEX('9C'!F:F,AC10)<>0,INDEX('9C'!F:F,AC10),""),"") ->  | BD10: =_xlfn.IFNA(IF(INDEX('9D'!F:F,AD10)=0,INDEX('9D'!E:E,AD10),""),"") -> 2018-06-27 | BE10: =_xlfn.IFNA(IF(INDEX('9D'!F:F,AD10)<>0,INDEX('9D'!F:F,AD10),""),"") ->  | BF10: =_xlfn.IFNA(IF(INDEX('9Da'!F:F,AE10)=0,INDEX('9Da'!E:E,AE10),""),"") -> 2018-09-26 | BG10: =_xlfn.IFNA(IF(INDEX('9Da'!F:F,AE10)<>0,INDEX('9Da'!F:F,AE10),""),"") ->  | BH10: =_xlfn.IFNA(IF(INDEX('9E'!F:F,AF10)=0,INDEX('9E'!E:E,AF10),""),"") -> 2018-10-03 | BI10: =_xlfn.IFNA(IF(INDEX('9E'!F:F,AF10)<>0,INDEX('9E'!F:F,AF10),""),"") ->  | BJ10: =_xlfn.IFNA(IF(INDEX('10F'!F:F,AG10)=0,INDEX('10F'!E:E,AG10),""),"") -> 2018-10-17 | BK10: =_xlfn.IFNA(IF(INDEX('10F'!F:F,AG10)<>0,INDEX('10F'!F:F,AG10),""),"") ->  | BL10: =_xlfn.IFNA(IF(INDEX('11'!F:F,AH10)=0,INDEX('11'!E:E,AH10),""),"") -> 2018-12-16 | BM10: =_xlfn.IFNA(IF(INDEX('11'!F:F,AH10)<>0,INDEX('11'!F:F,AH10),""),"") ->  | BN10: =_xlfn.IFNA(IF(INDEX('12'!G:G,AI10)=0,INDEX('12'!F:F,AI10),""),"") -> 2018-12-30 | BO10: =_xlfn.IFNA(IF(INDEX('12'!G:G,AI10)<>0,INDEX('12'!G:G,AI10),""),"") ->  | BP10: =_xlfn.IFNA(IF(INDEX('12V'!F:F,AJ10)=0,INDEX('12V'!E:E,AJ10),""),"") -> 2019-01-20 | BQ10: =_xlfn.IFNA(IF(INDEX('12V'!F:F,AJ10)<>0,INDEX('12V'!F:F,AJ10),""),"") ->  | BR10: =_xlfn.IFNA(IF(INDEX('12W'!F:F,AK10)=0,INDEX('12W'!E:E,AK10),""),"") -> 2019-04-14 | BS10: =_xlfn.IFNA(IF(INDEX('12W'!F:F,AK10)<>0,INDEX('12W'!F:F,AK10),""),"") ->  | BT10: =_xlfn.IFNA(IF(INDEX('30'!F:F,AL10)=0,INDEX('30'!E:E,AL10),""),"") ->  | BU10: =_xlfn.IFNA(IF(INDEX('30'!F:F,AL10)<>0,INDEX('30'!F:F,AL10),""),"") ->  | BV10: =_xlfn.IFNA(IF(INDEX('35'!F:F,AM10)=0,INDEX('35'!E:E,AM10),""),"") ->  | BW10: =_xlfn.IFNA(IF(INDEX('35'!F:F,AM10)<>0,INDEX('35'!F:F,AM10),""),"") ->  | BX10: =_xlfn.IFNA(IF(INDEX('40'!F:F,AN10)=0,INDEX('40'!E:E,AN10),""),"") ->  | BY10: =_xlfn.IFNA(IF(INDEX('40'!F:F,AN10)<>0,INDEX('40'!F:F,AN10),""),"") ->  | BZ10: =_xlfn.IFNA(IF(INDEX('45'!F:F,AO10)=0,INDEX('45'!E:E,AO10),""),"") ->  | CA10: =_xlfn.IFNA(IF(INDEX('45'!F:F,AO10)<>0,INDEX('45'!F:F,AO10),""),"") ->  | CB10: =_xlfn.IFNA(IF(INDEX('50'!F:F,AP10)=0,INDEX('50'!E:E,AP10),""),"") ->  | CC10: =_xlfn.IFNA(IF(INDEX('50'!F:F,AP10)<>0,INDEX('50'!F:F,AP10),""),"") ->  | CE10: Pre-assessment comments | CK10: =MATCH(CJ10,EN!A:A,0) ->  | CL10: =_xlfn.IFNA(INDEX(EN!I:I,CK10),"") ->  | CN10: =_xlfn.IFNA(INDEX(EN!J:J,CK10),"") ->  | CO10: =_xlfn.IFNA(IF(INDEX(EN!K:K,CK10)<>0,INDEX(EN!K:K,CK10),""),"") -> 
A11: 300 135-2 | B11: 1.2.1 | E11: =MATCH(D11,EN!A:A,0) ->  | F11: Obsolete - withdrawn | G11: =IF(D11=0,"",HYPERLINK(CONCATENATE("http://webapp.etsi.org/workProgram/Report_WorkItem.asp?wki_id=",D11))) ->  | H11: =_xlfn.IFNA(INDEX(EN!F:F,E11),"") ->  | I11: =_xlfn.IFNA(INDEX(EN!G:G,E11),"") ->  | J11: =_xlfn.IFNA(IF(INDEX(EN!L:L,E11)<>0,INDEX(EN!L:L,E11),""),"") ->  | L11: =_xlfn.IFNA(INDEX(EN!H:H,E11),"") ->  | N11: =_xlfn.IFNA(INDEX(EN!J:J,E11),"") ->  | O11: =_xlfn.IFNA(IF(INDEX(EN!K:K,E11)<>0,INDEX(EN!K:K,E11),""),"") ->  | P11: =_xlfn.IFNA(INDEX(EN!M:M,E11),"") ->  | Q11: =_xlfn.IFNA(INDEX(EN!N:N,E11),"") ->  | R11: =_xlfn.IFNA(INDEX(EN!B:B,E11),"") ->  | S11: =INDEX(EN!O:O,E11) ->  | T11: =MATCH(S11,Person!A:A) ->  | U11: =_xlfn.IFNA(INDEX(Person!B:B,T11),"") ->  | V11: =_xlfn.IFNA(INDEX(Person!C:C,T11),"") ->  | W11: =MATCH(D11,'0a'!A:A,0) ->  | X11: =MATCH(D11,'1'!A:A,0) ->  | Y11: =MATCH(D11,'7'!A:A,0) ->  | Z11: =MATCH(D11,'8'!A:A,0) ->  | AA11: =MATCH(D11,'8A'!A:A,0) ->  | AB11: =MATCH(D11,'9B'!A:A,0) ->  | AC11: =MATCH(D11,'9C'!A:A,0) ->  | AD11: =MATCH(D11,'9D'!A:A,0) ->  | AE11: =MATCH(D11,'9Da'!A:A,0) ->  | AF11: =MATCH(D11,'9E'!A:A,0) ->  | AG11: =MATCH(D11,'10F'!A:A,0) ->  | AH11: =MATCH(D11,'11'!A:A,0) ->  | AI11: =MATCH(D11,'12'!A:A,0) ->  | AJ11: =MATCH(D11,'12V'!A:A,0) ->  | AK11: =MATCH(D11,'12W'!A:A,0) ->  | AL11: =MATCH(D11,'30'!A:A,0) ->  | AM11: =MATCH(D11,'35'!A:A,0) ->  | AN11: =MATCH(D11,'40'!A:A,0) ->  | AO11: =MATCH(D11,'45'!A:A,0) ->  | AP11: =MATCH(D11,'50'!A:A,0) ->  | AQ11: =_xlfn.IFNA(INDEX('0a'!E:E,W11),"") ->  | AR11: =_xlfn.IFNA(IF(INDEX('1'!G:G,X11)=0,INDEX('1'!F:F,X11),""),"") ->  | AS11: =_xlfn.IFNA(IF(INDEX('1'!G:G,X11)<>0,INDEX('1'!G:G,X11),""),"") ->  | AT11: =_xlfn.IFNA(IF(INDEX('7'!F:F,Y11)=0,INDEX('7'!E:E,Y11),""),"") ->  | AU11: =_xlfn.IFNA(IF(INDEX('7'!F:F,Y11)<>0,INDEX('7'!F:F,Y11),""),"") ->  | AV11: =_xlfn.IFNA(IF(INDEX('8'!F:F,Z11)=0,INDEX('8'!E:E,Z11),""),"") ->  | AW11: =_xlfn.IFNA(IF(INDEX('8'!F:F,Z11)<>0,INDEX('8'!F:F,Z11),""),"") ->  | AX11: =_xlfn.IFNA(IF(INDEX('8A'!F:F,AA11)=0,INDEX('8A'!E:E,AA11),""),"") ->  | AY11: =_xlfn.IFNA(IF(INDEX('8A'!F:F,AA11)<>0,INDEX('8A'!F:F,AA11),""),"") ->  | AZ11: =_xlfn.IFNA(IF(INDEX('9B'!F:F,AB11)=0,INDEX('9B'!E:E,AB11),""),"") ->  | BA11: =_xlfn.IFNA(IF(INDEX('9B'!F:F,AB11)<>0,INDEX('9B'!F:F,AB11),""),"") ->  | BB11: =_xlfn.IFNA(IF(INDEX('9C'!F:F,AC11)=0,INDEX('9C'!E:E,AC11),""),"") ->  | BC11: =_xlfn.IFNA(IF(INDEX('9C'!F:F,AC11)<>0,INDEX('9C'!F:F,AC11),""),"") ->  | BD11: =_xlfn.IFNA(IF(INDEX('9D'!F:F,AD11)=0,INDEX('9D'!E:E,AD11),""),"") ->  | BE11: =_xlfn.IFNA(IF(INDEX('9D'!F:F,AD11)<>0,INDEX('9D'!F:F,AD11),""),"") ->  | BF11: =_xlfn.IFNA(IF(INDEX('9Da'!F:F,AE11)=0,INDEX('9Da'!E:E,AE11),""),"") ->  | BG11: =_xlfn.IFNA(IF(INDEX('9Da'!F:F,AE11)<>0,INDEX('9Da'!F:F,AE11),""),"") ->  | BH11: =_xlfn.IFNA(IF(INDEX('9E'!F:F,AF11)=0,INDEX('9E'!E:E,AF11),""),"") ->  | BI11: =_xlfn.IFNA(IF(INDEX('9E'!F:F,AF11)<>0,INDEX('9E'!F:F,AF11),""),"") ->  | BJ11: =_xlfn.IFNA(IF(INDEX('10F'!F:F,AG11)=0,INDEX('10F'!E:E,AG11),""),"") ->  | BK11: =_xlfn.IFNA(IF(INDEX('10F'!F:F,AG11)<>0,INDEX('10F'!F:F,AG11),""),"") ->  | BL11: =_xlfn.IFNA(IF(INDEX('11'!F:F,AH11)=0,INDEX('11'!E:E,AH11),""),"") ->  | BM11: =_xlfn.IFNA(IF(INDEX('11'!F:F,AH11)<>0,INDEX('11'!F:F,AH11),""),"") ->  | BN11: =_xlfn.IFNA(IF(INDEX('12'!G:G,AI11)=0,INDEX('12'!F:F,AI11),""),"") ->  | BO11: =_xlfn.IFNA(IF(INDEX('12'!G:G,AI11)<>0,INDEX('12'!G:G,AI11),""),"") ->  | BP11: =_xlfn.IFNA(IF(INDEX('12V'!F:F,AJ11)=0,INDEX('12V'!E:E,AJ11),""),"") ->  | BQ11: =_xlfn.IFNA(IF(INDEX('12V'!F:F,AJ11)<>0,INDEX('12V'!F:F,AJ11),""),"") ->  | BR11: =_xlfn.IFNA(IF(INDEX('12W'!F:F,AK11)=0,INDEX('12W'!E:E,AK11),""),"") ->  | BS11: =_xlfn.IFNA(IF(INDEX('12W'!F:F,AK11)<>0,INDEX('12W'!F:F,AK11),""),"") ->  | BT11: =_xlfn.IFNA(IF(INDEX('30'!F:F,AL11)=0,INDEX('30'!E:E,AL11),""),"") ->  | BU11: =_xlfn.IFNA(IF(INDEX('30'!F:F,AL11)<>0,INDEX('30'!F:F,AL11),""),"") ->  | BV11: =_xlfn.IFNA(IF(INDEX('35'!F:F,AM11)=0,INDEX('35'!E:E,AM11),""),"") ->  | BW11: =_xlfn.IFNA(IF(INDEX('35'!F:F,AM11)<>0,INDEX('35'!F:F,AM11),""),"") ->  | BX11: =_xlfn.IFNA(IF(INDEX('40'!F:F,AN11)=0,INDEX('40'!E:E,AN11),""),"") ->  | BY11: =_xlfn.IFNA(IF(INDEX('40'!F:F,AN11)<>0,INDEX('40'!F:F,AN11),""),"") ->  | BZ11: =_xlfn.IFNA(IF(INDEX('45'!F:F,AO11)=0,INDEX('45'!E:E,AO11),""),"") ->  | CA11: =_xlfn.IFNA(IF(INDEX('45'!F:F,AO11)<>0,INDEX('45'!F:F,AO11),""),"") ->  | CB11: =_xlfn.IFNA(IF(INDEX('50'!F:F,AP11)=0,INDEX('50'!E:E,AP11),""),"") ->  | CC11: =_xlfn.IFNA(IF(INDEX('50'!F:F,AP11)<>0,INDEX('50'!F:F,AP11),""),"") ->  | CK11: =MATCH(CJ11,EN!A:A,0) ->  | CL11: =_xlfn.IFNA(INDEX(EN!I:I,CK11),"") ->  | CN11: =_xlfn.IFNA(INDEX(EN!J:J,CK11),"") ->  | CO11: =_xlfn.IFNA(IF(INDEX(EN!K:K,CK11)<>0,INDEX(EN!K:K,CK11),""),"") -> 
A12: 300 219-2 | B12: 1.1.1 | C12: Original | D12: 47175 | E12: =MATCH(D12,EN!A:A,0) -> 3932 | F12: =INDEX(EN!I:I,E12) -> REN/ERM-TGDMR-349 | G12: http://webapp.etsi.org/workProgram/Report_WorkItem.asp?wki_id=47175 | H12: =_xlfn.IFNA(INDEX(EN!F:F,E12),"") -> EN | I12: =_xlfn.IFNA(INDEX(EN!G:G,E12),"") -> 300 219 | J12: =_xlfn.IFNA(IF(INDEX(EN!L:L,E12)<>0,INDEX(EN!L:L,E12),""),"") -> 2.1.1 | K12: Cited | L12: =_xlfn.IFNA(INDEX(EN!H:H,E12),"") -> HEN - RE transmitting signals to initiate a specific response in the receiver | M12: RED 3.2 | N12: =_xlfn.IFNA(INDEX(EN!J:J,E12),"") -> 12 | O12: =_xlfn.IFNA(IF(INDEX(EN!K:K,E12)<>0,INDEX(EN!K:K,E12),""),"") -> W | P12: =_xlfn.IFNA(INDEX(EN!M:M,E12),"") -> Citation in the OJ | Q12: =_xlfn.IFNA(INDEX(EN!N:N,E12),"") -> 2017-04-12 | R12: =_xlfn.IFNA(INDEX(EN!B:B,E12),"") -> ERM TGDMR | S12: =INDEX(EN!O:O,E12) -> 14585 | T12: =MATCH(S12,Person!A:A) -> 6 | U12: =_xlfn.IFNA(INDEX(Person!B:B,T12),"") -> Bernt | V12: =_xlfn.IFNA(INDEX(Person!C:C,T12),"") -> Mattsson | W12: =MATCH(D12,'0a'!A:A,0) -> 3624 | X12: =MATCH(D12,'1'!A:A,0) -> 3530 | Y12: =MATCH(D12,'7'!A:A,0) -> 13655 | Z12: =MATCH(D12,'8'!A:A,0) -> 42509 | AA12: =MATCH(D12,'8A'!A:A,0) -> 44066 | AB12: =MATCH(D12,'9B'!A:A,0) -> 6332 | AC12: =MATCH(D12,'9C'!A:A,0) -> 3621 | AD12: =MATCH(D12,'9D'!A:A,0) ->  | AE12: =MATCH(D12,'9Da'!A:A,0) ->  | AF12: =MATCH(D12,'9E'!A:A,0) ->  | AG12: =MATCH(D12,'10F'!A:A,0) ->  | AH12: =MATCH(D12,'11'!A:A,0) -> 7949 | AI12: =MATCH(D12,'12'!A:A,0) -> 43195 | AJ12: =MATCH(D12,'12V'!A:A,0) -> 827 | AK12: =MATCH(D12,'12W'!A:A,0) -> 828 | AL12: =MATCH(D12,'30'!A:A,0) ->  | AM12: =MATCH(D12,'35'!A:A,0) ->  | AN12: =MATCH(D12,'40'!A:A,0) ->  | AO12: =MATCH(D12,'45'!A:A,0) ->  | AP12: =MATCH(D12,'50'!A:A,0) ->  | AQ12: =_xlfn.IFNA(INDEX('0a'!E:E,W12),"") -> 2015-06-11 | AR12: =_xlfn.IFNA(IF(INDEX('1'!G:G,X12)=0,INDEX('1'!F:F,X12),""),"") ->  | AS12: =_xlfn.IFNA(IF(INDEX('1'!G:G,X12)<>0,INDEX('1'!G:G,X12),""),"") -> 2015-05-22 | AT12: =_xlfn.IFNA(IF(INDEX('7'!F:F,Y12)=0,INDEX('7'!E:E,Y12),""),"") ->  | AU12: =_xlfn.IFNA(IF(INDEX('7'!F:F,Y12)<>0,INDEX('7'!F:F,Y12),""),"") -> 2015-10-07 | AV12: =_xlfn.IFNA(IF(INDEX('8'!F:F,Z12)=0,INDEX('8'!E:E,Z12),""),"") ->  | AW12: =_xlfn.IFNA(IF(INDEX('8'!F:F,Z12)<>0,INDEX('8'!F:F,Z12),""),"") -> 2015-11-18 | AX12: =_xlfn.IFNA(IF(INDEX('8A'!F:F,AA12)=0,INDEX('8A'!E:E,AA12),""),"") ->  | AY12: =_xlfn.IFNA(IF(INDEX('8A'!F:F,AA12)<>0,INDEX('8A'!F:F,AA12),""),"") -> 2015-11-25 | AZ12: =_xlfn.IFNA(IF(INDEX('9B'!F:F,AB12)=0,INDEX('9B'!E:E,AB12),""),"") ->  | BA12: =_xlfn.IFNA(IF(INDEX('9B'!F:F,AB12)<>0,INDEX('9B'!F:F,AB12),""),"") -> 2015-12-21 | BB12: =_xlfn.IFNA(IF(INDEX('9C'!F:F,AC12)=0,INDEX('9C'!E:E,AC12),""),"") ->  | BC12: =_xlfn.IFNA(IF(INDEX('9C'!F:F,AC12)<>0,INDEX('9C'!F:F,AC12),""),"") -> 2016-03-21 | BD12: =_xlfn.IFNA(IF(INDEX('9D'!F:F,AD12)=0,INDEX('9D'!E:E,AD12),""),"") ->  | BE12: =_xlfn.IFNA(IF(INDEX('9D'!F:F,AD12)<>0,INDEX('9D'!F:F,AD12),""),"") ->  | BF12: =_xlfn.IFNA(IF(INDEX('9Da'!F:F,AE12)=0,INDEX('9Da'!E:E,AE12),""),"") ->  | BG12: =_xlfn.IFNA(IF(INDEX('9Da'!F:F,AE12)<>0,INDEX('9Da'!F:F,AE12),""),"") ->  | BH12: =_xlfn.IFNA(IF(INDEX('9E'!F:F,AF12)=0,INDEX('9E'!E:E,AF12),""),"") ->  | BI12: =_xlfn.IFNA(IF(INDEX('9E'!F:F,AF12)<>0,INDEX('9E'!F:F,AF12),""),"") ->  | BJ12: =_xlfn.IFNA(IF(INDEX('10F'!F:F,AG12)=0,INDEX('10F'!E:E,AG12),""),"") ->  | BK12: =_xlfn.IFNA(IF(INDEX('10F'!F:F,AG12)<>0,INDEX('10F'!F:F,AG12),""),"") ->  | BL12: =_xlfn.IFNA(IF(INDEX('11'!F:F,AH12)=0,INDEX('11'!E:E,AH12),""),"") ->  | BM12: =_xlfn.IFNA(IF(INDEX('11'!F:F,AH12)<>0,INDEX('11'!F:F,AH12),""),"") -> 2016-08-30 | BN12: =_xlfn.IFNA(IF(INDEX('12'!G:G,AI12)=0,INDEX('12'!F:F,AI12),""),"") ->  | BO12: =_xlfn.IFNA(IF(INDEX('12'!G:G,AI12)<>0,INDEX('12'!G:G,AI12),""),"") -> 2016-08-31 | BP12: =_xlfn.IFNA(IF(INDEX('12V'!F:F,AJ12)=0,INDEX('12V'!E:E,AJ12),""),"") ->  | BQ12: =_xlfn.IFNA(IF(INDEX('12V'!F:F,AJ12)<>0,INDEX('12V'!F:F,AJ12),""),"") -> 2016-10-05 | BR12: =_xlfn.IFNA(IF(INDEX('12W'!F:F,AK12)=0,INDEX('12W'!E:E,AK12),""),"") ->  | BS12: =_xlfn.IFNA(IF(INDEX('12W'!F:F,AK12)<>0,INDEX('12W'!F:F,AK12),""),"") -> 2017-04-12 | BT12: =_xlfn.IFNA(IF(INDEX('30'!F:F,AL12)=0,INDEX('30'!E:E,AL12),""),"") ->  | BU12: =_xlfn.IFNA(IF(INDEX('30'!F:F,AL12)<>0,INDEX('30'!F:F,AL12),""),"") ->  | BV12: =_xlfn.IFNA(IF(INDEX('35'!F:F,AM12)=0,INDEX('35'!E:E,AM12),""),"") ->  | BW12: =_xlfn.IFNA(IF(INDEX('35'!F:F,AM12)<>0,INDEX('35'!F:F,AM12),""),"") ->  | BX12: =_xlfn.IFNA(IF(INDEX('40'!F:F,AN12)=0,INDEX('40'!E:E,AN12),""),"") ->  | BY12: =_xlfn.IFNA(IF(INDEX('40'!F:F,AN12)<>0,INDEX('40'!F:F,AN12),""),"") ->  | BZ12: =_xlfn.IFNA(IF(INDEX('45'!F:F,AO12)=0,INDEX('45'!E:E,AO12),""),"") ->  | CA12: =_xlfn.IFNA(IF(INDEX('45'!F:F,AO12)<>0,INDEX('45'!F:F,AO12),""),"") ->  | CB12: =_xlfn.IFNA(IF(INDEX('50'!F:F,AP12)=0,INDEX('50'!E:E,AP12),""),"") ->  | CC12: =_xlfn.IFNA(IF(INDEX('50'!F:F,AP12)<>0,INDEX('50'!F:F,AP12),""),"") ->  | CJ12: 51386 | CK12: =MATCH(CJ12,EN!A:A,0) -> 4226 | CL12: =_xlfn.IFNA(INDEX(EN!I:I,CK12),"") -> REN/ERM-TGDMR-369 | CM12: http://webapp.etsi.org/workProgram/Report_WorkItem.asp?wki_id=51386 | CN12: =_xlfn.IFNA(INDEX(EN!J:J,CK12),"") -> 8 | CO12: =_xlfn.IFNA(IF(INDEX(EN!K:K,CK12)<>0,INDEX(EN!K:K,CK12),""),"") -> WA
C13: Addition | D13: 51386 | E13: =MATCH(D13,EN!A:A,0) -> 4226 | F13: =INDEX(EN!I:I,E13) -> REN/ERM-TGDMR-369 | G13: http://webapp.etsi.org/workProgram/Report_WorkItem.asp?wki_id=51386 | H13: =_xlfn.IFNA(INDEX(EN!F:F,E13),"") -> EN | I13: =_xlfn.IFNA(INDEX(EN!G:G,E13),"") -> 300 219 | J13: =_xlfn.IFNA(IF(INDEX(EN!L:L,E13)<>0,INDEX(EN!L:L,E13),""),"") -> 0.0.3 | K13: RevPending | L13: =_xlfn.IFNA(INDEX(EN!H:H,E13),"") -> HEN - RE transmitting signals to initiate a specific response in the receiver | M13: RED 3.2 | N13: =_xlfn.IFNA(INDEX(EN!J:J,E13),"") -> 8 | O13: =_xlfn.IFNA(IF(INDEX(EN!K:K,E13)<>0,INDEX(EN!K:K,E13),""),"") -> WA | P13: =_xlfn.IFNA(INDEX(EN!M:M,E13),"") -> Waiting - see "Remarks" | Q13: =_xlfn.IFNA(INDEX(EN!N:N,E13),"") -> 2017-08-29 | R13: =_xlfn.IFNA(INDEX(EN!B:B,E13),"") -> ERM TGDMR | S13: =INDEX(EN!O:O,E13) -> 14585 | T13: =MATCH(S13,Person!A:A) -> 6 | U13: =_xlfn.IFNA(INDEX(Person!B:B,T13),"") -> Bernt | V13: =_xlfn.IFNA(INDEX(Person!C:C,T13),"") -> Mattsson | W13: =MATCH(D13,'0a'!A:A,0) -> 3913 | X13: =MATCH(D13,'1'!A:A,0) -> 3806 | Y13: =MATCH(D13,'7'!A:A,0) -> 14075 | Z13: =MATCH(D13,'8'!A:A,0) -> 46554 | AA13: =MATCH(D13,'8A'!A:A,0) -> 48169 | AB13: =MATCH(D13,'9B'!A:A,0) -> 6612 | AC13: =MATCH(D13,'9C'!A:A,0) -> 3900 | AD13: =MATCH(D13,'9D'!A:A,0) -> 3617 | AE13: =MATCH(D13,'9Da'!A:A,0) -> 2432 | AF13: =MATCH(D13,'9E'!A:A,0) -> 3827 | AG13: =MATCH(D13,'10F'!A:A,0) -> 1859 | AH13: =MATCH(D13,'11'!A:A,0) -> 8312 | AI13: =MATCH(D13,'12'!A:A,0) -> 47245 | AJ13: =MATCH(D13,'12V'!A:A,0) -> 1008 | AK13: =MATCH(D13,'12W'!A:A,0) -> 1005 | AL13: =MATCH(D13,'30'!A:A,0) ->  | AM13: =MATCH(D13,'35'!A:A,0) ->  | AN13: =MATCH(D13,'40'!A:A,0) ->  | AO13: =MATCH(D13,'45'!A:A,0) ->  | AP13: =MATCH(D13,'50'!A:A,0) ->  | AQ13: =_xlfn.IFNA(INDEX('0a'!E:E,W13),"") -> 2017-02-22 | AR13: =_xlfn.IFNA(IF(INDEX('1'!G:G,X13)=0,INDEX('1'!F:F,X13),""),"") ->  | AS13: =_xlfn.IFNA(IF(INDEX('1'!G:G,X13)<>0,INDEX('1'!G:G,X13),""),"") -> 2017-02-22 | AT13: =_xlfn.IFNA(IF(INDEX('7'!F:F,Y13)=0,INDEX('7'!E:E,Y13),""),"") ->  | AU13: =_xlfn.IFNA(IF(INDEX('7'!F:F,Y13)<>0,INDEX('7'!F:F,Y13),""),"") -> 2017-05-21 | AV13: =_xlfn.IFNA(IF(INDEX('8'!F:F,Z13)=0,INDEX('8'!E:E,Z13),""),"") ->  | AW13: =_xlfn.IFNA(IF(INDEX('8'!F:F,Z13)<>0,INDEX('8'!F:F,Z13),""),"") -> 2017-06-21 | AX13: =_xlfn.IFNA(IF(INDEX('8A'!F:F,AA13)=0,INDEX('8A'!E:E,AA13),""),"") ->  | AY13: =_xlfn.IFNA(IF(INDEX('8A'!F:F,AA13)<>0,INDEX('8A'!F:F,AA13),""),"") -> 2017-08-29 | AZ13: =_xlfn.IFNA(IF(INDEX('9B'!F:F,AB13)=0,INDEX('9B'!E:E,AB13),""),"") -> 2018-03-30 | BA13: =_xlfn.IFNA(IF(INDEX('9B'!F:F,AB13)<>0,INDEX('9B'!F:F,AB13),""),"") ->  | BB13: =_xlfn.IFNA(IF(INDEX('9C'!F:F,AC13)=0,INDEX('9C'!E:E,AC13),""),"") -> 2018-06-29 | BC13: =_xlfn.IFNA(IF(INDEX('9C'!F:F,AC13)<>0,INDEX('9C'!F:F,AC13),""),"") ->  | BD13: =_xlfn.IFNA(IF(INDEX('9D'!F:F,AD13)=0,INDEX('9D'!E:E,AD13),""),"") -> 2018-06-29 | BE13: =_xlfn.IFNA(IF(INDEX('9D'!F:F,AD13)<>0,INDEX('9D'!F:F,AD13),""),"") ->  | BF13: =_xlfn.IFNA(IF(INDEX('9Da'!F:F,AE13)=0,INDEX('9Da'!E:E,AE13),""),"") -> 2018-09-28 | BG13: =_xlfn.IFNA(IF(INDEX('9Da'!F:F,AE13)<>0,INDEX('9Da'!F:F,AE13),""),"") ->  | BH13: =_xlfn.IFNA(IF(INDEX('9E'!F:F,AF13)=0,INDEX('9E'!E:E,AF13),""),"") -> 2018-10-05 | BI13: =_xlfn.IFNA(IF(INDEX('9E'!F:F,AF13)<>0,INDEX('9E'!F:F,AF13),""),"") ->  | BJ13: =_xlfn.IFNA(IF(INDEX('10F'!F:F,AG13)=0,INDEX('10F'!E:E,AG13),""),"") -> 2018-10-19 | BK13: =_xlfn.IFNA(IF(INDEX('10F'!F:F,AG13)<>0,INDEX('10F'!F:F,AG13),""),"") ->  | BL13: =_xlfn.IFNA(IF(INDEX('11'!F:F,AH13)=0,INDEX('11'!E:E,AH13),""),"") -> 2018-12-18 | BM13: =_xlfn.IFNA(IF(INDEX('11'!F:F,AH13)<>0,INDEX('11'!F:F,AH13),""),"") ->  | BN13: =_xlfn.IFNA(IF(INDEX('12'!G:G,AI13)=0,INDEX('12'!F:F,AI13),""),"") -> 2019-01-01 | BO13: =_xlfn.IFNA(IF(INDEX('12'!G:G,AI13)<>0,INDEX('12'!G:G,AI13),""),"") ->  | BP13: =_xlfn.IFNA(IF(INDEX('12V'!F:F,AJ13)=0,INDEX('12V'!E:E,AJ13),""),"") -> 2019-01-22 | BQ13: =_xlfn.IFNA(IF(INDEX('12V'!F:F,AJ13)<>0,INDEX('12V'!F:F,AJ13),""),"") ->  | BR13: =_xlfn.IFNA(IF(INDEX('12W'!F:F,AK13)=0,INDEX('12W'!E:E,AK13),""),"") -> 2019-04-16 | BS13: =_xlfn.IFNA(IF(INDEX('12W'!F:F,AK13)<>0,INDEX('12W'!F:F,AK13),""),"") ->  | BT13: =_xlfn.IFNA(IF(INDEX('30'!F:F,AL13)=0,INDEX('30'!E:E,AL13),""),"") ->  | BU13: =_xlfn.IFNA(IF(INDEX('30'!F:F,AL13)<>0,INDEX('30'!F:F,AL13),""),"") ->  | BV13: =_xlfn.IFNA(IF(INDEX('35'!F:F,AM13)=0,INDEX('35'!E:E,AM13),""),"") ->  | BW13: =_xlfn.IFNA(IF(INDEX('35'!F:F,AM13)<>0,INDEX('35'!F:F,AM13),""),"") ->  | BX13: =_xlfn.IFNA(IF(INDEX('40'!F:F,AN13)=0,INDEX('40'!E:E,AN13),""),"") ->  | BY13: =_xlfn.IFNA(IF(INDEX('40'!F:F,AN13)<>0,INDEX('40'!F:F,AN13),""),"") ->  | BZ13: =_xlfn.IFNA(IF(INDEX('45'!F:F,AO13)=0,INDEX('45'!E:E,AO13),""),"") ->  | CA13: =_xlfn.IFNA(IF(INDEX('45'!F:F,AO13)<>0,INDEX('45'!F:F,AO13),""),"") ->  | CB13: =_xlfn.IFNA(IF(INDEX('50'!F:F,AP13)=0,INDEX('50'!E:E,AP13),""),"") ->  | CC13: =_xlfn.IFNA(IF(INDEX('50'!F:F,AP13)<>0,INDEX('50'!F:F,AP13),""),"") ->  | CE13: Pre-assessment comments | CK13: =MATCH(CJ13,EN!A:A,0) ->  | CL13: =_xlfn.IFNA(INDEX(EN!I:I,CK13),"") ->  | CN13: =_xlfn.IFNA(INDEX(EN!J:J,CK13),"") ->  | CO13: =_xlfn.IFNA(IF(INDEX(EN!K:K,CK13)<>0,INDEX(EN!K:K,CK13),""),"") -> 
D14: 47882 | E14: =MATCH(D14,EN!A:A,0) -> 4013 | F14: =INDEX(EN!I:I,E14) -> REN/ERM-TG28-533 | G14: http://webapp.etsi.org/workProgram/Report_WorkItem.asp?wki_id=47882 | H14: =_xlfn.IFNA(INDEX(EN!F:F,E14),"") -> EN | I14: =_xlfn.IFNA(INDEX(EN!G:G,E14),"") -> 300 220-1 | J14: =_xlfn.IFNA(IF(INDEX(EN!L:L,E14)<>0,INDEX(EN!L:L,E14),""),"") -> 3.1.1 | L14: =_xlfn.IFNA(INDEX(EN!H:H,E14),"") -> Generic SRDs (25 MHz to 1 GHz) | M14: None | N14: =_xlfn.IFNA(INDEX(EN!J:J,E14),"") -> 12 | O14: =_xlfn.IFNA(IF(INDEX(EN!K:K,E14)<>0,INDEX(EN!K:K,E14),""),"") ->  | P14: =_xlfn.IFNA(INDEX(EN!M:M,E14),"") -> Publication | Q14: =_xlfn.IFNA(INDEX(EN!N:N,E14),"") -> 2017-02-08 | R14: =_xlfn.IFNA(INDEX(EN!B:B,E14),"") -> ERM TG28 | S14: =INDEX(EN!O:O,E14) -> 26441 | T14: =MATCH(S14,Person!A:A) -> 7 | U14: =_xlfn.IFNA(INDEX(Person!B:B,T14),"") -> Igor | V14: =_xlfn.IFNA(INDEX(Person!C:C,T14),"") -> Minaev | W14: =MATCH(D14,'0a'!A:A,0) -> 3706 | X14: =MATCH(D14,'1'!A:A,0) -> 3611 | Y14: =MATCH(D14,'7'!A:A,0) -> 13776 | Z14: =MATCH(D14,'8'!A:A,0) -> 43189 | AA14: =MATCH(D14,'8A'!A:A,0) -> 44764 | AB14: =MATCH(D14,'9B'!A:A,0) -> 6416 | AC14: =MATCH(D14,'9C'!A:A,0) -> 3705 | AD14: =MATCH(D14,'9D'!A:A,0) -> 3472 | AE14: =MATCH(D14,'9Da'!A:A,0) -> 2287 | AF14: =MATCH(D14,'9E'!A:A,0) -> 3682 | AG14: =MATCH(D14,'10F'!A:A,0) -> 1719 | AH14: =MATCH(D14,'11'!A:A,0) -> 8060 | AI14: =MATCH(D14,'12'!A:A,0) -> 43875 | AJ14: =MATCH(D14,'12V'!A:A,0) ->  | AK14: =MATCH(D14,'12W'!A:A,0) ->  | AL14: =MATCH(D14,'30'!A:A,0) ->  | AM14: =MATCH(D14,'35'!A:A,0) ->  | AN14: =MATCH(D14,'40'!A:A,0) ->  | AO14: =MATCH(D14,'45'!A:A,0) ->  | AP14: =MATCH(D14,'50'!A:A,0) ->  | AQ14: =_xlfn.IFNA(INDEX('0a'!E:E,W14),"") -> 2015-11-23 | AR14: =_xlfn.IFNA(IF(INDEX('1'!G:G,X14)=0,INDEX('1'!F:F,X14),""),"") ->  | AS14: =_xlfn.IFNA(IF(INDEX('1'!G:G,X14)<>0,INDEX('1'!G:G,X14),""),"") -> 2015-11-23 | AT14: =_xlfn.IFNA(IF(INDEX('7'!F:F,Y14)=0,INDEX('7'!E:E,Y14),""),"") ->  | AU14: =_xlfn.IFNA(IF(INDEX('7'!F:F,Y14)<>0,INDEX('7'!F:F,Y14),""),"") -> 2016-01-20 | AV14: =_xlfn.IFNA(IF(INDEX('8'!F:F,Z14)=0,INDEX('8'!E:E,Z14),""),"") ->  | AW14: =_xlfn.IFNA(IF(INDEX('8'!F:F,Z14)<>0,INDEX('8'!F:F,Z14),""),"") -> 2016-02-25 | AX14: =_xlfn.IFNA(IF(INDEX('8A'!F:F,AA14)=0,INDEX('8A'!E:E,AA14),""),"") ->  | AY14: =_xlfn.IFNA(IF(INDEX('8A'!F:F,AA14)<>0,INDEX('8A'!F:F,AA14),""),"") -> 2016-04-11 | AZ14: =_xlfn.IFNA(IF(INDEX('9B'!F:F,AB14)=0,INDEX('9B'!E:E,AB14),""),"") ->  | BA14: =_xlfn.IFNA(IF(INDEX('9B'!F:F,AB14)<>0,INDEX('9B'!F:F,AB14),""),"") -> 2016-05-03 | BB14: =_xlfn.IFNA(IF(INDEX('9C'!F:F,AC14)=0,INDEX('9C'!E:E,AC14),""),"") ->  | BC14: =_xlfn.IFNA(IF(INDEX('9C'!F:F,AC14)<>0,INDEX('9C'!F:F,AC14),""),"") -> 2016-08-01 | BD14: =_xlfn.IFNA(IF(INDEX('9D'!F:F,AD14)=0,INDEX('9D'!E:E,AD14),""),"") ->  | BE14: =_xlfn.IFNA(IF(INDEX('9D'!F:F,AD14)<>0,INDEX('9D'!F:F,AD14),""),"") -> 2016-09-12 | BF14: =_xlfn.IFNA(IF(INDEX('9Da'!F:F,AE14)=0,INDEX('9Da'!E:E,AE14),""),"") ->  | BG14: =_xlfn.IFNA(IF(INDEX('9Da'!F:F,AE14)<>0,INDEX('9Da'!F:F,AE14),""),"") -> 2016-10-25 | BH14: =_xlfn.IFNA(IF(INDEX('9E'!F:F,AF14)=0,INDEX('9E'!E:E,AF14),""),"") ->  | BI14: =_xlfn.IFNA(IF(INDEX('9E'!F:F,AF14)<>0,INDEX('9E'!F:F,AF14),""),"") -> 2016-10-26 | BJ14: =_xlfn.IFNA(IF(INDEX('10F'!F:F,AG14)=0,INDEX('10F'!E:E,AG14),""),"") ->  | BK14: =_xlfn.IFNA(IF(INDEX('10F'!F:F,AG14)<>0,INDEX('10F'!F:F,AG14),""),"") -> 2016-11-28 | BL14: =_xlfn.IFNA(IF(INDEX('11'!F:F,AH14)=0,INDEX('11'!E:E,AH14),""),"") ->  | BM14: =_xlfn.IFNA(IF(INDEX('11'!F:F,AH14)<>0,INDEX('11'!F:F,AH14),""),"") -> 2017-01-27 | BN14: =_xlfn.IFNA(IF(INDEX('12'!G:G,AI14)=0,INDEX('12'!F:F,AI14),""),"") ->  | BO14: =_xlfn.IFNA(IF(INDEX('12'!G:G,AI14)<>0,INDEX('12'!G:G,AI14),""),"") -> 2017-02-08 | BP14: =_xlfn.IFNA(IF(INDEX('12V'!F:F,AJ14)=0,INDEX('12V'!E:E,AJ14),""),"") ->  | BQ14: =_xlfn.IFNA(IF(INDEX('12V'!F:F,AJ14)<>0,INDEX('12V'!F:F,AJ14),""),"") ->  | BR14: =_xlfn.IFNA(IF(INDEX('12W'!F:F,AK14)=0,INDEX('12W'!E:E,AK14),""),"") ->  | BS14: =_xlfn.IFNA(IF(INDEX('12W'!F:F,AK14)<>0,INDEX('12W'!F:F,AK14),""),"") ->  | BT14: =_xlfn.IFNA(IF(INDEX('30'!F:F,AL14)=0,INDEX('30'!E:E,AL14),""),"") ->  | BU14: =_xlfn.IFNA(IF(INDEX('30'!F:F,AL14)<>0,INDEX('30'!F:F,AL14),""),"") ->  | BV14: =_xlfn.IFNA(IF(INDEX('35'!F:F,AM14)=0,INDEX('35'!E:E,AM14),""),"") ->  | BW14: =_xlfn.IFNA(IF(INDEX('35'!F:F,AM14)<>0,INDEX('35'!F:F,AM14),""),"") ->  | BX14: =_xlfn.IFNA(IF(INDEX('40'!F:F,AN14)=0,INDEX('40'!E:E,AN14),""),"") ->  | BY14: =_xlfn.IFNA(IF(INDEX('40'!F:F,AN14)<>0,INDEX('40'!F:F,AN14),""),"") ->  | BZ14: =_xlfn.IFNA(IF(INDEX('45'!F:F,AO14)=0,INDEX('45'!E:E,AO14),""),"") ->  | CA14: =_xlfn.IFNA(IF(INDEX('45'!F:F,AO14)<>0,INDEX('45'!F:F,AO14),""),"") ->  | CB14: =_xlfn.IFNA(IF(INDEX('50'!F:F,AP14)=0,INDEX('50'!E:E,AP14),""),"") ->  | CC14: =_xlfn.IFNA(IF(INDEX('50'!F:F,AP14)<>0,INDEX('50'!F:F,AP14),""),"") ->  | CK14: =MATCH(CJ14,EN!A:A,0) ->  | CL14: =_xlfn.IFNA(INDEX(EN!I:I,CK14),"") ->  | CN14: =_xlfn.IFNA(INDEX(EN!J:J,CK14),"") ->  | CO14: =_xlfn.IFNA(IF(INDEX(EN!K:K,CK14)<>0,INDEX(EN!K:K,CK14),""),"") -> 
A15: 300 220-2 | B15: 2.4.1 | C15: Original | D15: 46715 | E15: =MATCH(D15,EN!A:A,0) -> 3864 | F15: STOPPED - TC reports equipment no longer deployed | G15: http://webapp.etsi.org/workProgram/Report_WorkItem.asp?wki_id=46715 | H15: =_xlfn.IFNA(INDEX(EN!F:F,E15),"") -> EN | I15: =_xlfn.IFNA(INDEX(EN!G:G,E15),"") -> 300 220 | J15: =_xlfn.IFNA(IF(INDEX(EN!L:L,E15)<>0,INDEX(EN!L:L,E15),""),"") -> 0.0.7 | L15: =_xlfn.IFNA(INDEX(EN!H:H,E15),"") -> Generic SRDs (25 MHz to 1 GHz) | S15: =INDEX(EN!O:O,E15) -> 26441 | T15: =MATCH(S15,Person!A:A) -> 7 | W15: =MATCH(D15,'0a'!A:A,0) -> 3556 | X15: =MATCH(D15,'1'!A:A,0) -> 3463 | Y15: =MATCH(D15,'7'!A:A,0) -> 13579 | Z15: =MATCH(D15,'8'!A:A,0) -> 42065 | AA15: =MATCH(D15,'8A'!A:A,0) -> 43608 | AB15: =MATCH(D15,'9B'!A:A,0) -> 6264 | AC15: =MATCH(D15,'9C'!A:A,0) -> 3553 | AD15: =MATCH(D15,'9D'!A:A,0) -> 3387 | AE15: =MATCH(D15,'9Da'!A:A,0) -> 2202 | AF15: =MATCH(D15,'9E'!A:A,0) -> 3587 | AG15: =MATCH(D15,'10F'!A:A,0) -> 1635 | AH15: =MATCH(D15,'11'!A:A,0) -> 7875 | AI15: =MATCH(D15,'12'!A:A,0) -> 42753 | AJ15: =MATCH(D15,'12V'!A:A,0) -> 767 | AK15: =MATCH(D15,'12W'!A:A,0) -> 776 | AL15: =MATCH(D15,'30'!A:A,0) ->  | AM15: =MATCH(D15,'35'!A:A,0) ->  | AN15: =MATCH(D15,'40'!A:A,0) ->  | AO15: =MATCH(D15,'45'!A:A,0) ->  | AP15: =MATCH(D15,'50'!A:A,0) ->  | AT15: =_xlfn.IFNA(IF(INDEX('7'!F:F,Y15)=0,INDEX('7'!E:E,Y15),""),"") -> 42307 | AU15: =_xlfn.IFNA(IF(INDEX('7'!F:F,Y15)<>0,INDEX('7'!F:F,Y15),""),"") ->  | AX15: =_xlfn.IFNA(IF(INDEX('8A'!F:F,AA15)=0,INDEX('8A'!E:E,AA15),""),"") -> 42383 | AY15: =_xlfn.IFNA(IF(INDEX('8A'!F:F,AA15)<>0,INDEX('8A'!F:F,AA15),""),"") ->  | AZ15: =_xlfn.IFNA(IF(INDEX('9B'!F:F,AB15)=0,INDEX('9B'!E:E,AB15),""),"") -> 42397 | BA15: =_xlfn.IFNA(IF(INDEX('9B'!F:F,AB15)<>0,INDEX('9B'!F:F,AB15),""),"") ->  | BB15: =_xlfn.IFNA(IF(INDEX('9C'!F:F,AC15)=0,INDEX('9C'!E:E,AC15),""),"") -> 42488 | BC15: =_xlfn.IFNA(IF(INDEX('9C'!F:F,AC15)<>0,INDEX('9C'!F:F,AC15),""),"") ->  | BD15: =_xlfn.IFNA(IF(INDEX('9D'!F:F,AD15)=0,INDEX('9D'!E:E,AD15),""),"") -> 42488 | BE15: =_xlfn.IFNA(IF(INDEX('9D'!F:F,AD15)<>0,INDEX('9D'!F:F,AD15),""),"") ->  | BF15: =_xlfn.IFNA(IF(INDEX('9Da'!F:F,AE15)=0,INDEX('9Da'!E:E,AE15),""),"") -> 42579 | BG15: =_xlfn.IFNA(IF(INDEX('9Da'!F:F,AE15)<>0,INDEX('9Da'!F:F,AE15),""),"") ->  | BH15: =_xlfn.IFNA(IF(INDEX('9E'!F:F,AF15)=0,INDEX('9E'!E:E,AF15),""),"") -> 42586 | BI15: =_xlfn.IFNA(IF(INDEX('9E'!F:F,AF15)<>0,INDEX('9E'!F:F,AF15),""),"") ->  | BJ15: =_xlfn.IFNA(IF(INDEX('10F'!F:F,AG15)=0,INDEX('10F'!E:E,AG15),""),"") -> 42600 | BK15: =_xlfn.IFNA(IF(INDEX('10F'!F:F,AG15)<>0,INDEX('10F'!F:F,AG15),""),"") ->  | BV15: =_xlfn.IFNA(IF(INDEX('35'!F:F,AM15)=0,INDEX('35'!E:E,AM15),""),"") ->  | BW15: =_xlfn.IFNA(IF(INDEX('35'!F:F,AM15)<>0,INDEX('35'!F:F,AM15),""),"") ->  | BX15: =_xlfn.IFNA(IF(INDEX('40'!F:F,AN15)=0,INDEX('40'!E:E,AN15),""),"") ->  | BY15: =_xlfn.IFNA(IF(INDEX('40'!F:F,AN15)<>0,INDEX('40'!F:F,AN15),""),"") ->  | BZ15: =_xlfn.IFNA(IF(INDEX('45'!F:F,AO15)=0,INDEX('45'!E:E,AO15),""),"") ->  | CA15: =_xlfn.IFNA(IF(INDEX('45'!F:F,AO15)<>0,INDEX('45'!F:F,AO15),""),"") ->  | CK15: =MATCH(CJ15,EN!A:A,0) ->  | CL15: =_xlfn.IFNA(INDEX(EN!I:I,CK15),"") ->  | CN15: =_xlfn.IFNA(INDEX(EN!J:J,CK15),"") ->  | CO15: =_xlfn.IFNA(IF(INDEX(EN!K:K,CK15)<>0,INDEX(EN!K:K,CK15),""),"") -> 
C16: Addition | D16: 47883 | E16: =MATCH(D16,EN!A:A,0) -> 4014 | F16: =INDEX(EN!I:I,E16) -> REN/ERM-TG28-534 | G16: http://webapp.etsi.org/workProgram/Report_WorkItem.asp?wki_id=47883 | H16: =_xlfn.IFNA(INDEX(EN!F:F,E16),"") -> EN | I16: =_xlfn.IFNA(INDEX(EN!G:G,E16),"") -> 300 220-2 | J16: =_xlfn.IFNA(IF(INDEX(EN!L:L,E16)<>0,INDEX(EN!L:L,E16),""),"") -> 3.1.1 | K16: Cited | L16: =_xlfn.IFNA(INDEX(EN!H:H,E16),"") -> SRDs (25 MHz to 1 GHz)-Part 2 | M16: RED 3.2 | N16: =_xlfn.IFNA(INDEX(EN!J:J,E16),"") -> 12 | O16: =_xlfn.IFNA(IF(INDEX(EN!K:K,E16)<>0,INDEX(EN!K:K,E16),""),"") -> W | P16: =_xlfn.IFNA(INDEX(EN!M:M,E16),"") -> Citation in the OJ | Q16: =_xlfn.IFNA(INDEX(EN!N:N,E16),"") -> 2017-03-10 | R16: =_xlfn.IFNA(INDEX(EN!B:B,E16),"") -> ERM TG28 | S16: =INDEX(EN!O:O,E16) -> 26441 | T16: =MATCH(S16,Person!A:A) -> 7 | U16: =_xlfn.IFNA(INDEX(Person!B:B,T16),"") -> Igor | V16: =_xlfn.IFNA(INDEX(Person!C:C,T16),"") -> Minaev | W16: =MATCH(D16,'0a'!A:A,0) -> 3707 | X16: =MATCH(D16,'1'!A:A,0) -> 3612 | Y16: =MATCH(D16,'7'!A:A,0) -> 13777 | Z16: =MATCH(D16,'8'!A:A,0) -> 43190 | AA16: =MATCH(D16,'8A'!A:A,0) -> 44765 | AB16: =MATCH(D16,'9B'!A:A,0) -> 6417 | AC16: =MATCH(D16,'9C'!A:A,0) -> 3706 | AD16: =MATCH(D16,'9D'!A:A,0) -> 3473 | AE16: =MATCH(D16,'9Da'!A:A,0) -> 2288 | AF16: =MATCH(D16,'9E'!A:A,0) -> 3683 | AG16: =MATCH(D16,'10F'!A:A,0) -> 1720 | AH16: =MATCH(D16,'11'!A:A,0) -> 8061 | AI16: =MATCH(D16,'12'!A:A,0) -> 43876 | AJ16: =MATCH(D16,'12V'!A:A,0) -> 868 | AK16: =MATCH(D16,'12W'!A:A,0) -> 866 | AL16: =MATCH(D16,'30'!A:A,0) ->  | AM16: =MATCH(D16,'35'!A:A,0) ->  | AN16: =MATCH(D16,'40'!A:A,0) ->  | AO16: =MATCH(D16,'45'!A:A,0) ->  | AP16: =MATCH(D16,'50'!A:A,0) ->  | AQ16: =_xlfn.IFNA(INDEX('0a'!E:E,W16),"") -> 2015-11-26 | AR16: =_xlfn.IFNA(IF(INDEX('1'!G:G,X16)=0,INDEX('1'!F:F,X16),""),"") ->  | AS16: =_xlfn.IFNA(IF(INDEX('1'!G:G,X16)<>0,INDEX('1'!G:G,X16),""),"") -> 2015-11-26 | AT16: =_xlfn.IFNA(IF(INDEX('7'!F:F,Y16)=0,INDEX('7'!E:E,Y16),""),"") ->  | AU16: =_xlfn.IFNA(IF(INDEX('7'!F:F,Y16)<>0,INDEX('7'!F:F,Y16),""),"") -> 2016-01-20 | AV16: =_xlfn.IFNA(IF(INDEX('8'!F:F,Z16)=0,INDEX('8'!E:E,Z16),""),"") ->  | AW16: =_xlfn.IFNA(IF(INDEX('8'!F:F,Z16)<>0,INDEX('8'!F:F,Z16),""),"") -> 2016-02-25 | AX16: =_xlfn.IFNA(IF(INDEX('8A'!F:F,AA16)=0,INDEX('8A'!E:E,AA16),""),"") ->  | AY16: =_xlfn.IFNA(IF(INDEX('8A'!F:F,AA16)<>0,INDEX('8A'!F:F,AA16),""),"") -> 2016-04-11 | AZ16: =_xlfn.IFNA(IF(INDEX('9B'!F:F,AB16)=0,INDEX('9B'!E:E,AB16),""),"") ->  | BA16: =_xlfn.IFNA(IF(INDEX('9B'!F:F,AB16)<>0,INDEX('9B'!F:F,AB16),""),"") -> 2016-05-03 | BB16: =_xlfn.IFNA(IF(INDEX('9C'!F:F,AC16)=0,INDEX('9C'!E:E,AC16),""),"") ->  | BC16: =_xlfn.IFNA(IF(INDEX('9C'!F:F,AC16)<>0,INDEX('9C'!F:F,AC16),""),"") -> 2016-08-01 | BD16: =_xlfn.IFNA(IF(INDEX('9D'!F:F,AD16)=0,INDEX('9D'!E:E,AD16),""),"") ->  | BE16: =_xlfn.IFNA(IF(INDEX('9D'!F:F,AD16)<>0,INDEX('9D'!F:F,AD16),""),"") -> 2016-08-01 | BF16: =_xlfn.IFNA(IF(INDEX('9Da'!F:F,AE16)=0,INDEX('9Da'!E:E,AE16),""),"") ->  | BG16: =_xlfn.IFNA(IF(INDEX('9Da'!F:F,AE16)<>0,INDEX('9Da'!F:F,AE16),""),"") -> 2016-10-25 | BH16: =_xlfn.IFNA(IF(INDEX('9E'!F:F,AF16)=0,INDEX('9E'!E:E,AF16),""),"") ->  | BI16: =_xlfn.IFNA(IF(INDEX('9E'!F:F,AF16)<>0,INDEX('9E'!F:F,AF16),""),"") -> 2016-10-26 | BJ16: =_xlfn.IFNA(IF(INDEX('10F'!F:F,AG16)=0,INDEX('10F'!E:E,AG16),""),"") ->  | BK16: =_xlfn.IFNA(IF(INDEX('10F'!F:F,AG16)<>0,INDEX('10F'!F:F,AG16),""),"") -> 2016-11-28 | BL16: =_xlfn.IFNA(IF(INDEX('11'!F:F,AH16)=0,INDEX('11'!E:E,AH16),""),"") ->  | BM16: =_xlfn.IFNA(IF(INDEX('11'!F:F,AH16)<>0,INDEX('11'!F:F,AH16),""),"") -> 2017-01-27 | BN16: =_xlfn.IFNA(IF(INDEX('12'!G:G,AI16)=0,INDEX('12'!F:F,AI16),""),"") ->  | BO16: =_xlfn.IFNA(IF(INDEX('12'!G:G,AI16)<>0,INDEX('12'!G:G,AI16),""),"") -> 2017-02-08 | BP16: =_xlfn.IFNA(IF(INDEX('12V'!F:F,AJ16)=0,INDEX('12V'!E:E,AJ16),""),"") ->  | BQ16: =_xlfn.IFNA(IF(INDEX('12V'!F:F,AJ16)<>0,INDEX('12V'!F:F,AJ16),""),"") -> 2017-02-09 | BR16: =_xlfn.IFNA(IF(INDEX('12W'!F:F,AK16)=0,INDEX('12W'!E:E,AK16),""),"") ->  | BS16: =_xlfn.IFNA(IF(INDEX('12W'!F:F,AK16)<>0,INDEX('12W'!F:F,AK16),""),"") -> 2017-03-10 | BT16: =_xlfn.IFNA(IF(INDEX('30'!F:F,AL16)=0,INDEX('30'!E:E,AL16),""),"") ->  | BU16: =_xlfn.IFNA(IF(INDEX('30'!F:F,AL16)<>0,INDEX('30'!F:F,AL16),""),"") ->  | BV16: =_xlfn.IFNA(IF(INDEX('35'!F:F,AM16)=0,INDEX('35'!E:E,AM16),""),"") ->  | BW16: =_xlfn.IFNA(IF(INDEX('35'!F:F,AM16)<>0,INDEX('35'!F:F,AM16),""),"") ->  | BX16: =_xlfn.IFNA(IF(INDEX('40'!F:F,AN16)=0,INDEX('40'!E:E,AN16),""),"") ->  | BY16: =_xlfn.IFNA(IF(INDEX('40'!F:F,AN16)<>0,INDEX('40'!F:F,AN16),""),"") ->  | BZ16: =_xlfn.IFNA(IF(INDEX('45'!F:F,AO16)=0,INDEX('45'!E:E,AO16),""),"") ->  | CA16: =_xlfn.IFNA(IF(INDEX('45'!F:F,AO16)<>0,INDEX('45'!F:F,AO16),""),"") ->  | CB16: =_xlfn.IFNA(IF(INDEX('50'!F:F,AP16)=0,INDEX('50'!E:E,AP16),""),"") ->  | CC16: =_xlfn.IFNA(IF(INDEX('50'!F:F,AP16)<>0,INDEX('50'!F:F,AP16),""),"") ->  | CJ16: 47884 | CK16: =MATCH(CJ16,EN!A:A,0) -> 4015 | CL16: =_xlfn.IFNA(INDEX(EN!I:I,CK16),"") -> REN/ERM-TG28-535 | CM16: http://webapp.etsi.org/workProgram/Report_WorkItem.asp?wki_id=47884 | CN16: =_xlfn.IFNA(INDEX(EN!J:J,CK16),"") -> 9 | CO16: =_xlfn.IFNA(IF(INDEX(EN!K:K,CK16)<>0,INDEX(EN!K:K,CK16),""),"") -> E
C17: Addition | D17: 47884 | E17: =MATCH(D17,EN!A:A,0) -> 4015 | F17: =INDEX(EN!I:I,E17) -> REN/ERM-TG28-535 | G17: http://webapp.etsi.org/workProgram/Report_WorkItem.asp?wki_id=47884 | H17: =_xlfn.IFNA(INDEX(EN!F:F,E17),"") -> EN | I17: =_xlfn.IFNA(INDEX(EN!G:G,E17),"") -> 300 220-2 | J17: =_xlfn.IFNA(IF(INDEX(EN!L:L,E17)<>0,INDEX(EN!L:L,E17),""),"") -> 0.0.5 | K17: RevPending | L17: =_xlfn.IFNA(INDEX(EN!H:H,E17),"") -> SRDs (25 MHz to 1 GHz)-Part 2 | M17: RED 3.2 | N17: =_xlfn.IFNA(INDEX(EN!J:J,E17),"") -> 9 | O17: =_xlfn.IFNA(IF(INDEX(EN!K:K,E17)<>0,INDEX(EN!K:K,E17),""),"") -> E | P17: =_xlfn.IFNA(INDEX(EN!M:M,E17),"") -> Draft receipt by ETSI Secretariat | Q17: =_xlfn.IFNA(INDEX(EN!N:N,E17),"") -> 2018-03-07 | R17: =_xlfn.IFNA(INDEX(EN!B:B,E17),"") -> ERM TG28 | S17: =INDEX(EN!O:O,E17) -> 26441 | T17: =MATCH(S17,Person!A:A) -> 7 | U17: =_xlfn.IFNA(INDEX(Person!B:B,T17),"") -> Igor | V17: =_xlfn.IFNA(INDEX(Person!C:C,T17),"") -> Minaev | W17: =MATCH(D17,'0a'!A:A,0) -> 3708 | X17: =MATCH(D17,'1'!A:A,0) -> 3613 | Y17: =MATCH(D17,'7'!A:A,0) -> 13778 | Z17: =MATCH(D17,'8'!A:A,0) -> 43191 | AA17: =MATCH(D17,'8A'!A:A,0) -> 44766 | AB17: =MATCH(D17,'9B'!A:A,0) -> 6418 | AC17: =MATCH(D17,'9C'!A:A,0) -> 3707 | AD17: =MATCH(D17,'9D'!A:A,0) -> 3474 | AE17: =MATCH(D17,'9Da'!A:A,0) -> 2289 | AF17: =MATCH(D17,'9E'!A:A,0) -> 3684 | AG17: =MATCH(D17,'10F'!A:A,0) -> 1721 | AH17: =MATCH(D17,'11'!A:A,0) -> 8062 | AI17: =MATCH(D17,'12'!A:A,0) -> 43877 | AJ17: =MATCH(D17,'12V'!A:A,0) -> 869 | AK17: =MATCH(D17,'12W'!A:A,0) -> 867 | AL17: =MATCH(D17,'30'!A:A,0) ->  | AM17: =MATCH(D17,'35'!A:A,0) ->  | AN17: =MATCH(D17,'40'!A:A,0) ->  | AO17: =MATCH(D17,'45'!A:A,0) ->  | AP17: =MATCH(D17,'50'!A:A,0) ->  | AQ17: =_xlfn.IFNA(INDEX('0a'!E:E,W17),"") -> 2015-11-26 | AR17: =_xlfn.IFNA(IF(INDEX('1'!G:G,X17)=0,INDEX('1'!F:F,X17),""),"") ->  | AS17: =_xlfn.IFNA(IF(INDEX('1'!G:G,X17)<>0,INDEX('1'!G:G,X17),""),"") -> 2015-11-26 | AT17: =_xlfn.IFNA(IF(INDEX('7'!F:F,Y17)=0,INDEX('7'!E:E,Y17),""),"") ->  | AU17: =_xlfn.IFNA(IF(INDEX('7'!F:F,Y17)<>0,INDEX('7'!F:F,Y17),""),"") -> 2017-05-10 | AV17: =_xlfn.IFNA(IF(INDEX('8'!F:F,Z17)=0,INDEX('8'!E:E,Z17),""),"") ->  | AW17: =_xlfn.IFNA(IF(INDEX('8'!F:F,Z17)<>0,INDEX('8'!F:F,Z17),""),"") -> 2017-06-20 | AX17: =_xlfn.IFNA(IF(INDEX('8A'!F:F,AA17)=0,INDEX('8A'!E:E,AA17),""),"") ->  | AY17: =_xlfn.IFNA(IF(INDEX('8A'!F:F,AA17)<>0,INDEX('8A'!F:F,AA17),""),"") -> 2017-09-05 | AZ17: =_xlfn.IFNA(IF(INDEX('9B'!F:F,AB17)=0,INDEX('9B'!E:E,AB17),""),"") ->  | BA17: =_xlfn.IFNA(IF(INDEX('9B'!F:F,AB17)<>0,INDEX('9B'!F:F,AB17),""),"") -> 2017-09-12 | BB17: =_xlfn.IFNA(IF(INDEX('9C'!F:F,AC17)=0,INDEX('9C'!E:E,AC17),""),"") ->  | BC17: =_xlfn.IFNA(IF(INDEX('9C'!F:F,AC17)<>0,INDEX('9C'!F:F,AC17),""),"") -> 2017-12-11 | BD17: =_xlfn.IFNA(IF(INDEX('9D'!F:F,AD17)=0,INDEX('9D'!E:E,AD17),""),"") ->  | BE17: =_xlfn.IFNA(IF(INDEX('9D'!F:F,AD17)<>0,INDEX('9D'!F:F,AD17),""),"") -> 2018-01-17 | BF17: =_xlfn.IFNA(IF(INDEX('9Da'!F:F,AE17)=0,INDEX('9Da'!E:E,AE17),""),"") ->  | BG17: =_xlfn.IFNA(IF(INDEX('9Da'!F:F,AE17)<>0,INDEX('9Da'!F:F,AE17),""),"") -> 2018-02-20 | BH17: =_xlfn.IFNA(IF(INDEX('9E'!F:F,AF17)=0,INDEX('9E'!E:E,AF17),""),"") ->  | BI17: =_xlfn.IFNA(IF(INDEX('9E'!F:F,AF17)<>0,INDEX('9E'!F:F,AF17),""),"") -> 2018-03-07 | BJ17: =_xlfn.IFNA(IF(INDEX('10F'!F:F,AG17)=0,INDEX('10F'!E:E,AG17),""),"") -> 2018-03-21 | BK17: =_xlfn.IFNA(IF(INDEX('10F'!F:F,AG17)<>0,INDEX('10F'!F:F,AG17),""),"") ->  | BL17: =_xlfn.IFNA(IF(INDEX('11'!F:F,AH17)=0,INDEX('11'!E:E,AH17),""),"") -> 2018-05-20 | BM17: =_xlfn.IFNA(IF(INDEX('11'!F:F,AH17)<>0,INDEX('11'!F:F,AH17),""),"") ->  | BN17: =_xlfn.IFNA(IF(INDEX('12'!G:G,AI17)=0,INDEX('12'!F:F,AI17),""),"") -> 2018-06-03 | BO17: =_xlfn.IFNA(IF(INDEX('12'!G:G,AI17)<>0,INDEX('12'!G:G,AI17),""),"") ->  | BP17: =_xlfn.IFNA(IF(INDEX('12V'!F:F,AJ17)=0,INDEX('12V'!E:E,AJ17),""),"") -> 2018-06-24 | BQ17: =_xlfn.IFNA(IF(INDEX('12V'!F:F,AJ17)<>0,INDEX('12V'!F:F,AJ17),""),"") ->  | BR17: =_xlfn.IFNA(IF(INDEX('12W'!F:F,AK17)=0,INDEX('12W'!E:E,AK17),""),"") -> 2018-09-16 | BS17: =_xlfn.IFNA(IF(INDEX('12W'!F:F,AK17)<>0,INDEX('12W'!F:F,AK17),""),"") ->  | BT17: =_xlfn.IFNA(IF(INDEX('30'!F:F,AL17)=0,INDEX('30'!E:E,AL17),""),"") ->  | BU17: =_xlfn.IFNA(IF(INDEX('30'!F:F,AL17)<>0,INDEX('30'!F:F,AL17),""),"") ->  | BV17: =_xlfn.IFNA(IF(INDEX('35'!F:F,AM17)=0,INDEX('35'!E:E,AM17),""),"") ->  | BW17: =_xlfn.IFNA(IF(INDEX('35'!F:F,AM17)<>0,INDEX('35'!F:F,AM17),""),"") ->  | BX17: =_xlfn.IFNA(IF(INDEX('40'!F:F,AN17)=0,INDEX('40'!E:E,AN17),""),"") ->  | BY17: =_xlfn.IFNA(IF(INDEX('40'!F:F,AN17)<>0,INDEX('40'!F:F,AN17),""),"") ->  | BZ17: =_xlfn.IFNA(IF(INDEX('45'!F:F,AO17)=0,INDEX('45'!E:E,AO17),""),"") ->  | CA17: =_xlfn.IFNA(IF(INDEX('45'!F:F,AO17)<>0,INDEX('45'!F:F,AO17),""),"") ->  | CB17: =_xlfn.IFNA(IF(INDEX('50'!F:F,AP17)=0,INDEX('50'!E:E,AP17),""),"") ->  | CC17: =_xlfn.IFNA(IF(INDEX('50'!F:F,AP17)<>0,INDEX('50'!F:F,AP17),""),"") ->  | CE17: Pre-assessment requested | CK17: =MATCH(CJ17,EN!A:A,0) ->  | CL17: =_xlfn.IFNA(INDEX(EN!I:I,CK17),"") ->  | CN17: =_xlfn.IFNA(INDEX(EN!J:J,CK17),"") ->  | CO17: =_xlfn.IFNA(IF(INDEX(EN!K:K,CK17)<>0,INDEX(EN!K:K,CK17),""),"") -> 
C18: Addition | D18: 47951 | E18: =MATCH(D18,EN!A:A,0) -> 4036 | F18: =INDEX(EN!I:I,E18) -> DEN/ERM-TG28-530 | G18: http://webapp.etsi.org/workProgram/Report_WorkItem.asp?wki_id=47951 | H18: =_xlfn.IFNA(INDEX(EN!F:F,E18),"") -> EN | I18: =_xlfn.IFNA(INDEX(EN!G:G,E18),"") -> 300 220-3-1 | J18: =_xlfn.IFNA(IF(INDEX(EN!L:L,E18)<>0,INDEX(EN!L:L,E18),""),"") -> 2.1.1 | K18: Cited | L18: =_xlfn.IFNA(INDEX(EN!H:H,E18),"") -> SRDs (25 MHz to 1 GHz)-Part 3-1 | M18: RED 3.2 | N18: =_xlfn.IFNA(INDEX(EN!J:J,E18),"") -> 12 | O18: =_xlfn.IFNA(IF(INDEX(EN!K:K,E18)<>0,INDEX(EN!K:K,E18),""),"") -> W | P18: =_xlfn.IFNA(INDEX(EN!M:M,E18),"") -> Citation in the OJ | Q18: =_xlfn.IFNA(INDEX(EN!N:N,E18),"") -> 2017-03-10 | R18: =_xlfn.IFNA(INDEX(EN!B:B,E18),"") -> ERM TG28 | S18: =INDEX(EN!O:O,E18) -> 26441 | T18: =MATCH(S18,Person!A:A) -> 7 | U18: =_xlfn.IFNA(INDEX(Person!B:B,T18),"") -> Igor | V18: =_xlfn.IFNA(INDEX(Person!C:C,T18),"") -> Minaev | W18: =MATCH(D18,'0a'!A:A,0) -> 3729 | X18: =MATCH(D18,'1'!A:A,0) -> 3634 | Y18: =MATCH(D18,'7'!A:A,0) -> 13809 | Z18: =MATCH(D18,'8'!A:A,0) -> 43246 | AA18: =MATCH(D18,'8A'!A:A,0) -> 44823 | AB18: =MATCH(D18,'9B'!A:A,0) -> 6440 | AC18: =MATCH(D18,'9C'!A:A,0) -> 3729 | AD18: =MATCH(D18,'9D'!A:A,0) -> 3492 | AE18: =MATCH(D18,'9Da'!A:A,0) ->  | AF18: =MATCH(D18,'9E'!A:A,0) ->  | AG18: =MATCH(D18,'10F'!A:A,0) ->  | AH18: =MATCH(D18,'11'!A:A,0) -> 8085 | AI18: =MATCH(D18,'12'!A:A,0) -> 43934 | AJ18: =MATCH(D18,'12V'!A:A,0) -> 881 | AK18: =MATCH(D18,'12W'!A:A,0) -> 879 | AL18: =MATCH(D18,'30'!A:A,0) ->  | AM18: =MATCH(D18,'35'!A:A,0) ->  | AN18: =MATCH(D18,'40'!A:A,0) ->  | AO18: =MATCH(D18,'45'!A:A,0) ->  | AP18: =MATCH(D18,'50'!A:A,0) ->  | AQ18: =_xlfn.IFNA(INDEX('0a'!E:E,W18),"") -> 2015-12-04 | AR18: =_xlfn.IFNA(IF(INDEX('1'!G:G,X18)=0,INDEX('1'!F:F,X18),""),"") ->  | AS18: =_xlfn.IFNA(IF(INDEX('1'!G:G,X18)<>0,INDEX('1'!G:G,X18),""),"") -> 2015-12-04 | AT18: =_xlfn.IFNA(IF(INDEX('7'!F:F,Y18)=0,INDEX('7'!E:E,Y18),""),"") ->  | AU18: =_xlfn.IFNA(IF(INDEX('7'!F:F,Y18)<>0,INDEX('7'!F:F,Y18),""),"") -> 2016-02-25 | AV18: =_xlfn.IFNA(IF(INDEX('8'!F:F,Z18)=0,INDEX('8'!E:E,Z18),""),"") ->  | AW18: =_xlfn.IFNA(IF(INDEX('8'!F:F,Z18)<>0,INDEX('8'!F:F,Z18),""),"") -> 2016-02-25 | AX18: =_xlfn.IFNA(IF(INDEX('8A'!F:F,AA18)=0,INDEX('8A'!E:E,AA18),""),"") ->  | AY18: =_xlfn.IFNA(IF(INDEX('8A'!F:F,AA18)<>0,INDEX('8A'!F:F,AA18),""),"") -> 2016-04-11 | AZ18: =_xlfn.IFNA(IF(INDEX('9B'!F:F,AB18)=0,INDEX('9B'!E:E,AB18),""),"") ->  | BA18: =_xlfn.IFNA(IF(INDEX('9B'!F:F,AB18)<>0,INDEX('9B'!F:F,AB18),""),"") -> 2016-05-03 | BB18: =_xlfn.IFNA(IF(INDEX('9C'!F:F,AC18)=0,INDEX('9C'!E:E,AC18),""),"") ->  | BC18: =_xlfn.IFNA(IF(INDEX('9C'!F:F,AC18)<>0,INDEX('9C'!F:F,AC18),""),"") -> 2016-08-01 | BD18: =_xlfn.IFNA(IF(INDEX('9D'!F:F,AD18)=0,INDEX('9D'!E:E,AD18),""),"") ->  | BE18: =_xlfn.IFNA(IF(INDEX('9D'!F:F,AD18)<>0,INDEX('9D'!F:F,AD18),""),"") -> 2016-08-01 | BF18: =_xlfn.IFNA(IF(INDEX('9Da'!F:F,AE18)=0,INDEX('9Da'!E:E,AE18),""),"") ->  | BG18: =_xlfn.IFNA(IF(INDEX('9Da'!F:F,AE18)<>0,INDEX('9Da'!F:F,AE18),""),"") ->  | BH18: =_xlfn.IFNA(IF(INDEX('9E'!F:F,AF18)=0,INDEX('9E'!E:E,AF18),""),"") ->  | BI18: =_xlfn.IFNA(IF(INDEX('9E'!F:F,AF18)<>0,INDEX('9E'!F:F,AF18),""),"") ->  | BJ18: =_xlfn.IFNA(IF(INDEX('10F'!F:F,AG18)=0,INDEX('10F'!E:E,AG18),""),"") ->  | BK18: =_xlfn.IFNA(IF(INDEX('10F'!F:F,AG18)<>0,INDEX('10F'!F:F,AG18),""),"") ->  | BL18: =_xlfn.IFNA(IF(INDEX('11'!F:F,AH18)=0,INDEX('11'!E:E,AH18),""),"") ->  | BM18: =_xlfn.IFNA(IF(INDEX('11'!F:F,AH18)<>0,INDEX('11'!F:F,AH18),""),"") -> 2016-08-01 | BN18: =_xlfn.IFNA(IF(INDEX('12'!G:G,AI18)=0,INDEX('12'!F:F,AI18),""),"") ->  | BO18: =_xlfn.IFNA(IF(INDEX('12'!G:G,AI18)<>0,INDEX('12'!G:G,AI18),""),"") -> 2016-12-13 | BP18: =_xlfn.IFNA(IF(INDEX('12V'!F:F,AJ18)=0,INDEX('12V'!E:E,AJ18),""),"") ->  | BQ18: =_xlfn.IFNA(IF(INDEX('12V'!F:F,AJ18)<>0,INDEX('12V'!F:F,AJ18),""),"") -> 2016-12-14 | BR18: =_xlfn.IFNA(IF(INDEX('12W'!F:F,AK18)=0,INDEX('12W'!E:E,AK18),""),"") ->  | BS18: =_xlfn.IFNA(IF(INDEX('12W'!F:F,AK18)<>0,INDEX('12W'!F:F,AK18),""),"") -> 2017-03-10 | BT18: =_xlfn.IFNA(IF(INDEX('30'!F:F,AL18)=0,INDEX('30'!E:E,AL18),""),"") ->  | BU18: =_xlfn.IFNA(IF(INDEX('30'!F:F,AL18)<>0,INDEX('30'!F:F,AL18),""),"") ->  | BV18: =_xlfn.IFNA(IF(INDEX('35'!F:F,AM18)=0,INDEX('35'!E:E,AM18),""),"") ->  | BW18: =_xlfn.IFNA(IF(INDEX('35'!F:F,AM18)<>0,INDEX('35'!F:F,AM18),""),"") ->  | BX18: =_xlfn.IFNA(IF(INDEX('40'!F:F,AN18)=0,INDEX('40'!E:E,AN18),""),"") ->  | BY18: =_xlfn.IFNA(IF(INDEX('40'!F:F,AN18)<>0,INDEX('40'!F:F,AN18),""),"") ->  | BZ18: =_xlfn.IFNA(IF(INDEX('45'!F:F,AO18)=0,INDEX('45'!E:E,AO18),""),"") ->  | CA18: =_xlfn.IFNA(IF(INDEX('45'!F:F,AO18)<>0,INDEX('45'!F:F,AO18),""),"") ->  | CB18: =_xlfn.IFNA(IF(INDEX('50'!F:F,AP18)=0,INDEX('50'!E:E,AP18),""),"") ->  | CC18: =_xlfn.IFNA(IF(INDEX('50'!F:F,AP18)<>0,INDEX('50'!F:F,AP18),""),"") ->  | CK18: =MATCH(CJ18,EN!A:A,0) ->  | CL18: =_xlfn.IFNA(INDEX(EN!I:I,CK18),"") ->  | CN18: =_xlfn.IFNA(INDEX(EN!J:J,CK18),"") ->  | CO18: =_xlfn.IFNA(IF(INDEX(EN!K:K,CK18)<>0,INDEX(EN!K:K,CK18),""),"") -> 
C19: Addition | D19: 47945 | E19: =MATCH(D19,EN!A:A,0) -> 4033 | F19: =INDEX(EN!I:I,E19) -> DEN/ERM-TG28-528 | G19: http://webapp.etsi.org/workProgram/Report_WorkItem.asp?wki_id=47945 | H19: =_xlfn.IFNA(INDEX(EN!F:F,E19),"") -> EN | I19: =_xlfn.IFNA(INDEX(EN!G:G,E19),"") -> 300 220-3-2 | J19: =_xlfn.IFNA(IF(INDEX(EN!L:L,E19)<>0,INDEX(EN!L:L,E19),""),"") -> 1.1.1 | K19: Cited | L19: =_xlfn.IFNA(INDEX(EN!H:H,E19),"") -> SRDs (25 MHz to 1 GHz)-Part 3-2 | M19: RED 3.2 | N19: =_xlfn.IFNA(INDEX(EN!J:J,E19),"") -> 12 | O19: =_xlfn.IFNA(IF(INDEX(EN!K:K,E19)<>0,INDEX(EN!K:K,E19),""),"") -> W | P19: =_xlfn.IFNA(INDEX(EN!M:M,E19),"") -> Citation in the OJ | Q19: =_xlfn.IFNA(INDEX(EN!N:N,E19),"") -> 2017-03-10 | R19: =_xlfn.IFNA(INDEX(EN!B:B,E19),"") -> ERM TG28 | S19: =INDEX(EN!O:O,E19) -> 26441 | T19: =MATCH(S19,Person!A:A) -> 7 | U19: =_xlfn.IFNA(INDEX(Person!B:B,T19),"") -> Igor | V19: =_xlfn.IFNA(INDEX(Person!C:C,T19),"") -> Minaev | W19: =MATCH(D19,'0a'!A:A,0) -> 3726 | X19: =MATCH(D19,'1'!A:A,0) -> 3631 | Y19: =MATCH(D19,'7'!A:A,0) -> 13806 | Z19: =MATCH(D19,'8'!A:A,0) -> 43242 | AA19: =MATCH(D19,'8A'!A:A,0) -> 44819 | AB19: =MATCH(D19,'9B'!A:A,0) -> 6437 | AC19: =MATCH(D19,'9C'!A:A,0) -> 3726 | AD19: =MATCH(D19,'9D'!A:A,0) -> 3489 | AE19: =MATCH(D19,'9Da'!A:A,0) -> 2305 | AF19: =MATCH(D19,'9E'!A:A,0) -> 3700 | AG19: =MATCH(D19,'10F'!A:A,0) -> 1736 | AH19: =MATCH(D19,'11'!A:A,0) -> 8081 | AI19: =MATCH(D19,'12'!A:A,0) -> 43930 | AJ19: =MATCH(D19,'12V'!A:A,0) -> 878 | AK19: =MATCH(D19,'12W'!A:A,0) -> 876 | AL19: =MATCH(D19,'30'!A:A,0) ->  | AM19: =MATCH(D19,'35'!A:A,0) ->  | AN19: =MATCH(D19,'40'!A:A,0) ->  | AO19: =MATCH(D19,'45'!A:A,0) ->  | AP19: =MATCH(D19,'50'!A:A,0) ->  | AQ19: =_xlfn.IFNA(INDEX('0a'!E:E,W19),"") -> 2015-12-04 | AR19: =_xlfn.IFNA(IF(INDEX('1'!G:G,X19)=0,INDEX('1'!F:F,X19),""),"") ->  | AS19: =_xlfn.IFNA(IF(INDEX('1'!G:G,X19)<>0,INDEX('1'!G:G,X19),""),"") -> 2015-11-08 | AT19: =_xlfn.IFNA(IF(INDEX('7'!F:F,Y19)=0,INDEX('7'!E:E,Y19),""),"") ->  | AU19: =_xlfn.IFNA(IF(INDEX('7'!F:F,Y19)<>0,INDEX('7'!F:F,Y19),""),"") -> 2016-01-20 | AV19: =_xlfn.IFNA(IF(INDEX('8'!F:F,Z19)=0,INDEX('8'!E:E,Z19),""),"") ->  | AW19: =_xlfn.IFNA(IF(INDEX('8'!F:F,Z19)<>0,INDEX('8'!F:F,Z19),""),"") -> 2016-02-25 | AX19: =_xlfn.IFNA(IF(INDEX('8A'!F:F,AA19)=0,INDEX('8A'!E:E,AA19),""),"") ->  | AY19: =_xlfn.IFNA(IF(INDEX('8A'!F:F,AA19)<>0,INDEX('8A'!F:F,AA19),""),"") -> 2016-04-11 | AZ19: =_xlfn.IFNA(IF(INDEX('9B'!F:F,AB19)=0,INDEX('9B'!E:E,AB19),""),"") ->  | BA19: =_xlfn.IFNA(IF(INDEX('9B'!F:F,AB19)<>0,INDEX('9B'!F:F,AB19),""),"") -> 2016-05-03 | BB19: =_xlfn.IFNA(IF(INDEX('9C'!F:F,AC19)=0,INDEX('9C'!E:E,AC19),""),"") ->  | BC19: =_xlfn.IFNA(IF(INDEX('9C'!F:F,AC19)<>0,INDEX('9C'!F:F,AC19),""),"") -> 2016-08-01 | BD19: =_xlfn.IFNA(IF(INDEX('9D'!F:F,AD19)=0,INDEX('9D'!E:E,AD19),""),"") ->  | BE19: =_xlfn.IFNA(IF(INDEX('9D'!F:F,AD19)<>0,INDEX('9D'!F:F,AD19),""),"") -> 2016-08-01 | BF19: =_xlfn.IFNA(IF(INDEX('9Da'!F:F,AE19)=0,INDEX('9Da'!E:E,AE19),""),"") ->  | BG19: =_xlfn.IFNA(IF(INDEX('9Da'!F:F,AE19)<>0,INDEX('9Da'!F:F,AE19),""),"") -> 2016-10-25 | BH19: =_xlfn.IFNA(IF(INDEX('9E'!F:F,AF19)=0,INDEX('9E'!E:E,AF19),""),"") ->  | BI19: =_xlfn.IFNA(IF(INDEX('9E'!F:F,AF19)<>0,INDEX('9E'!F:F,AF19),""),"") -> 2016-10-26 | BJ19: =_xlfn.IFNA(IF(INDEX('10F'!F:F,AG19)=0,INDEX('10F'!E:E,AG19),""),"") ->  | BK19: =_xlfn.IFNA(IF(INDEX('10F'!F:F,AG19)<>0,INDEX('10F'!F:F,AG19),""),"") -> 2016-11-28 | BL19: =_xlfn.IFNA(IF(INDEX('11'!F:F,AH19)=0,INDEX('11'!E:E,AH19),""),"") ->  | BM19: =_xlfn.IFNA(IF(INDEX('11'!F:F,AH19)<>0,INDEX('11'!F:F,AH19),""),"") -> 2017-01-27 | BN19: =_xlfn.IFNA(IF(INDEX('12'!G:G,AI19)=0,INDEX('12'!F:F,AI19),""),"") ->  | BO19: =_xlfn.IFNA(IF(INDEX('12'!G:G,AI19)<>0,INDEX('12'!G:G,AI19),""),"") -> 2017-02-08 | BP19: =_xlfn.IFNA(IF(INDEX('12V'!F:F,AJ19)=0,INDEX('12V'!E:E,AJ19),""),"") ->  | BQ19: =_xlfn.IFNA(IF(INDEX('12V'!F:F,AJ19)<>0,INDEX('12V'!F:F,AJ19),""),"") -> 2017-02-09 | BR19: =_xlfn.IFNA(IF(INDEX('12W'!F:F,AK19)=0,INDEX('12W'!E:E,AK19),""),"") ->  | BS19: =_xlfn.IFNA(IF(INDEX('12W'!F:F,AK19)<>0,INDEX('12W'!F:F,AK19),""),"") -> 2017-03-10 | BT19: =_xlfn.IFNA(IF(INDEX('30'!F:F,AL19)=0,INDEX('30'!E:E,AL19),""),"") ->  | BU19: =_xlfn.IFNA(IF(INDEX('30'!F:F,AL19)<>0,INDEX('30'!F:F,AL19),""),"") ->  | BV19: =_xlfn.IFNA(IF(INDEX('35'!F:F,AM19)=0,INDEX('35'!E:E,AM19),""),"") ->  | BW19: =_xlfn.IFNA(IF(INDEX('35'!F:F,AM19)<>0,INDEX('35'!F:F,AM19),""),"") ->  | BX19: =_xlfn.IFNA(IF(INDEX('40'!F:F,AN19)=0,INDEX('40'!E:E,AN19),""),"") ->  | BY19: =_xlfn.IFNA(IF(INDEX('40'!F:F,AN19)<>0,INDEX('40'!F:F,AN19),""),"") ->  | BZ19: =_xlfn.IFNA(IF(INDEX('45'!F:F,AO19)=0,INDEX('45'!E:E,AO19),""),"") ->  | CA19: =_xlfn.IFNA(IF(INDEX('45'!F:F,AO19)<>0,INDEX('45'!F:F,AO19),""),"") ->  | CB19: =_xlfn.IFNA(IF(INDEX('50'!F:F,AP19)=0,INDEX('50'!E:E,AP19),""),"") ->  | CC19: =_xlfn.IFNA(IF(INDEX('50'!F:F,AP19)<>0,INDEX('50'!F:F,AP19),""),"") ->  | CK19: =MATCH(CJ19,EN!A:A,0) ->  | CL19: =_xlfn.IFNA(INDEX(EN!I:I,CK19),"") ->  | CN19: =_xlfn.IFNA(INDEX(EN!J:J,CK19),"") ->  | CO19: =_xlfn.IFNA(IF(INDEX(EN!K:K,CK19)<>0,INDEX(EN!K:K,CK19),""),"") -> 
C20: Addition | D20: 47900 | E20: =MATCH(D20,EN!A:A,0) -> 4019 | F20: =INDEX(EN!I:I,E20) -> DEN/ERM-TG28-538 | G20: http://webapp.etsi.org/workProgram/Report_WorkItem.asp?wki_id=47900 | H20: =_xlfn.IFNA(INDEX(EN!F:F,E20),"") -> EN | I20: =_xlfn.IFNA(INDEX(EN!G:G,E20),"") -> 300 220-4 | J20: =_xlfn.IFNA(IF(INDEX(EN!L:L,E20)<>0,INDEX(EN!L:L,E20),""),"") -> 1.1.1 | K20: Cited | L20: =_xlfn.IFNA(INDEX(EN!H:H,E20),"") -> SRDs (25 MHz to 1 GHz)-Part 4 | M20: RED 3.2 | N20: =_xlfn.IFNA(INDEX(EN!J:J,E20),"") -> 12 | O20: =_xlfn.IFNA(IF(INDEX(EN!K:K,E20)<>0,INDEX(EN!K:K,E20),""),"") -> W | P20: =_xlfn.IFNA(INDEX(EN!M:M,E20),"") -> Citation in the OJ | Q20: =_xlfn.IFNA(INDEX(EN!N:N,E20),"") -> 2017-03-10 | R20: =_xlfn.IFNA(INDEX(EN!B:B,E20),"") -> ERM TG28 | S20: =INDEX(EN!O:O,E20) -> 26441 | T20: =MATCH(S20,Person!A:A) -> 7 | U20: =_xlfn.IFNA(INDEX(Person!B:B,T20),"") -> Igor | V20: =_xlfn.IFNA(INDEX(Person!C:C,T20),"") -> Minaev | W20: =MATCH(D20,'0a'!A:A,0) -> 3712 | X20: =MATCH(D20,'1'!A:A,0) -> 3617 | Y20: =MATCH(D20,'7'!A:A,0) -> 13783 | Z20: =MATCH(D20,'8'!A:A,0) -> 43203 | AA20: =MATCH(D20,'8A'!A:A,0) -> 44778 | AB20: =MATCH(D20,'9B'!A:A,0) -> 6422 | AC20: =MATCH(D20,'9C'!A:A,0) -> 3711 | AD20: =MATCH(D20,'9D'!A:A,0) -> 3478 | AE20: =MATCH(D20,'9Da'!A:A,0) -> 2293 | AF20: =MATCH(D20,'9E'!A:A,0) -> 3688 | AG20: =MATCH(D20,'10F'!A:A,0) -> 1725 | AH20: =MATCH(D20,'11'!A:A,0) -> 8066 | AI20: =MATCH(D20,'12'!A:A,0) -> 43891 | AJ20: =MATCH(D20,'12V'!A:A,0) -> 870 | AK20: =MATCH(D20,'12W'!A:A,0) -> 868 | AL20: =MATCH(D20,'30'!A:A,0) ->  | AM20: =MATCH(D20,'35'!A:A,0) ->  | AN20: =MATCH(D20,'40'!A:A,0) ->  | AO20: =MATCH(D20,'45'!A:A,0) ->  | AP20: =MATCH(D20,'50'!A:A,0) ->  | AQ20: =_xlfn.IFNA(INDEX('0a'!E:E,W20),"") -> 2015-11-25 | AR20: =_xlfn.IFNA(IF(INDEX('1'!G:G,X20)=0,INDEX('1'!F:F,X20),""),"") ->  | AS20: =_xlfn.IFNA(IF(INDEX('1'!G:G,X20)<>0,INDEX('1'!G:G,X20),""),"") -> 2015-11-25 | AT20: =_xlfn.IFNA(IF(INDEX('7'!F:F,Y20)=0,INDEX('7'!E:E,Y20),""),"") ->  | AU20: =_xlfn.IFNA(IF(INDEX('7'!F:F,Y20)<>0,INDEX('7'!F:F,Y20),""),"") -> 2016-01-20 | AV20: =_xlfn.IFNA(IF(INDEX('8'!F:F,Z20)=0,INDEX('8'!E:E,Z20),""),"") ->  | AW20: =_xlfn.IFNA(IF(INDEX('8'!F:F,Z20)<>0,INDEX('8'!F:F,Z20),""),"") -> 2016-02-25 | AX20: =_xlfn.IFNA(IF(INDEX('8A'!F:F,AA20)=0,INDEX('8A'!E:E,AA20),""),"") ->  | AY20: =_xlfn.IFNA(IF(INDEX('8A'!F:F,AA20)<>0,INDEX('8A'!F:F,AA20),""),"") -> 2016-04-11 | AZ20: =_xlfn.IFNA(IF(INDEX('9B'!F:F,AB20)=0,INDEX('9B'!E:E,AB20),""),"") ->  | BA20: =_xlfn.IFNA(IF(INDEX('9B'!F:F,AB20)<>0,INDEX('9B'!F:F,AB20),""),"") -> 2016-05-03 | BB20: =_xlfn.IFNA(IF(INDEX('9C'!F:F,AC20)=0,INDEX('9C'!E:E,AC20),""),"") ->  | BC20: =_xlfn.IFNA(IF(INDEX('9C'!F:F,AC20)<>0,INDEX('9C'!F:F,AC20),""),"") -> 2016-08-01 | BD20: =_xlfn.IFNA(IF(INDEX('9D'!F:F,AD20)=0,INDEX('9D'!E:E,AD20),""),"") ->  | BE20: =_xlfn.IFNA(IF(INDEX('9D'!F:F,AD20)<>0,INDEX('9D'!F:F,AD20),""),"") -> 2016-08-01 | BF20: =_xlfn.IFNA(IF(INDEX('9Da'!F:F,AE20)=0,INDEX('9Da'!E:E,AE20),""),"") ->  | BG20: =_xlfn.IFNA(IF(INDEX('9Da'!F:F,AE20)<>0,INDEX('9Da'!F:F,AE20),""),"") -> 2016-10-25 | BH20: =_xlfn.IFNA(IF(INDEX('9E'!F:F,AF20)=0,INDEX('9E'!E:E,AF20),""),"") ->  | BI20: =_xlfn.IFNA(IF(INDEX('9E'!F:F,AF20)<>0,INDEX('9E'!F:F,AF20),""),"") -> 2016-10-26 | BJ20: =_xlfn.IFNA(IF(INDEX('10F'!F:F,AG20)=0,INDEX('10F'!E:E,AG20),""),"") ->  | BK20: =_xlfn.IFNA(IF(INDEX('10F'!F:F,AG20)<>0,INDEX('10F'!F:F,AG20),""),"") -> 2016-11-28 | BL20: =_xlfn.IFNA(IF(INDEX('11'!F:F,AH20)=0,INDEX('11'!E:E,AH20),""),"") ->  | BM20: =_xlfn.IFNA(IF(INDEX('11'!F:F,AH20)<>0,INDEX('11'!F:F,AH20),""),"") -> 2017-01-27 | BN20: =_xlfn.IFNA(IF(INDEX('12'!G:G,AI20)=0,INDEX('12'!F:F,AI20),""),"") ->  | BO20: =_xlfn.IFNA(IF(INDEX('12'!G:G,AI20)<>0,INDEX('12'!G:G,AI20),""),"") -> 2017-02-08 | BP20: =_xlfn.IFNA(IF(INDEX('12V'!F:F,AJ20)=0,INDEX('12V'!E:E,AJ20),""),"") ->  | BQ20: =_xlfn.IFNA(IF(INDEX('12V'!F:F,AJ20)<>0,INDEX('12V'!F:F,AJ20),""),"") -> 2017-02-09 | BR20: =_xlfn.IFNA(IF(INDEX('12W'!F:F,AK20)=0,INDEX('12W'!E:E,AK20),""),"") ->  | BS20: =_xlfn.IFNA(IF(INDEX('12W'!F:F,AK20)<>0,INDEX('12W'!F:F,AK20),""),"") -> 2017-03-10 | BT20: =_xlfn.IFNA(IF(INDEX('30'!F:F,AL20)=0,INDEX('30'!E:E,AL20),""),"") ->  | BU20: =_xlfn.IFNA(IF(INDEX('30'!F:F,AL20)<>0,INDEX('30'!F:F,AL20),""),"") ->  | BV20: =_xlfn.IFNA(IF(INDEX('35'!F:F,AM20)=0,INDEX('35'!E:E,AM20),""),"") ->  | BW20: =_xlfn.IFNA(IF(INDEX('35'!F:F,AM20)<>0,INDEX('35'!F:F,AM20),""),"") ->  | BX20: =_xlfn.IFNA(IF(INDEX('40'!F:F,AN20)=0,INDEX('40'!E:E,AN20),""),"") ->  | BY20: =_xlfn.IFNA(IF(INDEX('40'!F:F,AN20)<>0,INDEX('40'!F:F,AN20),""),"") ->  | BZ20: =_xlfn.IFNA(IF(INDEX('45'!F:F,AO20)=0,INDEX('45'!E:E,AO20),""),"") ->  | CA20: =_xlfn.IFNA(IF(INDEX('45'!F:F,AO20)<>0,INDEX('45'!F:F,AO20),""),"") ->  | CB20: =_xlfn.IFNA(IF(INDEX('50'!F:F,AP20)=0,INDEX('50'!E:E,AP20),""),"") ->  | CC20: =_xlfn.IFNA(IF(INDEX('50'!F:F,AP20)<>0,INDEX('50'!F:F,AP20),""),"") ->  | CK20: =MATCH(CJ20,EN!A:A,0) ->  | CL20: =_xlfn.IFNA(INDEX(EN!I:I,CK20),"") ->  | CN20: =_xlfn.IFNA(INDEX(EN!J:J,CK20),"") ->  | CO20: =_xlfn.IFNA(IF(INDEX(EN!K:K,CK20)<>0,INDEX(EN!K:K,CK20),""),"") -> 
A21: 300 224-2 | B21: 1.1.1 | C21: Cited | D21: 8854 | E21: =MATCH(D21,EN!A:A,0) -> 1714 | F21: =INDEX(EN!I:I,E21) -> REN/ERM-RP08-0110-2 | G21: http://webapp.etsi.org/workProgram/Report_WorkItem.asp?wki_id=8854 | H21: =_xlfn.IFNA(INDEX(EN!F:F,E21),"") -> EN | I21: =_xlfn.IFNA(INDEX(EN!G:G,E21),"") -> 300 224-2 | J21: =_xlfn.IFNA(IF(INDEX(EN!L:L,E21)<>0,INDEX(EN!L:L,E21),""),"") -> 1.1.1 | K21: Superseded | L21: =_xlfn.IFNA(INDEX(EN!H:H,E21),"") -> 0 | M21: RED 3.2 | N21: =_xlfn.IFNA(INDEX(EN!J:J,E21),"") -> 12 | O21: =_xlfn.IFNA(IF(INDEX(EN!K:K,E21)<>0,INDEX(EN!K:K,E21),""),"") -> W | P21: =_xlfn.IFNA(INDEX(EN!M:M,E21),"") -> Citation in the OJ | Q21: =_xlfn.IFNA(INDEX(EN!N:N,E21),"") -> 2017-06-08 | R21: =_xlfn.IFNA(INDEX(EN!B:B,E21),"") -> ERM RP08 | S21: =INDEX(EN!O:O,E21) -> 5529 | T21: =MATCH(S21,Person!A:A) -> 3 | U21: =_xlfn.IFNA(INDEX(Person!B:B,T21),"") -> Michael | V21: =_xlfn.IFNA(INDEX(Person!C:C,T21),"") -> Sharpe | W21: =MATCH(D21,'0a'!A:A,0) -> 1486 | X21: =MATCH(D21,'1'!A:A,0) ->  | Y21: =MATCH(D21,'7'!A:A,0) -> 5409 | Z21: =MATCH(D21,'8'!A:A,0) -> 7028 | AA21: =MATCH(D21,'8A'!A:A,0) -> 7264 | AB21: =MATCH(D21,'9B'!A:A,0) -> 4195 | AC21: =MATCH(D21,'9C'!A:A,0) ->  | AD21: =MATCH(D21,'9D'!A:A,0) ->  | AE21: =MATCH(D21,'9Da'!A:A,0) ->  | AF21: =MATCH(D21,'9E'!A:A,0) ->  | AG21: =MATCH(D21,'10F'!A:A,0) ->  | AH21: =MATCH(D21,'11'!A:A,0) -> 4451 | AI21: =MATCH(D21,'12'!A:A,0) -> 7568 | AJ21: =MATCH(D21,'12V'!A:A,0) -> 113 | AK21: =MATCH(D21,'12W'!A:A,0) -> 128 | AL21: =MATCH(D21,'30'!A:A,0) ->  | AM21: =MATCH(D21,'35'!A:A,0) ->  | AN21: =MATCH(D21,'40'!A:A,0) ->  | AO21: =MATCH(D21,'45'!A:A,0) ->  | AP21: =MATCH(D21,'50'!A:A,0) ->  | AQ21: =_xlfn.IFNA(INDEX('0a'!E:E,W21),"") -> 1999-10-08 | AR21: =_xlfn.IFNA(IF(INDEX('1'!G:G,X21)=0,INDEX('1'!F:F,X21),""),"") ->  | AS21: =_xlfn.IFNA(IF(INDEX('1'!G:G,X21)<>0,INDEX('1'!G:G,X21),""),"") ->  | AT21: =_xlfn.IFNA(IF(INDEX('7'!F:F,Y21)=0,INDEX('7'!E:E,Y21),""),"") ->  | AU21: =_xlfn.IFNA(IF(INDEX('7'!F:F,Y21)<>0,INDEX('7'!F:F,Y21),""),"") -> 2000-06-07 | AV21: =_xlfn.IFNA(IF(INDEX('8'!F:F,Z21)=0,INDEX('8'!E:E,Z21),""),"") ->  | AW21: =_xlfn.IFNA(IF(INDEX('8'!F:F,Z21)<>0,INDEX('8'!F:F,Z21),""),"") -> 2000-06-16 | AX21: =_xlfn.IFNA(IF(INDEX('8A'!F:F,AA21)=0,INDEX('8A'!E:E,AA21),""),"") ->  | AY21: =_xlfn.IFNA(IF(INDEX('8A'!F:F,AA21)<>0,INDEX('8A'!F:F,AA21),""),"") -> 2000-06-19 | AZ21: =_xlfn.IFNA(IF(INDEX('9B'!F:F,AB21)=0,INDEX('9B'!E:E,AB21),""),"") ->  | BA21: =_xlfn.IFNA(IF(INDEX('9B'!F:F,AB21)<>0,INDEX('9B'!F:F,AB21),""),"") -> 2000-08-16 | BB21: =_xlfn.IFNA(IF(INDEX('9C'!F:F,AC21)=0,INDEX('9C'!E:E,AC21),""),"") ->  | BC21: =_xlfn.IFNA(IF(INDEX('9C'!F:F,AC21)<>0,INDEX('9C'!F:F,AC21),""),"") ->  | BD21: =_xlfn.IFNA(IF(INDEX('9D'!F:F,AD21)=0,INDEX('9D'!E:E,AD21),""),"") ->  | BE21: =_xlfn.IFNA(IF(INDEX('9D'!F:F,AD21)<>0,INDEX('9D'!F:F,AD21),""),"") ->  | BF21: =_xlfn.IFNA(IF(INDEX('9Da'!F:F,AE21)=0,INDEX('9Da'!E:E,AE21),""),"") ->  | BG21: =_xlfn.IFNA(IF(INDEX('9Da'!F:F,AE21)<>0,INDEX('9Da'!F:F,AE21),""),"") ->  | BH21: =_xlfn.IFNA(IF(INDEX('9E'!F:F,AF21)=0,INDEX('9E'!E:E,AF21),""),"") ->  | BI21: =_xlfn.IFNA(IF(INDEX('9E'!F:F,AF21)<>0,INDEX('9E'!F:F,AF21),""),"") ->  | BJ21: =_xlfn.IFNA(IF(INDEX('10F'!F:F,AG21)=0,INDEX('10F'!E:E,AG21),""),"") ->  | BK21: =_xlfn.IFNA(IF(INDEX('10F'!F:F,AG21)<>0,INDEX('10F'!F:F,AG21),""),"") ->  | BL21: =_xlfn.IFNA(IF(INDEX('11'!F:F,AH21)=0,INDEX('11'!E:E,AH21),""),"") ->  | BM21: =_xlfn.IFNA(IF(INDEX('11'!F:F,AH21)<>0,INDEX('11'!F:F,AH21),""),"") -> 2000-12-15 | BN21: =_xlfn.IFNA(IF(INDEX('12'!G:G,AI21)=0,INDEX('12'!F:F,AI21),""),"") ->  | BO21: =_xlfn.IFNA(IF(INDEX('12'!G:G,AI21)<>0,INDEX('12'!G:G,AI21),""),"") -> 2001-01-09 | BP21: =_xlfn.IFNA(IF(INDEX('12V'!F:F,AJ21)=0,INDEX('12V'!E:E,AJ21),""),"") ->  | BQ21: =_xlfn.IFNA(IF(INDEX('12V'!F:F,AJ21)<>0,INDEX('12V'!F:F,AJ21),""),"") -> 2001-01-19 | BR21: =_xlfn.IFNA(IF(INDEX('12W'!F:F,AK21)=0,INDEX('12W'!E:E,AK21),""),"") ->  | BS21: =_xlfn.IFNA(IF(INDEX('12W'!F:F,AK21)<>0,INDEX('12W'!F:F,AK21),""),"") -> 2017-06-08 | BT21: =_xlfn.IFNA(IF(INDEX('30'!F:F,AL21)=0,INDEX('30'!E:E,AL21),""),"") ->  | BU21: =_xlfn.IFNA(IF(INDEX('30'!F:F,AL21)<>0,INDEX('30'!F:F,AL21),""),"") ->  | BV21: =_xlfn.IFNA(IF(INDEX('35'!F:F,AM21)=0,INDEX('35'!E:E,AM21),""),"") ->  | BW21: =_xlfn.IFNA(IF(INDEX('35'!F:F,AM21)<>0,INDEX('35'!F:F,AM21),""),"") ->  | BX21: =_xlfn.IFNA(IF(INDEX('40'!F:F,AN21)=0,INDEX('40'!E:E,AN21),""),"") ->  | BY21: =_xlfn.IFNA(IF(INDEX('40'!F:F,AN21)<>0,INDEX('40'!F:F,AN21),""),"") ->  | BZ21: =_xlfn.IFNA(IF(INDEX('45'!F:F,AO21)=0,INDEX('45'!E:E,AO21),""),"") ->  | CA21: =_xlfn.IFNA(IF(INDEX('45'!F:F,AO21)<>0,INDEX('45'!F:F,AO21),""),"") ->  | CB21: =_xlfn.IFNA(IF(INDEX('50'!F:F,AP21)=0,INDEX('50'!E:E,AP21),""),"") ->  | CC21: =_xlfn.IFNA(IF(INDEX('50'!F:F,AP21)<>0,INDEX('50'!F:F,AP21),""),"") ->  | CD21: RTTE HS cited under RED (no Rx) | CJ21: 50898 | CK21: =MATCH(CJ21,EN!A:A,0) -> 4147 | CL21: =_xlfn.IFNA(INDEX(EN!I:I,CK21),"") -> REN/ERM-TG30-315 | CM21: http://webapp.etsi.org/workProgram/Report_WorkItem.asp?wki_id=50898 | CN21: =_xlfn.IFNA(INDEX(EN!J:J,CK21),"") -> 12 | CO21: =_xlfn.IFNA(IF(INDEX(EN!K:K,CK21)<>0,INDEX(EN!K:K,CK21),""),"") -> W
C22: Addition | D22: 50898 | E22: =MATCH(D22,EN!A:A,0) -> 4147 | F22: =INDEX(EN!I:I,E22) -> REN/ERM-TG30-315 | G22: http://webapp.etsi.org/workProgram/Report_WorkItem.asp?wki_id=50898 | H22: =_xlfn.IFNA(INDEX(EN!F:F,E22),"") -> EN | I22: =_xlfn.IFNA(INDEX(EN!G:G,E22),"") -> 300 224 | J22: =_xlfn.IFNA(IF(INDEX(EN!L:L,E22)<>0,INDEX(EN!L:L,E22),""),"") -> 2.1.1 | K22: Cited | L22: =_xlfn.IFNA(INDEX(EN!H:H,E22),"") -> Paging service | M22: RED 3.2 | N22: =_xlfn.IFNA(INDEX(EN!J:J,E22),"") -> 12 | O22: =_xlfn.IFNA(IF(INDEX(EN!K:K,E22)<>0,INDEX(EN!K:K,E22),""),"") -> W | P22: =_xlfn.IFNA(INDEX(EN!M:M,E22),"") -> Citation in the OJ | Q22: =_xlfn.IFNA(INDEX(EN!N:N,E22),"") -> 2017-10-13 | R22: =_xlfn.IFNA(INDEX(EN!B:B,E22),"") -> ERM TG30 | S22: =INDEX(EN!O:O,E22) -> 13676 | T22: =MATCH(S22,Person!A:A) -> 5 | U22: =_xlfn.IFNA(INDEX(Person!B:B,T22),"") -> Marcello | V22: =_xlfn.IFNA(INDEX(Person!C:C,T22),"") -> Pagnozzi | W22: =MATCH(D22,'0a'!A:A,0) -> 3834 | X22: =MATCH(D22,'1'!A:A,0) -> 3737 | Y22: =MATCH(D22,'7'!A:A,0) -> 13991 | Z22: =MATCH(D22,'8'!A:A,0) -> 46069 | AA22: =MATCH(D22,'8A'!A:A,0) -> 47674 | AB22: =MATCH(D22,'9B'!A:A,0) -> 6543 | AC22: =MATCH(D22,'9C'!A:A,0) -> 3832 | AD22: =MATCH(D22,'9D'!A:A,0) ->  | AE22: =MATCH(D22,'9Da'!A:A,0) ->  | AF22: =MATCH(D22,'9E'!A:A,0) ->  | AG22: =MATCH(D22,'10F'!A:A,0) ->  | AH22: =MATCH(D22,'11'!A:A,0) -> 8206 | AI22: =MATCH(D22,'12'!A:A,0) -> 46759 | AJ22: =MATCH(D22,'12V'!A:A,0) -> 935 | AK22: =MATCH(D22,'12W'!A:A,0) -> 932 | AL22: =MATCH(D22,'30'!A:A,0) ->  | AM22: =MATCH(D22,'35'!A:A,0) ->  | AN22: =MATCH(D22,'40'!A:A,0) ->  | AO22: =MATCH(D22,'45'!A:A,0) ->  | AP22: =MATCH(D22,'50'!A:A,0) ->  | AQ22: =_xlfn.IFNA(INDEX('0a'!E:E,W22),"") -> 2016-10-27 | AR22: =_xlfn.IFNA(IF(INDEX('1'!G:G,X22)=0,INDEX('1'!F:F,X22),""),"") ->  | AS22: =_xlfn.IFNA(IF(INDEX('1'!G:G,X22)<>0,INDEX('1'!G:G,X22),""),"") -> 2016-10-28 | AT22: =_xlfn.IFNA(IF(INDEX('7'!F:F,Y22)=0,INDEX('7'!E:E,Y22),""),"") ->  | AU22: =_xlfn.IFNA(IF(INDEX('7'!F:F,Y22)<>0,INDEX('7'!F:F,Y22),""),"") -> 2017-01-18 | AV22: =_xlfn.IFNA(IF(INDEX('8'!F:F,Z22)=0,INDEX('8'!E:E,Z22),""),"") ->  | AW22: =_xlfn.IFNA(IF(INDEX('8'!F:F,Z22)<>0,INDEX('8'!F:F,Z22),""),"") -> 2017-02-22 | AX22: =_xlfn.IFNA(IF(INDEX('8A'!F:F,AA22)=0,INDEX('8A'!E:E,AA22),""),"") ->  | AY22: =_xlfn.IFNA(IF(INDEX('8A'!F:F,AA22)<>0,INDEX('8A'!F:F,AA22),""),"") -> 2017-02-27 | AZ22: =_xlfn.IFNA(IF(INDEX('9B'!F:F,AB22)=0,INDEX('9B'!E:E,AB22),""),"") ->  | BA22: =_xlfn.IFNA(IF(INDEX('9B'!F:F,AB22)<>0,INDEX('9B'!F:F,AB22),""),"") -> 2017-03-27 | BB22: =_xlfn.IFNA(IF(INDEX('9C'!F:F,AC22)=0,INDEX('9C'!E:E,AC22),""),"") ->  | BC22: =_xlfn.IFNA(IF(INDEX('9C'!F:F,AC22)<>0,INDEX('9C'!F:F,AC22),""),"") -> 2017-06-26 | BD22: =_xlfn.IFNA(IF(INDEX('9D'!F:F,AD22)=0,INDEX('9D'!E:E,AD22),""),"") ->  | BE22: =_xlfn.IFNA(IF(INDEX('9D'!F:F,AD22)<>0,INDEX('9D'!F:F,AD22),""),"") ->  | BF22: =_xlfn.IFNA(IF(INDEX('9Da'!F:F,AE22)=0,INDEX('9Da'!E:E,AE22),""),"") ->  | BG22: =_xlfn.IFNA(IF(INDEX('9Da'!F:F,AE22)<>0,INDEX('9Da'!F:F,AE22),""),"") ->  | BH22: =_xlfn.IFNA(IF(INDEX('9E'!F:F,AF22)=0,INDEX('9E'!E:E,AF22),""),"") ->  | BI22: =_xlfn.IFNA(IF(INDEX('9E'!F:F,AF22)<>0,INDEX('9E'!F:F,AF22),""),"") ->  | BJ22: =_xlfn.IFNA(IF(INDEX('10F'!F:F,AG22)=0,INDEX('10F'!E:E,AG22),""),"") ->  | BK22: =_xlfn.IFNA(IF(INDEX('10F'!F:F,AG22)<>0,INDEX('10F'!F:F,AG22),""),"") ->  | BL22: =_xlfn.IFNA(IF(INDEX('11'!F:F,AH22)=0,INDEX('11'!E:E,AH22),""),"") ->  | BM22: =_xlfn.IFNA(IF(INDEX('11'!F:F,AH22)<>0,INDEX('11'!F:F,AH22),""),"") -> 2017-06-26 | BN22: =_xlfn.IFNA(IF(INDEX('12'!G:G,AI22)=0,INDEX('12'!F:F,AI22),""),"") ->  | BO22: =_xlfn.IFNA(IF(INDEX('12'!G:G,AI22)<>0,INDEX('12'!G:G,AI22),""),"") -> 2017-06-27 | BP22: =_xlfn.IFNA(IF(INDEX('12V'!F:F,AJ22)=0,INDEX('12V'!E:E,AJ22),""),"") ->  | BQ22: =_xlfn.IFNA(IF(INDEX('12V'!F:F,AJ22)<>0,INDEX('12V'!F:F,AJ22),""),"") -> 2017-08-07 | BR22: =_xlfn.IFNA(IF(INDEX('12W'!F:F,AK22)=0,INDEX('12W'!E:E,AK22),""),"") ->  | BS22: =_xlfn.IFNA(IF(INDEX('12W'!F:F,AK22)<>0,INDEX('12W'!F:F,AK22),""),"") -> 2017-10-13 | BT22: =_xlfn.IFNA(IF(INDEX('30'!F:F,AL22)=0,INDEX('30'!E:E,AL22),""),"") ->  | BU22: =_xlfn.IFNA(IF(INDEX('30'!F:F,AL22)<>0,INDEX('30'!F:F,AL22),""),"") ->  | BV22: =_xlfn.IFNA(IF(INDEX('35'!F:F,AM22)=0,INDEX('35'!E:E,AM22),""),"") ->  | BW22: =_xlfn.IFNA(IF(INDEX('35'!F:F,AM22)<>0,INDEX('35'!F:F,AM22),""),"") ->  | BX22: =_xlfn.IFNA(IF(INDEX('40'!F:F,AN22)=0,INDEX('40'!E:E,AN22),""),"") ->  | BY22: =_xlfn.IFNA(IF(INDEX('40'!F:F,AN22)<>0,INDEX('40'!F:F,AN22),""),"") ->  | BZ22: =_xlfn.IFNA(IF(INDEX('45'!F:F,AO22)=0,INDEX('45'!E:E,AO22),""),"") ->  | CA22: =_xlfn.IFNA(IF(INDEX('45'!F:F,AO22)<>0,INDEX('45'!F:F,AO22),""),"") ->  | CB22: =_xlfn.IFNA(IF(INDEX('50'!F:F,AP22)=0,INDEX('50'!E:E,AP22),""),"") ->  | CC22: =_xlfn.IFNA(IF(INDEX('50'!F:F,AP22)<>0,INDEX('50'!F:F,AP22),""),"") ->  | CK22: =MATCH(CJ22,EN!A:A,0) ->  | CL22: =_xlfn.IFNA(INDEX(EN!I:I,CK22),"") ->  | CN22: =_xlfn.IFNA(INDEX(EN!J:J,CK22),"") ->  | CO22: =_xlfn.IFNA(IF(INDEX(EN!K:K,CK22)<>0,INDEX(EN!K:K,CK22),""),"") -> 
A23: 300 296-2 | B23: 1.4.1 | C23: Original | D23: 47176 | E23: =MATCH(D23,EN!A:A,0) -> 3933 | F23: =INDEX(EN!I:I,E23) -> REN/ERM-TGDMR-348 | G23: http://webapp.etsi.org/workProgram/Report_WorkItem.asp?wki_id=47176 | H23: =_xlfn.IFNA(INDEX(EN!F:F,E23),"") -> EN | I23: =_xlfn.IFNA(INDEX(EN!G:G,E23),"") -> 300 296 | J23: =_xlfn.IFNA(IF(INDEX(EN!L:L,E23)<>0,INDEX(EN!L:L,E23),""),"") -> 2.1.1 | K23: Cited | L23: =_xlfn.IFNA(INDEX(EN!H:H,E23),"") -> HEN - RE using integral antennas intended for analogue speech | M23: RED 3.2 | N23: =_xlfn.IFNA(INDEX(EN!J:J,E23),"") -> 12 | O23: =_xlfn.IFNA(IF(INDEX(EN!K:K,E23)<>0,INDEX(EN!K:K,E23),""),"") -> W | P23: =_xlfn.IFNA(INDEX(EN!M:M,E23),"") -> Citation in the OJ | Q23: =_xlfn.IFNA(INDEX(EN!N:N,E23),"") -> 2017-04-12 | R23: =_xlfn.IFNA(INDEX(EN!B:B,E23),"") -> ERM TGDMR | S23: =INDEX(EN!O:O,E23) -> 14585 | T23: =MATCH(S23,Person!A:A) -> 6 | U23: =_xlfn.IFNA(INDEX(Person!B:B,T23),"") -> Bernt | V23: =_xlfn.IFNA(INDEX(Person!C:C,T23),"") -> Mattsson | W23: =MATCH(D23,'0a'!A:A,0) -> 3625 | X23: =MATCH(D23,'1'!A:A,0) -> 3531 | Y23: =MATCH(D23,'7'!A:A,0) -> 13656 | Z23: =MATCH(D23,'8'!A:A,0) -> 42510 | AA23: =MATCH(D23,'8A'!A:A,0) -> 44067 | AB23: =MATCH(D23,'9B'!A:A,0) -> 6333 | AC23: =MATCH(D23,'9C'!A:A,0) -> 3622 | AD23: =MATCH(D23,'9D'!A:A,0) ->  | AE23: =MATCH(D23,'9Da'!A:A,0) ->  | AF23: =MATCH(D23,'9E'!A:A,0) ->  | AG23: =MATCH(D23,'10F'!A:A,0) ->  | AH23: =MATCH(D23,'11'!A:A,0) -> 7951 | AI23: =MATCH(D23,'12'!A:A,0) -> 43196 | AJ23: =MATCH(D23,'12V'!A:A,0) -> 828 | AK23: =MATCH(D23,'12W'!A:A,0) -> 829 | AL23: =MATCH(D23,'30'!A:A,0) ->  | AM23: =MATCH(D23,'35'!A:A,0) ->  | AN23: =MATCH(D23,'40'!A:A,0) ->  | AO23: =MATCH(D23,'45'!A:A,0) ->  | AP23: =MATCH(D23,'50'!A:A,0) ->  | AQ23: =_xlfn.IFNA(INDEX('0a'!E:E,W23),"") -> 2015-06-11 | AR23: =_xlfn.IFNA(IF(INDEX('1'!G:G,X23)=0,INDEX('1'!F:F,X23),""),"") ->  | AS23: =_xlfn.IFNA(IF(INDEX('1'!G:G,X23)<>0,INDEX('1'!G:G,X23),""),"") -> 2015-05-22 | AT23: =_xlfn.IFNA(IF(INDEX('7'!F:F,Y23)=0,INDEX('7'!E:E,Y23),""),"") ->  | AU23: =_xlfn.IFNA(IF(INDEX('7'!F:F,Y23)<>0,INDEX('7'!F:F,Y23),""),"") -> 2015-11-03 | AV23: =_xlfn.IFNA(IF(INDEX('8'!F:F,Z23)=0,INDEX('8'!E:E,Z23),""),"") ->  | AW23: =_xlfn.IFNA(IF(INDEX('8'!F:F,Z23)<>0,INDEX('8'!F:F,Z23),""),"") -> 2015-11-18 | AX23: =_xlfn.IFNA(IF(INDEX('8A'!F:F,AA23)=0,INDEX('8A'!E:E,AA23),""),"") ->  | AY23: =_xlfn.IFNA(IF(INDEX('8A'!F:F,AA23)<>0,INDEX('8A'!F:F,AA23),""),"") -> 2015-11-25 | AZ23: =_xlfn.IFNA(IF(INDEX('9B'!F:F,AB23)=0,INDEX('9B'!E:E,AB23),""),"") ->  | BA23: =_xlfn.IFNA(IF(INDEX('9B'!F:F,AB23)<>0,INDEX('9B'!F:F,AB23),""),"") -> 2015-12-21 | BB23: =_xlfn.IFNA(IF(INDEX('9C'!F:F,AC23)=0,INDEX('9C'!E:E,AC23),""),"") ->  | BC23: =_xlfn.IFNA(IF(INDEX('9C'!F:F,AC23)<>0,INDEX('9C'!F:F,AC23),""),"") -> 2016-03-21 | BD23: =_xlfn.IFNA(IF(INDEX('9D'!F:F,AD23)=0,INDEX('9D'!E:E,AD23),""),"") ->  | BE23: =_xlfn.IFNA(IF(INDEX('9D'!F:F,AD23)<>0,INDEX('9D'!F:F,AD23),""),"") ->  | BF23: =_xlfn.IFNA(IF(INDEX('9Da'!F:F,AE23)=0,INDEX('9Da'!E:E,AE23),""),"") ->  | BG23: =_xlfn.IFNA(IF(INDEX('9Da'!F:F,AE23)<>0,INDEX('9Da'!F:F,AE23),""),"") ->  | BH23: =_xlfn.IFNA(IF(INDEX('9E'!F:F,AF23)=0,INDEX('9E'!E:E,AF23),""),"") ->  | BI23: =_xlfn.IFNA(IF(INDEX('9E'!F:F,AF23)<>0,INDEX('9E'!F:F,AF23),""),"") ->  | BJ23: =_xlfn.IFNA(IF(INDEX('10F'!F:F,AG23)=0,INDEX('10F'!E:E,AG23),""),"") ->  | BK23: =_xlfn.IFNA(IF(INDEX('10F'!F:F,AG23)<>0,INDEX('10F'!F:F,AG23),""),"") ->  | BL23: =_xlfn.IFNA(IF(INDEX('11'!F:F,AH23)=0,INDEX('11'!E:E,AH23),""),"") ->  | BM23: =_xlfn.IFNA(IF(INDEX('11'!F:F,AH23)<>0,INDEX('11'!F:F,AH23),""),"") -> 2016-03-21 | BN23: =_xlfn.IFNA(IF(INDEX('12'!G:G,AI23)=0,INDEX('12'!F:F,AI23),""),"") ->  | BO23: =_xlfn.IFNA(IF(INDEX('12'!G:G,AI23)<>0,INDEX('12'!G:G,AI23),""),"") -> 2016-03-24 | BP23: =_xlfn.IFNA(IF(INDEX('12V'!F:F,AJ23)=0,INDEX('12V'!E:E,AJ23),""),"") ->  | BQ23: =_xlfn.IFNA(IF(INDEX('12V'!F:F,AJ23)<>0,INDEX('12V'!F:F,AJ23),""),"") -> 2016-03-29 | BR23: =_xlfn.IFNA(IF(INDEX('12W'!F:F,AK23)=0,INDEX('12W'!E:E,AK23),""),"") ->  | BS23: =_xlfn.IFNA(IF(INDEX('12W'!F:F,AK23)<>0,INDEX('12W'!F:F,AK23),""),"") -> 2017-04-12 | BT23: =_xlfn.IFNA(IF(INDEX('30'!F:F,AL23)=0,INDEX('30'!E:E,AL23),""),"") ->  | BU23: =_xlfn.IFNA(IF(INDEX('30'!F:F,AL23)<>0,INDEX('30'!F:F,AL23),""),"") ->  | BV23: =_xlfn.IFNA(IF(INDEX('35'!F:F,AM23)=0,INDEX('35'!E:E,AM23),""),"") ->  | BW23: =_xlfn.IFNA(IF(INDEX('35'!F:F,AM23)<>0,INDEX('35'!F:F,AM23),""),"") ->  | BX23: =_xlfn.IFNA(IF(INDEX('40'!F:F,AN23)=0,INDEX('40'!E:E,AN23),""),"") ->  | BY23: =_xlfn.IFNA(IF(INDEX('40'!F:F,AN23)<>0,INDEX('40'!F:F,AN23),""),"") ->  | BZ23: =_xlfn.IFNA(IF(INDEX('45'!F:F,AO23)=0,INDEX('45'!E:E,AO23),""),"") ->  | CA23: =_xlfn.IFNA(IF(INDEX('45'!F:F,AO23)<>0,INDEX('45'!F:F,AO23),""),"") ->  | CB23: =_xlfn.IFNA(IF(INDEX('50'!F:F,AP23)=0,INDEX('50'!E:E,AP23),""),"") ->  | CC23: =_xlfn.IFNA(IF(INDEX('50'!F:F,AP23)<>0,INDEX('50'!F:F,AP23),""),"") ->  | CJ23: 51385 | CK23: =MATCH(CJ23,EN!A:A,0) -> 4225 | CL23: =_xlfn.IFNA(INDEX(EN!I:I,CK23),"") -> REN/ERM-TGDMR-368 | CM23: http://webapp.etsi.org/workProgram/Report_WorkItem.asp?wki_id=51385 | CN23: =_xlfn.IFNA(INDEX(EN!J:J,CK23),"") -> 8 | CO23: =_xlfn.IFNA(IF(INDEX(EN!K:K,CK23)<>0,INDEX(EN!K:K,CK23),""),"") -> WA
C24: Addition | D24: 51385 | E24: =MATCH(D24,EN!A:A,0) -> 4225 | F24: =INDEX(EN!I:I,E24) -> REN/ERM-TGDMR-368 | G24: http://webapp.etsi.org/workProgram/Report_WorkItem.asp?wki_id=51385 | H24: =_xlfn.IFNA(INDEX(EN!F:F,E24),"") -> EN | I24: =_xlfn.IFNA(INDEX(EN!G:G,E24),"") -> 300 296 | J24: =_xlfn.IFNA(IF(INDEX(EN!L:L,E24)<>0,INDEX(EN!L:L,E24),""),"") -> 0.0.3 | K24: RevPending | L24: =_xlfn.IFNA(INDEX(EN!H:H,E24),"") -> HEN - RE using integral antennas intended for analogue speech | M24: RED 3.2 | N24: =_xlfn.IFNA(INDEX(EN!J:J,E24),"") -> 8 | O24: =_xlfn.IFNA(IF(INDEX(EN!K:K,E24)<>0,INDEX(EN!K:K,E24),""),"") -> WA | P24: =_xlfn.IFNA(INDEX(EN!M:M,E24),"") -> Waiting - see "Remarks" | Q24: =_xlfn.IFNA(INDEX(EN!N:N,E24),"") -> 2017-08-29 | R24: =_xlfn.IFNA(INDEX(EN!B:B,E24),"") -> ERM TGDMR | S24: =INDEX(EN!O:O,E24) -> 14585 | T24: =MATCH(S24,Person!A:A) -> 6 | U24: =_xlfn.IFNA(INDEX(Person!B:B,T24),"") -> Bernt | V24: =_xlfn.IFNA(INDEX(Person!C:C,T24),"") -> Mattsson | W24: =MATCH(D24,'0a'!A:A,0) -> 3912 | X24: =MATCH(D24,'1'!A:A,0) -> 3805 | Y24: =MATCH(D24,'7'!A:A,0) -> 14074 | Z24: =MATCH(D24,'8'!A:A,0) -> 46553 | AA24: =MATCH(D24,'8A'!A:A,0) -> 48167 | AB24: =MATCH(D24,'9B'!A:A,0) -> 6611 | AC24: =MATCH(D24,'9C'!A:A,0) -> 3899 | AD24: =MATCH(D24,'9D'!A:A,0) -> 3616 | AE24: =MATCH(D24,'9Da'!A:A,0) -> 2431 | AF24: =MATCH(D24,'9E'!A:A,0) -> 3826 | AG24: =MATCH(D24,'10F'!A:A,0) -> 1858 | AH24: =MATCH(D24,'11'!A:A,0) -> 8311 | AI24: =MATCH(D24,'12'!A:A,0) -> 47244 | AJ24: =MATCH(D24,'12V'!A:A,0) -> 1007 | AK24: =MATCH(D24,'12W'!A:A,0) -> 1004 | AL24: =MATCH(D24,'30'!A:A,0) ->  | AM24: =MATCH(D24,'35'!A:A,0) ->  | AN24: =MATCH(D24,'40'!A:A,0) ->  | AO24: =MATCH(D24,'45'!A:A,0) ->  | AP24: =MATCH(D24,'50'!A:A,0) ->  | AQ24: =_xlfn.IFNA(INDEX('0a'!E:E,W24),"") -> 2017-02-22 | AR24: =_xlfn.IFNA(IF(INDEX('1'!G:G,X24)=0,INDEX('1'!F:F,X24),""),"") ->  | AS24: =_xlfn.IFNA(IF(INDEX('1'!G:G,X24)<>0,INDEX('1'!G:G,X24),""),"") -> 2017-02-22 | AT24: =_xlfn.IFNA(IF(INDEX('7'!F:F,Y24)=0,INDEX('7'!E:E,Y24),""),"") ->  | AU24: =_xlfn.IFNA(IF(INDEX('7'!F:F,Y24)<>0,INDEX('7'!F:F,Y24),""),"") -> 2017-05-21 | AV24: =_xlfn.IFNA(IF(INDEX('8'!F:F,Z24)=0,INDEX('8'!E:E,Z24),""),"") ->  | AW24: =_xlfn.IFNA(IF(INDEX('8'!F:F,Z24)<>0,INDEX('8'!F:F,Z24),""),"") -> 2017-06-21 | AX24: =_xlfn.IFNA(IF(INDEX('8A'!F:F,AA24)=0,INDEX('8A'!E:E,AA24),""),"") -> 2018-03-14 | AY24: =_xlfn.IFNA(IF(INDEX('8A'!F:F,AA24)<>0,INDEX('8A'!F:F,AA24),""),"") ->  | AZ24: =_xlfn.IFNA(IF(INDEX('9B'!F:F,AB24)=0,INDEX('9B'!E:E,AB24),""),"") -> 2018-03-28 | BA24: =_xlfn.IFNA(IF(INDEX('9B'!F:F,AB24)<>0,INDEX('9B'!F:F,AB24),""),"") ->  | BB24: =_xlfn.IFNA(IF(INDEX('9C'!F:F,AC24)=0,INDEX('9C'!E:E,AC24),""),"") -> 2018-06-27 | BC24: =_xlfn.IFNA(IF(INDEX('9C'!F:F,AC24)<>0,INDEX('9C'!F:F,AC24),""),"") ->  | BD24: =_xlfn.IFNA(IF(INDEX('9D'!F:F,AD24)=0,INDEX('9D'!E:E,AD24),""),"") -> 2018-06-27 | BE24: =_xlfn.IFNA(IF(INDEX('9D'!F:F,AD24)<>0,INDEX('9D'!F:F,AD24),""),"") ->  | BF24: =_xlfn.IFNA(IF(INDEX('9Da'!F:F,AE24)=0,INDEX('9Da'!E:E,AE24),""),"") -> 2018-09-26 | BG24: =_xlfn.IFNA(IF(INDEX('9Da'!F:F,AE24)<>0,INDEX('9Da'!F:F,AE24),""),"") ->  | BH24: =_xlfn.IFNA(IF(INDEX('9E'!F:F,AF24)=0,INDEX('9E'!E:E,AF24),""),"") -> 2018-10-03 | BI24: =_xlfn.IFNA(IF(INDEX('9E'!F:F,AF24)<>0,INDEX('9E'!F:F,AF24),""),"") ->  | BJ24: =_xlfn.IFNA(IF(INDEX('10F'!F:F,AG24)=0,INDEX('10F'!E:E,AG24),""),"") -> 2018-10-17 | BK24: =_xlfn.IFNA(IF(INDEX('10F'!F:F,AG24)<>0,INDEX('10F'!F:F,AG24),""),"") ->  | BL24: =_xlfn.IFNA(IF(INDEX('11'!F:F,AH24)=0,INDEX('11'!E:E,AH24),""),"") -> 2018-12-16 | BM24: =_xlfn.IFNA(IF(INDEX('11'!F:F,AH24)<>0,INDEX('11'!F:F,AH24),""),"") ->  | BN24: =_xlfn.IFNA(IF(INDEX('12'!G:G,AI24)=0,INDEX('12'!F:F,AI24),""),"") -> 2018-12-30 | BO24: =_xlfn.IFNA(IF(INDEX('12'!G:G,AI24)<>0,INDEX('12'!G:G,AI24),""),"") ->  | BP24: =_xlfn.IFNA(IF(INDEX('12V'!F:F,AJ24)=0,INDEX('12V'!E:E,AJ24),""),"") -> 2019-01-20 | BQ24: =_xlfn.IFNA(IF(INDEX('12V'!F:F,AJ24)<>0,INDEX('12V'!F:F,AJ24),""),"") ->  | BR24: =_xlfn.IFNA(IF(INDEX('12W'!F:F,AK24)=0,INDEX('12W'!E:E,AK24),""),"") -> 2019-04-14 | BS24: =_xlfn.IFNA(IF(INDEX('12W'!F:F,AK24)<>0,INDEX('12W'!F:F,AK24),""),"") ->  | BT24: =_xlfn.IFNA(IF(INDEX('30'!F:F,AL24)=0,INDEX('30'!E:E,AL24),""),"") ->  | BU24: =_xlfn.IFNA(IF(INDEX('30'!F:F,AL24)<>0,INDEX('30'!F:F,AL24),""),"") ->  | BV24: =_xlfn.IFNA(IF(INDEX('35'!F:F,AM24)=0,INDEX('35'!E:E,AM24),""),"") ->  | BW24: =_xlfn.IFNA(IF(INDEX('35'!F:F,AM24)<>0,INDEX('35'!F:F,AM24),""),"") ->  | BX24: =_xlfn.IFNA(IF(INDEX('40'!F:F,AN24)=0,INDEX('40'!E:E,AN24),""),"") ->  | BY24: =_xlfn.IFNA(IF(INDEX('40'!F:F,AN24)<>0,INDEX('40'!F:F,AN24),""),"") ->  | BZ24: =_xlfn.IFNA(IF(INDEX('45'!F:F,AO24)=0,INDEX('45'!E:E,AO24),""),"") ->  | CA24: =_xlfn.IFNA(IF(INDEX('45'!F:F,AO24)<>0,INDEX('45'!F:F,AO24),""),"") ->  | CB24: =_xlfn.IFNA(IF(INDEX('50'!F:F,AP24)=0,INDEX('50'!E:E,AP24),""),"") ->  | CC24: =_xlfn.IFNA(IF(INDEX('50'!F:F,AP24)<>0,INDEX('50'!F:F,AP24),""),"") ->  | CD24: =IF(AND(ISNONTEXT(BQ24),ISBLANK(#REF!),ISTEXT(BS24)),"Awaiting EC assessment","") ->  | CE24: Pre-assessment comments | CK24: =MATCH(CJ24,EN!A:A,0) ->  | CL24: =_xlfn.IFNA(INDEX(EN!I:I,CK24),"") ->  | CN24: =_xlfn.IFNA(INDEX(EN!J:J,CK24),"") ->  | CO24: =_xlfn.IFNA(IF(INDEX(EN!K:K,CK24)<>0,INDEX(EN!K:K,CK24),""),"") -> 
A25: 300 328 | B25: 1.8.1 1.9.1 | C25: Original | D25: 43759 | E25: =MATCH(D25,EN!A:A,0) -> 3738 | F25: =INDEX(EN!I:I,E25) -> REN/ERM-TG11-011 | G25: http://webapp.etsi.org/workProgram/Report_WorkItem.asp?wki_id=43759 | H25: =_xlfn.IFNA(INDEX(EN!F:F,E25),"") -> EN | I25: =_xlfn.IFNA(INDEX(EN!G:G,E25),"") -> 300 328 | J25: =_xlfn.IFNA(IF(INDEX(EN!L:L,E25)<>0,INDEX(EN!L:L,E25),""),"") -> 2.1.1 | K25: Cited | L25: =_xlfn.IFNA(INDEX(EN!H:H,E25),"") -> HS Wideband transmission systems 2,4 GHz | M25: RED 3.2 | N25: =_xlfn.IFNA(INDEX(EN!J:J,E25),"") -> 12 | O25: =_xlfn.IFNA(IF(INDEX(EN!K:K,E25)<>0,INDEX(EN!K:K,E25),""),"") -> W | P25: =_xlfn.IFNA(INDEX(EN!M:M,E25),"") -> Citation in the OJ | Q25: =_xlfn.IFNA(INDEX(EN!N:N,E25),"") -> 2017-01-13 | R25: =_xlfn.IFNA(INDEX(EN!B:B,E25),"") -> ERM TG11 | S25: =INDEX(EN!O:O,E25) -> 28591 | T25: =MATCH(S25,Person!A:A) -> 8 | U25: =_xlfn.IFNA(INDEX(Person!B:B,T25),"") -> Martin | V25: =_xlfn.IFNA(INDEX(Person!C:C,T25),"") -> Arndt | W25: =MATCH(D25,'0a'!A:A,0) -> 3435 | X25: =MATCH(D25,'1'!A:A,0) -> 3345 | Y25: =MATCH(D25,'7'!A:A,0) -> 13307 | Z25: =MATCH(D25,'8'!A:A,0) -> 39239 | AA25: =MATCH(D25,'8A'!A:A,0) -> 40735 | AB25: =MATCH(D25,'9B'!A:A,0) -> 6139 | AC25: =MATCH(D25,'9C'!A:A,0) -> 3428 | AD25: =MATCH(D25,'9D'!A:A,0) -> 3326 | AE25: =MATCH(D25,'9Da'!A:A,0) -> 2142 | AF25: =MATCH(D25,'9E'!A:A,0) -> 3522 | AG25: =MATCH(D25,'10F'!A:A,0) -> 1575 | AH25: =MATCH(D25,'11'!A:A,0) -> 7697 | AI25: =MATCH(D25,'12'!A:A,0) -> 39934 | AJ25: =MATCH(D25,'12V'!A:A,0) -> 686 | AK25: =MATCH(D25,'12W'!A:A,0) -> 698 | AL25: =MATCH(D25,'30'!A:A,0) ->  | AM25: =MATCH(D25,'35'!A:A,0) ->  | AN25: =MATCH(D25,'40'!A:A,0) ->  | AO25: =MATCH(D25,'45'!A:A,0) ->  | AP25: =MATCH(D25,'50'!A:A,0) ->  | AQ25: =_xlfn.IFNA(INDEX('0a'!E:E,W25),"") -> 2014-03-27 | AR25: =_xlfn.IFNA(IF(INDEX('1'!G:G,X25)=0,INDEX('1'!F:F,X25),""),"") ->  | AS25: =_xlfn.IFNA(IF(INDEX('1'!G:G,X25)<>0,INDEX('1'!G:G,X25),""),"") -> 2015-02-22 | AT25: =_xlfn.IFNA(IF(INDEX('7'!F:F,Y25)=0,INDEX('7'!E:E,Y25),""),"") ->  | AU25: =_xlfn.IFNA(IF(INDEX('7'!F:F,Y25)<>0,INDEX('7'!F:F,Y25),""),"") -> 2016-01-21 | AV25: =_xlfn.IFNA(IF(INDEX('8'!F:F,Z25)=0,INDEX('8'!E:E,Z25),""),"") ->  | AW25: =_xlfn.IFNA(IF(INDEX('8'!F:F,Z25)<>0,INDEX('8'!F:F,Z25),""),"") -> 2016-02-24 | AX25: =_xlfn.IFNA(IF(INDEX('8A'!F:F,AA25)=0,INDEX('8A'!E:E,AA25),""),"") ->  | AY25: =_xlfn.IFNA(IF(INDEX('8A'!F:F,AA25)<>0,INDEX('8A'!F:F,AA25),""),"") -> 2016-03-01 | AZ25: =_xlfn.IFNA(IF(INDEX('9B'!F:F,AB25)=0,INDEX('9B'!E:E,AB25),""),"") ->  | BA25: =_xlfn.IFNA(IF(INDEX('9B'!F:F,AB25)<>0,INDEX('9B'!F:F,AB25),""),"") -> 2016-03-07 | BB25: =_xlfn.IFNA(IF(INDEX('9C'!F:F,AC25)=0,INDEX('9C'!E:E,AC25),""),"") ->  | BC25: =_xlfn.IFNA(IF(INDEX('9C'!F:F,AC25)<>0,INDEX('9C'!F:F,AC25),""),"") -> 2016-06-06 | BD25: =_xlfn.IFNA(IF(INDEX('9D'!F:F,AD25)=0,INDEX('9D'!E:E,AD25),""),"") ->  | BE25: =_xlfn.IFNA(IF(INDEX('9D'!F:F,AD25)<>0,INDEX('9D'!F:F,AD25),""),"") -> 2016-06-08 | BF25: =_xlfn.IFNA(IF(INDEX('9Da'!F:F,AE25)=0,INDEX('9Da'!E:E,AE25),""),"") ->  | BG25: =_xlfn.IFNA(IF(INDEX('9Da'!F:F,AE25)<>0,INDEX('9Da'!F:F,AE25),""),"") -> 2016-08-22 | BH25: =_xlfn.IFNA(IF(INDEX('9E'!F:F,AF25)=0,INDEX('9E'!E:E,AF25),""),"") ->  | BI25: =_xlfn.IFNA(IF(INDEX('9E'!F:F,AF25)<>0,INDEX('9E'!F:F,AF25),""),"") -> 2016-09-05 | BJ25: =_xlfn.IFNA(IF(INDEX('10F'!F:F,AG25)=0,INDEX('10F'!E:E,AG25),""),"") ->  | BK25: =_xlfn.IFNA(IF(INDEX('10F'!F:F,AG25)<>0,INDEX('10F'!F:F,AG25),""),"") -> 2016-09-14 | BL25: =_xlfn.IFNA(IF(INDEX('11'!F:F,AH25)=0,INDEX('11'!E:E,AH25),""),"") ->  | BM25: =_xlfn.IFNA(IF(INDEX('11'!F:F,AH25)<>0,INDEX('11'!F:F,AH25),""),"") -> 2016-11-14 | BN25: =_xlfn.IFNA(IF(INDEX('12'!G:G,AI25)=0,INDEX('12'!F:F,AI25),""),"") ->  | BO25: =_xlfn.IFNA(IF(INDEX('12'!G:G,AI25)<>0,INDEX('12'!G:G,AI25),""),"") -> 2016-11-21 | BP25: =_xlfn.IFNA(IF(INDEX('12V'!F:F,AJ25)=0,INDEX('12V'!E:E,AJ25),""),"") ->  | BQ25: =_xlfn.IFNA(IF(INDEX('12V'!F:F,AJ25)<>0,INDEX('12V'!F:F,AJ25),""),"") -> 2016-11-22 | BR25: =_xlfn.IFNA(IF(INDEX('12W'!F:F,AK25)=0,INDEX('12W'!E:E,AK25),""),"") ->  | BS25: =_xlfn.IFNA(IF(INDEX('12W'!F:F,AK25)<>0,INDEX('12W'!F:F,AK25),""),"") -> 2017-01-13 | BT25: =_xlfn.IFNA(IF(INDEX('30'!F:F,AL25)=0,INDEX('30'!E:E,AL25),""),"") ->  | BU25: =_xlfn.IFNA(IF(INDEX('30'!F:F,AL25)<>0,INDEX('30'!F:F,AL25),""),"") ->  | BV25: =_xlfn.IFNA(IF(INDEX('35'!F:F,AM25)=0,INDEX('35'!E:E,AM25),""),"") ->  | BW25: =_xlfn.IFNA(IF(INDEX('35'!F:F,AM25)<>0,INDEX('35'!F:F,AM25),""),"") ->  | BX25: =_xlfn.IFNA(IF(INDEX('40'!F:F,AN25)=0,INDEX('40'!E:E,AN25),""),"") ->  | BY25: =_xlfn.IFNA(IF(INDEX('40'!F:F,AN25)<>0,INDEX('40'!F:F,AN25),""),"") ->  | BZ25: =_xlfn.IFNA(IF(INDEX('45'!F:F,AO25)=0,INDEX('45'!E:E,AO25),""),"") ->  | CA25: =_xlfn.IFNA(IF(INDEX('45'!F:F,AO25)<>0,INDEX('45'!F:F,AO25),""),"") ->  | CB25: =_xlfn.IFNA(IF(INDEX('50'!F:F,AP25)=0,INDEX('50'!E:E,AP25),""),"") ->  | CC25: =_xlfn.IFNA(IF(INDEX('50'!F:F,AP25)<>0,INDEX('50'!F:F,AP25),""),"") ->  | CD25: =IF(AND(ISNONTEXT(BQ25),ISBLANK(#REF!),ISTEXT(BS25)),"Awaiting EC assessment","") ->  | CJ25: 51206 | CK25: =MATCH(CJ25,EN!A:A,0) -> 4180 | CL25: =_xlfn.IFNA(INDEX(EN!I:I,CK25),"") -> REN/ERM-TG11-12 | CM25: http://webapp.etsi.org/workProgram/Report_WorkItem.asp?wki_id=51206 | CN25: =_xlfn.IFNA(INDEX(EN!J:J,CK25),"") -> 9 | CO25: =_xlfn.IFNA(IF(INDEX(EN!K:K,CK25)<>0,INDEX(EN!K:K,CK25),""),"") -> Dr
C26: Addition | D26: 51206 | E26: =MATCH(D26,EN!A:A,0) -> 4180 | F26: =INDEX(EN!I:I,E26) -> REN/ERM-TG11-12 | G26: http://webapp.etsi.org/workProgram/Report_WorkItem.asp?wki_id=51206 | H26: =_xlfn.IFNA(INDEX(EN!F:F,E26),"") -> EN | I26: =_xlfn.IFNA(INDEX(EN!G:G,E26),"") -> 300 328 | J26: =_xlfn.IFNA(IF(INDEX(EN!L:L,E26)<>0,INDEX(EN!L:L,E26),""),"") -> 2.2.0 | K26: RevPending | L26: =_xlfn.IFNA(INDEX(EN!H:H,E26),"") -> HS Wideband transmission systems 2,4 GHz | M26: RED 3.2 | N26: =_xlfn.IFNA(INDEX(EN!J:J,E26),"") -> 9 | O26: =_xlfn.IFNA(IF(INDEX(EN!K:K,E26)<>0,INDEX(EN!K:K,E26),""),"") -> Dr | P26: =_xlfn.IFNA(INDEX(EN!M:M,E26),"") -> Draft Review after PE | Q26: =_xlfn.IFNA(INDEX(EN!N:N,E26),"") -> 2018-03-01 | R26: =_xlfn.IFNA(INDEX(EN!B:B,E26),"") -> ERM TG11 | S26: =INDEX(EN!O:O,E26) -> 28591 | T26: =MATCH(S26,Person!A:A) -> 8 | U26: =_xlfn.IFNA(INDEX(Person!B:B,T26),"") -> Martin | V26: =_xlfn.IFNA(INDEX(Person!C:C,T26),"") -> Arndt | W26: =MATCH(D26,'0a'!A:A,0) -> 3867 | X26: =MATCH(D26,'1'!A:A,0) -> 3763 | Y26: =MATCH(D26,'7'!A:A,0) -> 14022 | Z26: =MATCH(D26,'8'!A:A,0) -> 46375 | AA26: =MATCH(D26,'8A'!A:A,0) -> 47983 | AB26: =MATCH(D26,'9B'!A:A,0) -> 6568 | AC26: =MATCH(D26,'9C'!A:A,0) -> 3857 | AD26: =MATCH(D26,'9D'!A:A,0) -> 3588 | AE26: =MATCH(D26,'9Da'!A:A,0) -> 2403 | AF26: =MATCH(D26,'9E'!A:A,0) -> 3798 | AG26: =MATCH(D26,'10F'!A:A,0) -> 1830 | AH26: =MATCH(D26,'11'!A:A,0) -> 8252 | AI26: =MATCH(D26,'12'!A:A,0) -> 47065 | AJ26: =MATCH(D26,'12V'!A:A,0) -> 965 | AK26: =MATCH(D26,'12W'!A:A,0) -> 962 | AL26: =MATCH(D26,'30'!A:A,0) ->  | AM26: =MATCH(D26,'35'!A:A,0) ->  | AN26: =MATCH(D26,'40'!A:A,0) ->  | AO26: =MATCH(D26,'45'!A:A,0) ->  | AP26: =MATCH(D26,'50'!A:A,0) ->  | AQ26: =_xlfn.IFNA(INDEX('0a'!E:E,W26),"") -> 2017-02-22 | AR26: =_xlfn.IFNA(IF(INDEX('1'!G:G,X26)=0,INDEX('1'!F:F,X26),""),"") ->  | AS26: =_xlfn.IFNA(IF(INDEX('1'!G:G,X26)<>0,INDEX('1'!G:G,X26),""),"") -> 2017-01-12 | AT26: =_xlfn.IFNA(IF(INDEX('7'!F:F,Y26)=0,INDEX('7'!E:E,Y26),""),"") ->  | AU26: =_xlfn.IFNA(IF(INDEX('7'!F:F,Y26)<>0,INDEX('7'!F:F,Y26),""),"") -> 2017-09-20 | AV26: =_xlfn.IFNA(IF(INDEX('8'!F:F,Z26)=0,INDEX('8'!E:E,Z26),""),"") ->  | AW26: =_xlfn.IFNA(IF(INDEX('8'!F:F,Z26)<>0,INDEX('8'!F:F,Z26),""),"") -> 2017-10-18 | AX26: =_xlfn.IFNA(IF(INDEX('8A'!F:F,AA26)=0,INDEX('8A'!E:E,AA26),""),"") ->  | AY26: =_xlfn.IFNA(IF(INDEX('8A'!F:F,AA26)<>0,INDEX('8A'!F:F,AA26),""),"") -> 2017-10-23 | AZ26: =_xlfn.IFNA(IF(INDEX('9B'!F:F,AB26)=0,INDEX('9B'!E:E,AB26),""),"") ->  | BA26: =_xlfn.IFNA(IF(INDEX('9B'!F:F,AB26)<>0,INDEX('9B'!F:F,AB26),""),"") -> 2017-11-06 | BB26: =_xlfn.IFNA(IF(INDEX('9C'!F:F,AC26)=0,INDEX('9C'!E:E,AC26),""),"") ->  | BC26: =_xlfn.IFNA(IF(INDEX('9C'!F:F,AC26)<>0,INDEX('9C'!F:F,AC26),""),"") -> 2018-02-05 | BD26: =_xlfn.IFNA(IF(INDEX('9D'!F:F,AD26)=0,INDEX('9D'!E:E,AD26),""),"") ->  | BE26: =_xlfn.IFNA(IF(INDEX('9D'!F:F,AD26)<>0,INDEX('9D'!F:F,AD26),""),"") -> 2018-02-28 | BF26: =_xlfn.IFNA(IF(INDEX('9Da'!F:F,AE26)=0,INDEX('9Da'!E:E,AE26),""),"") -> 2018-05-30 | BG26: =_xlfn.IFNA(IF(INDEX('9Da'!F:F,AE26)<>0,INDEX('9Da'!F:F,AE26),""),"") ->  | BH26: =_xlfn.IFNA(IF(INDEX('9E'!F:F,AF26)=0,INDEX('9E'!E:E,AF26),""),"") -> 2018-06-06 | BI26: =_xlfn.IFNA(IF(INDEX('9E'!F:F,AF26)<>0,INDEX('9E'!F:F,AF26),""),"") ->  | BJ26: =_xlfn.IFNA(IF(INDEX('10F'!F:F,AG26)=0,INDEX('10F'!E:E,AG26),""),"") -> 2018-06-20 | BK26: =_xlfn.IFNA(IF(INDEX('10F'!F:F,AG26)<>0,INDEX('10F'!F:F,AG26),""),"") ->  | BL26: =_xlfn.IFNA(IF(INDEX('11'!F:F,AH26)=0,INDEX('11'!E:E,AH26),""),"") -> 2018-08-19 | BM26: =_xlfn.IFNA(IF(INDEX('11'!F:F,AH26)<>0,INDEX('11'!F:F,AH26),""),"") ->  | BN26: =_xlfn.IFNA(IF(INDEX('12'!G:G,AI26)=0,INDEX('12'!F:F,AI26),""),"") -> 2018-09-02 | BO26: =_xlfn.IFNA(IF(INDEX('12'!G:G,AI26)<>0,INDEX('12'!G:G,AI26),""),"") ->  | BP26: =_xlfn.IFNA(IF(INDEX('12V'!F:F,AJ26)=0,INDEX('12V'!E:E,AJ26),""),"") -> 2018-09-23 | BQ26: =_xlfn.IFNA(IF(INDEX('12V'!F:F,AJ26)<>0,INDEX('12V'!F:F,AJ26),""),"") ->  | BR26: =_xlfn.IFNA(IF(INDEX('12W'!F:F,AK26)=0,INDEX('12W'!E:E,AK26),""),"") -> 2018-12-16 | BS26: =_xlfn.IFNA(IF(INDEX('12W'!F:F,AK26)<>0,INDEX('12W'!F:F,AK26),""),"") ->  | BT26: =_xlfn.IFNA(IF(INDEX('30'!F:F,AL26)=0,INDEX('30'!E:E,AL26),""),"") ->  | BU26: =_xlfn.IFNA(IF(INDEX('30'!F:F,AL26)<>0,INDEX('30'!F:F,AL26),""),"") ->  | BV26: =_xlfn.IFNA(IF(INDEX('35'!F:F,AM26)=0,INDEX('35'!E:E,AM26),""),"") ->  | BW26: =_xlfn.IFNA(IF(INDEX('35'!F:F,AM26)<>0,INDEX('35'!F:F,AM26),""),"") ->  | BX26: =_xlfn.IFNA(IF(INDEX('40'!F:F,AN26)=0,INDEX('40'!E:E,AN26),""),"") ->  | BY26: =_xlfn.IFNA(IF(INDEX('40'!F:F,AN26)<>0,INDEX('40'!F:F,AN26),""),"") ->  | BZ26: =_xlfn.IFNA(IF(INDEX('45'!F:F,AO26)=0,INDEX('45'!E:E,AO26),""),"") ->  | CA26: =_xlfn.IFNA(IF(INDEX('45'!F:F,AO26)<>0,INDEX('45'!F:F,AO26),""),"") ->  | CB26: =_xlfn.IFNA(IF(INDEX('50'!F:F,AP26)=0,INDEX('50'!E:E,AP26),""),"") ->  | CC26: =_xlfn.IFNA(IF(INDEX('50'!F:F,AP26)<>0,INDEX('50'!F:F,AP26),""),"") ->  | CK26: =MATCH(CJ26,EN!A:A,0) ->  | CL26: =_xlfn.IFNA(INDEX(EN!I:I,CK26),"") ->  | CN26: =_xlfn.IFNA(INDEX(EN!J:J,CK26),"") ->  | CO26: =_xlfn.IFNA(IF(INDEX(EN!K:K,CK26)<>0,INDEX(EN!K:K,CK26),""),"") -> 
A27: 300 330-2 | B27: 1.5.1 1.6.1 | C27: Original | D27: 46716 | E27: =MATCH(D27,EN!A:A,0) -> 3865 | F27: =INDEX(EN!I:I,E27) -> REN/ERM-TG28-507 | G27: http://webapp.etsi.org/workProgram/Report_WorkItem.asp?wki_id=46716 | H27: =_xlfn.IFNA(INDEX(EN!F:F,E27),"") -> EN | I27: =_xlfn.IFNA(INDEX(EN!G:G,E27),"") -> 300 330 | J27: =_xlfn.IFNA(IF(INDEX(EN!L:L,E27)<>0,INDEX(EN!L:L,E27),""),"") -> 2.1.1 | K27: Cited | L27: =_xlfn.IFNA(INDEX(EN!H:H,E27),"") -> Generic SRDs (below 25 MHz) | M27: RED 3.2 | N27: =_xlfn.IFNA(INDEX(EN!J:J,E27),"") -> 12 | O27: =_xlfn.IFNA(IF(INDEX(EN!K:K,E27)<>0,INDEX(EN!K:K,E27),""),"") -> W | P27: =_xlfn.IFNA(INDEX(EN!M:M,E27),"") -> Citation in the OJ | Q27: =_xlfn.IFNA(INDEX(EN!N:N,E27),"") -> 2017-03-10 | R27: =_xlfn.IFNA(INDEX(EN!B:B,E27),"") -> ERM TG28 | S27: =INDEX(EN!O:O,E27) -> 26441 | T27: =MATCH(S27,Person!A:A) -> 7 | U27: =_xlfn.IFNA(INDEX(Person!B:B,T27),"") -> Igor | V27: =_xlfn.IFNA(INDEX(Person!C:C,T27),"") -> Minaev | W27: =MATCH(D27,'0a'!A:A,0) -> 3557 | X27: =MATCH(D27,'1'!A:A,0) -> 3464 | Y27: =MATCH(D27,'7'!A:A,0) -> 13580 | Z27: =MATCH(D27,'8'!A:A,0) -> 42066 | AA27: =MATCH(D27,'8A'!A:A,0) -> 43609 | AB27: =MATCH(D27,'9B'!A:A,0) -> 6265 | AC27: =MATCH(D27,'9C'!A:A,0) -> 3554 | AD27: =MATCH(D27,'9D'!A:A,0) -> 3388 | AE27: =MATCH(D27,'9Da'!A:A,0) -> 2203 | AF27: =MATCH(D27,'9E'!A:A,0) -> 3588 | AG27: =MATCH(D27,'10F'!A:A,0) -> 1636 | AH27: =MATCH(D27,'11'!A:A,0) -> 7876 | AI27: =MATCH(D27,'12'!A:A,0) -> 42754 | AJ27: =MATCH(D27,'12V'!A:A,0) -> 768 | AK27: =MATCH(D27,'12W'!A:A,0) -> 777 | AL27: =MATCH(D27,'30'!A:A,0) ->  | AM27: =MATCH(D27,'35'!A:A,0) ->  | AN27: =MATCH(D27,'40'!A:A,0) ->  | AO27: =MATCH(D27,'45'!A:A,0) ->  | AP27: =MATCH(D27,'50'!A:A,0) ->  | AQ27: =_xlfn.IFNA(INDEX('0a'!E:E,W27),"") -> 2015-03-25 | AR27: =_xlfn.IFNA(IF(INDEX('1'!G:G,X27)=0,INDEX('1'!F:F,X27),""),"") ->  | AS27: =_xlfn.IFNA(IF(INDEX('1'!G:G,X27)<>0,INDEX('1'!G:G,X27),""),"") -> 2015-07-27 | AT27: =_xlfn.IFNA(IF(INDEX('7'!F:F,Y27)=0,INDEX('7'!E:E,Y27),""),"") ->  | AU27: =_xlfn.IFNA(IF(INDEX('7'!F:F,Y27)<>0,INDEX('7'!F:F,Y27),""),"") -> 2016-01-19 | AV27: =_xlfn.IFNA(IF(INDEX('8'!F:F,Z27)=0,INDEX('8'!E:E,Z27),""),"") ->  | AW27: =_xlfn.IFNA(IF(INDEX('8'!F:F,Z27)<>0,INDEX('8'!F:F,Z27),""),"") -> 2016-02-19 | AX27: =_xlfn.IFNA(IF(INDEX('8A'!F:F,AA27)=0,INDEX('8A'!E:E,AA27),""),"") ->  | AY27: =_xlfn.IFNA(IF(INDEX('8A'!F:F,AA27)<>0,INDEX('8A'!F:F,AA27),""),"") -> 2016-04-11 | AZ27: =_xlfn.IFNA(IF(INDEX('9B'!F:F,AB27)=0,INDEX('9B'!E:E,AB27),""),"") ->  | BA27: =_xlfn.IFNA(IF(INDEX('9B'!F:F,AB27)<>0,INDEX('9B'!F:F,AB27),""),"") -> 2016-05-03 | BB27: =_xlfn.IFNA(IF(INDEX('9C'!F:F,AC27)=0,INDEX('9C'!E:E,AC27),""),"") ->  | BC27: =_xlfn.IFNA(IF(INDEX('9C'!F:F,AC27)<>0,INDEX('9C'!F:F,AC27),""),"") -> 2016-08-01 | BD27: =_xlfn.IFNA(IF(INDEX('9D'!F:F,AD27)=0,INDEX('9D'!E:E,AD27),""),"") ->  | BE27: =_xlfn.IFNA(IF(INDEX('9D'!F:F,AD27)<>0,INDEX('9D'!F:F,AD27),""),"") -> 2016-08-01 | BF27: =_xlfn.IFNA(IF(INDEX('9Da'!F:F,AE27)=0,INDEX('9Da'!E:E,AE27),""),"") ->  | BG27: =_xlfn.IFNA(IF(INDEX('9Da'!F:F,AE27)<>0,INDEX('9Da'!F:F,AE27),""),"") -> 2016-10-21 | BH27: =_xlfn.IFNA(IF(INDEX('9E'!F:F,AF27)=0,INDEX('9E'!E:E,AF27),""),"") ->  | BI27: =_xlfn.IFNA(IF(INDEX('9E'!F:F,AF27)<>0,INDEX('9E'!F:F,AF27),""),"") -> 2016-11-04 | BJ27: =_xlfn.IFNA(IF(INDEX('10F'!F:F,AG27)=0,INDEX('10F'!E:E,AG27),""),"") ->  | BK27: =_xlfn.IFNA(IF(INDEX('10F'!F:F,AG27)<>0,INDEX('10F'!F:F,AG27),""),"") -> 2016-11-23 | BL27: =_xlfn.IFNA(IF(INDEX('11'!F:F,AH27)=0,INDEX('11'!E:E,AH27),""),"") ->  | BM27: =_xlfn.IFNA(IF(INDEX('11'!F:F,AH27)<>0,INDEX('11'!F:F,AH27),""),"") -> 2017-01-23 | BN27: =_xlfn.IFNA(IF(INDEX('12'!G:G,AI27)=0,INDEX('12'!F:F,AI27),""),"") ->  | BO27: =_xlfn.IFNA(IF(INDEX('12'!G:G,AI27)<>0,INDEX('12'!G:G,AI27),""),"") -> 2017-02-10 | BP27: =_xlfn.IFNA(IF(INDEX('12V'!F:F,AJ27)=0,INDEX('12V'!E:E,AJ27),""),"") ->  | BQ27: =_xlfn.IFNA(IF(INDEX('12V'!F:F,AJ27)<>0,INDEX('12V'!F:F,AJ27),""),"") -> 2017-02-14 | BR27: =_xlfn.IFNA(IF(INDEX('12W'!F:F,AK27)=0,INDEX('12W'!E:E,AK27),""),"") ->  | BS27: =_xlfn.IFNA(IF(INDEX('12W'!F:F,AK27)<>0,INDEX('12W'!F:F,AK27),""),"") -> 2017-03-10 | BT27: =_xlfn.IFNA(IF(INDEX('30'!F:F,AL27)=0,INDEX('30'!E:E,AL27),""),"") ->  | BU27: =_xlfn.IFNA(IF(INDEX('30'!F:F,AL27)<>0,INDEX('30'!F:F,AL27),""),"") ->  | BV27: =_xlfn.IFNA(IF(INDEX('35'!F:F,AM27)=0,INDEX('35'!E:E,AM27),""),"") ->  | BW27: =_xlfn.IFNA(IF(INDEX('35'!F:F,AM27)<>0,INDEX('35'!F:F,AM27),""),"") ->  | BX27: =_xlfn.IFNA(IF(INDEX('40'!F:F,AN27)=0,INDEX('40'!E:E,AN27),""),"") ->  | BY27: =_xlfn.IFNA(IF(INDEX('40'!F:F,AN27)<>0,INDEX('40'!F:F,AN27),""),"") ->  | BZ27: =_xlfn.IFNA(IF(INDEX('45'!F:F,AO27)=0,INDEX('45'!E:E,AO27),""),"") ->  | CA27: =_xlfn.IFNA(IF(INDEX('45'!F:F,AO27)<>0,INDEX('45'!F:F,AO27),""),"") ->  | CB27: =_xlfn.IFNA(IF(INDEX('50'!F:F,AP27)=0,INDEX('50'!E:E,AP27),""),"") ->  | CC27: =_xlfn.IFNA(IF(INDEX('50'!F:F,AP27)<>0,INDEX('50'!F:F,AP27),""),"") ->  | CD27: =IF(AND(ISNONTEXT(BQ27),ISBLANK(#REF!),ISTEXT(BS27)),"Awaiting EC assessment","") ->  | CK27: =MATCH(CJ27,EN!A:A,0) ->  | CL27: =_xlfn.IFNA(INDEX(EN!I:I,CK27),"") ->  | CN27: =_xlfn.IFNA(INDEX(EN!J:J,CK27),"") ->  | CO27: =_xlfn.IFNA(IF(INDEX(EN!K:K,CK27)<>0,INDEX(EN!K:K,CK27),""),"") -> 
A28: 300 341-2 | B28: 1.1.1 | C28: Original | D28: 47177 | E28: =MATCH(D28,EN!A:A,0) -> 3934 | F28: =INDEX(EN!I:I,E28) -> REN/ERM-TGDMR-352 | G28: http://webapp.etsi.org/workProgram/Report_WorkItem.asp?wki_id=47177 | H28: =_xlfn.IFNA(INDEX(EN!F:F,E28),"") -> EN | I28: =_xlfn.IFNA(INDEX(EN!G:G,E28),"") -> 300 341 | J28: =_xlfn.IFNA(IF(INDEX(EN!L:L,E28)<>0,INDEX(EN!L:L,E28),""),"") -> 2.1.1 | K28: Cited | L28: =_xlfn.IFNA(INDEX(EN!H:H,E28),"") -> HEN - RE int antenna transmitting sig to initiate a specific response in the receiver | M28: RED 3.2 | N28: =_xlfn.IFNA(INDEX(EN!J:J,E28),"") -> 12 | O28: =_xlfn.IFNA(IF(INDEX(EN!K:K,E28)<>0,INDEX(EN!K:K,E28),""),"") -> W | P28: =_xlfn.IFNA(INDEX(EN!M:M,E28),"") -> Citation in the OJ | Q28: =_xlfn.IFNA(INDEX(EN!N:N,E28),"") -> 2017-04-12 | R28: =_xlfn.IFNA(INDEX(EN!B:B,E28),"") -> ERM TGDMR | S28: =INDEX(EN!O:O,E28) -> 14585 | T28: =MATCH(S28,Person!A:A) -> 6 | U28: =_xlfn.IFNA(INDEX(Person!B:B,T28),"") -> Bernt | V28: =_xlfn.IFNA(INDEX(Person!C:C,T28),"") -> Mattsson | W28: =MATCH(D28,'0a'!A:A,0) -> 3626 | X28: =MATCH(D28,'1'!A:A,0) -> 3532 | Y28: =MATCH(D28,'7'!A:A,0) -> 13657 | Z28: =MATCH(D28,'8'!A:A,0) -> 42511 | AA28: =MATCH(D28,'8A'!A:A,0) -> 44068 | AB28: =MATCH(D28,'9B'!A:A,0) -> 6334 | AC28: =MATCH(D28,'9C'!A:A,0) -> 3623 | AD28: =MATCH(D28,'9D'!A:A,0) ->  | AE28: =MATCH(D28,'9Da'!A:A,0) ->  | AF28: =MATCH(D28,'9E'!A:A,0) ->  | AG28: =MATCH(D28,'10F'!A:A,0) ->  | AH28: =MATCH(D28,'11'!A:A,0) -> 7952 | AI28: =MATCH(D28,'12'!A:A,0) -> 43197 | AJ28: =MATCH(D28,'12V'!A:A,0) -> 829 | AK28: =MATCH(D28,'12W'!A:A,0) -> 830 | AL28: =MATCH(D28,'30'!A:A,0) ->  | AM28: =MATCH(D28,'35'!A:A,0) ->  | AN28: =MATCH(D28,'40'!A:A,0) ->  | AO28: =MATCH(D28,'45'!A:A,0) ->  | AP28: =MATCH(D28,'50'!A:A,0) ->  | AQ28: =_xlfn.IFNA(INDEX('0a'!E:E,W28),"") -> 2015-06-11 | AR28: =_xlfn.IFNA(IF(INDEX('1'!G:G,X28)=0,INDEX('1'!F:F,X28),""),"") ->  | AS28: =_xlfn.IFNA(IF(INDEX('1'!G:G,X28)<>0,INDEX('1'!G:G,X28),""),"") -> 2015-05-22 | AT28: =_xlfn.IFNA(IF(INDEX('7'!F:F,Y28)=0,INDEX('7'!E:E,Y28),""),"") ->  | AU28: =_xlfn.IFNA(IF(INDEX('7'!F:F,Y28)<>0,INDEX('7'!F:F,Y28),""),"") -> 2015-10-07 | AV28: =_xlfn.IFNA(IF(INDEX('8'!F:F,Z28)=0,INDEX('8'!E:E,Z28),""),"") ->  | AW28: =_xlfn.IFNA(IF(INDEX('8'!F:F,Z28)<>0,INDEX('8'!F:F,Z28),""),"") -> 2015-11-18 | AX28: =_xlfn.IFNA(IF(INDEX('8A'!F:F,AA28)=0,INDEX('8A'!E:E,AA28),""),"") ->  | AY28: =_xlfn.IFNA(IF(INDEX('8A'!F:F,AA28)<>0,INDEX('8A'!F:F,AA28),""),"") -> 2015-11-25 | AZ28: =_xlfn.IFNA(IF(INDEX('9B'!F:F,AB28)=0,INDEX('9B'!E:E,AB28),""),"") ->  | BA28: =_xlfn.IFNA(IF(INDEX('9B'!F:F,AB28)<>0,INDEX('9B'!F:F,AB28),""),"") -> 2015-12-21 | BB28: =_xlfn.IFNA(IF(INDEX('9C'!F:F,AC28)=0,INDEX('9C'!E:E,AC28),""),"") ->  | BC28: =_xlfn.IFNA(IF(INDEX('9C'!F:F,AC28)<>0,INDEX('9C'!F:F,AC28),""),"") -> 2016-03-21 | BD28: =_xlfn.IFNA(IF(INDEX('9D'!F:F,AD28)=0,INDEX('9D'!E:E,AD28),""),"") ->  | BE28: =_xlfn.IFNA(IF(INDEX('9D'!F:F,AD28)<>0,INDEX('9D'!F:F,AD28),""),"") ->  | BF28: =_xlfn.IFNA(IF(INDEX('9Da'!F:F,AE28)=0,INDEX('9Da'!E:E,AE28),""),"") ->  | BG28: =_xlfn.IFNA(IF(INDEX('9Da'!F:F,AE28)<>0,INDEX('9Da'!F:F,AE28),""),"") ->  | BH28: =_xlfn.IFNA(IF(INDEX('9E'!F:F,AF28)=0,INDEX('9E'!E:E,AF28),""),"") ->  | BI28: =_xlfn.IFNA(IF(INDEX('9E'!F:F,AF28)<>0,INDEX('9E'!F:F,AF28),""),"") ->  | BJ28: =_xlfn.IFNA(IF(INDEX('10F'!F:F,AG28)=0,INDEX('10F'!E:E,AG28),""),"") ->  | BK28: =_xlfn.IFNA(IF(INDEX('10F'!F:F,AG28)<>0,INDEX('10F'!F:F,AG28),""),"") ->  | BL28: =_xlfn.IFNA(IF(INDEX('11'!F:F,AH28)=0,INDEX('11'!E:E,AH28),""),"") ->  | BM28: =_xlfn.IFNA(IF(INDEX('11'!F:F,AH28)<>0,INDEX('11'!F:F,AH28),""),"") -> 2016-03-21 | BN28: =_xlfn.IFNA(IF(INDEX('12'!G:G,AI28)=0,INDEX('12'!F:F,AI28),""),"") ->  | BO28: =_xlfn.IFNA(IF(INDEX('12'!G:G,AI28)<>0,INDEX('12'!G:G,AI28),""),"") -> 2016-03-24 | BP28: =_xlfn.IFNA(IF(INDEX('12V'!F:F,AJ28)=0,INDEX('12V'!E:E,AJ28),""),"") ->  | BQ28: =_xlfn.IFNA(IF(INDEX('12V'!F:F,AJ28)<>0,INDEX('12V'!F:F,AJ28),""),"") -> 2016-03-29 | BR28: =_xlfn.IFNA(IF(INDEX('12W'!F:F,AK28)=0,INDEX('12W'!E:E,AK28),""),"") ->  | BS28: =_xlfn.IFNA(IF(INDEX('12W'!F:F,AK28)<>0,INDEX('12W'!F:F,AK28),""),"") -> 2017-04-12 | BT28: =_xlfn.IFNA(IF(INDEX('30'!F:F,AL28)=0,INDEX('30'!E:E,AL28),""),"") ->  | BU28: =_xlfn.IFNA(IF(INDEX('30'!F:F,AL28)<>0,INDEX('30'!F:F,AL28),""),"") ->  | BV28: =_xlfn.IFNA(IF(INDEX('35'!F:F,AM28)=0,INDEX('35'!E:E,AM28),""),"") ->  | BW28: =_xlfn.IFNA(IF(INDEX('35'!F:F,AM28)<>0,INDEX('35'!F:F,AM28),""),"") ->  | BX28: =_xlfn.IFNA(IF(INDEX('40'!F:F,AN28)=0,INDEX('40'!E:E,AN28),""),"") ->  | BY28: =_xlfn.IFNA(IF(INDEX('40'!F:F,AN28)<>0,INDEX('40'!F:F,AN28),""),"") ->  | BZ28: =_xlfn.IFNA(IF(INDEX('45'!F:F,AO28)=0,INDEX('45'!E:E,AO28),""),"") ->  | CA28: =_xlfn.IFNA(IF(INDEX('45'!F:F,AO28)<>0,INDEX('45'!F:F,AO28),""),"") ->  | CB28: =_xlfn.IFNA(IF(INDEX('50'!F:F,AP28)=0,INDEX('50'!E:E,AP28),""),"") ->  | CC28: =_xlfn.IFNA(IF(INDEX('50'!F:F,AP28)<>0,INDEX('50'!F:F,AP28),""),"") ->  | CJ28: 51388 | CK28: =MATCH(CJ28,EN!A:A,0) -> 4228 | CL28: =_xlfn.IFNA(INDEX(EN!I:I,CK28),"") -> REN/ERM-TGDMR-371 | CM28: http://webapp.etsi.org/workProgram/Report_WorkItem.asp?wki_id=51388 | CN28: =_xlfn.IFNA(INDEX(EN!J:J,CK28),"") -> 8 | CO28: =_xlfn.IFNA(IF(INDEX(EN!K:K,CK28)<>0,INDEX(EN!K:K,CK28),""),"") -> WA
C29: Addition | D29: 51388 | E29: =MATCH(D29,EN!A:A,0) -> 4228 | F29: =INDEX(EN!I:I,E29) -> REN/ERM-TGDMR-371 | G29: http://webapp.etsi.org/workProgram/Report_WorkItem.asp?wki_id=51388 | H29: =_xlfn.IFNA(INDEX(EN!F:F,E29),"") -> EN | I29: =_xlfn.IFNA(INDEX(EN!G:G,E29),"") -> 300 341 | J29: =_xlfn.IFNA(IF(INDEX(EN!L:L,E29)<>0,INDEX(EN!L:L,E29),""),"") -> 0.0.3 | K29: RevPending | L29: =_xlfn.IFNA(INDEX(EN!H:H,E29),"") -> HEN - RE int antenna transmitting sig to initiate a specific response in the receiver | M29: RED 3.2 | N29: =_xlfn.IFNA(INDEX(EN!J:J,E29),"") -> 8 | O29: =_xlfn.IFNA(IF(INDEX(EN!K:K,E29)<>0,INDEX(EN!K:K,E29),""),"") -> WA | P29: =_xlfn.IFNA(INDEX(EN!M:M,E29),"") -> Waiting - see "Remarks" | Q29: =_xlfn.IFNA(INDEX(EN!N:N,E29),"") -> 2017-08-29 | R29: =_xlfn.IFNA(INDEX(EN!B:B,E29),"") -> ERM TGDMR | S29: =INDEX(EN!O:O,E29) -> 14585 | T29: =MATCH(S29,Person!A:A) -> 6 | U29: =_xlfn.IFNA(INDEX(Person!B:B,T29),"") -> Bernt | V29: =_xlfn.IFNA(INDEX(Person!C:C,T29),"") -> Mattsson | W29: =MATCH(D29,'0a'!A:A,0) -> 3915 | X29: =MATCH(D29,'1'!A:A,0) -> 3808 | Y29: =MATCH(D29,'7'!A:A,0) -> 14077 | Z29: =MATCH(D29,'8'!A:A,0) -> 46556 | AA29: =MATCH(D29,'8A'!A:A,0) -> 48173 | AB29: =MATCH(D29,'9B'!A:A,0) -> 6614 | AC29: =MATCH(D29,'9C'!A:A,0) -> 3902 | AD29: =MATCH(D29,'9D'!A:A,0) -> 3619 | AE29: =MATCH(D29,'9Da'!A:A,0) -> 2434 | AF29: =MATCH(D29,'9E'!A:A,0) -> 3829 | AG29: =MATCH(D29,'10F'!A:A,0) -> 1861 | AH29: =MATCH(D29,'11'!A:A,0) -> 8314 | AI29: =MATCH(D29,'12'!A:A,0) -> 47247 | AJ29: =MATCH(D29,'12V'!A:A,0) -> 1010 | AK29: =MATCH(D29,'12W'!A:A,0) -> 1007 | AL29: =MATCH(D29,'30'!A:A,0) ->  | AM29: =MATCH(D29,'35'!A:A,0) ->  | AN29: =MATCH(D29,'40'!A:A,0) ->  | AO29: =MATCH(D29,'45'!A:A,0) ->  | AP29: =MATCH(D29,'50'!A:A,0) ->  | AQ29: =_xlfn.IFNA(INDEX('0a'!E:E,W29),"") -> 2017-02-22 | AR29: =_xlfn.IFNA(IF(INDEX('1'!G:G,X29)=0,INDEX('1'!F:F,X29),""),"") ->  | AS29: =_xlfn.IFNA(IF(INDEX('1'!G:G,X29)<>0,INDEX('1'!G:G,X29),""),"") -> 2017-02-22 | AT29: =_xlfn.IFNA(IF(INDEX('7'!F:F,Y29)=0,INDEX('7'!E:E,Y29),""),"") ->  | AU29: =_xlfn.IFNA(IF(INDEX('7'!F:F,Y29)<>0,INDEX('7'!F:F,Y29),""),"") -> 2017-05-17 | AV29: =_xlfn.IFNA(IF(INDEX('8'!F:F,Z29)=0,INDEX('8'!E:E,Z29),""),"") ->  | AW29: =_xlfn.IFNA(IF(INDEX('8'!F:F,Z29)<>0,INDEX('8'!F:F,Z29),""),"") -> 2017-06-21 | AX29: =_xlfn.IFNA(IF(INDEX('8A'!F:F,AA29)=0,INDEX('8A'!E:E,AA29),""),"") ->  | AY29: =_xlfn.IFNA(IF(INDEX('8A'!F:F,AA29)<>0,INDEX('8A'!F:F,AA29),""),"") -> 2017-08-29 | AZ29: =_xlfn.IFNA(IF(INDEX('9B'!F:F,AB29)=0,INDEX('9B'!E:E,AB29),""),"") -> 2018-03-28 | BA29: =_xlfn.IFNA(IF(INDEX('9B'!F:F,AB29)<>0,INDEX('9B'!F:F,AB29),""),"") ->  | BB29: =_xlfn.IFNA(IF(INDEX('9C'!F:F,AC29)=0,INDEX('9C'!E:E,AC29),""),"") -> 2018-06-27 | BC29: =_xlfn.IFNA(IF(INDEX('9C'!F:F,AC29)<>0,INDEX('9C'!F:F,AC29),""),"") ->  | BD29: =_xlfn.IFNA(IF(INDEX('9D'!F:F,AD29)=0,INDEX('9D'!E:E,AD29),""),"") -> 2018-06-27 | BE29: =_xlfn.IFNA(IF(INDEX('9D'!F:F,AD29)<>0,INDEX('9D'!F:F,AD29),""),"") ->  | BF29: =_xlfn.IFNA(IF(INDEX('9Da'!F:F,AE29)=0,INDEX('9Da'!E:E,AE29),""),"") -> 2018-09-26 | BG29: =_xlfn.IFNA(IF(INDEX('9Da'!F:F,AE29)<>0,INDEX('9Da'!F:F,AE29),""),"") ->  | BH29: =_xlfn.IFNA(IF(INDEX('9E'!F:F,AF29)=0,INDEX('9E'!E:E,AF29),""),"") -> 2018-10-03 | BI29: =_xlfn.IFNA(IF(INDEX('9E'!F:F,AF29)<>0,INDEX('9E'!F:F,AF29),""),"") ->  | BJ29: =_xlfn.IFNA(IF(INDEX('10F'!F:F,AG29)=0,INDEX('10F'!E:E,AG29),""),"") -> 2018-10-17 | BK29: =_xlfn.IFNA(IF(INDEX('10F'!F:F,AG29)<>0,INDEX('10F'!F:F,AG29),""),"") ->  | BL29: =_xlfn.IFNA(IF(INDEX('11'!F:F,AH29)=0,INDEX('11'!E:E,AH29),""),"") -> 2018-12-16 | BM29: =_xlfn.IFNA(IF(INDEX('11'!F:F,AH29)<>0,INDEX('11'!F:F,AH29),""),"") ->  | BN29: =_xlfn.IFNA(IF(INDEX('12'!G:G,AI29)=0,INDEX('12'!F:F,AI29),""),"") -> 2018-12-30 | BO29: =_xlfn.IFNA(IF(INDEX('12'!G:G,AI29)<>0,INDEX('12'!G:G,AI29),""),"") ->  | BP29: =_xlfn.IFNA(IF(INDEX('12V'!F:F,AJ29)=0,INDEX('12V'!E:E,AJ29),""),"") -> 2019-01-20 | BQ29: =_xlfn.IFNA(IF(INDEX('12V'!F:F,AJ29)<>0,INDEX('12V'!F:F,AJ29),""),"") ->  | BR29: =_xlfn.IFNA(IF(INDEX('12W'!F:F,AK29)=0,INDEX('12W'!E:E,AK29),""),"") -> 2019-04-14 | BS29: =_xlfn.IFNA(IF(INDEX('12W'!F:F,AK29)<>0,INDEX('12W'!F:F,AK29),""),"") ->  | BT29: =_xlfn.IFNA(IF(INDEX('30'!F:F,AL29)=0,INDEX('30'!E:E,AL29),""),"") ->  | BU29: =_xlfn.IFNA(IF(INDEX('30'!F:F,AL29)<>0,INDEX('30'!F:F,AL29),""),"") ->  | BV29: =_xlfn.IFNA(IF(INDEX('35'!F:F,AM29)=0,INDEX('35'!E:E,AM29),""),"") ->  | BW29: =_xlfn.IFNA(IF(INDEX('35'!F:F,AM29)<>0,INDEX('35'!F:F,AM29),""),"") ->  | BX29: =_xlfn.IFNA(IF(INDEX('40'!F:F,AN29)=0,INDEX('40'!E:E,AN29),""),"") ->  | BY29: =_xlfn.IFNA(IF(INDEX('40'!F:F,AN29)<>0,INDEX('40'!F:F,AN29),""),"") ->  | BZ29: =_xlfn.IFNA(IF(INDEX('45'!F:F,AO29)=0,INDEX('45'!E:E,AO29),""),"") ->  | CA29: =_xlfn.IFNA(IF(INDEX('45'!F:F,AO29)<>0,INDEX('45'!F:F,AO29),""),"") ->  | CB29: =_xlfn.IFNA(IF(INDEX('50'!F:F,AP29)=0,INDEX('50'!E:E,AP29),""),"") ->  | CC29: =_xlfn.IFNA(IF(INDEX('50'!F:F,AP29)<>0,INDEX('50'!F:F,AP29),""),"") ->  | CE29: Pre-assessment comments | CK29: =MATCH(CJ29,EN!A:A,0) ->  | CL29: =_xlfn.IFNA(INDEX(EN!I:I,CK29),"") ->  | CN29: =_xlfn.IFNA(INDEX(EN!J:J,CK29),"") ->  | CO29: =_xlfn.IFNA(IF(INDEX(EN!K:K,CK29)<>0,INDEX(EN!K:K,CK29),""),"") -> 
A30: 300 373-2 300 373-3 | B30: 1.2.1 1.2.1 | C30: Original | D30: 46516 | E30: =MATCH(D30,EN!A:A,0) -> 3788 | F30: STOPPED - Taken over by EN 303 402 | G30: http://webapp.etsi.org/workProgram/Report_WorkItem.asp?wki_id=46516 | H30: =_xlfn.IFNA(INDEX(EN!F:F,E30),"") -> EN | I30: =_xlfn.IFNA(INDEX(EN!G:G,E30),"") -> 300 373-2 | J30: =_xlfn.IFNA(IF(INDEX(EN!L:L,E30)<>0,INDEX(EN!L:L,E30),""),"") ->  | CK30: =MATCH(CJ30,EN!A:A,0) ->  | CL30: =_xlfn.IFNA(INDEX(EN!I:I,CK30),"") ->  | CN30: =_xlfn.IFNA(INDEX(EN!J:J,CK30),"") ->  | CO30: =_xlfn.IFNA(IF(INDEX(EN!K:K,CK30)<>0,INDEX(EN!K:K,CK30),""),"") -> 
A31: 300 390-2 | B31: 1.1.1 | C31: Original | D31: 47178 | E31: =MATCH(D31,EN!A:A,0) -> 3935 | F31: =INDEX(EN!I:I,E31) -> REN/ERM-TGDMR-347 | G31: http://webapp.etsi.org/workProgram/Report_WorkItem.asp?wki_id=47178 | H31: =_xlfn.IFNA(INDEX(EN!F:F,E31),"") -> EN | I31: =_xlfn.IFNA(INDEX(EN!G:G,E31),"") -> 300 390 | J31: =_xlfn.IFNA(IF(INDEX(EN!L:L,E31)<>0,INDEX(EN!L:L,E31),""),"") -> 2.1.1 | K31: Cited | L31: =_xlfn.IFNA(INDEX(EN!H:H,E31),"") -> HEN - RE for transmission of data (and speech) and using an integral antenna | M31: RED 3.2 | N31: =_xlfn.IFNA(INDEX(EN!J:J,E31),"") -> 12 | O31: =_xlfn.IFNA(IF(INDEX(EN!K:K,E31)<>0,INDEX(EN!K:K,E31),""),"") -> W | P31: =_xlfn.IFNA(INDEX(EN!M:M,E31),"") -> Citation in the OJ | Q31: =_xlfn.IFNA(INDEX(EN!N:N,E31),"") -> 2017-04-12 | R31: =_xlfn.IFNA(INDEX(EN!B:B,E31),"") -> ERM TGDMR | S31: =INDEX(EN!O:O,E31) -> 14585 | T31: =MATCH(S31,Person!A:A) -> 6 | U31: =_xlfn.IFNA(INDEX(Person!B:B,T31),"") -> Bernt | V31: =_xlfn.IFNA(INDEX(Person!C:C,T31),"") -> Mattsson | W31: =MATCH(D31,'0a'!A:A,0) -> 3627 | X31: =MATCH(D31,'1'!A:A,0) -> 3533 | Y31: =MATCH(D31,'7'!A:A,0) -> 13658 | Z31: =MATCH(D31,'8'!A:A,0) -> 42512 | AA31: =MATCH(D31,'8A'!A:A,0) -> 44069 | AB31: =MATCH(D31,'9B'!A:A,0) -> 6335 | AC31: =MATCH(D31,'9C'!A:A,0) -> 3624 | AD31: =MATCH(D31,'9D'!A:A,0) ->  | AE31: =MATCH(D31,'9Da'!A:A,0) ->  | AF31: =MATCH(D31,'9E'!A:A,0) ->  | AG31: =MATCH(D31,'10F'!A:A,0) ->  | AH31: =MATCH(D31,'11'!A:A,0) -> 7953 | AI31: =MATCH(D31,'12'!A:A,0) -> 43198 | AJ31: =MATCH(D31,'12V'!A:A,0) -> 830 | AK31: =MATCH(D31,'12W'!A:A,0) -> 831 | AL31: =MATCH(D31,'30'!A:A,0) ->  | AM31: =MATCH(D31,'35'!A:A,0) ->  | AN31: =MATCH(D31,'40'!A:A,0) ->  | AO31: =MATCH(D31,'45'!A:A,0) ->  | AP31: =MATCH(D31,'50'!A:A,0) ->  | AQ31: =_xlfn.IFNA(INDEX('0a'!E:E,W31),"") -> 2015-06-11 | AR31: =_xlfn.IFNA(IF(INDEX('1'!G:G,X31)=0,INDEX('1'!F:F,X31),""),"") ->  | AS31: =_xlfn.IFNA(IF(INDEX('1'!G:G,X31)<>0,INDEX('1'!G:G,X31),""),"") -> 2015-05-22 | AT31: =_xlfn.IFNA(IF(INDEX('7'!F:F,Y31)=0,INDEX('7'!E:E,Y31),""),"") ->  | AU31: =_xlfn.IFNA(IF(INDEX('7'!F:F,Y31)<>0,INDEX('7'!F:F,Y31),""),"") -> 2015-10-07 | AV31: =_xlfn.IFNA(IF(INDEX('8'!F:F,Z31)=0,INDEX('8'!E:E,Z31),""),"") ->  | AW31: =_xlfn.IFNA(IF(INDEX('8'!F:F,Z31)<>0,INDEX('8'!F:F,Z31),""),"") -> 2015-11-18 | AX31: =_xlfn.IFNA(IF(INDEX('8A'!F:F,AA31)=0,INDEX('8A'!E:E,AA31),""),"") ->  | AY31: =_xlfn.IFNA(IF(INDEX('8A'!F:F,AA31)<>0,INDEX('8A'!F:F,AA31),""),"") -> 2015-11-25 | AZ31: =_xlfn.IFNA(IF(INDEX('9B'!F:F,AB31)=0,INDEX('9B'!E:E,AB31),""),"") ->  | BA31: =_xlfn.IFNA(IF(INDEX('9B'!F:F,AB31)<>0,INDEX('9B'!F:F,AB31),""),"") -> 2015-12-21 | BB31: =_xlfn.IFNA(IF(INDEX('9C'!F:F,AC31)=0,INDEX('9C'!E:E,AC31),""),"") ->  | BC31: =_xlfn.IFNA(IF(INDEX('9C'!F:F,AC31)<>0,INDEX('9C'!F:F,AC31),""),"") -> 2016-03-21 | BD31: =_xlfn.IFNA(IF(INDEX('9D'!F:F,AD31)=0,INDEX('9D'!E:E,AD31),""),"") ->  | BE31: =_xlfn.IFNA(IF(INDEX('9D'!F:F,AD31)<>0,INDEX('9D'!F:F,AD31),""),"") ->  | BF31: =_xlfn.IFNA(IF(INDEX('9Da'!F:F,AE31)=0,INDEX('9Da'!E:E,AE31),""),"") ->  | BG31: =_xlfn.IFNA(IF(INDEX('9Da'!F:F,AE31)<>0,INDEX('9Da'!F:F,AE31),""),"") ->  | BH31: =_xlfn.IFNA(IF(INDEX('9E'!F:F,AF31)=0,INDEX('9E'!E:E,AF31),""),"") ->  | BI31: =_xlfn.IFNA(IF(INDEX('9E'!F:F,AF31)<>0,INDEX('9E'!F:F,AF31),""),"") ->  | BJ31: =_xlfn.IFNA(IF(INDEX('10F'!F:F,AG31)=0,INDEX('10F'!E:E,AG31),""),"") ->  | BK31: =_xlfn.IFNA(IF(INDEX('10F'!F:F,AG31)<>0,INDEX('10F'!F:F,AG31),""),"") ->  | BL31: =_xlfn.IFNA(IF(INDEX('11'!F:F,AH31)=0,INDEX('11'!E:E,AH31),""),"") ->  | BM31: =_xlfn.IFNA(IF(INDEX('11'!F:F,AH31)<>0,INDEX('11'!F:F,AH31),""),"") -> 2016-03-21 | BN31: =_xlfn.IFNA(IF(INDEX('12'!G:G,AI31)=0,INDEX('12'!F:F,AI31),""),"") ->  | BO31: =_xlfn.IFNA(IF(INDEX('12'!G:G,AI31)<>0,INDEX('12'!G:G,AI31),""),"") -> 2016-03-24 | BP31: =_xlfn.IFNA(IF(INDEX('12V'!F:F,AJ31)=0,INDEX('12V'!E:E,AJ31),""),"") ->  | BQ31: =_xlfn.IFNA(IF(INDEX('12V'!F:F,AJ31)<>0,INDEX('12V'!F:F,AJ31),""),"") -> 2016-03-29 | BR31: =_xlfn.IFNA(IF(INDEX('12W'!F:F,AK31)=0,INDEX('12W'!E:E,AK31),""),"") ->  | BS31: =_xlfn.IFNA(IF(INDEX('12W'!F:F,AK31)<>0,INDEX('12W'!F:F,AK31),""),"") -> 2017-04-12 | BT31: =_xlfn.IFNA(IF(INDEX('30'!F:F,AL31)=0,INDEX('30'!E:E,AL31),""),"") ->  | BU31: =_xlfn.IFNA(IF(INDEX('30'!F:F,AL31)<>0,INDEX('30'!F:F,AL31),""),"") ->  | BV31: =_xlfn.IFNA(IF(INDEX('35'!F:F,AM31)=0,INDEX('35'!E:E,AM31),""),"") ->  | BW31: =_xlfn.IFNA(IF(INDEX('35'!F:F,AM31)<>0,INDEX('35'!F:F,AM31),""),"") ->  | BX31: =_xlfn.IFNA(IF(INDEX('40'!F:F,AN31)=0,INDEX('40'!E:E,AN31),""),"") ->  | BY31: =_xlfn.IFNA(IF(INDEX('40'!F:F,AN31)<>0,INDEX('40'!F:F,AN31),""),"") ->  | BZ31: =_xlfn.IFNA(IF(INDEX('45'!F:F,AO31)=0,INDEX('45'!E:E,AO31),""),"") ->  | CA31: =_xlfn.IFNA(IF(INDEX('45'!F:F,AO31)<>0,INDEX('45'!F:F,AO31),""),"") ->  | CB31: =_xlfn.IFNA(IF(INDEX('50'!F:F,AP31)=0,INDEX('50'!E:E,AP31),""),"") ->  | CC31: =_xlfn.IFNA(IF(INDEX('50'!F:F,AP31)<>0,INDEX('50'!F:F,AP31),""),"") ->  | CJ31: 51384 | CK31: =MATCH(CJ31,EN!A:A,0) -> 4224 | CL31: =_xlfn.IFNA(INDEX(EN!I:I,CK31),"") -> REN/ERM-TGDMR-367 | CM31: http://webapp.etsi.org/workProgram/Report_WorkItem.asp?wki_id=51384 | CN31: =_xlfn.IFNA(INDEX(EN!J:J,CK31),"") -> 8 | CO31: =_xlfn.IFNA(IF(INDEX(EN!K:K,CK31)<>0,INDEX(EN!K:K,CK31),""),"") -> WA
C32: Addition | D32: 51384 | E32: =MATCH(D32,EN!A:A,0) -> 4224 | F32: =INDEX(EN!I:I,E32) -> REN/ERM-TGDMR-367 | G32: http://webapp.etsi.org/workProgram/Report_WorkItem.asp?wki_id=51384 | H32: =_xlfn.IFNA(INDEX(EN!F:F,E32),"") -> EN | I32: =_xlfn.IFNA(INDEX(EN!G:G,E32),"") -> 300 390 | J32: =_xlfn.IFNA(IF(INDEX(EN!L:L,E32)<>0,INDEX(EN!L:L,E32),""),"") -> 0.0.3 | K32: RevPending | L32: =_xlfn.IFNA(INDEX(EN!H:H,E32),"") -> HEN - RE for transmission of data (and speech) and using an integral antenna | M32: RED 3.2 | N32: =_xlfn.IFNA(INDEX(EN!J:J,E32),"") -> 8 | O32: =_xlfn.IFNA(IF(INDEX(EN!K:K,E32)<>0,INDEX(EN!K:K,E32),""),"") -> WA | P32: =_xlfn.IFNA(INDEX(EN!M:M,E32),"") -> Waiting - see "Remarks" | Q32: =_xlfn.IFNA(INDEX(EN!N:N,E32),"") -> 2017-08-29 | R32: =_xlfn.IFNA(INDEX(EN!B:B,E32),"") -> ERM TGDMR | S32: =INDEX(EN!O:O,E32) -> 14585 | T32: =MATCH(S32,Person!A:A) -> 6 | U32: =_xlfn.IFNA(INDEX(Person!B:B,T32),"") -> Bernt | V32: =_xlfn.IFNA(INDEX(Person!C:C,T32),"") -> Mattsson | W32: =MATCH(D32,'0a'!A:A,0) -> 3911 | X32: =MATCH(D32,'1'!A:A,0) -> 3804 | Y32: =MATCH(D32,'7'!A:A,0) -> 14073 | Z32: =MATCH(D32,'8'!A:A,0) -> 46552 | AA32: =MATCH(D32,'8A'!A:A,0) -> 48165 | AB32: =MATCH(D32,'9B'!A:A,0) -> 6610 | AC32: =MATCH(D32,'9C'!A:A,0) -> 3898 | AD32: =MATCH(D32,'9D'!A:A,0) -> 3615 | AE32: =MATCH(D32,'9Da'!A:A,0) -> 2430 | AF32: =MATCH(D32,'9E'!A:A,0) -> 3825 | AG32: =MATCH(D32,'10F'!A:A,0) -> 1857 | AH32: =MATCH(D32,'11'!A:A,0) -> 8310 | AI32: =MATCH(D32,'12'!A:A,0) -> 47243 | AJ32: =MATCH(D32,'12V'!A:A,0) -> 1006 | AK32: =MATCH(D32,'12W'!A:A,0) -> 1003 | AL32: =MATCH(D32,'30'!A:A,0) ->  | AM32: =MATCH(D32,'35'!A:A,0) ->  | AN32: =MATCH(D32,'40'!A:A,0) ->  | AO32: =MATCH(D32,'45'!A:A,0) ->  | AP32: =MATCH(D32,'50'!A:A,0) ->  | AQ32: =_xlfn.IFNA(INDEX('0a'!E:E,W32),"") -> 2017-02-22 | AR32: =_xlfn.IFNA(IF(INDEX('1'!G:G,X32)=0,INDEX('1'!F:F,X32),""),"") ->  | AS32: =_xlfn.IFNA(IF(INDEX('1'!G:G,X32)<>0,INDEX('1'!G:G,X32),""),"") -> 2017-02-22 | AT32: =_xlfn.IFNA(IF(INDEX('7'!F:F,Y32)=0,INDEX('7'!E:E,Y32),""),"") ->  | AU32: =_xlfn.IFNA(IF(INDEX('7'!F:F,Y32)<>0,INDEX('7'!F:F,Y32),""),"") -> 2017-05-17 | AV32: =_xlfn.IFNA(IF(INDEX('8'!F:F,Z32)=0,INDEX('8'!E:E,Z32),""),"") ->  | AW32: =_xlfn.IFNA(IF(INDEX('8'!F:F,Z32)<>0,INDEX('8'!F:F,Z32),""),"") -> 2017-06-21 | AX32: =_xlfn.IFNA(IF(INDEX('8A'!F:F,AA32)=0,INDEX('8A'!E:E,AA32),""),"") ->  | AY32: =_xlfn.IFNA(IF(INDEX('8A'!F:F,AA32)<>0,INDEX('8A'!F:F,AA32),""),"") -> 2017-08-29 | AZ32: =_xlfn.IFNA(IF(INDEX('9B'!F:F,AB32)=0,INDEX('9B'!E:E,AB32),""),"") -> 2018-03-28 | BA32: =_xlfn.IFNA(IF(INDEX('9B'!F:F,AB32)<>0,INDEX('9B'!F:F,AB32),""),"") ->  | BB32: =_xlfn.IFNA(IF(INDEX('9C'!F:F,AC32)=0,INDEX('9C'!E:E,AC32),""),"") -> 2018-06-27 | BC32: =_xlfn.IFNA(IF(INDEX('9C'!F:F,AC32)<>0,INDEX('9C'!F:F,AC32),""),"") ->  | BD32: =_xlfn.IFNA(IF(INDEX('9D'!F:F,AD32)=0,INDEX('9D'!E:E,AD32),""),"") -> 2018-06-27 | BE32: =_xlfn.IFNA(IF(INDEX('9D'!F:F,AD32)<>0,INDEX('9D'!F:F,AD32),""),"") ->  | BF32: =_xlfn.IFNA(IF(INDEX('9Da'!F:F,AE32)=0,INDEX('9Da'!E:E,AE32),""),"") -> 2018-09-26 | BG32: =_xlfn.IFNA(IF(INDEX('9Da'!F:F,AE32)<>0,INDEX('9Da'!F:F,AE32),""),"") ->  | BH32: =_xlfn.IFNA(IF(INDEX('9E'!F:F,AF32)=0,INDEX('9E'!E:E,AF32),""),"") -> 2018-10-03 | BI32: =_xlfn.IFNA(IF(INDEX('9E'!F:F,AF32)<>0,INDEX('9E'!F:F,AF32),""),"") ->  | BJ32: =_xlfn.IFNA(IF(INDEX('10F'!F:F,AG32)=0,INDEX('10F'!E:E,AG32),""),"") -> 2018-10-17 | BK32: =_xlfn.IFNA(IF(INDEX('10F'!F:F,AG32)<>0,INDEX('10F'!F:F,AG32),""),"") ->  | BL32: =_xlfn.IFNA(IF(INDEX('11'!F:F,AH32)=0,INDEX('11'!E:E,AH32),""),"") -> 2018-12-16 | BM32: =_xlfn.IFNA(IF(INDEX('11'!F:F,AH32)<>0,INDEX('11'!F:F,AH32),""),"") ->  | BN32: =_xlfn.IFNA(IF(INDEX('12'!G:G,AI32)=0,INDEX('12'!F:F,AI32),""),"") -> 2018-12-30 | BO32: =_xlfn.IFNA(IF(INDEX('12'!G:G,AI32)<>0,INDEX('12'!G:G,AI32),""),"") ->  | BP32: =_xlfn.IFNA(IF(INDEX('12V'!F:F,AJ32)=0,INDEX('12V'!E:E,AJ32),""),"") -> 2019-01-20 | BQ32: =_xlfn.IFNA(IF(INDEX('12V'!F:F,AJ32)<>0,INDEX('12V'!F:F,AJ32),""),"") ->  | BR32: =_xlfn.IFNA(IF(INDEX('12W'!F:F,AK32)=0,INDEX('12W'!E:E,AK32),""),"") -> 2019-04-14 | BS32: =_xlfn.IFNA(IF(INDEX('12W'!F:F,AK32)<>0,INDEX('12W'!F:F,AK32),""),"") ->  | BT32: =_xlfn.IFNA(IF(INDEX('30'!F:F,AL32)=0,INDEX('30'!E:E,AL32),""),"") ->  | BU32: =_xlfn.IFNA(IF(INDEX('30'!F:F,AL32)<>0,INDEX('30'!F:F,AL32),""),"") ->  | BV32: =_xlfn.IFNA(IF(INDEX('35'!F:F,AM32)=0,INDEX('35'!E:E,AM32),""),"") ->  | BW32: =_xlfn.IFNA(IF(INDEX('35'!F:F,AM32)<>0,INDEX('35'!F:F,AM32),""),"") ->  | BX32: =_xlfn.IFNA(IF(INDEX('40'!F:F,AN32)=0,INDEX('40'!E:E,AN32),""),"") ->  | BY32: =_xlfn.IFNA(IF(INDEX('40'!F:F,AN32)<>0,INDEX('40'!F:F,AN32),""),"") ->  | BZ32: =_xlfn.IFNA(IF(INDEX('45'!F:F,AO32)=0,INDEX('45'!E:E,AO32),""),"") ->  | CA32: =_xlfn.IFNA(IF(INDEX('45'!F:F,AO32)<>0,INDEX('45'!F:F,AO32),""),"") ->  | CB32: =_xlfn.IFNA(IF(INDEX('50'!F:F,AP32)=0,INDEX('50'!E:E,AP32),""),"") ->  | CC32: =_xlfn.IFNA(IF(INDEX('50'!F:F,AP32)<>0,INDEX('50'!F:F,AP32),""),"") ->  | CE32: Pre-assessment comments | CK32: =MATCH(CJ32,EN!A:A,0) ->  | CL32: =_xlfn.IFNA(INDEX(EN!I:I,CK32),"") ->  | CN32: =_xlfn.IFNA(INDEX(EN!J:J,CK32),"") ->  | CO32: =_xlfn.IFNA(IF(INDEX(EN!K:K,CK32)<>0,INDEX(EN!K:K,CK32),""),"") -> 
C33: Addition | D33: 47595 | E33: =MATCH(D33,EN!A:A,0) -> 3984 | F33: =INDEX(EN!I:I,E33) -> REN/ERM-TG17-18 | G33: http://webapp.etsi.org/workProgram/Report_WorkItem.asp?wki_id=47595 | H33: =_xlfn.IFNA(INDEX(EN!F:F,E33),"") -> EN | I33: =_xlfn.IFNA(INDEX(EN!G:G,E33),"") -> 300 422-1 | J33: =_xlfn.IFNA(IF(INDEX(EN!L:L,E33)<>0,INDEX(EN!L:L,E33),""),"") -> 2.1.1 | L33: =_xlfn.IFNA(INDEX(EN!H:H,E33),"") -> HS Wireless microphones, Audio PMSE in 25 MHz to 3 GHz, Class A | M33: RED 3.2 | N33: =_xlfn.IFNA(INDEX(EN!J:J,E33),"") -> 50 | O33: =_xlfn.IFNA(IF(INDEX(EN!K:K,E33)<>0,INDEX(EN!K:K,E33),""),"") ->  | P33: =_xlfn.IFNA(INDEX(EN!M:M,E33),"") -> Withdrawn | Q33: =_xlfn.IFNA(INDEX(EN!N:N,E33),"") -> 2017-08-21 | R33: =_xlfn.IFNA(INDEX(EN!B:B,E33),"") -> ERM TG17 | S33: =INDEX(EN!O:O,E33) -> 28591 | T33: =MATCH(S33,Person!A:A) -> 8 | U33: =_xlfn.IFNA(INDEX(Person!B:B,T33),"") -> Martin | V33: =_xlfn.IFNA(INDEX(Person!C:C,T33),"") -> Arndt | W33: =MATCH(D33,'0a'!A:A,0) -> 3677 | X33: =MATCH(D33,'1'!A:A,0) -> 3582 | Y33: =MATCH(D33,'7'!A:A,0) -> 13712 | Z33: =MATCH(D33,'8'!A:A,0) -> 42919 | AA33: =MATCH(D33,'8A'!A:A,0) -> 44482 | AB33: =MATCH(D33,'9B'!A:A,0) -> 6386 | AC33: =MATCH(D33,'9C'!A:A,0) -> 3675 | AD33: =MATCH(D33,'9D'!A:A,0) ->  | AE33: =MATCH(D33,'9Da'!A:A,0) ->  | AF33: =MATCH(D33,'9E'!A:A,0) ->  | AG33: =MATCH(D33,'10F'!A:A,0) ->  | AH33: =MATCH(D33,'11'!A:A,0) -> 8017 | AI33: =MATCH(D33,'12'!A:A,0) -> 43605 | AJ33: =MATCH(D33,'12V'!A:A,0) -> 859 | AK33: =MATCH(D33,'12W'!A:A,0) ->  | AL33: =MATCH(D33,'30'!A:A,0) -> 779 | AM33: =MATCH(D33,'35'!A:A,0) -> 772 | AN33: =MATCH(D33,'40'!A:A,0) -> 107 | AO33: =MATCH(D33,'45'!A:A,0) -> 107 | AP33: =MATCH(D33,'50'!A:A,0) -> 871 | AQ33: =_xlfn.IFNA(INDEX('0a'!E:E,W33),"") -> 2015-09-01 | AR33: =_xlfn.IFNA(IF(INDEX('1'!G:G,X33)=0,INDEX('1'!F:F,X33),""),"") ->  | AS33: =_xlfn.IFNA(IF(INDEX('1'!G:G,X33)<>0,INDEX('1'!G:G,X33),""),"") -> 2016-02-25 | AT33: =_xlfn.IFNA(IF(INDEX('7'!F:F,Y33)=0,INDEX('7'!E:E,Y33),""),"") -> 2016-02-24 | AU33: =_xlfn.IFNA(IF(INDEX('7'!F:F,Y33)<>0,INDEX('7'!F:F,Y33),""),"") ->  | AV33: =_xlfn.IFNA(IF(INDEX('8'!F:F,Z33)=0,INDEX('8'!E:E,Z33),""),"") ->  | AW33: =_xlfn.IFNA(IF(INDEX('8'!F:F,Z33)<>0,INDEX('8'!F:F,Z33),""),"") -> 2016-02-25 | AX33: =_xlfn.IFNA(IF(INDEX('8A'!F:F,AA33)=0,INDEX('8A'!E:E,AA33),""),"") ->  | AY33: =_xlfn.IFNA(IF(INDEX('8A'!F:F,AA33)<>0,INDEX('8A'!F:F,AA33),""),"") -> 2016-03-30 | AZ33: =_xlfn.IFNA(IF(INDEX('9B'!F:F,AB33)=0,INDEX('9B'!E:E,AB33),""),"") ->  | BA33: =_xlfn.IFNA(IF(INDEX('9B'!F:F,AB33)<>0,INDEX('9B'!F:F,AB33),""),"") -> 2016-04-22 | BB33: =_xlfn.IFNA(IF(INDEX('9C'!F:F,AC33)=0,INDEX('9C'!E:E,AC33),""),"") ->  | BC33: =_xlfn.IFNA(IF(INDEX('9C'!F:F,AC33)<>0,INDEX('9C'!F:F,AC33),""),"") -> 2016-07-21 | BD33: =_xlfn.IFNA(IF(INDEX('9D'!F:F,AD33)=0,INDEX('9D'!E:E,AD33),""),"") ->  | BE33: =_xlfn.IFNA(IF(INDEX('9D'!F:F,AD33)<>0,INDEX('9D'!F:F,AD33),""),"") ->  | BF33: =_xlfn.IFNA(IF(INDEX('9Da'!F:F,AE33)=0,INDEX('9Da'!E:E,AE33),""),"") ->  | BG33: =_xlfn.IFNA(IF(INDEX('9Da'!F:F,AE33)<>0,INDEX('9Da'!F:F,AE33),""),"") ->  | BH33: =_xlfn.IFNA(IF(INDEX('9E'!F:F,AF33)=0,INDEX('9E'!E:E,AF33),""),"") ->  | BI33: =_xlfn.IFNA(IF(INDEX('9E'!F:F,AF33)<>0,INDEX('9E'!F:F,AF33),""),"") ->  | BJ33: =_xlfn.IFNA(IF(INDEX('10F'!F:F,AG33)=0,INDEX('10F'!E:E,AG33),""),"") ->  | BK33: =_xlfn.IFNA(IF(INDEX('10F'!F:F,AG33)<>0,INDEX('10F'!F:F,AG33),""),"") ->  | BL33: =_xlfn.IFNA(IF(INDEX('11'!F:F,AH33)=0,INDEX('11'!E:E,AH33),""),"") ->  | BM33: =_xlfn.IFNA(IF(INDEX('11'!F:F,AH33)<>0,INDEX('11'!F:F,AH33),""),"") -> 2016-07-21 | BN33: =_xlfn.IFNA(IF(INDEX('12'!G:G,AI33)=0,INDEX('12'!F:F,AI33),""),"") ->  | BO33: =_xlfn.IFNA(IF(INDEX('12'!G:G,AI33)<>0,INDEX('12'!G:G,AI33),""),"") -> 2016-09-16 | BP33: =_xlfn.IFNA(IF(INDEX('12V'!F:F,AJ33)=0,INDEX('12V'!E:E,AJ33),""),"") ->  | BQ33: =_xlfn.IFNA(IF(INDEX('12V'!F:F,AJ33)<>0,INDEX('12V'!F:F,AJ33),""),"") -> 2016-10-05 | BR33: =_xlfn.IFNA(IF(INDEX('12W'!F:F,AK33)=0,INDEX('12W'!E:E,AK33),""),"") ->  | BS33: =_xlfn.IFNA(IF(INDEX('12W'!F:F,AK33)<>0,INDEX('12W'!F:F,AK33),""),"") ->  | BT33: =_xlfn.IFNA(IF(INDEX('30'!F:F,AL33)=0,INDEX('30'!E:E,AL33),""),"") ->  | BU33: =_xlfn.IFNA(IF(INDEX('30'!F:F,AL33)<>0,INDEX('30'!F:F,AL33),""),"") -> 2017-06-16 | BV33: =_xlfn.IFNA(IF(INDEX('35'!F:F,AM33)=0,INDEX('35'!E:E,AM33),""),"") ->  | BW33: =_xlfn.IFNA(IF(INDEX('35'!F:F,AM33)<>0,INDEX('35'!F:F,AM33),""),"") -> 2017-06-21 | BX33: =_xlfn.IFNA(IF(INDEX('40'!F:F,AN33)=0,INDEX('40'!E:E,AN33),""),"") ->  | BY33: =_xlfn.IFNA(IF(INDEX('40'!F:F,AN33)<>0,INDEX('40'!F:F,AN33),""),"") -> 2017-06-22 | BZ33: =_xlfn.IFNA(IF(INDEX('45'!F:F,AO33)=0,INDEX('45'!E:E,AO33),""),"") ->  | CA33: =_xlfn.IFNA(IF(INDEX('45'!F:F,AO33)<>0,INDEX('45'!F:F,AO33),""),"") -> 2017-08-21 | CB33: =_xlfn.IFNA(IF(INDEX('50'!F:F,AP33)=0,INDEX('50'!E:E,AP33),""),"") ->  | CC33: =_xlfn.IFNA(IF(INDEX('50'!F:F,AP33)<>0,INDEX('50'!F:F,AP33),""),"") -> 2017-08-21 | CE33: Later version cited - awaiting withdrawal of old version | CJ33: 51164 | CK33: =MATCH(CJ33,EN!A:A,0) -> 4179 | CL33: =_xlfn.IFNA(INDEX(EN!I:I,CK33),"") -> REN/ERM-TG17-18-C1 | CM33: http://webapp.etsi.org/workProgram/Report_WorkItem.asp?wki_id=51164 | CN33: =_xlfn.IFNA(INDEX(EN!J:J,CK33),"") -> 12 | CO33: =_xlfn.IFNA(IF(INDEX(EN!K:K,CK33)<>0,INDEX(EN!K:K,CK33),""),"") -> W
C34: Addition | D34: 51164 | E34: =MATCH(D34,EN!A:A,0) -> 4179 | F34: =INDEX(EN!I:I,E34) -> REN/ERM-TG17-18-C1 | G34: http://webapp.etsi.org/workProgram/Report_WorkItem.asp?wki_id=51164 | H34: =_xlfn.IFNA(INDEX(EN!F:F,E34),"") -> EN | I34: =_xlfn.IFNA(INDEX(EN!G:G,E34),"") -> 300 422-1 | J34: =_xlfn.IFNA(IF(INDEX(EN!L:L,E34)<>0,INDEX(EN!L:L,E34),""),"") -> 2.1.2 | K34: Cited | L34: =_xlfn.IFNA(INDEX(EN!H:H,E34),"") -> HS Wireless microphones, Audio PMSE in 25 MHz to 3 GHz, Class A | M34: RED 3.2 | N34: =_xlfn.IFNA(INDEX(EN!J:J,E34),"") -> 12 | O34: =_xlfn.IFNA(IF(INDEX(EN!K:K,E34)<>0,INDEX(EN!K:K,E34),""),"") -> W | P34: =_xlfn.IFNA(INDEX(EN!M:M,E34),"") -> Citation in the OJ | Q34: =_xlfn.IFNA(INDEX(EN!N:N,E34),"") -> 2017-02-10 | R34: =_xlfn.IFNA(INDEX(EN!B:B,E34),"") -> ERM TG17 | S34: =INDEX(EN!O:O,E34) -> 28591 | T34: =MATCH(S34,Person!A:A) -> 8 | U34: =_xlfn.IFNA(INDEX(Person!B:B,T34),"") -> Martin | V34: =_xlfn.IFNA(INDEX(Person!C:C,T34),"") -> Arndt | W34: =MATCH(D34,'0a'!A:A,0) -> 3866 | X34: =MATCH(D34,'1'!A:A,0) ->  | Y34: =MATCH(D34,'7'!A:A,0) ->  | Z34: =MATCH(D34,'8'!A:A,0) -> 46333 | AA34: =MATCH(D34,'8A'!A:A,0) -> 47941 | AB34: =MATCH(D34,'9B'!A:A,0) ->  | AC34: =MATCH(D34,'9C'!A:A,0) ->  | AD34: =MATCH(D34,'9D'!A:A,0) ->  | AE34: =MATCH(D34,'9Da'!A:A,0) ->  | AF34: =MATCH(D34,'9E'!A:A,0) ->  | AG34: =MATCH(D34,'10F'!A:A,0) ->  | AH34: =MATCH(D34,'11'!A:A,0) ->  | AI34: =MATCH(D34,'12'!A:A,0) -> 47023 | AJ34: =MATCH(D34,'12V'!A:A,0) -> 964 | AK34: =MATCH(D34,'12W'!A:A,0) -> 961 | AL34: =MATCH(D34,'30'!A:A,0) ->  | AM34: =MATCH(D34,'35'!A:A,0) ->  | AN34: =MATCH(D34,'40'!A:A,0) ->  | AO34: =MATCH(D34,'45'!A:A,0) ->  | AP34: =MATCH(D34,'50'!A:A,0) ->  | AQ34: =_xlfn.IFNA(INDEX('0a'!E:E,W34),"") -> 2016-12-22 | AR34: =_xlfn.IFNA(IF(INDEX('1'!G:G,X34)=0,INDEX('1'!F:F,X34),""),"") ->  | AS34: =_xlfn.IFNA(IF(INDEX('1'!G:G,X34)<>0,INDEX('1'!G:G,X34),""),"") ->  | AT34: =_xlfn.IFNA(IF(INDEX('7'!F:F,Y34)=0,INDEX('7'!E:E,Y34),""),"") ->  | AU34: =_xlfn.IFNA(IF(INDEX('7'!F:F,Y34)<>0,INDEX('7'!F:F,Y34),""),"") ->  | AV34: =_xlfn.IFNA(IF(INDEX('8'!F:F,Z34)=0,INDEX('8'!E:E,Z34),""),"") ->  | AW34: =_xlfn.IFNA(IF(INDEX('8'!F:F,Z34)<>0,INDEX('8'!F:F,Z34),""),"") -> 2016-12-22 | AX34: =_xlfn.IFNA(IF(INDEX('8A'!F:F,AA34)=0,INDEX('8A'!E:E,AA34),""),"") ->  | AY34: =_xlfn.IFNA(IF(INDEX('8A'!F:F,AA34)<>0,INDEX('8A'!F:F,AA34),""),"") -> 2016-12-22 | AZ34: =_xlfn.IFNA(IF(INDEX('9B'!F:F,AB34)=0,INDEX('9B'!E:E,AB34),""),"") ->  | BA34: =_xlfn.IFNA(IF(INDEX('9B'!F:F,AB34)<>0,INDEX('9B'!F:F,AB34),""),"") ->  | BB34: =_xlfn.IFNA(IF(INDEX('9C'!F:F,AC34)=0,INDEX('9C'!E:E,AC34),""),"") ->  | BC34: =_xlfn.IFNA(IF(INDEX('9C'!F:F,AC34)<>0,INDEX('9C'!F:F,AC34),""),"") ->  | BD34: =_xlfn.IFNA(IF(INDEX('9D'!F:F,AD34)=0,INDEX('9D'!E:E,AD34),""),"") ->  | BE34: =_xlfn.IFNA(IF(INDEX('9D'!F:F,AD34)<>0,INDEX('9D'!F:F,AD34),""),"") ->  | BF34: =_xlfn.IFNA(IF(INDEX('9Da'!F:F,AE34)=0,INDEX('9Da'!E:E,AE34),""),"") ->  | BG34: =_xlfn.IFNA(IF(INDEX('9Da'!F:F,AE34)<>0,INDEX('9Da'!F:F,AE34),""),"") ->  | BH34: =_xlfn.IFNA(IF(INDEX('9E'!F:F,AF34)=0,INDEX('9E'!E:E,AF34),""),"") ->  | BI34: =_xlfn.IFNA(IF(INDEX('9E'!F:F,AF34)<>0,INDEX('9E'!F:F,AF34),""),"") ->  | BJ34: =_xlfn.IFNA(IF(INDEX('10F'!F:F,AG34)=0,INDEX('10F'!E:E,AG34),""),"") ->  | BK34: =_xlfn.IFNA(IF(INDEX('10F'!F:F,AG34)<>0,INDEX('10F'!F:F,AG34),""),"") ->  | BL34: =_xlfn.IFNA(IF(INDEX('11'!F:F,AH34)=0,INDEX('11'!E:E,AH34),""),"") ->  | BM34: =_xlfn.IFNA(IF(INDEX('11'!F:F,AH34)<>0,INDEX('11'!F:F,AH34),""),"") ->  | BN34: =_xlfn.IFNA(IF(INDEX('12'!G:G,AI34)=0,INDEX('12'!F:F,AI34),""),"") ->  | BO34: =_xlfn.IFNA(IF(INDEX('12'!G:G,AI34)<>0,INDEX('12'!G:G,AI34),""),"") -> 2017-01-11 | BP34: =_xlfn.IFNA(IF(INDEX('12V'!F:F,AJ34)=0,INDEX('12V'!E:E,AJ34),""),"") ->  | BQ34: =_xlfn.IFNA(IF(INDEX('12V'!F:F,AJ34)<>0,INDEX('12V'!F:F,AJ34),""),"") -> 2017-01-12 | BR34: =_xlfn.IFNA(IF(INDEX('12W'!F:F,AK34)=0,INDEX('12W'!E:E,AK34),""),"") ->  | BS34: =_xlfn.IFNA(IF(INDEX('12W'!F:F,AK34)<>0,INDEX('12W'!F:F,AK34),""),"") -> 2017-02-10 | BT34: =_xlfn.IFNA(IF(INDEX('30'!F:F,AL34)=0,INDEX('30'!E:E,AL34),""),"") ->  | BU34: =_xlfn.IFNA(IF(INDEX('30'!F:F,AL34)<>0,INDEX('30'!F:F,AL34),""),"") ->  | BV34: =_xlfn.IFNA(IF(INDEX('35'!F:F,AM34)=0,INDEX('35'!E:E,AM34),""),"") ->  | BW34: =_xlfn.IFNA(IF(INDEX('35'!F:F,AM34)<>0,INDEX('35'!F:F,AM34),""),"") ->  | BX34: =_xlfn.IFNA(IF(INDEX('40'!F:F,AN34)=0,INDEX('40'!E:E,AN34),""),"") ->  | BY34: =_xlfn.IFNA(IF(INDEX('40'!F:F,AN34)<>0,INDEX('40'!F:F,AN34),""),"") ->  | BZ34: =_xlfn.IFNA(IF(INDEX('45'!F:F,AO34)=0,INDEX('45'!E:E,AO34),""),"") ->  | CA34: =_xlfn.IFNA(IF(INDEX('45'!F:F,AO34)<>0,INDEX('45'!F:F,AO34),""),"") ->  | CB34: =_xlfn.IFNA(IF(INDEX('50'!F:F,AP34)=0,INDEX('50'!E:E,AP34),""),"") ->  | CC34: =_xlfn.IFNA(IF(INDEX('50'!F:F,AP34)<>0,INDEX('50'!F:F,AP34),""),"") ->  | CJ34: 53883 | CK34: =MATCH(CJ34,EN!A:A,0) -> 4333 | CL34: =_xlfn.IFNA(INDEX(EN!I:I,CK34),"") -> REN/ERM-TG17-157 | CM34: http://webapp.etsi.org/workProgram/Report_WorkItem.asp?wki_id=53883 | CN34: =_xlfn.IFNA(INDEX(EN!J:J,CK34),"") -> 2 | CO34: =_xlfn.IFNA(IF(INDEX(EN!K:K,CK34)<>0,INDEX(EN!K:K,CK34),""),"") -> 
C35: Addition | D35: 53883 | E35: =MATCH(D35,EN!A:A,0) -> 4333 | F35: =INDEX(EN!I:I,E35) -> REN/ERM-TG17-157 | G35: http://webapp.etsi.org/workProgram/Report_WorkItem.asp?wki_id=53883 | H35: =_xlfn.IFNA(INDEX(EN!F:F,E35),"") -> EN | I35: =_xlfn.IFNA(INDEX(EN!G:G,E35),"") -> 300 422-1 | J35: =_xlfn.IFNA(IF(INDEX(EN!L:L,E35)<>0,INDEX(EN!L:L,E35),""),"") -> 0.0.2 | K35: RevPending | L35: =_xlfn.IFNA(INDEX(EN!H:H,E35),"") -> Wireless microphones, Audio PMSE up to 3 GHz Part 1 | M35: RED 3.2 | N35: =_xlfn.IFNA(INDEX(EN!J:J,E35),"") -> 2 | O35: =_xlfn.IFNA(IF(INDEX(EN!K:K,E35)<>0,INDEX(EN!K:K,E35),""),"") ->  | P35: =_xlfn.IFNA(INDEX(EN!M:M,E35),"") -> Early draft | Q35: =_xlfn.IFNA(INDEX(EN!N:N,E35),"") -> 2018-01-17 | R35: =_xlfn.IFNA(INDEX(EN!B:B,E35),"") -> ERM TG17 | S35: =INDEX(EN!O:O,E35) -> 26441 | T35: =MATCH(S35,Person!A:A) -> 7 | U35: =_xlfn.IFNA(INDEX(Person!B:B,T35),"") -> Igor | V35: =_xlfn.IFNA(INDEX(Person!C:C,T35),"") -> Minaev | W35: =MATCH(D35,'0a'!A:A,0) -> 3988 | X35: =MATCH(D35,'1'!A:A,0) -> 3871 | Y35: =MATCH(D35,'7'!A:A,0) -> 14196 | Z35: =MATCH(D35,'8'!A:A,0) -> 48948 | AA35: =MATCH(D35,'8A'!A:A,0) -> 50602 | AB35: =MATCH(D35,'9B'!A:A,0) -> 6676 | AC35: =MATCH(D35,'9C'!A:A,0) -> 3964 | AD35: =MATCH(D35,'9D'!A:A,0) -> 3671 | AE35: =MATCH(D35,'9Da'!A:A,0) -> 2486 | AF35: =MATCH(D35,'9E'!A:A,0) -> 3882 | AG35: =MATCH(D35,'10F'!A:A,0) -> 1922 | AH35: =MATCH(D35,'11'!A:A,0) -> 8379 | AI35: =MATCH(D35,'12'!A:A,0) -> 49647 | AJ35: =MATCH(D35,'12V'!A:A,0) -> 1058 | AK35: =MATCH(D35,'12W'!A:A,0) -> 1084 | AL35: =MATCH(D35,'30'!A:A,0) ->  | AM35: =MATCH(D35,'35'!A:A,0) ->  | AN35: =MATCH(D35,'40'!A:A,0) ->  | AO35: =MATCH(D35,'45'!A:A,0) ->  | AP35: =MATCH(D35,'50'!A:A,0) ->  | AQ35: =_xlfn.IFNA(INDEX('0a'!E:E,W35),"") -> 2017-10-18 | AR35: =_xlfn.IFNA(IF(INDEX('1'!G:G,X35)=0,INDEX('1'!F:F,X35),""),"") -> 2017-10-31 | AS35: =_xlfn.IFNA(IF(INDEX('1'!G:G,X35)<>0,INDEX('1'!G:G,X35),""),"") ->  | AT35: =_xlfn.IFNA(IF(INDEX('7'!F:F,Y35)=0,INDEX('7'!E:E,Y35),""),"") -> 2019-01-29 | AU35: =_xlfn.IFNA(IF(INDEX('7'!F:F,Y35)<>0,INDEX('7'!F:F,Y35),""),"") ->  | AV35: =_xlfn.IFNA(IF(INDEX('8'!F:F,Z35)=0,INDEX('8'!E:E,Z35),""),"") -> 2019-01-29 | AW35: =_xlfn.IFNA(IF(INDEX('8'!F:F,Z35)<>0,INDEX('8'!F:F,Z35),""),"") ->  | AX35: =_xlfn.IFNA(IF(INDEX('8A'!F:F,AA35)=0,INDEX('8A'!E:E,AA35),""),"") -> 2019-02-12 | AY35: =_xlfn.IFNA(IF(INDEX('8A'!F:F,AA35)<>0,INDEX('8A'!F:F,AA35),""),"") ->  | AZ35: =_xlfn.IFNA(IF(INDEX('9B'!F:F,AB35)=0,INDEX('9B'!E:E,AB35),""),"") -> 2019-02-26 | BA35: =_xlfn.IFNA(IF(INDEX('9B'!F:F,AB35)<>0,INDEX('9B'!F:F,AB35),""),"") ->  | BB35: =_xlfn.IFNA(IF(INDEX('9C'!F:F,AC35)=0,INDEX('9C'!E:E,AC35),""),"") -> 2019-05-28 | BC35: =_xlfn.IFNA(IF(INDEX('9C'!F:F,AC35)<>0,INDEX('9C'!F:F,AC35),""),"") ->  | BD35: =_xlfn.IFNA(IF(INDEX('9D'!F:F,AD35)=0,INDEX('9D'!E:E,AD35),""),"") -> 2019-05-28 | BE35: =_xlfn.IFNA(IF(INDEX('9D'!F:F,AD35)<>0,INDEX('9D'!F:F,AD35),""),"") ->  | BF35: =_xlfn.IFNA(IF(INDEX('9Da'!F:F,AE35)=0,INDEX('9Da'!E:E,AE35),""),"") -> 2019-08-27 | BG35: =_xlfn.IFNA(IF(INDEX('9Da'!F:F,AE35)<>0,INDEX('9Da'!F:F,AE35),""),"") ->  | BH35: =_xlfn.IFNA(IF(INDEX('9E'!F:F,AF35)=0,INDEX('9E'!E:E,AF35),""),"") -> 2019-09-03 | BI35: =_xlfn.IFNA(IF(INDEX('9E'!F:F,AF35)<>0,INDEX('9E'!F:F,AF35),""),"") ->  | BJ35: =_xlfn.IFNA(IF(INDEX('10F'!F:F,AG35)=0,INDEX('10F'!E:E,AG35),""),"") -> 2019-09-17 | BK35: =_xlfn.IFNA(IF(INDEX('10F'!F:F,AG35)<>0,INDEX('10F'!F:F,AG35),""),"") ->  | BL35: =_xlfn.IFNA(IF(INDEX('11'!F:F,AH35)=0,INDEX('11'!E:E,AH35),""),"") -> 2019-11-16 | BM35: =_xlfn.IFNA(IF(INDEX('11'!F:F,AH35)<>0,INDEX('11'!F:F,AH35),""),"") ->  | BN35: =_xlfn.IFNA(IF(INDEX('12'!G:G,AI35)=0,INDEX('12'!F:F,AI35),""),"") -> 2019-11-30 | BO35: =_xlfn.IFNA(IF(INDEX('12'!G:G,AI35)<>0,INDEX('12'!G:G,AI35),""),"") ->  | BP35: =_xlfn.IFNA(IF(INDEX('12V'!F:F,AJ35)=0,INDEX('12V'!E:E,AJ35),""),"") -> 2019-12-21 | BQ35: =_xlfn.IFNA(IF(INDEX('12V'!F:F,AJ35)<>0,INDEX('12V'!F:F,AJ35),""),"") ->  | BR35: =_xlfn.IFNA(IF(INDEX('12W'!F:F,AK35)=0,INDEX('12W'!E:E,AK35),""),"") -> 2020-03-14 | BS35: =_xlfn.IFNA(IF(INDEX('12W'!F:F,AK35)<>0,INDEX('12W'!F:F,AK35),""),"") ->  | BT35: =_xlfn.IFNA(IF(INDEX('30'!F:F,AL35)=0,INDEX('30'!E:E,AL35),""),"") ->  | BU35: =_xlfn.IFNA(IF(INDEX('30'!F:F,AL35)<>0,INDEX('30'!F:F,AL35),""),"") ->  | BV35: =_xlfn.IFNA(IF(INDEX('35'!F:F,AM35)=0,INDEX('35'!E:E,AM35),""),"") ->  | BW35: =_xlfn.IFNA(IF(INDEX('35'!F:F,AM35)<>0,INDEX('35'!F:F,AM35),""),"") ->  | BX35: =_xlfn.IFNA(IF(INDEX('40'!F:F,AN35)=0,INDEX('40'!E:E,AN35),""),"") ->  | BY35: =_xlfn.IFNA(IF(INDEX('40'!F:F,AN35)<>0,INDEX('40'!F:F,AN35),""),"") ->  | BZ35: =_xlfn.IFNA(IF(INDEX('45'!F:F,AO35)=0,INDEX('45'!E:E,AO35),""),"") ->  | CA35: =_xlfn.IFNA(IF(INDEX('45'!F:F,AO35)<>0,INDEX('45'!F:F,AO35),""),"") ->  | CB35: =_xlfn.IFNA(IF(INDEX('50'!F:F,AP35)=0,INDEX('50'!E:E,AP35),""),"") ->  | CC35: =_xlfn.IFNA(IF(INDEX('50'!F:F,AP35)<>0,INDEX('50'!F:F,AP35),""),"") ->  | CK35: =MATCH(CJ35,EN!A:A,0) ->  | CL35: =_xlfn.IFNA(INDEX(EN!I:I,CK35),"") ->  | CN35: =_xlfn.IFNA(INDEX(EN!J:J,CK35),"") ->  | CO35: =_xlfn.IFNA(IF(INDEX(EN!K:K,CK35)<>0,INDEX(EN!K:K,CK35),""),"") -> 
A36: 300 422-2 | B36: 1.3.1 1.4.1 | C36: Original | D36: 47596 | E36: =MATCH(D36,EN!A:A,0) -> 3985 | F36: =INDEX(EN!I:I,E36) -> REN/ERM-TG17-19 | G36: http://webapp.etsi.org/workProgram/Report_WorkItem.asp?wki_id=47596 | H36: =_xlfn.IFNA(INDEX(EN!F:F,E36),"") -> EN | I36: =_xlfn.IFNA(INDEX(EN!G:G,E36),"") -> 300 422-2 | J36: =_xlfn.IFNA(IF(INDEX(EN!L:L,E36)<>0,INDEX(EN!L:L,E36),""),"") -> 2.1.1 | K36: Cited | L36: =_xlfn.IFNA(INDEX(EN!H:H,E36),"") -> HS Wireless microphones, Audio PMSE in 25 MHz to 3 GHz, Class B | M36: RED 3.2 | N36: =_xlfn.IFNA(INDEX(EN!J:J,E36),"") -> 12 | O36: =_xlfn.IFNA(IF(INDEX(EN!K:K,E36)<>0,INDEX(EN!K:K,E36),""),"") -> W | P36: =_xlfn.IFNA(INDEX(EN!M:M,E36),"") -> Citation in the OJ | Q36: =_xlfn.IFNA(INDEX(EN!N:N,E36),"") -> 2017-03-10 | R36: =_xlfn.IFNA(INDEX(EN!B:B,E36),"") -> ERM TG17 | S36: =INDEX(EN!O:O,E36) -> 28591 | T36: =MATCH(S36,Person!A:A) -> 8 | U36: =_xlfn.IFNA(INDEX(Person!B:B,T36),"") -> Martin | V36: =_xlfn.IFNA(INDEX(Person!C:C,T36),"") -> Arndt | W36: =MATCH(D36,'0a'!A:A,0) -> 3678 | X36: =MATCH(D36,'1'!A:A,0) -> 3583 | Y36: =MATCH(D36,'7'!A:A,0) ->  | Z36: =MATCH(D36,'8'!A:A,0) -> 42920 | AA36: =MATCH(D36,'8A'!A:A,0) -> 44483 | AB36: =MATCH(D36,'9B'!A:A,0) -> 6387 | AC36: =MATCH(D36,'9C'!A:A,0) -> 3676 | AD36: =MATCH(D36,'9D'!A:A,0) -> 3453 | AE36: =MATCH(D36,'9Da'!A:A,0) -> 2268 | AF36: =MATCH(D36,'9E'!A:A,0) -> 3663 | AG36: =MATCH(D36,'10F'!A:A,0) -> 1701 | AH36: =MATCH(D36,'11'!A:A,0) -> 8019 | AI36: =MATCH(D36,'12'!A:A,0) -> 43606 | AJ36: =MATCH(D36,'12V'!A:A,0) -> 860 | AK36: =MATCH(D36,'12W'!A:A,0) -> 858 | AL36: =MATCH(D36,'30'!A:A,0) ->  | AM36: =MATCH(D36,'35'!A:A,0) ->  | AN36: =MATCH(D36,'40'!A:A,0) ->  | AO36: =MATCH(D36,'45'!A:A,0) ->  | AP36: =MATCH(D36,'50'!A:A,0) ->  | AQ36: =_xlfn.IFNA(INDEX('0a'!E:E,W36),"") -> 2015-09-01 | AR36: =_xlfn.IFNA(IF(INDEX('1'!G:G,X36)=0,INDEX('1'!F:F,X36),""),"") ->  | AS36: =_xlfn.IFNA(IF(INDEX('1'!G:G,X36)<>0,INDEX('1'!G:G,X36),""),"") -> 2015-07-28 | AT36: =_xlfn.IFNA(IF(INDEX('7'!F:F,Y36)=0,INDEX('7'!E:E,Y36),""),"") ->  | AU36: =_xlfn.IFNA(IF(INDEX('7'!F:F,Y36)<>0,INDEX('7'!F:F,Y36),""),"") ->  | AV36: =_xlfn.IFNA(IF(INDEX('8'!F:F,Z36)=0,INDEX('8'!E:E,Z36),""),"") ->  | AW36: =_xlfn.IFNA(IF(INDEX('8'!F:F,Z36)<>0,INDEX('8'!F:F,Z36),""),"") -> 2016-02-25 | AX36: =_xlfn.IFNA(IF(INDEX('8A'!F:F,AA36)=0,INDEX('8A'!E:E,AA36),""),"") ->  | AY36: =_xlfn.IFNA(IF(INDEX('8A'!F:F,AA36)<>0,INDEX('8A'!F:F,AA36),""),"") -> 2016-04-18 | AZ36: =_xlfn.IFNA(IF(INDEX('9B'!F:F,AB36)=0,INDEX('9B'!E:E,AB36),""),"") ->  | BA36: =_xlfn.IFNA(IF(INDEX('9B'!F:F,AB36)<>0,INDEX('9B'!F:F,AB36),""),"") -> 2016-05-23 | BB36: =_xlfn.IFNA(IF(INDEX('9C'!F:F,AC36)=0,INDEX('9C'!E:E,AC36),""),"") ->  | BC36: =_xlfn.IFNA(IF(INDEX('9C'!F:F,AC36)<>0,INDEX('9C'!F:F,AC36),""),"") -> 2016-08-22 | BD36: =_xlfn.IFNA(IF(INDEX('9D'!F:F,AD36)=0,INDEX('9D'!E:E,AD36),""),"") ->  | BE36: =_xlfn.IFNA(IF(INDEX('9D'!F:F,AD36)<>0,INDEX('9D'!F:F,AD36),""),"") -> 2016-09-14 | BF36: =_xlfn.IFNA(IF(INDEX('9Da'!F:F,AE36)=0,INDEX('9Da'!E:E,AE36),""),"") ->  | BG36: =_xlfn.IFNA(IF(INDEX('9Da'!F:F,AE36)<>0,INDEX('9Da'!F:F,AE36),""),"") -> 2016-10-26 | BH36: =_xlfn.IFNA(IF(INDEX('9E'!F:F,AF36)=0,INDEX('9E'!E:E,AF36),""),"") ->  | BI36: =_xlfn.IFNA(IF(INDEX('9E'!F:F,AF36)<>0,INDEX('9E'!F:F,AF36),""),"") -> 2016-10-28 | BJ36: =_xlfn.IFNA(IF(INDEX('10F'!F:F,AG36)=0,INDEX('10F'!E:E,AG36),""),"") ->  | BK36: =_xlfn.IFNA(IF(INDEX('10F'!F:F,AG36)<>0,INDEX('10F'!F:F,AG36),""),"") -> 2016-12-14 | BL36: =_xlfn.IFNA(IF(INDEX('11'!F:F,AH36)=0,INDEX('11'!E:E,AH36),""),"") ->  | BM36: =_xlfn.IFNA(IF(INDEX('11'!F:F,AH36)<>0,INDEX('11'!F:F,AH36),""),"") -> 2017-02-13 | BN36: =_xlfn.IFNA(IF(INDEX('12'!G:G,AI36)=0,INDEX('12'!F:F,AI36),""),"") ->  | BO36: =_xlfn.IFNA(IF(INDEX('12'!G:G,AI36)<>0,INDEX('12'!G:G,AI36),""),"") -> 2017-02-21 | BP36: =_xlfn.IFNA(IF(INDEX('12V'!F:F,AJ36)=0,INDEX('12V'!E:E,AJ36),""),"") ->  | BQ36: =_xlfn.IFNA(IF(INDEX('12V'!F:F,AJ36)<>0,INDEX('12V'!F:F,AJ36),""),"") -> 2017-02-22 | BR36: =_xlfn.IFNA(IF(INDEX('12W'!F:F,AK36)=0,INDEX('12W'!E:E,AK36),""),"") ->  | BS36: =_xlfn.IFNA(IF(INDEX('12W'!F:F,AK36)<>0,INDEX('12W'!F:F,AK36),""),"") -> 2017-03-10 | BT36: =_xlfn.IFNA(IF(INDEX('30'!F:F,AL36)=0,INDEX('30'!E:E,AL36),""),"") ->  | BU36: =_xlfn.IFNA(IF(INDEX('30'!F:F,AL36)<>0,INDEX('30'!F:F,AL36),""),"") ->  | BV36: =_xlfn.IFNA(IF(INDEX('35'!F:F,AM36)=0,INDEX('35'!E:E,AM36),""),"") ->  | BW36: =_xlfn.IFNA(IF(INDEX('35'!F:F,AM36)<>0,INDEX('35'!F:F,AM36),""),"") ->  | BX36: =_xlfn.IFNA(IF(INDEX('40'!F:F,AN36)=0,INDEX('40'!E:E,AN36),""),"") ->  | BY36: =_xlfn.IFNA(IF(INDEX('40'!F:F,AN36)<>0,INDEX('40'!F:F,AN36),""),"") ->  | BZ36: =_xlfn.IFNA(IF(INDEX('45'!F:F,AO36)=0,INDEX('45'!E:E,AO36),""),"") ->  | CA36: =_xlfn.IFNA(IF(INDEX('45'!F:F,AO36)<>0,INDEX('45'!F:F,AO36),""),"") ->  | CB36: =_xlfn.IFNA(IF(INDEX('50'!F:F,AP36)=0,INDEX('50'!E:E,AP36),""),"") ->  | CC36: =_xlfn.IFNA(IF(INDEX('50'!F:F,AP36)<>0,INDEX('50'!F:F,AP36),""),"") ->  | CK36: =MATCH(CJ36,EN!A:A,0) ->  | CL36: =_xlfn.IFNA(INDEX(EN!I:I,CK36),"") ->  | CN36: =_xlfn.IFNA(INDEX(EN!J:J,CK36),"") ->  | CO36: =_xlfn.IFNA(IF(INDEX(EN!K:K,CK36)<>0,INDEX(EN!K:K,CK36),""),"") -> 
C37: Addition | D37: 49512 | E37: =MATCH(D37,EN!A:A,0) -> 4049 | F37: =INDEX(EN!I:I,E37) -> DEN/ERM-TG17-23 | G37: http://webapp.etsi.org/workProgram/Report_WorkItem.asp?wki_id=49512 | H37: =_xlfn.IFNA(INDEX(EN!F:F,E37),"") -> EN | I37: =_xlfn.IFNA(INDEX(EN!G:G,E37),"") -> 300 422-3 | J37: =_xlfn.IFNA(IF(INDEX(EN!L:L,E37)<>0,INDEX(EN!L:L,E37),""),"") -> 2.1.1 | K37: Cited | L37: =_xlfn.IFNA(INDEX(EN!H:H,E37),"") -> HS Wireless microphones, Audio PMSE in 25 MHz to 3 GHz, Class C | M37: RED 3.2 | N37: =_xlfn.IFNA(INDEX(EN!J:J,E37),"") -> 12 | O37: =_xlfn.IFNA(IF(INDEX(EN!K:K,E37)<>0,INDEX(EN!K:K,E37),""),"") -> W | P37: =_xlfn.IFNA(INDEX(EN!M:M,E37),"") -> Citation in the OJ | Q37: =_xlfn.IFNA(INDEX(EN!N:N,E37),"") -> 2017-03-10 | R37: =_xlfn.IFNA(INDEX(EN!B:B,E37),"") -> ERM TG17 | S37: =INDEX(EN!O:O,E37) -> 28591 | T37: =MATCH(S37,Person!A:A) -> 8 | U37: =_xlfn.IFNA(INDEX(Person!B:B,T37),"") -> Martin | V37: =_xlfn.IFNA(INDEX(Person!C:C,T37),"") -> Arndt | W37: =MATCH(D37,'0a'!A:A,0) -> 3741 | X37: =MATCH(D37,'1'!A:A,0) -> 3646 | Y37: =MATCH(D37,'7'!A:A,0) ->  | Z37: =MATCH(D37,'8'!A:A,0) -> 44711 | AA37: =MATCH(D37,'8A'!A:A,0) -> 46301 | AB37: =MATCH(D37,'9B'!A:A,0) -> 6457 | AC37: =MATCH(D37,'9C'!A:A,0) -> 3746 | AD37: =MATCH(D37,'9D'!A:A,0) -> 3502 | AE37: =MATCH(D37,'9Da'!A:A,0) -> 2317 | AF37: =MATCH(D37,'9E'!A:A,0) -> 3712 | AG37: =MATCH(D37,'10F'!A:A,0) -> 1744 | AH37: =MATCH(D37,'11'!A:A,0) -> 8104 | AI37: =MATCH(D37,'12'!A:A,0) -> 45400 | AJ37: =MATCH(D37,'12V'!A:A,0) -> 888 | AK37: =MATCH(D37,'12W'!A:A,0) -> 886 | AL37: =MATCH(D37,'30'!A:A,0) ->  | AM37: =MATCH(D37,'35'!A:A,0) ->  | AN37: =MATCH(D37,'40'!A:A,0) ->  | AO37: =MATCH(D37,'45'!A:A,0) ->  | AP37: =MATCH(D37,'50'!A:A,0) ->  | AQ37: =_xlfn.IFNA(INDEX('0a'!E:E,W37),"") -> 2016-02-24 | AR37: =_xlfn.IFNA(IF(INDEX('1'!G:G,X37)=0,INDEX('1'!F:F,X37),""),"") ->  | AS37: =_xlfn.IFNA(IF(INDEX('1'!G:G,X37)<>0,INDEX('1'!G:G,X37),""),"") -> 2016-02-24 | AT37: =_xlfn.IFNA(IF(INDEX('7'!F:F,Y37)=0,INDEX('7'!E:E,Y37),""),"") ->  | AU37: =_xlfn.IFNA(IF(INDEX('7'!F:F,Y37)<>0,INDEX('7'!F:F,Y37),""),"") ->  | AV37: =_xlfn.IFNA(IF(INDEX('8'!F:F,Z37)=0,INDEX('8'!E:E,Z37),""),"") ->  | AW37: =_xlfn.IFNA(IF(INDEX('8'!F:F,Z37)<>0,INDEX('8'!F:F,Z37),""),"") -> 2016-02-25 | AX37: =_xlfn.IFNA(IF(INDEX('8A'!F:F,AA37)=0,INDEX('8A'!E:E,AA37),""),"") ->  | AY37: =_xlfn.IFNA(IF(INDEX('8A'!F:F,AA37)<>0,INDEX('8A'!F:F,AA37),""),"") -> 2016-04-19 | AZ37: =_xlfn.IFNA(IF(INDEX('9B'!F:F,AB37)=0,INDEX('9B'!E:E,AB37),""),"") ->  | BA37: =_xlfn.IFNA(IF(INDEX('9B'!F:F,AB37)<>0,INDEX('9B'!F:F,AB37),""),"") -> 2016-05-23 | BB37: =_xlfn.IFNA(IF(INDEX('9C'!F:F,AC37)=0,INDEX('9C'!E:E,AC37),""),"") ->  | BC37: =_xlfn.IFNA(IF(INDEX('9C'!F:F,AC37)<>0,INDEX('9C'!F:F,AC37),""),"") -> 2016-08-22 | BD37: =_xlfn.IFNA(IF(INDEX('9D'!F:F,AD37)=0,INDEX('9D'!E:E,AD37),""),"") ->  | BE37: =_xlfn.IFNA(IF(INDEX('9D'!F:F,AD37)<>0,INDEX('9D'!F:F,AD37),""),"") -> 2016-09-14 | BF37: =_xlfn.IFNA(IF(INDEX('9Da'!F:F,AE37)=0,INDEX('9Da'!E:E,AE37),""),"") ->  | BG37: =_xlfn.IFNA(IF(INDEX('9Da'!F:F,AE37)<>0,INDEX('9Da'!F:F,AE37),""),"") -> 2016-10-26 | BH37: =_xlfn.IFNA(IF(INDEX('9E'!F:F,AF37)=0,INDEX('9E'!E:E,AF37),""),"") ->  | BI37: =_xlfn.IFNA(IF(INDEX('9E'!F:F,AF37)<>0,INDEX('9E'!F:F,AF37),""),"") -> 2016-10-28 | BJ37: =_xlfn.IFNA(IF(INDEX('10F'!F:F,AG37)=0,INDEX('10F'!E:E,AG37),""),"") ->  | BK37: =_xlfn.IFNA(IF(INDEX('10F'!F:F,AG37)<>0,INDEX('10F'!F:F,AG37),""),"") -> 2016-12-14 | BL37: =_xlfn.IFNA(IF(INDEX('11'!F:F,AH37)=0,INDEX('11'!E:E,AH37),""),"") ->  | BM37: =_xlfn.IFNA(IF(INDEX('11'!F:F,AH37)<>0,INDEX('11'!F:F,AH37),""),"") -> 2017-02-13 | BN37: =_xlfn.IFNA(IF(INDEX('12'!G:G,AI37)=0,INDEX('12'!F:F,AI37),""),"") ->  | BO37: =_xlfn.IFNA(IF(INDEX('12'!G:G,AI37)<>0,INDEX('12'!G:G,AI37),""),"") -> 2017-02-21 | BP37: =_xlfn.IFNA(IF(INDEX('12V'!F:F,AJ37)=0,INDEX('12V'!E:E,AJ37),""),"") ->  | BQ37: =_xlfn.IFNA(IF(INDEX('12V'!F:F,AJ37)<>0,INDEX('12V'!F:F,AJ37),""),"") -> 2017-02-22 | BR37: =_xlfn.IFNA(IF(INDEX('12W'!F:F,AK37)=0,INDEX('12W'!E:E,AK37),""),"") ->  | BS37: =_xlfn.IFNA(IF(INDEX('12W'!F:F,AK37)<>0,INDEX('12W'!F:F,AK37),""),"") -> 2017-03-10 | BT37: =_xlfn.IFNA(IF(INDEX('30'!F:F,AL37)=0,INDEX('30'!E:E,AL37),""),"") ->  | BU37: =_xlfn.IFNA(IF(INDEX('30'!F:F,AL37)<>0,INDEX('30'!F:F,AL37),""),"") ->  | BV37: =_xlfn.IFNA(IF(INDEX('35'!F:F,AM37)=0,INDEX('35'!E:E,AM37),""),"") ->  | BW37: =_xlfn.IFNA(IF(INDEX('35'!F:F,AM37)<>0,INDEX('35'!F:F,AM37),""),"") ->  | BX37: =_xlfn.IFNA(IF(INDEX('40'!F:F,AN37)=0,INDEX('40'!E:E,AN37),""),"") ->  | BY37: =_xlfn.IFNA(IF(INDEX('40'!F:F,AN37)<>0,INDEX('40'!F:F,AN37),""),"") ->  | BZ37: =_xlfn.IFNA(IF(INDEX('45'!F:F,AO37)=0,INDEX('45'!E:E,AO37),""),"") ->  | CA37: =_xlfn.IFNA(IF(INDEX('45'!F:F,AO37)<>0,INDEX('45'!F:F,AO37),""),"") ->  | CB37: =_xlfn.IFNA(IF(INDEX('50'!F:F,AP37)=0,INDEX('50'!E:E,AP37),""),"") ->  | CC37: =_xlfn.IFNA(IF(INDEX('50'!F:F,AP37)<>0,INDEX('50'!F:F,AP37),""),"") ->  | CK37: =MATCH(CJ37,EN!A:A,0) ->  | CL37: =_xlfn.IFNA(INDEX(EN!I:I,CK37),"") ->  | CN37: =_xlfn.IFNA(INDEX(EN!J:J,CK37),"") ->  | CO37: =_xlfn.IFNA(IF(INDEX(EN!K:K,CK37)<>0,INDEX(EN!K:K,CK37),""),"") -> 
C38: Addition | D38: 50006 | E38: =MATCH(D38,EN!A:A,0) -> 4078 | F38: =INDEX(EN!I:I,E38) -> REN/ERM-TG17-25 | G38: http://webapp.etsi.org/workProgram/Report_WorkItem.asp?wki_id=50006 | H38: =_xlfn.IFNA(INDEX(EN!F:F,E38),"") -> EN | I38: =_xlfn.IFNA(INDEX(EN!G:G,E38),"") -> 300 422-4 | J38: =_xlfn.IFNA(IF(INDEX(EN!L:L,E38)<>0,INDEX(EN!L:L,E38),""),"") -> 2.1.1 | K38: Cited | L38: =_xlfn.IFNA(INDEX(EN!H:H,E38),"") -> HS Wireless Microphones, Audio PMSE up to 3 GHz, ALDs, sound amps, inductive systems | M38: RED 3.2 | N38: =_xlfn.IFNA(INDEX(EN!J:J,E38),"") -> 12 | O38: =_xlfn.IFNA(IF(INDEX(EN!K:K,E38)<>0,INDEX(EN!K:K,E38),""),"") -> W | P38: =_xlfn.IFNA(INDEX(EN!M:M,E38),"") -> Citation in the OJ | Q38: =_xlfn.IFNA(INDEX(EN!N:N,E38),"") -> 2018-02-09 | R38: =_xlfn.IFNA(INDEX(EN!B:B,E38),"") -> ERM TG17 | S38: =INDEX(EN!O:O,E38) -> 28591 | T38: =MATCH(S38,Person!A:A) -> 8 | U38: =_xlfn.IFNA(INDEX(Person!B:B,T38),"") -> Martin | V38: =_xlfn.IFNA(INDEX(Person!C:C,T38),"") -> Arndt | W38: =MATCH(D38,'0a'!A:A,0) -> 3770 | X38: =MATCH(D38,'1'!A:A,0) -> 3675 | Y38: =MATCH(D38,'7'!A:A,0) ->  | Z38: =MATCH(D38,'8'!A:A,0) -> 45196 | AA38: =MATCH(D38,'8A'!A:A,0) -> 46791 | AB38: =MATCH(D38,'9B'!A:A,0) -> 6486 | AC38: =MATCH(D38,'9C'!A:A,0) -> 3775 | AD38: =MATCH(D38,'9D'!A:A,0) ->  | AE38: =MATCH(D38,'9Da'!A:A,0) ->  | AF38: =MATCH(D38,'9E'!A:A,0) ->  | AG38: =MATCH(D38,'10F'!A:A,0) ->  | AH38: =MATCH(D38,'11'!A:A,0) -> 8138 | AI38: =MATCH(D38,'12'!A:A,0) -> 45885 | AJ38: =MATCH(D38,'12V'!A:A,0) -> 898 | AK38: =MATCH(D38,'12W'!A:A,0) -> 896 | AL38: =MATCH(D38,'30'!A:A,0) ->  | AM38: =MATCH(D38,'35'!A:A,0) ->  | AN38: =MATCH(D38,'40'!A:A,0) ->  | AO38: =MATCH(D38,'45'!A:A,0) ->  | AP38: =MATCH(D38,'50'!A:A,0) ->  | AQ38: =_xlfn.IFNA(INDEX('0a'!E:E,W38),"") -> 2016-06-08 | AR38: =_xlfn.IFNA(IF(INDEX('1'!G:G,X38)=0,INDEX('1'!F:F,X38),""),"") ->  | AS38: =_xlfn.IFNA(IF(INDEX('1'!G:G,X38)<>0,INDEX('1'!G:G,X38),""),"") -> 2016-10-26 | AT38: =_xlfn.IFNA(IF(INDEX('7'!F:F,Y38)=0,INDEX('7'!E:E,Y38),""),"") ->  | AU38: =_xlfn.IFNA(IF(INDEX('7'!F:F,Y38)<>0,INDEX('7'!F:F,Y38),""),"") ->  | AV38: =_xlfn.IFNA(IF(INDEX('8'!F:F,Z38)=0,INDEX('8'!E:E,Z38),""),"") ->  | AW38: =_xlfn.IFNA(IF(INDEX('8'!F:F,Z38)<>0,INDEX('8'!F:F,Z38),""),"") -> 2017-01-13 | AX38: =_xlfn.IFNA(IF(INDEX('8A'!F:F,AA38)=0,INDEX('8A'!E:E,AA38),""),"") ->  | AY38: =_xlfn.IFNA(IF(INDEX('8A'!F:F,AA38)<>0,INDEX('8A'!F:F,AA38),""),"") -> 2017-01-20 | AZ38: =_xlfn.IFNA(IF(INDEX('9B'!F:F,AB38)=0,INDEX('9B'!E:E,AB38),""),"") ->  | BA38: =_xlfn.IFNA(IF(INDEX('9B'!F:F,AB38)<>0,INDEX('9B'!F:F,AB38),""),"") -> 2017-01-25 | BB38: =_xlfn.IFNA(IF(INDEX('9C'!F:F,AC38)=0,INDEX('9C'!E:E,AC38),""),"") ->  | BC38: =_xlfn.IFNA(IF(INDEX('9C'!F:F,AC38)<>0,INDEX('9C'!F:F,AC38),""),"") -> 2017-04-25 | BD38: =_xlfn.IFNA(IF(INDEX('9D'!F:F,AD38)=0,INDEX('9D'!E:E,AD38),""),"") ->  | BE38: =_xlfn.IFNA(IF(INDEX('9D'!F:F,AD38)<>0,INDEX('9D'!F:F,AD38),""),"") ->  | BF38: =_xlfn.IFNA(IF(INDEX('9Da'!F:F,AE38)=0,INDEX('9Da'!E:E,AE38),""),"") ->  | BG38: =_xlfn.IFNA(IF(INDEX('9Da'!F:F,AE38)<>0,INDEX('9Da'!F:F,AE38),""),"") ->  | BH38: =_xlfn.IFNA(IF(INDEX('9E'!F:F,AF38)=0,INDEX('9E'!E:E,AF38),""),"") ->  | BI38: =_xlfn.IFNA(IF(INDEX('9E'!F:F,AF38)<>0,INDEX('9E'!F:F,AF38),""),"") ->  | BJ38: =_xlfn.IFNA(IF(INDEX('10F'!F:F,AG38)=0,INDEX('10F'!E:E,AG38),""),"") ->  | BK38: =_xlfn.IFNA(IF(INDEX('10F'!F:F,AG38)<>0,INDEX('10F'!F:F,AG38),""),"") ->  | BL38: =_xlfn.IFNA(IF(INDEX('11'!F:F,AH38)=0,INDEX('11'!E:E,AH38),""),"") ->  | BM38: =_xlfn.IFNA(IF(INDEX('11'!F:F,AH38)<>0,INDEX('11'!F:F,AH38),""),"") -> 2017-04-25 | BN38: =_xlfn.IFNA(IF(INDEX('12'!G:G,AI38)=0,INDEX('12'!F:F,AI38),""),"") ->  | BO38: =_xlfn.IFNA(IF(INDEX('12'!G:G,AI38)<>0,INDEX('12'!G:G,AI38),""),"") -> 2017-05-30 | BP38: =_xlfn.IFNA(IF(INDEX('12V'!F:F,AJ38)=0,INDEX('12V'!E:E,AJ38),""),"") ->  | BQ38: =_xlfn.IFNA(IF(INDEX('12V'!F:F,AJ38)<>0,INDEX('12V'!F:F,AJ38),""),"") -> 2017-05-31 | BR38: =_xlfn.IFNA(IF(INDEX('12W'!F:F,AK38)=0,INDEX('12W'!E:E,AK38),""),"") ->  | BS38: =_xlfn.IFNA(IF(INDEX('12W'!F:F,AK38)<>0,INDEX('12W'!F:F,AK38),""),"") -> 2018-02-09 | BT38: =_xlfn.IFNA(IF(INDEX('30'!F:F,AL38)=0,INDEX('30'!E:E,AL38),""),"") ->  | BU38: =_xlfn.IFNA(IF(INDEX('30'!F:F,AL38)<>0,INDEX('30'!F:F,AL38),""),"") ->  | BV38: =_xlfn.IFNA(IF(INDEX('35'!F:F,AM38)=0,INDEX('35'!E:E,AM38),""),"") ->  | BW38: =_xlfn.IFNA(IF(INDEX('35'!F:F,AM38)<>0,INDEX('35'!F:F,AM38),""),"") ->  | BX38: =_xlfn.IFNA(IF(INDEX('40'!F:F,AN38)=0,INDEX('40'!E:E,AN38),""),"") ->  | BY38: =_xlfn.IFNA(IF(INDEX('40'!F:F,AN38)<>0,INDEX('40'!F:F,AN38),""),"") ->  | BZ38: =_xlfn.IFNA(IF(INDEX('45'!F:F,AO38)=0,INDEX('45'!E:E,AO38),""),"") ->  | CA38: =_xlfn.IFNA(IF(INDEX('45'!F:F,AO38)<>0,INDEX('45'!F:F,AO38),""),"") ->  | CB38: =_xlfn.IFNA(IF(INDEX('50'!F:F,AP38)=0,INDEX('50'!E:E,AP38),""),"") ->  | CC38: =_xlfn.IFNA(IF(INDEX('50'!F:F,AP38)<>0,INDEX('50'!F:F,AP38),""),"") ->  | CD38: ARES negative assessment | CH38: Y | CJ38: 53882 | CK38: =MATCH(CJ38,EN!A:A,0) -> 4332 | CL38: =_xlfn.IFNA(INDEX(EN!I:I,CK38),"") -> REN/ERM-TG17-158 | CM38: http://webapp.etsi.org/workProgram/Report_WorkItem.asp?wki_id=53882 | CN38: =_xlfn.IFNA(INDEX(EN!J:J,CK38),"") -> 8 | CO38: =_xlfn.IFNA(IF(INDEX(EN!K:K,CK38)<>0,INDEX(EN!K:K,CK38),""),"") -> 
C39: Addition | D39: 53882 | E39: =MATCH(D39,EN!A:A,0) -> 4332 | F39: =INDEX(EN!I:I,E39) -> REN/ERM-TG17-158 | G39: http://webapp.etsi.org/workProgram/Report_WorkItem.asp?wki_id=53882 | H39: =_xlfn.IFNA(INDEX(EN!F:F,E39),"") -> EN | I39: =_xlfn.IFNA(INDEX(EN!G:G,E39),"") -> 300 422-4 | J39: =_xlfn.IFNA(IF(INDEX(EN!L:L,E39)<>0,INDEX(EN!L:L,E39),""),"") -> 0.0.2 | K39: RevPending | L39: =_xlfn.IFNA(INDEX(EN!H:H,E39),"") -> Wireless microphones, Audio PMSE up to 3 GHz Part 4 ALD | M39: RED 3.2 | N39: =_xlfn.IFNA(INDEX(EN!J:J,E39),"") -> 8 | O39: =_xlfn.IFNA(IF(INDEX(EN!K:K,E39)<>0,INDEX(EN!K:K,E39),""),"") ->  | P39: =_xlfn.IFNA(INDEX(EN!M:M,E39),"") -> TB approval | Q39: =_xlfn.IFNA(INDEX(EN!N:N,E39),"") -> 2018-02-14 | R39: =_xlfn.IFNA(INDEX(EN!B:B,E39),"") -> ERM TG17 | S39: =INDEX(EN!O:O,E39) -> 26441 | T39: =MATCH(S39,Person!A:A) -> 7 | U39: =_xlfn.IFNA(INDEX(Person!B:B,T39),"") -> Igor | V39: =_xlfn.IFNA(INDEX(Person!C:C,T39),"") -> Minaev | W39: =MATCH(D39,'0a'!A:A,0) -> 3987 | X39: =MATCH(D39,'1'!A:A,0) -> 3870 | Y39: =MATCH(D39,'7'!A:A,0) -> 14195 | Z39: =MATCH(D39,'8'!A:A,0) -> 48947 | AA39: =MATCH(D39,'8A'!A:A,0) -> 50601 | AB39: =MATCH(D39,'9B'!A:A,0) -> 6675 | AC39: =MATCH(D39,'9C'!A:A,0) -> 3963 | AD39: =MATCH(D39,'9D'!A:A,0) -> 3670 | AE39: =MATCH(D39,'9Da'!A:A,0) -> 2485 | AF39: =MATCH(D39,'9E'!A:A,0) -> 3881 | AG39: =MATCH(D39,'10F'!A:A,0) -> 1921 | AH39: =MATCH(D39,'11'!A:A,0) -> 8378 | AI39: =MATCH(D39,'12'!A:A,0) -> 49646 | AJ39: =MATCH(D39,'12V'!A:A,0) -> 1057 | AK39: =MATCH(D39,'12W'!A:A,0) -> 1083 | AL39: =MATCH(D39,'30'!A:A,0) ->  | AM39: =MATCH(D39,'35'!A:A,0) ->  | AN39: =MATCH(D39,'40'!A:A,0) ->  | AO39: =MATCH(D39,'45'!A:A,0) ->  | AP39: =MATCH(D39,'50'!A:A,0) ->  | AQ39: =_xlfn.IFNA(INDEX('0a'!E:E,W39),"") -> 2017-10-18 | AR39: =_xlfn.IFNA(IF(INDEX('1'!G:G,X39)=0,INDEX('1'!F:F,X39),""),"") ->  | AS39: =_xlfn.IFNA(IF(INDEX('1'!G:G,X39)<>0,INDEX('1'!G:G,X39),""),"") -> 2017-10-31 | AT39: =_xlfn.IFNA(IF(INDEX('7'!F:F,Y39)=0,INDEX('7'!E:E,Y39),""),"") -> 2019-01-29 | AU39: =_xlfn.IFNA(IF(INDEX('7'!F:F,Y39)<>0,INDEX('7'!F:F,Y39),""),"") ->  | AV39: =_xlfn.IFNA(IF(INDEX('8'!F:F,Z39)=0,INDEX('8'!E:E,Z39),""),"") ->  | AW39: =_xlfn.IFNA(IF(INDEX('8'!F:F,Z39)<>0,INDEX('8'!F:F,Z39),""),"") -> 2018-02-14 | AX39: =_xlfn.IFNA(IF(INDEX('8A'!F:F,AA39)=0,INDEX('8A'!E:E,AA39),""),"") -> 2018-02-28 | AY39: =_xlfn.IFNA(IF(INDEX('8A'!F:F,AA39)<>0,INDEX('8A'!F:F,AA39),""),"") ->  | AZ39: =_xlfn.IFNA(IF(INDEX('9B'!F:F,AB39)=0,INDEX('9B'!E:E,AB39),""),"") -> 2018-03-14 | BA39: =_xlfn.IFNA(IF(INDEX('9B'!F:F,AB39)<>0,INDEX('9B'!F:F,AB39),""),"") ->  | BB39: =_xlfn.IFNA(IF(INDEX('9C'!F:F,AC39)=0,INDEX('9C'!E:E,AC39),""),"") -> 2018-06-13 | BC39: =_xlfn.IFNA(IF(INDEX('9C'!F:F,AC39)<>0,INDEX('9C'!F:F,AC39),""),"") ->  | BD39: =_xlfn.IFNA(IF(INDEX('9D'!F:F,AD39)=0,INDEX('9D'!E:E,AD39),""),"") -> 2018-06-13 | BE39: =_xlfn.IFNA(IF(INDEX('9D'!F:F,AD39)<>0,INDEX('9D'!F:F,AD39),""),"") ->  | BF39: =_xlfn.IFNA(IF(INDEX('9Da'!F:F,AE39)=0,INDEX('9Da'!E:E,AE39),""),"") -> 2018-09-12 | BG39: =_xlfn.IFNA(IF(INDEX('9Da'!F:F,AE39)<>0,INDEX('9Da'!F:F,AE39),""),"") ->  | BH39: =_xlfn.IFNA(IF(INDEX('9E'!F:F,AF39)=0,INDEX('9E'!E:E,AF39),""),"") -> 2018-09-19 | BI39: =_xlfn.IFNA(IF(INDEX('9E'!F:F,AF39)<>0,INDEX('9E'!F:F,AF39),""),"") ->  | BJ39: =_xlfn.IFNA(IF(INDEX('10F'!F:F,AG39)=0,INDEX('10F'!E:E,AG39),""),"") -> 2018-10-03 | BK39: =_xlfn.IFNA(IF(INDEX('10F'!F:F,AG39)<>0,INDEX('10F'!F:F,AG39),""),"") ->  | BL39: =_xlfn.IFNA(IF(INDEX('11'!F:F,AH39)=0,INDEX('11'!E:E,AH39),""),"") -> 2018-12-02 | BM39: =_xlfn.IFNA(IF(INDEX('11'!F:F,AH39)<>0,INDEX('11'!F:F,AH39),""),"") ->  | BN39: =_xlfn.IFNA(IF(INDEX('12'!G:G,AI39)=0,INDEX('12'!F:F,AI39),""),"") -> 2018-12-16 | BO39: =_xlfn.IFNA(IF(INDEX('12'!G:G,AI39)<>0,INDEX('12'!G:G,AI39),""),"") ->  | BP39: =_xlfn.IFNA(IF(INDEX('12V'!F:F,AJ39)=0,INDEX('12V'!E:E,AJ39),""),"") -> 2019-01-06 | BQ39: =_xlfn.IFNA(IF(INDEX('12V'!F:F,AJ39)<>0,INDEX('12V'!F:F,AJ39),""),"") ->  | BR39: =_xlfn.IFNA(IF(INDEX('12W'!F:F,AK39)=0,INDEX('12W'!E:E,AK39),""),"") -> 2019-03-31 | BS39: =_xlfn.IFNA(IF(INDEX('12W'!F:F,AK39)<>0,INDEX('12W'!F:F,AK39),""),"") ->  | BT39: =_xlfn.IFNA(IF(INDEX('30'!F:F,AL39)=0,INDEX('30'!E:E,AL39),""),"") ->  | BU39: =_xlfn.IFNA(IF(INDEX('30'!F:F,AL39)<>0,INDEX('30'!F:F,AL39),""),"") ->  | BV39: =_xlfn.IFNA(IF(INDEX('35'!F:F,AM39)=0,INDEX('35'!E:E,AM39),""),"") ->  | BW39: =_xlfn.IFNA(IF(INDEX('35'!F:F,AM39)<>0,INDEX('35'!F:F,AM39),""),"") ->  | BX39: =_xlfn.IFNA(IF(INDEX('40'!F:F,AN39)=0,INDEX('40'!E:E,AN39),""),"") ->  | BY39: =_xlfn.IFNA(IF(INDEX('40'!F:F,AN39)<>0,INDEX('40'!F:F,AN39),""),"") ->  | BZ39: =_xlfn.IFNA(IF(INDEX('45'!F:F,AO39)=0,INDEX('45'!E:E,AO39),""),"") ->  | CA39: =_xlfn.IFNA(IF(INDEX('45'!F:F,AO39)<>0,INDEX('45'!F:F,AO39),""),"") ->  | CB39: =_xlfn.IFNA(IF(INDEX('50'!F:F,AP39)=0,INDEX('50'!E:E,AP39),""),"") ->  | CC39: =_xlfn.IFNA(IF(INDEX('50'!F:F,AP39)<>0,INDEX('50'!F:F,AP39),""),"") ->  | CK39: =MATCH(CJ39,EN!A:A,0) ->  | CL39: =_xlfn.IFNA(INDEX(EN!I:I,CK39),"") ->  | CN39: =_xlfn.IFNA(INDEX(EN!J:J,CK39),"") ->  | CO39: =_xlfn.IFNA(IF(INDEX(EN!K:K,CK39)<>0,INDEX(EN!K:K,CK39),""),"") -> 
A40: 300 433-2 | B40: 1.3.1 | C40: Original | D40: 47179 | E40: =MATCH(D40,EN!A:A,0) -> 3936 | F40: =INDEX(EN!I:I,E40) -> REN/ERM-TGDMR-346 | G40: http://webapp.etsi.org/workProgram/Report_WorkItem.asp?wki_id=47179 | H40: =_xlfn.IFNA(INDEX(EN!F:F,E40),"") -> EN | I40: =_xlfn.IFNA(INDEX(EN!G:G,E40),"") -> 300 433 | J40: =_xlfn.IFNA(IF(INDEX(EN!L:L,E40)<>0,INDEX(EN!L:L,E40),""),"") -> 2.1.1 | K40: Cited | L40: =_xlfn.IFNA(INDEX(EN!H:H,E40),"") -> HEN - Citizens' Band (CB) radio equipment; | M40: RED 3.2 | N40: =_xlfn.IFNA(INDEX(EN!J:J,E40),"") -> 12 | O40: =_xlfn.IFNA(IF(INDEX(EN!K:K,E40)<>0,INDEX(EN!K:K,E40),""),"") -> W | P40: =_xlfn.IFNA(INDEX(EN!M:M,E40),"") -> Citation in the OJ | Q40: =_xlfn.IFNA(INDEX(EN!N:N,E40),"") -> 2017-04-12 | R40: =_xlfn.IFNA(INDEX(EN!B:B,E40),"") -> ERM TGDMR | S40: =INDEX(EN!O:O,E40) -> 14585 | T40: =MATCH(S40,Person!A:A) -> 6 | U40: =_xlfn.IFNA(INDEX(Person!B:B,T40),"") -> Bernt | V40: =_xlfn.IFNA(INDEX(Person!C:C,T40),"") -> Mattsson | W40: =MATCH(D40,'0a'!A:A,0) -> 3628 | X40: =MATCH(D40,'1'!A:A,0) -> 3534 | Y40: =MATCH(D40,'7'!A:A,0) -> 13659 | Z40: =MATCH(D40,'8'!A:A,0) -> 42513 | AA40: =MATCH(D40,'8A'!A:A,0) -> 44070 | AB40: =MATCH(D40,'9B'!A:A,0) -> 6336 | AC40: =MATCH(D40,'9C'!A:A,0) -> 3625 | AD40: =MATCH(D40,'9D'!A:A,0) ->  | AE40: =MATCH(D40,'9Da'!A:A,0) ->  | AF40: =MATCH(D40,'9E'!A:A,0) ->  | AG40: =MATCH(D40,'10F'!A:A,0) ->  | AH40: =MATCH(D40,'11'!A:A,0) -> 7954 | AI40: =MATCH(D40,'12'!A:A,0) -> 43199 | AJ40: =MATCH(D40,'12V'!A:A,0) -> 831 | AK40: =MATCH(D40,'12W'!A:A,0) -> 832 | AL40: =MATCH(D40,'30'!A:A,0) ->  | AM40: =MATCH(D40,'35'!A:A,0) ->  | AN40: =MATCH(D40,'40'!A:A,0) ->  | AO40: =MATCH(D40,'45'!A:A,0) ->  | AP40: =MATCH(D40,'50'!A:A,0) ->  | AQ40: =_xlfn.IFNA(INDEX('0a'!E:E,W40),"") -> 2015-06-11 | AR40: =_xlfn.IFNA(IF(INDEX('1'!G:G,X40)=0,INDEX('1'!F:F,X40),""),"") ->  | AS40: =_xlfn.IFNA(IF(INDEX('1'!G:G,X40)<>0,INDEX('1'!G:G,X40),""),"") -> 2015-05-22 | AT40: =_xlfn.IFNA(IF(INDEX('7'!F:F,Y40)=0,INDEX('7'!E:E,Y40),""),"") ->  | AU40: =_xlfn.IFNA(IF(INDEX('7'!F:F,Y40)<>0,INDEX('7'!F:F,Y40),""),"") -> 2015-10-07 | AV40: =_xlfn.IFNA(IF(INDEX('8'!F:F,Z40)=0,INDEX('8'!E:E,Z40),""),"") ->  | AW40: =_xlfn.IFNA(IF(INDEX('8'!F:F,Z40)<>0,INDEX('8'!F:F,Z40),""),"") -> 2015-12-02 | AX40: =_xlfn.IFNA(IF(INDEX('8A'!F:F,AA40)=0,INDEX('8A'!E:E,AA40),""),"") ->  | AY40: =_xlfn.IFNA(IF(INDEX('8A'!F:F,AA40)<>0,INDEX('8A'!F:F,AA40),""),"") -> 2015-12-18 | AZ40: =_xlfn.IFNA(IF(INDEX('9B'!F:F,AB40)=0,INDEX('9B'!E:E,AB40),""),"") ->  | BA40: =_xlfn.IFNA(IF(INDEX('9B'!F:F,AB40)<>0,INDEX('9B'!F:F,AB40),""),"") -> 2016-02-01 | BB40: =_xlfn.IFNA(IF(INDEX('9C'!F:F,AC40)=0,INDEX('9C'!E:E,AC40),""),"") ->  | BC40: =_xlfn.IFNA(IF(INDEX('9C'!F:F,AC40)<>0,INDEX('9C'!F:F,AC40),""),"") -> 2016-05-02 | BD40: =_xlfn.IFNA(IF(INDEX('9D'!F:F,AD40)=0,INDEX('9D'!E:E,AD40),""),"") ->  | BE40: =_xlfn.IFNA(IF(INDEX('9D'!F:F,AD40)<>0,INDEX('9D'!F:F,AD40),""),"") ->  | BF40: =_xlfn.IFNA(IF(INDEX('9Da'!F:F,AE40)=0,INDEX('9Da'!E:E,AE40),""),"") ->  | BG40: =_xlfn.IFNA(IF(INDEX('9Da'!F:F,AE40)<>0,INDEX('9Da'!F:F,AE40),""),"") ->  | BH40: =_xlfn.IFNA(IF(INDEX('9E'!F:F,AF40)=0,INDEX('9E'!E:E,AF40),""),"") ->  | BI40: =_xlfn.IFNA(IF(INDEX('9E'!F:F,AF40)<>0,INDEX('9E'!F:F,AF40),""),"") ->  | BJ40: =_xlfn.IFNA(IF(INDEX('10F'!F:F,AG40)=0,INDEX('10F'!E:E,AG40),""),"") ->  | BK40: =_xlfn.IFNA(IF(INDEX('10F'!F:F,AG40)<>0,INDEX('10F'!F:F,AG40),""),"") ->  | BL40: =_xlfn.IFNA(IF(INDEX('11'!F:F,AH40)=0,INDEX('11'!E:E,AH40),""),"") ->  | BM40: =_xlfn.IFNA(IF(INDEX('11'!F:F,AH40)<>0,INDEX('11'!F:F,AH40),""),"") -> 2016-05-02 | BN40: =_xlfn.IFNA(IF(INDEX('12'!G:G,AI40)=0,INDEX('12'!F:F,AI40),""),"") ->  | BO40: =_xlfn.IFNA(IF(INDEX('12'!G:G,AI40)<>0,INDEX('12'!G:G,AI40),""),"") -> 2016-05-12 | BP40: =_xlfn.IFNA(IF(INDEX('12V'!F:F,AJ40)=0,INDEX('12V'!E:E,AJ40),""),"") ->  | BQ40: =_xlfn.IFNA(IF(INDEX('12V'!F:F,AJ40)<>0,INDEX('12V'!F:F,AJ40),""),"") -> 2016-05-12 | BR40: =_xlfn.IFNA(IF(INDEX('12W'!F:F,AK40)=0,INDEX('12W'!E:E,AK40),""),"") ->  | BS40: =_xlfn.IFNA(IF(INDEX('12W'!F:F,AK40)<>0,INDEX('12W'!F:F,AK40),""),"") -> 2017-04-12 | BT40: =_xlfn.IFNA(IF(INDEX('30'!F:F,AL40)=0,INDEX('30'!E:E,AL40),""),"") ->  | BU40: =_xlfn.IFNA(IF(INDEX('30'!F:F,AL40)<>0,INDEX('30'!F:F,AL40),""),"") ->  | BV40: =_xlfn.IFNA(IF(INDEX('35'!F:F,AM40)=0,INDEX('35'!E:E,AM40),""),"") ->  | BW40: =_xlfn.IFNA(IF(INDEX('35'!F:F,AM40)<>0,INDEX('35'!F:F,AM40),""),"") ->  | BX40: =_xlfn.IFNA(IF(INDEX('40'!F:F,AN40)=0,INDEX('40'!E:E,AN40),""),"") ->  | BY40: =_xlfn.IFNA(IF(INDEX('40'!F:F,AN40)<>0,INDEX('40'!F:F,AN40),""),"") ->  | BZ40: =_xlfn.IFNA(IF(INDEX('45'!F:F,AO40)=0,INDEX('45'!E:E,AO40),""),"") ->  | CA40: =_xlfn.IFNA(IF(INDEX('45'!F:F,AO40)<>0,INDEX('45'!F:F,AO40),""),"") ->  | CB40: =_xlfn.IFNA(IF(INDEX('50'!F:F,AP40)=0,INDEX('50'!E:E,AP40),""),"") ->  | CC40: =_xlfn.IFNA(IF(INDEX('50'!F:F,AP40)<>0,INDEX('50'!F:F,AP40),""),"") ->  | CJ40: 51338 | CK40: =MATCH(CJ40,EN!A:A,0) -> 4216 | CL40: =_xlfn.IFNA(INDEX(EN!I:I,CK40),"") -> REN/ERM-TGDMR-366 | CM40: http://webapp.etsi.org/workProgram/Report_WorkItem.asp?wki_id=51338 | CN40: =_xlfn.IFNA(INDEX(EN!J:J,CK40),"") -> 8 | CO40: =_xlfn.IFNA(IF(INDEX(EN!K:K,CK40)<>0,INDEX(EN!K:K,CK40),""),"") -> WA
C41: Addition | D41: 51338 | E41: =MATCH(D41,EN!A:A,0) -> 4216 | F41: =INDEX(EN!I:I,E41) -> REN/ERM-TGDMR-366 | G41: http://webapp.etsi.org/workProgram/Report_WorkItem.asp?wki_id=51338 | H41: =_xlfn.IFNA(INDEX(EN!F:F,E41),"") -> EN | I41: =_xlfn.IFNA(INDEX(EN!G:G,E41),"") -> 300 433 | J41: =_xlfn.IFNA(IF(INDEX(EN!L:L,E41)<>0,INDEX(EN!L:L,E41),""),"") -> 0.0.4 | K41: RevPending | L41: =_xlfn.IFNA(INDEX(EN!H:H,E41),"") -> HEN - Citizens' Band (CB) radio equipment; | M41: RED 3.2 | N41: =_xlfn.IFNA(INDEX(EN!J:J,E41),"") -> 8 | O41: =_xlfn.IFNA(IF(INDEX(EN!K:K,E41)<>0,INDEX(EN!K:K,E41),""),"") -> WA | P41: =_xlfn.IFNA(INDEX(EN!M:M,E41),"") -> Waiting - see "Remarks" | Q41: =_xlfn.IFNA(INDEX(EN!N:N,E41),"") -> 2017-08-29 | R41: =_xlfn.IFNA(INDEX(EN!B:B,E41),"") -> ERM TGDMR | S41: =INDEX(EN!O:O,E41) -> 14585 | T41: =MATCH(S41,Person!A:A) -> 6 | U41: =_xlfn.IFNA(INDEX(Person!B:B,T41),"") -> Bernt | V41: =_xlfn.IFNA(INDEX(Person!C:C,T41),"") -> Mattsson | W41: =MATCH(D41,'0a'!A:A,0) -> 3903 | X41: =MATCH(D41,'1'!A:A,0) -> 3796 | Y41: =MATCH(D41,'7'!A:A,0) -> 14055 | Z41: =MATCH(D41,'8'!A:A,0) -> 46507 | AA41: =MATCH(D41,'8A'!A:A,0) -> 48116 | AB41: =MATCH(D41,'9B'!A:A,0) -> 6602 | AC41: =MATCH(D41,'9C'!A:A,0) -> 3890 | AD41: =MATCH(D41,'9D'!A:A,0) -> 3607 | AE41: =MATCH(D41,'9Da'!A:A,0) -> 2422 | AF41: =MATCH(D41,'9E'!A:A,0) -> 3817 | AG41: =MATCH(D41,'10F'!A:A,0) -> 1849 | AH41: =MATCH(D41,'11'!A:A,0) -> 8298 | AI41: =MATCH(D41,'12'!A:A,0) -> 47197 | AJ41: =MATCH(D41,'12V'!A:A,0) -> 1000 | AK41: =MATCH(D41,'12W'!A:A,0) -> 997 | AL41: =MATCH(D41,'30'!A:A,0) ->  | AM41: =MATCH(D41,'35'!A:A,0) ->  | AN41: =MATCH(D41,'40'!A:A,0) ->  | AO41: =MATCH(D41,'45'!A:A,0) ->  | AP41: =MATCH(D41,'50'!A:A,0) ->  | AQ41: =_xlfn.IFNA(INDEX('0a'!E:E,W41),"") -> 2017-02-22 | AR41: =_xlfn.IFNA(IF(INDEX('1'!G:G,X41)=0,INDEX('1'!F:F,X41),""),"") ->  | AS41: =_xlfn.IFNA(IF(INDEX('1'!G:G,X41)<>0,INDEX('1'!G:G,X41),""),"") -> 2017-02-22 | AT41: =_xlfn.IFNA(IF(INDEX('7'!F:F,Y41)=0,INDEX('7'!E:E,Y41),""),"") ->  | AU41: =_xlfn.IFNA(IF(INDEX('7'!F:F,Y41)<>0,INDEX('7'!F:F,Y41),""),"") -> 2017-05-22 | AV41: =_xlfn.IFNA(IF(INDEX('8'!F:F,Z41)=0,INDEX('8'!E:E,Z41),""),"") ->  | AW41: =_xlfn.IFNA(IF(INDEX('8'!F:F,Z41)<>0,INDEX('8'!F:F,Z41),""),"") -> 2017-06-21 | AX41: =_xlfn.IFNA(IF(INDEX('8A'!F:F,AA41)=0,INDEX('8A'!E:E,AA41),""),"") -> 2018-03-14 | AY41: =_xlfn.IFNA(IF(INDEX('8A'!F:F,AA41)<>0,INDEX('8A'!F:F,AA41),""),"") ->  | AZ41: =_xlfn.IFNA(IF(INDEX('9B'!F:F,AB41)=0,INDEX('9B'!E:E,AB41),""),"") -> 2018-03-28 | BA41: =_xlfn.IFNA(IF(INDEX('9B'!F:F,AB41)<>0,INDEX('9B'!F:F,AB41),""),"") ->  | BB41: =_xlfn.IFNA(IF(INDEX('9C'!F:F,AC41)=0,INDEX('9C'!E:E,AC41),""),"") -> 2018-06-27 | BC41: =_xlfn.IFNA(IF(INDEX('9C'!F:F,AC41)<>0,INDEX('9C'!F:F,AC41),""),"") ->  | BD41: =_xlfn.IFNA(IF(INDEX('9D'!F:F,AD41)=0,INDEX('9D'!E:E,AD41),""),"") -> 2018-06-27 | BE41: =_xlfn.IFNA(IF(INDEX('9D'!F:F,AD41)<>0,INDEX('9D'!F:F,AD41),""),"") ->  | BF41: =_xlfn.IFNA(IF(INDEX('9Da'!F:F,AE41)=0,INDEX('9Da'!E:E,AE41),""),"") -> 2018-09-26 | BG41: =_xlfn.IFNA(IF(INDEX('9Da'!F:F,AE41)<>0,INDEX('9Da'!F:F,AE41),""),"") ->  | BH41: =_xlfn.IFNA(IF(INDEX('9E'!F:F,AF41)=0,INDEX('9E'!E:E,AF41),""),"") -> 2018-10-03 | BI41: =_xlfn.IFNA(IF(INDEX('9E'!F:F,AF41)<>0,INDEX('9E'!F:F,AF41),""),"") ->  | BJ41: =_xlfn.IFNA(IF(INDEX('10F'!F:F,AG41)=0,INDEX('10F'!E:E,AG41),""),"") -> 2018-10-17 | BK41: =_xlfn.IFNA(IF(INDEX('10F'!F:F,AG41)<>0,INDEX('10F'!F:F,AG41),""),"") ->  | BL41: =_xlfn.IFNA(IF(INDEX('11'!F:F,AH41)=0,INDEX('11'!E:E,AH41),""),"") -> 2018-12-16 | BM41: =_xlfn.IFNA(IF(INDEX('11'!F:F,AH41)<>0,INDEX('11'!F:F,AH41),""),"") ->  | BN41: =_xlfn.IFNA(IF(INDEX('12'!G:G,AI41)=0,INDEX('12'!F:F,AI41),""),"") -> 2018-12-30 | BO41: =_xlfn.IFNA(IF(INDEX('12'!G:G,AI41)<>0,INDEX('12'!G:G,AI41),""),"") ->  | BP41: =_xlfn.IFNA(IF(INDEX('12V'!F:F,AJ41)=0,INDEX('12V'!E:E,AJ41),""),"") -> 2019-01-20 | BQ41: =_xlfn.IFNA(IF(INDEX('12V'!F:F,AJ41)<>0,INDEX('12V'!F:F,AJ41),""),"") ->  | BR41: =_xlfn.IFNA(IF(INDEX('12W'!F:F,AK41)=0,INDEX('12W'!E:E,AK41),""),"") -> 2019-04-14 | BS41: =_xlfn.IFNA(IF(INDEX('12W'!F:F,AK41)<>0,INDEX('12W'!F:F,AK41),""),"") ->  | BT41: =_xlfn.IFNA(IF(INDEX('30'!F:F,AL41)=0,INDEX('30'!E:E,AL41),""),"") ->  | BU41: =_xlfn.IFNA(IF(INDEX('30'!F:F,AL41)<>0,INDEX('30'!F:F,AL41),""),"") ->  | BV41: =_xlfn.IFNA(IF(INDEX('35'!F:F,AM41)=0,INDEX('35'!E:E,AM41),""),"") ->  | BW41: =_xlfn.IFNA(IF(INDEX('35'!F:F,AM41)<>0,INDEX('35'!F:F,AM41),""),"") ->  | BX41: =_xlfn.IFNA(IF(INDEX('40'!F:F,AN41)=0,INDEX('40'!E:E,AN41),""),"") ->  | BY41: =_xlfn.IFNA(IF(INDEX('40'!F:F,AN41)<>0,INDEX('40'!F:F,AN41),""),"") ->  | BZ41: =_xlfn.IFNA(IF(INDEX('45'!F:F,AO41)=0,INDEX('45'!E:E,AO41),""),"") ->  | CA41: =_xlfn.IFNA(IF(INDEX('45'!F:F,AO41)<>0,INDEX('45'!F:F,AO41),""),"") ->  | CB41: =_xlfn.IFNA(IF(INDEX('50'!F:F,AP41)=0,INDEX('50'!E:E,AP41),""),"") ->  | CC41: =_xlfn.IFNA(IF(INDEX('50'!F:F,AP41)<>0,INDEX('50'!F:F,AP41),""),"") ->  | CE41: Pre-assessment comments | CK41: =MATCH(CJ41,EN!A:A,0) ->  | CL41: =_xlfn.IFNA(INDEX(EN!I:I,CK41),"") ->  | CN41: =_xlfn.IFNA(INDEX(EN!J:J,CK41),"") ->  | CO41: =_xlfn.IFNA(IF(INDEX(EN!K:K,CK41)<>0,INDEX(EN!K:K,CK41),""),"") -> 
A42: 300 440-2 | B42: 1.4.1 | C42: Addition | D42: 33513 | E42: =MATCH(D42,EN!A:A,0) -> 3401 | F42: =INDEX(EN!I:I,E42) -> REN/ERM-TG28-045-2 | G42: http://webapp.etsi.org/workProgram/Report_WorkItem.asp?wki_id=33513 | H42: =_xlfn.IFNA(INDEX(EN!F:F,E42),"") -> EN | I42: =_xlfn.IFNA(INDEX(EN!G:G,E42),"") -> 300 440-2 | J42: =_xlfn.IFNA(IF(INDEX(EN!L:L,E42)<>0,INDEX(EN!L:L,E42),""),"") -> 1.4.1 | K42: Superseded | L42: =_xlfn.IFNA(INDEX(EN!H:H,E42),"") -> Revision of 300 440-2 | M42: RED 3.2 | N42: =_xlfn.IFNA(INDEX(EN!J:J,E42),"") -> 12 | O42: =_xlfn.IFNA(IF(INDEX(EN!K:K,E42)<>0,INDEX(EN!K:K,E42),""),"") -> W | P42: =_xlfn.IFNA(INDEX(EN!M:M,E42),"") -> Citation in the OJ | Q42: =_xlfn.IFNA(INDEX(EN!N:N,E42),"") -> 2017-06-08 | R42: =_xlfn.IFNA(INDEX(EN!B:B,E42),"") -> ERM TG28 | S42: =INDEX(EN!O:O,E42) -> 26441 | T42: =MATCH(S42,Person!A:A) -> 7 | U42: =_xlfn.IFNA(INDEX(Person!B:B,T42),"") -> Igor | V42: =_xlfn.IFNA(INDEX(Person!C:C,T42),"") -> Minaev | W42: =MATCH(D42,'0a'!A:A,0) -> 3098 | X42: =MATCH(D42,'1'!A:A,0) -> 3030 | Y42: =MATCH(D42,'7'!A:A,0) -> 12350 | Z42: =MATCH(D42,'8'!A:A,0) -> 29273 | AA42: =MATCH(D42,'8A'!A:A,0) -> 30604 | AB42: =MATCH(D42,'9B'!A:A,0) -> 5806 | AC42: =MATCH(D42,'9C'!A:A,0) ->  | AD42: =MATCH(D42,'9D'!A:A,0) ->  | AE42: =MATCH(D42,'9Da'!A:A,0) ->  | AF42: =MATCH(D42,'9E'!A:A,0) ->  | AG42: =MATCH(D42,'10F'!A:A,0) ->  | AH42: =MATCH(D42,'11'!A:A,0) -> 7220 | AI42: =MATCH(D42,'12'!A:A,0) -> 29972 | AJ42: =MATCH(D42,'12V'!A:A,0) -> 564 | AK42: =MATCH(D42,'12W'!A:A,0) -> 578 | AL42: =MATCH(D42,'30'!A:A,0) ->  | AM42: =MATCH(D42,'35'!A:A,0) ->  | AN42: =MATCH(D42,'40'!A:A,0) ->  | AO42: =MATCH(D42,'45'!A:A,0) ->  | AP42: =MATCH(D42,'50'!A:A,0) ->  | AQ42: =_xlfn.IFNA(INDEX('0a'!E:E,W42),"") -> 2010-03-19 | AR42: =_xlfn.IFNA(IF(INDEX('1'!G:G,X42)=0,INDEX('1'!F:F,X42),""),"") ->  | AS42: =_xlfn.IFNA(IF(INDEX('1'!G:G,X42)<>0,INDEX('1'!G:G,X42),""),"") -> 2010-03-19 | AT42: =_xlfn.IFNA(IF(INDEX('7'!F:F,Y42)=0,INDEX('7'!E:E,Y42),""),"") ->  | AU42: =_xlfn.IFNA(IF(INDEX('7'!F:F,Y42)<>0,INDEX('7'!F:F,Y42),""),"") -> 2010-03-19 | AV42: =_xlfn.IFNA(IF(INDEX('8'!F:F,Z42)=0,INDEX('8'!E:E,Z42),""),"") ->  | AW42: =_xlfn.IFNA(IF(INDEX('8'!F:F,Z42)<>0,INDEX('8'!F:F,Z42),""),"") -> 2010-03-22 | AX42: =_xlfn.IFNA(IF(INDEX('8A'!F:F,AA42)=0,INDEX('8A'!E:E,AA42),""),"") ->  | AY42: =_xlfn.IFNA(IF(INDEX('8A'!F:F,AA42)<>0,INDEX('8A'!F:F,AA42),""),"") -> 2010-03-30 | AZ42: =_xlfn.IFNA(IF(INDEX('9B'!F:F,AB42)=0,INDEX('9B'!E:E,AB42),""),"") ->  | BA42: =_xlfn.IFNA(IF(INDEX('9B'!F:F,AB42)<>0,INDEX('9B'!F:F,AB42),""),"") -> 2010-04-19 | BB42: =_xlfn.IFNA(IF(INDEX('9C'!F:F,AC42)=0,INDEX('9C'!E:E,AC42),""),"") ->  | BC42: =_xlfn.IFNA(IF(INDEX('9C'!F:F,AC42)<>0,INDEX('9C'!F:F,AC42),""),"") ->  | BD42: =_xlfn.IFNA(IF(INDEX('9D'!F:F,AD42)=0,INDEX('9D'!E:E,AD42),""),"") ->  | BE42: =_xlfn.IFNA(IF(INDEX('9D'!F:F,AD42)<>0,INDEX('9D'!F:F,AD42),""),"") ->  | BF42: =_xlfn.IFNA(IF(INDEX('9Da'!F:F,AE42)=0,INDEX('9Da'!E:E,AE42),""),"") ->  | BG42: =_xlfn.IFNA(IF(INDEX('9Da'!F:F,AE42)<>0,INDEX('9Da'!F:F,AE42),""),"") ->  | BH42: =_xlfn.IFNA(IF(INDEX('9E'!F:F,AF42)=0,INDEX('9E'!E:E,AF42),""),"") ->  | BI42: =_xlfn.IFNA(IF(INDEX('9E'!F:F,AF42)<>0,INDEX('9E'!F:F,AF42),""),"") ->  | BJ42: =_xlfn.IFNA(IF(INDEX('10F'!F:F,AG42)=0,INDEX('10F'!E:E,AG42),""),"") ->  | BK42: =_xlfn.IFNA(IF(INDEX('10F'!F:F,AG42)<>0,INDEX('10F'!F:F,AG42),""),"") ->  | BL42: =_xlfn.IFNA(IF(INDEX('11'!F:F,AH42)=0,INDEX('11'!E:E,AH42),""),"") ->  | BM42: =_xlfn.IFNA(IF(INDEX('11'!F:F,AH42)<>0,INDEX('11'!F:F,AH42),""),"") -> 2010-08-17 | BN42: =_xlfn.IFNA(IF(INDEX('12'!G:G,AI42)=0,INDEX('12'!F:F,AI42),""),"") ->  | BO42: =_xlfn.IFNA(IF(INDEX('12'!G:G,AI42)<>0,INDEX('12'!G:G,AI42),""),"") -> 2010-08-23 | BP42: =_xlfn.IFNA(IF(INDEX('12V'!F:F,AJ42)=0,INDEX('12V'!E:E,AJ42),""),"") ->  | BQ42: =_xlfn.IFNA(IF(INDEX('12V'!F:F,AJ42)<>0,INDEX('12V'!F:F,AJ42),""),"") -> 2010-09-22 | BR42: =_xlfn.IFNA(IF(INDEX('12W'!F:F,AK42)=0,INDEX('12W'!E:E,AK42),""),"") ->  | BS42: =_xlfn.IFNA(IF(INDEX('12W'!F:F,AK42)<>0,INDEX('12W'!F:F,AK42),""),"") -> 2017-06-08 | BT42: =_xlfn.IFNA(IF(INDEX('30'!F:F,AL42)=0,INDEX('30'!E:E,AL42),""),"") ->  | BU42: =_xlfn.IFNA(IF(INDEX('30'!F:F,AL42)<>0,INDEX('30'!F:F,AL42),""),"") ->  | BV42: =_xlfn.IFNA(IF(INDEX('35'!F:F,AM42)=0,INDEX('35'!E:E,AM42),""),"") ->  | BW42: =_xlfn.IFNA(IF(INDEX('35'!F:F,AM42)<>0,INDEX('35'!F:F,AM42),""),"") ->  | BX42: =_xlfn.IFNA(IF(INDEX('40'!F:F,AN42)=0,INDEX('40'!E:E,AN42),""),"") ->  | BY42: =_xlfn.IFNA(IF(INDEX('40'!F:F,AN42)<>0,INDEX('40'!F:F,AN42),""),"") ->  | BZ42: =_xlfn.IFNA(IF(INDEX('45'!F:F,AO42)=0,INDEX('45'!E:E,AO42),""),"") ->  | CA42: =_xlfn.IFNA(IF(INDEX('45'!F:F,AO42)<>0,INDEX('45'!F:F,AO42),""),"") ->  | CB42: =_xlfn.IFNA(IF(INDEX('50'!F:F,AP42)=0,INDEX('50'!E:E,AP42),""),"") ->  | CC42: =_xlfn.IFNA(IF(INDEX('50'!F:F,AP42)<>0,INDEX('50'!F:F,AP42),""),"") ->  | CD42: RTTE HS cited under RED (no Rx) | CJ42: 46724 | CK42: =MATCH(CJ42,EN!A:A,0) -> 3869 | CL42: =_xlfn.IFNA(INDEX(EN!I:I,CK42),"") -> REN/ERM-TG28-522 | CM42: http://webapp.etsi.org/workProgram/Report_WorkItem.asp?wki_id=46724 | CN42: =_xlfn.IFNA(INDEX(EN!J:J,CK42),"") -> 12 | CO42: =_xlfn.IFNA(IF(INDEX(EN!K:K,CK42)<>0,INDEX(EN!K:K,CK42),""),"") -> W
C43: Original | D43: 46724 | E43: =MATCH(D43,EN!A:A,0) -> 3869 | F43: =INDEX(EN!I:I,E43) -> REN/ERM-TG28-522 | G43: http://webapp.etsi.org/workProgram/Report_WorkItem.asp?wki_id=46724 | H43: =_xlfn.IFNA(INDEX(EN!F:F,E43),"") -> EN | I43: =_xlfn.IFNA(INDEX(EN!G:G,E43),"") -> 300 440 | J43: =_xlfn.IFNA(IF(INDEX(EN!L:L,E43)<>0,INDEX(EN!L:L,E43),""),"") -> 2.1.1 | K43: Cited | L43: =_xlfn.IFNA(INDEX(EN!H:H,E43),"") -> SRD between 1 GHz to 40 GHz | M43: RED 3.2 | N43: =_xlfn.IFNA(INDEX(EN!J:J,E43),"") -> 12 | O43: =_xlfn.IFNA(IF(INDEX(EN!K:K,E43)<>0,INDEX(EN!K:K,E43),""),"") -> W | P43: =_xlfn.IFNA(INDEX(EN!M:M,E43),"") -> Citation in the OJ | Q43: =_xlfn.IFNA(INDEX(EN!N:N,E43),"") -> 2017-07-14 | R43: =_xlfn.IFNA(INDEX(EN!B:B,E43),"") -> ERM TG28 | S43: =INDEX(EN!O:O,E43) -> 26441 | T43: =MATCH(S43,Person!A:A) -> 7 | U43: =_xlfn.IFNA(INDEX(Person!B:B,T43),"") -> Igor | V43: =_xlfn.IFNA(INDEX(Person!C:C,T43),"") -> Minaev | W43: =MATCH(D43,'0a'!A:A,0) -> 3561 | X43: =MATCH(D43,'1'!A:A,0) -> 3468 | Y43: =MATCH(D43,'7'!A:A,0) -> 13588 | Z43: =MATCH(D43,'8'!A:A,0) -> 42074 | AA43: =MATCH(D43,'8A'!A:A,0) -> 43618 | AB43: =MATCH(D43,'9B'!A:A,0) -> 6269 | AC43: =MATCH(D43,'9C'!A:A,0) -> 3558 | AD43: =MATCH(D43,'9D'!A:A,0) -> 3392 | AE43: =MATCH(D43,'9Da'!A:A,0) -> 2207 | AF43: =MATCH(D43,'9E'!A:A,0) -> 3592 | AG43: =MATCH(D43,'10F'!A:A,0) -> 1640 | AH43: =MATCH(D43,'11'!A:A,0) -> 7880 | AI43: =MATCH(D43,'12'!A:A,0) -> 42762 | AJ43: =MATCH(D43,'12V'!A:A,0) -> 772 | AK43: =MATCH(D43,'12W'!A:A,0) -> 781 | AL43: =MATCH(D43,'30'!A:A,0) ->  | AM43: =MATCH(D43,'35'!A:A,0) ->  | AN43: =MATCH(D43,'40'!A:A,0) ->  | AO43: =MATCH(D43,'45'!A:A,0) ->  | AP43: =MATCH(D43,'50'!A:A,0) ->  | AQ43: =_xlfn.IFNA(INDEX('0a'!E:E,W43),"") -> 2015-03-25 | AR43: =_xlfn.IFNA(IF(INDEX('1'!G:G,X43)=0,INDEX('1'!F:F,X43),""),"") ->  | AS43: =_xlfn.IFNA(IF(INDEX('1'!G:G,X43)<>0,INDEX('1'!G:G,X43),""),"") -> 2015-09-30 | AT43: =_xlfn.IFNA(IF(INDEX('7'!F:F,Y43)=0,INDEX('7'!E:E,Y43),""),"") ->  | AU43: =_xlfn.IFNA(IF(INDEX('7'!F:F,Y43)<>0,INDEX('7'!F:F,Y43),""),"") -> 2016-02-18 | AV43: =_xlfn.IFNA(IF(INDEX('8'!F:F,Z43)=0,INDEX('8'!E:E,Z43),""),"") ->  | AW43: =_xlfn.IFNA(IF(INDEX('8'!F:F,Z43)<>0,INDEX('8'!F:F,Z43),""),"") -> 2016-02-23 | AX43: =_xlfn.IFNA(IF(INDEX('8A'!F:F,AA43)=0,INDEX('8A'!E:E,AA43),""),"") ->  | AY43: =_xlfn.IFNA(IF(INDEX('8A'!F:F,AA43)<>0,INDEX('8A'!F:F,AA43),""),"") -> 2016-04-20 | AZ43: =_xlfn.IFNA(IF(INDEX('9B'!F:F,AB43)=0,INDEX('9B'!E:E,AB43),""),"") ->  | BA43: =_xlfn.IFNA(IF(INDEX('9B'!F:F,AB43)<>0,INDEX('9B'!F:F,AB43),""),"") -> 2016-05-13 | BB43: =_xlfn.IFNA(IF(INDEX('9C'!F:F,AC43)=0,INDEX('9C'!E:E,AC43),""),"") ->  | BC43: =_xlfn.IFNA(IF(INDEX('9C'!F:F,AC43)<>0,INDEX('9C'!F:F,AC43),""),"") -> 2016-08-11 | BD43: =_xlfn.IFNA(IF(INDEX('9D'!F:F,AD43)=0,INDEX('9D'!E:E,AD43),""),"") ->  | BE43: =_xlfn.IFNA(IF(INDEX('9D'!F:F,AD43)<>0,INDEX('9D'!F:F,AD43),""),"") -> 2016-08-11 | BF43: =_xlfn.IFNA(IF(INDEX('9Da'!F:F,AE43)=0,INDEX('9Da'!E:E,AE43),""),"") ->  | BG43: =_xlfn.IFNA(IF(INDEX('9Da'!F:F,AE43)<>0,INDEX('9Da'!F:F,AE43),""),"") -> 2016-10-26 | BH43: =_xlfn.IFNA(IF(INDEX('9E'!F:F,AF43)=0,INDEX('9E'!E:E,AF43),""),"") ->  | BI43: =_xlfn.IFNA(IF(INDEX('9E'!F:F,AF43)<>0,INDEX('9E'!F:F,AF43),""),"") -> 2016-11-28 | BJ43: =_xlfn.IFNA(IF(INDEX('10F'!F:F,AG43)=0,INDEX('10F'!E:E,AG43),""),"") ->  | BK43: =_xlfn.IFNA(IF(INDEX('10F'!F:F,AG43)<>0,INDEX('10F'!F:F,AG43),""),"") -> 2017-01-09 | BL43: =_xlfn.IFNA(IF(INDEX('11'!F:F,AH43)=0,INDEX('11'!E:E,AH43),""),"") ->  | BM43: =_xlfn.IFNA(IF(INDEX('11'!F:F,AH43)<>0,INDEX('11'!F:F,AH43),""),"") -> 2017-03-10 | BN43: =_xlfn.IFNA(IF(INDEX('12'!G:G,AI43)=0,INDEX('12'!F:F,AI43),""),"") ->  | BO43: =_xlfn.IFNA(IF(INDEX('12'!G:G,AI43)<>0,INDEX('12'!G:G,AI43),""),"") -> 2017-03-20 | BP43: =_xlfn.IFNA(IF(INDEX('12V'!F:F,AJ43)=0,INDEX('12V'!E:E,AJ43),""),"") ->  | BQ43: =_xlfn.IFNA(IF(INDEX('12V'!F:F,AJ43)<>0,INDEX('12V'!F:F,AJ43),""),"") -> 2017-03-21 | BR43: =_xlfn.IFNA(IF(INDEX('12W'!F:F,AK43)=0,INDEX('12W'!E:E,AK43),""),"") ->  | BS43: =_xlfn.IFNA(IF(INDEX('12W'!F:F,AK43)<>0,INDEX('12W'!F:F,AK43),""),"") -> 2017-07-14 | BT43: =_xlfn.IFNA(IF(INDEX('30'!F:F,AL43)=0,INDEX('30'!E:E,AL43),""),"") ->  | BU43: =_xlfn.IFNA(IF(INDEX('30'!F:F,AL43)<>0,INDEX('30'!F:F,AL43),""),"") ->  | BV43: =_xlfn.IFNA(IF(INDEX('35'!F:F,AM43)=0,INDEX('35'!E:E,AM43),""),"") ->  | BW43: =_xlfn.IFNA(IF(INDEX('35'!F:F,AM43)<>0,INDEX('35'!F:F,AM43),""),"") ->  | BX43: =_xlfn.IFNA(IF(INDEX('40'!F:F,AN43)=0,INDEX('40'!E:E,AN43),""),"") ->  | BY43: =_xlfn.IFNA(IF(INDEX('40'!F:F,AN43)<>0,INDEX('40'!F:F,AN43),""),"") ->  | BZ43: =_xlfn.IFNA(IF(INDEX('45'!F:F,AO43)=0,INDEX('45'!E:E,AO43),""),"") ->  | CA43: =_xlfn.IFNA(IF(INDEX('45'!F:F,AO43)<>0,INDEX('45'!F:F,AO43),""),"") ->  | CB43: =_xlfn.IFNA(IF(INDEX('50'!F:F,AP43)=0,INDEX('50'!E:E,AP43),""),"") ->  | CC43: =_xlfn.IFNA(IF(INDEX('50'!F:F,AP43)<>0,INDEX('50'!F:F,AP43),""),"") ->  | CF43: Y | CG43: Y | CJ43: 52892 | CK43: =MATCH(CJ43,EN!A:A,0) -> 4261 | CL43: =_xlfn.IFNA(INDEX(EN!I:I,CK43),"") -> REN/ERM-TG28-551 | CM43: http://webapp.etsi.org/workProgram/Report_WorkItem.asp?wki_id=52892 | CN43: =_xlfn.IFNA(INDEX(EN!J:J,CK43),"") -> 9 | CO43: =_xlfn.IFNA(IF(INDEX(EN!K:K,CK43)<>0,INDEX(EN!K:K,CK43),""),"") -> Da
C44: Addition | D44: 52892 | E44: =MATCH(D44,EN!A:A,0) -> 4261 | F44: =INDEX(EN!I:I,E44) -> REN/ERM-TG28-551 | G44: http://webapp.etsi.org/workProgram/Report_WorkItem.asp?wki_id=52892 | H44: =_xlfn.IFNA(INDEX(EN!F:F,E44),"") -> EN | I44: =_xlfn.IFNA(INDEX(EN!G:G,E44),"") -> 300 440 | J44: =_xlfn.IFNA(IF(INDEX(EN!L:L,E44)<>0,INDEX(EN!L:L,E44),""),"") -> 1.0.4 | K44: RevPending | L44: =_xlfn.IFNA(INDEX(EN!H:H,E44),"") -> SRD between 1 GHz to 40 GHz | M44: RED 3.2 | N44: =_xlfn.IFNA(INDEX(EN!J:J,E44),"") -> 9 | O44: =_xlfn.IFNA(IF(INDEX(EN!K:K,E44)<>0,INDEX(EN!K:K,E44),""),"") -> Da | P44: =_xlfn.IFNA(INDEX(EN!M:M,E44),"") -> TB approval after review of AP comments | Q44: =_xlfn.IFNA(INDEX(EN!N:N,E44),"") -> 2018-02-20 | R44: =_xlfn.IFNA(INDEX(EN!B:B,E44),"") -> ERM TG28 | S44: =INDEX(EN!O:O,E44) -> 26441 | T44: =MATCH(S44,Person!A:A) -> 7 | U44: =_xlfn.IFNA(INDEX(Person!B:B,T44),"") -> Igor | V44: =_xlfn.IFNA(INDEX(Person!C:C,T44),"") -> Minaev | W44: =MATCH(D44,'0a'!A:A,0) -> 3945 | X44: =MATCH(D44,'1'!A:A,0) -> 3837 | Y44: =MATCH(D44,'7'!A:A,0) -> 14110 | Z44: =MATCH(D44,'8'!A:A,0) -> 48025 | AA44: =MATCH(D44,'8A'!A:A,0) -> 49647 | AB44: =MATCH(D44,'9B'!A:A,0) -> 6643 | AC44: =MATCH(D44,'9C'!A:A,0) -> 3931 | AD44: =MATCH(D44,'9D'!A:A,0) -> 3641 | AE44: =MATCH(D44,'9Da'!A:A,0) -> 2456 | AF44: =MATCH(D44,'9E'!A:A,0) -> 3852 | AG44: =MATCH(D44,'10F'!A:A,0) -> 1883 | AH44: =MATCH(D44,'11'!A:A,0) -> 8344 | AI44: =MATCH(D44,'12'!A:A,0) -> 48717 | AJ44: =MATCH(D44,'12V'!A:A,0) -> 1033 | AK44: =MATCH(D44,'12W'!A:A,0) -> 1030 | AL44: =MATCH(D44,'30'!A:A,0) ->  | AM44: =MATCH(D44,'35'!A:A,0) ->  | AN44: =MATCH(D44,'40'!A:A,0) ->  | AO44: =MATCH(D44,'45'!A:A,0) ->  | AP44: =MATCH(D44,'50'!A:A,0) ->  | AQ44: =_xlfn.IFNA(INDEX('0a'!E:E,W44),"") -> 2017-05-22 | AR44: =_xlfn.IFNA(IF(INDEX('1'!G:G,X44)=0,INDEX('1'!F:F,X44),""),"") ->  | AS44: =_xlfn.IFNA(IF(INDEX('1'!G:G,X44)<>0,INDEX('1'!G:G,X44),""),"") -> 2017-06-02 | AT44: =_xlfn.IFNA(IF(INDEX('7'!F:F,Y44)=0,INDEX('7'!E:E,Y44),""),"") ->  | AU44: =_xlfn.IFNA(IF(INDEX('7'!F:F,Y44)<>0,INDEX('7'!F:F,Y44),""),"") -> 2017-06-14 | AV44: =_xlfn.IFNA(IF(INDEX('8'!F:F,Z44)=0,INDEX('8'!E:E,Z44),""),"") ->  | AW44: =_xlfn.IFNA(IF(INDEX('8'!F:F,Z44)<>0,INDEX('8'!F:F,Z44),""),"") -> 2017-06-23 | AX44: =_xlfn.IFNA(IF(INDEX('8A'!F:F,AA44)=0,INDEX('8A'!E:E,AA44),""),"") ->  | AY44: =_xlfn.IFNA(IF(INDEX('8A'!F:F,AA44)<>0,INDEX('8A'!F:F,AA44),""),"") -> 2017-08-11 | AZ44: =_xlfn.IFNA(IF(INDEX('9B'!F:F,AB44)=0,INDEX('9B'!E:E,AB44),""),"") ->  | BA44: =_xlfn.IFNA(IF(INDEX('9B'!F:F,AB44)<>0,INDEX('9B'!F:F,AB44),""),"") -> 2017-09-18 | BB44: =_xlfn.IFNA(IF(INDEX('9C'!F:F,AC44)=0,INDEX('9C'!E:E,AC44),""),"") ->  | BC44: =_xlfn.IFNA(IF(INDEX('9C'!F:F,AC44)<>0,INDEX('9C'!F:F,AC44),""),"") -> 2017-12-18 | BD44: =_xlfn.IFNA(IF(INDEX('9D'!F:F,AD44)=0,INDEX('9D'!E:E,AD44),""),"") ->  | BE44: =_xlfn.IFNA(IF(INDEX('9D'!F:F,AD44)<>0,INDEX('9D'!F:F,AD44),""),"") -> 2018-01-31 | BF44: =_xlfn.IFNA(IF(INDEX('9Da'!F:F,AE44)=0,INDEX('9Da'!E:E,AE44),""),"") ->  | BG44: =_xlfn.IFNA(IF(INDEX('9Da'!F:F,AE44)<>0,INDEX('9Da'!F:F,AE44),""),"") -> 2018-02-20 | BH44: =_xlfn.IFNA(IF(INDEX('9E'!F:F,AF44)=0,INDEX('9E'!E:E,AF44),""),"") -> 2018-02-27 | BI44: =_xlfn.IFNA(IF(INDEX('9E'!F:F,AF44)<>0,INDEX('9E'!F:F,AF44),""),"") ->  | BJ44: =_xlfn.IFNA(IF(INDEX('10F'!F:F,AG44)=0,INDEX('10F'!E:E,AG44),""),"") -> 2018-03-13 | BK44: =_xlfn.IFNA(IF(INDEX('10F'!F:F,AG44)<>0,INDEX('10F'!F:F,AG44),""),"") ->  | BL44: =_xlfn.IFNA(IF(INDEX('11'!F:F,AH44)=0,INDEX('11'!E:E,AH44),""),"") -> 2018-05-12 | BM44: =_xlfn.IFNA(IF(INDEX('11'!F:F,AH44)<>0,INDEX('11'!F:F,AH44),""),"") ->  | BN44: =_xlfn.IFNA(IF(INDEX('12'!G:G,AI44)=0,INDEX('12'!F:F,AI44),""),"") -> 2018-05-26 | BO44: =_xlfn.IFNA(IF(INDEX('12'!G:G,AI44)<>0,INDEX('12'!G:G,AI44),""),"") ->  | BP44: =_xlfn.IFNA(IF(INDEX('12V'!F:F,AJ44)=0,INDEX('12V'!E:E,AJ44),""),"") -> 2018-06-16 | BQ44: =_xlfn.IFNA(IF(INDEX('12V'!F:F,AJ44)<>0,INDEX('12V'!F:F,AJ44),""),"") ->  | BR44: =_xlfn.IFNA(IF(INDEX('12W'!F:F,AK44)=0,INDEX('12W'!E:E,AK44),""),"") -> 2018-09-08 | BS44: =_xlfn.IFNA(IF(INDEX('12W'!F:F,AK44)<>0,INDEX('12W'!F:F,AK44),""),"") ->  | BT44: =_xlfn.IFNA(IF(INDEX('30'!F:F,AL44)=0,INDEX('30'!E:E,AL44),""),"") ->  | BU44: =_xlfn.IFNA(IF(INDEX('30'!F:F,AL44)<>0,INDEX('30'!F:F,AL44),""),"") ->  | BV44: =_xlfn.IFNA(IF(INDEX('35'!F:F,AM44)=0,INDEX('35'!E:E,AM44),""),"") ->  | BW44: =_xlfn.IFNA(IF(INDEX('35'!F:F,AM44)<>0,INDEX('35'!F:F,AM44),""),"") ->  | BX44: =_xlfn.IFNA(IF(INDEX('40'!F:F,AN44)=0,INDEX('40'!E:E,AN44),""),"") ->  | BY44: =_xlfn.IFNA(IF(INDEX('40'!F:F,AN44)<>0,INDEX('40'!F:F,AN44),""),"") ->  | BZ44: =_xlfn.IFNA(IF(INDEX('45'!F:F,AO44)=0,INDEX('45'!E:E,AO44),""),"") ->  | CA44: =_xlfn.IFNA(IF(INDEX('45'!F:F,AO44)<>0,INDEX('45'!F:F,AO44),""),"") ->  | CB44: =_xlfn.IFNA(IF(INDEX('50'!F:F,AP44)=0,INDEX('50'!E:E,AP44),""),"") ->  | CC44: =_xlfn.IFNA(IF(INDEX('50'!F:F,AP44)<>0,INDEX('50'!F:F,AP44),""),"") ->  | CE44: Pre-assessment requested | CK44: =MATCH(CJ44,EN!A:A,0) ->  | CL44: =_xlfn.IFNA(INDEX(EN!I:I,CK44),"") ->  | CN44: =_xlfn.IFNA(INDEX(EN!J:J,CK44),"") ->  | CO44: =_xlfn.IFNA(IF(INDEX(EN!K:K,CK44)<>0,INDEX(EN!K:K,CK44),""),"") -> 
A45: 300 454-2 | B45: 1.1.1 | C45: Addition | D45: 8853 | E45: =MATCH(D45,EN!A:A,0) -> 1713 | F45: =INDEX(EN!I:I,E45) -> REN/ERM-RP08-0311-2 | G45: =IF(D45=0,"",HYPERLINK(CONCATENATE("http://webapp.etsi.org/workProgram/Report_WorkItem.asp?wki_id=",D45))) -> http://webapp.etsi.org/workProgram/Report_WorkItem.asp?wki_id=8853 | H45: =_xlfn.IFNA(INDEX(EN!F:F,E45),"") -> EN | I45: =_xlfn.IFNA(INDEX(EN!G:G,E45),"") -> 300 454-2 | J45: =_xlfn.IFNA(IF(INDEX(EN!L:L,E45)<>0,INDEX(EN!L:L,E45),""),"") -> 1.1.1 | K45: LimitCited | L45: =_xlfn.IFNA(INDEX(EN!H:H,E45),"") -> 0 | M45: RED 3.2 | N45: =_xlfn.IFNA(INDEX(EN!J:J,E45),"") -> 12 | O45: =_xlfn.IFNA(IF(INDEX(EN!K:K,E45)<>0,INDEX(EN!K:K,E45),""),"") -> W | P45: =_xlfn.IFNA(INDEX(EN!M:M,E45),"") -> Citation in the OJ | Q45: =_xlfn.IFNA(INDEX(EN!N:N,E45),"") -> 2017-06-08 | R45: =_xlfn.IFNA(INDEX(EN!B:B,E45),"") -> ERM RP08 | S45: =INDEX(EN!O:O,E45) -> 5529 | T45: =MATCH(S45,Person!A:A) -> 3 | U45: =_xlfn.IFNA(INDEX(Person!B:B,T45),"") -> Michael | V45: =_xlfn.IFNA(INDEX(Person!C:C,T45),"") -> Sharpe | W45: =MATCH(D45,'0a'!A:A,0) -> 1485 | X45: =MATCH(D45,'1'!A:A,0) ->  | Y45: =MATCH(D45,'7'!A:A,0) ->  | Z45: =MATCH(D45,'8'!A:A,0) -> 7027 | AA45: =MATCH(D45,'8A'!A:A,0) -> 7263 | AB45: =MATCH(D45,'9B'!A:A,0) -> 4194 | AC45: =MATCH(D45,'9C'!A:A,0) ->  | AD45: =MATCH(D45,'9D'!A:A,0) ->  | AE45: =MATCH(D45,'9Da'!A:A,0) ->  | AF45: =MATCH(D45,'9E'!A:A,0) ->  | AG45: =MATCH(D45,'10F'!A:A,0) ->  | AH45: =MATCH(D45,'11'!A:A,0) -> 4450 | AI45: =MATCH(D45,'12'!A:A,0) -> 7567 | AJ45: =MATCH(D45,'12V'!A:A,0) -> 112 | AK45: =MATCH(D45,'12W'!A:A,0) -> 127 | AL45: =MATCH(D45,'30'!A:A,0) ->  | AM45: =MATCH(D45,'35'!A:A,0) ->  | AN45: =MATCH(D45,'40'!A:A,0) ->  | AO45: =MATCH(D45,'45'!A:A,0) ->  | AP45: =MATCH(D45,'50'!A:A,0) ->  | AQ45: =_xlfn.IFNA(INDEX('0a'!E:E,W45),"") -> 1999-10-18 | AR45: =_xlfn.IFNA(IF(INDEX('1'!G:G,X45)=0,INDEX('1'!F:F,X45),""),"") ->  | AS45: =_xlfn.IFNA(IF(INDEX('1'!G:G,X45)<>0,INDEX('1'!G:G,X45),""),"") ->  | AT45: =_xlfn.IFNA(IF(INDEX('7'!F:F,Y45)=0,INDEX('7'!E:E,Y45),""),"") ->  | AU45: =_xlfn.IFNA(IF(INDEX('7'!F:F,Y45)<>0,INDEX('7'!F:F,Y45),""),"") ->  | AV45: =_xlfn.IFNA(IF(INDEX('8'!F:F,Z45)=0,INDEX('8'!E:E,Z45),""),"") ->  | AW45: =_xlfn.IFNA(IF(INDEX('8'!F:F,Z45)<>0,INDEX('8'!F:F,Z45),""),"") -> 2000-02-11 | AX45: =_xlfn.IFNA(IF(INDEX('8A'!F:F,AA45)=0,INDEX('8A'!E:E,AA45),""),"") ->  | AY45: =_xlfn.IFNA(IF(INDEX('8A'!F:F,AA45)<>0,INDEX('8A'!F:F,AA45),""),"") -> 2000-02-25 | AZ45: =_xlfn.IFNA(IF(INDEX('9B'!F:F,AB45)=0,INDEX('9B'!E:E,AB45),""),"") ->  | BA45: =_xlfn.IFNA(IF(INDEX('9B'!F:F,AB45)<>0,INDEX('9B'!F:F,AB45),""),"") -> 2000-03-22 | BB45: =_xlfn.IFNA(IF(INDEX('9C'!F:F,AC45)=0,INDEX('9C'!E:E,AC45),""),"") ->  | BC45: =_xlfn.IFNA(IF(INDEX('9C'!F:F,AC45)<>0,INDEX('9C'!F:F,AC45),""),"") ->  | BD45: =_xlfn.IFNA(IF(INDEX('9D'!F:F,AD45)=0,INDEX('9D'!E:E,AD45),""),"") ->  | BE45: =_xlfn.IFNA(IF(INDEX('9D'!F:F,AD45)<>0,INDEX('9D'!F:F,AD45),""),"") ->  | BF45: =_xlfn.IFNA(IF(INDEX('9Da'!F:F,AE45)=0,INDEX('9Da'!E:E,AE45),""),"") ->  | BG45: =_xlfn.IFNA(IF(INDEX('9Da'!F:F,AE45)<>0,INDEX('9Da'!F:F,AE45),""),"") ->  | BH45: =_xlfn.IFNA(IF(INDEX('9E'!F:F,AF45)=0,INDEX('9E'!E:E,AF45),""),"") ->  | BI45: =_xlfn.IFNA(IF(INDEX('9E'!F:F,AF45)<>0,INDEX('9E'!F:F,AF45),""),"") ->  | BJ45: =_xlfn.IFNA(IF(INDEX('10F'!F:F,AG45)=0,INDEX('10F'!E:E,AG45),""),"") ->  | BK45: =_xlfn.IFNA(IF(INDEX('10F'!F:F,AG45)<>0,INDEX('10F'!F:F,AG45),""),"") ->  | BL45: =_xlfn.IFNA(IF(INDEX('11'!F:F,AH45)=0,INDEX('11'!E:E,AH45),""),"") ->  | BM45: =_xlfn.IFNA(IF(INDEX('11'!F:F,AH45)<>0,INDEX('11'!F:F,AH45),""),"") -> 2000-07-21 | BN45: =_xlfn.IFNA(IF(INDEX('12'!G:G,AI45)=0,INDEX('12'!F:F,AI45),""),"") ->  | BO45: =_xlfn.IFNA(IF(INDEX('12'!G:G,AI45)<>0,INDEX('12'!G:G,AI45),""),"") -> 2000-08-02 | BP45: =_xlfn.IFNA(IF(INDEX('12V'!F:F,AJ45)=0,INDEX('12V'!E:E,AJ45),""),"") ->  | BQ45: =_xlfn.IFNA(IF(INDEX('12V'!F:F,AJ45)<>0,INDEX('12V'!F:F,AJ45),""),"") -> 2000-12-06 | BR45: =_xlfn.IFNA(IF(INDEX('12W'!F:F,AK45)=0,INDEX('12W'!E:E,AK45),""),"") ->  | BS45: =_xlfn.IFNA(IF(INDEX('12W'!F:F,AK45)<>0,INDEX('12W'!F:F,AK45),""),"") -> 2017-06-08 | BT45: =_xlfn.IFNA(IF(INDEX('30'!F:F,AL45)=0,INDEX('30'!E:E,AL45),""),"") ->  | BU45: =_xlfn.IFNA(IF(INDEX('30'!F:F,AL45)<>0,INDEX('30'!F:F,AL45),""),"") ->  | BV45: =_xlfn.IFNA(IF(INDEX('35'!F:F,AM45)=0,INDEX('35'!E:E,AM45),""),"") ->  | BW45: =_xlfn.IFNA(IF(INDEX('35'!F:F,AM45)<>0,INDEX('35'!F:F,AM45),""),"") ->  | BX45: =_xlfn.IFNA(IF(INDEX('40'!F:F,AN45)=0,INDEX('40'!E:E,AN45),""),"") ->  | BY45: =_xlfn.IFNA(IF(INDEX('40'!F:F,AN45)<>0,INDEX('40'!F:F,AN45),""),"") ->  | BZ45: =_xlfn.IFNA(IF(INDEX('45'!F:F,AO45)=0,INDEX('45'!E:E,AO45),""),"") ->  | CA45: =_xlfn.IFNA(IF(INDEX('45'!F:F,AO45)<>0,INDEX('45'!F:F,AO45),""),"") ->  | CB45: =_xlfn.IFNA(IF(INDEX('50'!F:F,AP45)=0,INDEX('50'!E:E,AP45),""),"") ->  | CC45: =_xlfn.IFNA(IF(INDEX('50'!F:F,AP45)<>0,INDEX('50'!F:F,AP45),""),"") ->  | CD45: RTTE HS cited under RED (no Rx) | CJ45: 47600 | CK45: =MATCH(CJ45,EN!A:A,0) -> 3989 | CL45: =_xlfn.IFNA(INDEX(EN!I:I,CK45),"") -> REN/ERM-TG17-22 | CM45: http://webapp.etsi.org/workProgram/Report_WorkItem.asp?wki_id=47600 | CN45: =_xlfn.IFNA(INDEX(EN!J:J,CK45),"") -> 1 | CO45: =_xlfn.IFNA(IF(INDEX(EN!K:K,CK45)<>0,INDEX(EN!K:K,CK45),""),"") -> 
C46: Original | D46: 47600 | E46: =MATCH(D46,EN!A:A,0) -> 3989 | F46: =INDEX(EN!I:I,E46) -> REN/ERM-TG17-22 | G46: http://webapp.etsi.org/workProgram/Report_WorkItem.asp?wki_id=47600 | H46: =_xlfn.IFNA(INDEX(EN!F:F,E46),"") -> EN | I46: =_xlfn.IFNA(INDEX(EN!G:G,E46),"") -> 300 454-2 | J46: =_xlfn.IFNA(IF(INDEX(EN!L:L,E46)<>0,INDEX(EN!L:L,E46),""),"") ->  | K46: STOPPED | L46: =_xlfn.IFNA(INDEX(EN!H:H,E46),"") -> Wideband audio links | M46: RED 3.2 | R46: =_xlfn.IFNA(INDEX(EN!B:B,E46),"") -> ERM TG17 | S46: =INDEX(EN!O:O,E46) -> 26441 | T46: =MATCH(S46,Person!A:A) -> 7 | U46: =_xlfn.IFNA(INDEX(Person!B:B,T46),"") -> Igor | V46: =_xlfn.IFNA(INDEX(Person!C:C,T46),"") -> Minaev | W46: =MATCH(D46,'0a'!A:A,0) -> 3682 | X46: =MATCH(D46,'1'!A:A,0) -> 3587 | Y46: =MATCH(D46,'7'!A:A,0) -> 13716 | Z46: =MATCH(D46,'8'!A:A,0) -> 42924 | AA46: =MATCH(D46,'8A'!A:A,0) -> 44487 | AB46: =MATCH(D46,'9B'!A:A,0) -> 6391 | AC46: =MATCH(D46,'9C'!A:A,0) -> 3680 | AD46: =MATCH(D46,'9D'!A:A,0) -> 3456 | AE46: =MATCH(D46,'9Da'!A:A,0) -> 2271 | AF46: =MATCH(D46,'9E'!A:A,0) -> 3666 | AG46: =MATCH(D46,'10F'!A:A,0) -> 1704 | AH46: =MATCH(D46,'11'!A:A,0) -> 8023 | AI46: =MATCH(D46,'12'!A:A,0) -> 43610 | AJ46: =MATCH(D46,'12V'!A:A,0) -> 863 | AK46: =MATCH(D46,'12W'!A:A,0) -> 861 | AL46: =MATCH(D46,'30'!A:A,0) ->  | AM46: =MATCH(D46,'35'!A:A,0) ->  | AN46: =MATCH(D46,'40'!A:A,0) ->  | AO46: =MATCH(D46,'45'!A:A,0) ->  | AP46: =MATCH(D46,'50'!A:A,0) ->  | AT46: =_xlfn.IFNA(IF(INDEX('7'!F:F,Y46)=0,INDEX('7'!E:E,Y46),""),"") -> 2017-11-02 | AU46: =_xlfn.IFNA(IF(INDEX('7'!F:F,Y46)<>0,INDEX('7'!F:F,Y46),""),"") ->  | AX46: =_xlfn.IFNA(IF(INDEX('8A'!F:F,AA46)=0,INDEX('8A'!E:E,AA46),""),"") -> 2018-02-16 | AY46: =_xlfn.IFNA(IF(INDEX('8A'!F:F,AA46)<>0,INDEX('8A'!F:F,AA46),""),"") ->  | AZ46: =_xlfn.IFNA(IF(INDEX('9B'!F:F,AB46)=0,INDEX('9B'!E:E,AB46),""),"") -> 2018-03-02 | BA46: =_xlfn.IFNA(IF(INDEX('9B'!F:F,AB46)<>0,INDEX('9B'!F:F,AB46),""),"") ->  | BB46: =_xlfn.IFNA(IF(INDEX('9C'!F:F,AC46)=0,INDEX('9C'!E:E,AC46),""),"") -> 2018-06-01 | BC46: =_xlfn.IFNA(IF(INDEX('9C'!F:F,AC46)<>0,INDEX('9C'!F:F,AC46),""),"") ->  | BD46: =_xlfn.IFNA(IF(INDEX('9D'!F:F,AD46)=0,INDEX('9D'!E:E,AD46),""),"") -> 2018-06-01 | BE46: =_xlfn.IFNA(IF(INDEX('9D'!F:F,AD46)<>0,INDEX('9D'!F:F,AD46),""),"") ->  | BF46: =_xlfn.IFNA(IF(INDEX('9Da'!F:F,AE46)=0,INDEX('9Da'!E:E,AE46),""),"") -> 2018-08-31 | BG46: =_xlfn.IFNA(IF(INDEX('9Da'!F:F,AE46)<>0,INDEX('9Da'!F:F,AE46),""),"") ->  | BH46: =_xlfn.IFNA(IF(INDEX('9E'!F:F,AF46)=0,INDEX('9E'!E:E,AF46),""),"") -> 2018-09-07 | BI46: =_xlfn.IFNA(IF(INDEX('9E'!F:F,AF46)<>0,INDEX('9E'!F:F,AF46),""),"") ->  | BJ46: =_xlfn.IFNA(IF(INDEX('10F'!F:F,AG46)=0,INDEX('10F'!E:E,AG46),""),"") -> 2018-09-21 | BK46: =_xlfn.IFNA(IF(INDEX('10F'!F:F,AG46)<>0,INDEX('10F'!F:F,AG46),""),"") ->  | BV46: =_xlfn.IFNA(IF(INDEX('35'!F:F,AM46)=0,INDEX('35'!E:E,AM46),""),"") ->  | BW46: =_xlfn.IFNA(IF(INDEX('35'!F:F,AM46)<>0,INDEX('35'!F:F,AM46),""),"") ->  | BX46: =_xlfn.IFNA(IF(INDEX('40'!F:F,AN46)=0,INDEX('40'!E:E,AN46),""),"") ->  | BY46: =_xlfn.IFNA(IF(INDEX('40'!F:F,AN46)<>0,INDEX('40'!F:F,AN46),""),"") ->  | BZ46: =_xlfn.IFNA(IF(INDEX('45'!F:F,AO46)=0,INDEX('45'!E:E,AO46),""),"") ->  | CA46: =_xlfn.IFNA(IF(INDEX('45'!F:F,AO46)<>0,INDEX('45'!F:F,AO46),""),"") ->  | CK46: =MATCH(CJ46,EN!A:A,0) ->  | CL46: =_xlfn.IFNA(INDEX(EN!I:I,CK46),"") ->  | CN46: =_xlfn.IFNA(INDEX(EN!J:J,CK46),"") ->  | CO46: =_xlfn.IFNA(IF(INDEX(EN!K:K,CK46)<>0,INDEX(EN!K:K,CK46),""),"") -> 
A47: 300 471-2 | B47: 1.1.1 | C47: Original | D47: 47180 | E47: =MATCH(D47,EN!A:A,0) -> 3937 | F47: =INDEX(EN!I:I,E47) -> REN/ERM-TGDMR-345 | G47: http://webapp.etsi.org/workProgram/Report_WorkItem.asp?wki_id=47180 | H47: =_xlfn.IFNA(INDEX(EN!F:F,E47),"") -> EN | I47: =_xlfn.IFNA(INDEX(EN!G:G,E47),"") -> 300 471 | J47: =_xlfn.IFNA(IF(INDEX(EN!L:L,E47)<>0,INDEX(EN!L:L,E47),""),"") ->  | K47: Pending | L47: =_xlfn.IFNA(INDEX(EN!H:H,E47),"") -> HEN - Access and Sharing of channels complying with EN 300 113 | M47: RED 3.2 | N47: =_xlfn.IFNA(INDEX(EN!J:J,E47),"") -> 1 | O47: =_xlfn.IFNA(IF(INDEX(EN!K:K,E47)<>0,INDEX(EN!K:K,E47),""),"") ->  | P47: =_xlfn.IFNA(INDEX(EN!M:M,E47),"") -> Start of work | Q47: =_xlfn.IFNA(INDEX(EN!N:N,E47),"") -> 2015-05-22 | R47: =_xlfn.IFNA(INDEX(EN!B:B,E47),"") -> ERM TGDMR | S47: =INDEX(EN!O:O,E47) -> 14585 | T47: =MATCH(S47,Person!A:A) -> 6 | U47: =_xlfn.IFNA(INDEX(Person!B:B,T47),"") -> Bernt | V47: =_xlfn.IFNA(INDEX(Person!C:C,T47),"") -> Mattsson | W47: =MATCH(D47,'0a'!A:A,0) -> 3629 | X47: =MATCH(D47,'1'!A:A,0) -> 3535 | Y47: =MATCH(D47,'7'!A:A,0) -> 13660 | Z47: =MATCH(D47,'8'!A:A,0) -> 42514 | AA47: =MATCH(D47,'8A'!A:A,0) -> 44071 | AB47: =MATCH(D47,'9B'!A:A,0) -> 6337 | AC47: =MATCH(D47,'9C'!A:A,0) -> 3626 | AD47: =MATCH(D47,'9D'!A:A,0) -> 3419 | AE47: =MATCH(D47,'9Da'!A:A,0) -> 2234 | AF47: =MATCH(D47,'9E'!A:A,0) -> 3627 | AG47: =MATCH(D47,'10F'!A:A,0) -> 1668 | AH47: =MATCH(D47,'11'!A:A,0) -> 7955 | AI47: =MATCH(D47,'12'!A:A,0) -> 43200 | AJ47: =MATCH(D47,'12V'!A:A,0) -> 832 | AK47: =MATCH(D47,'12W'!A:A,0) -> 833 | AL47: =MATCH(D47,'30'!A:A,0) ->  | AM47: =MATCH(D47,'35'!A:A,0) ->  | AN47: =MATCH(D47,'40'!A:A,0) ->  | AO47: =MATCH(D47,'45'!A:A,0) ->  | AP47: =MATCH(D47,'50'!A:A,0) ->  | AQ47: =_xlfn.IFNA(INDEX('0a'!E:E,W47),"") -> 2015-06-11 | AR47: =_xlfn.IFNA(IF(INDEX('1'!G:G,X47)=0,INDEX('1'!F:F,X47),""),"") ->  | AS47: =_xlfn.IFNA(IF(INDEX('1'!G:G,X47)<>0,INDEX('1'!G:G,X47),""),"") -> 2015-05-22 | AT47: =_xlfn.IFNA(IF(INDEX('7'!F:F,Y47)=0,INDEX('7'!E:E,Y47),""),"") -> 2018-09-12 | AU47: =_xlfn.IFNA(IF(INDEX('7'!F:F,Y47)<>0,INDEX('7'!F:F,Y47),""),"") ->  | AV47: =_xlfn.IFNA(IF(INDEX('8'!F:F,Z47)=0,INDEX('8'!E:E,Z47),""),"") -> 2018-10-12 | AW47: =_xlfn.IFNA(IF(INDEX('8'!F:F,Z47)<>0,INDEX('8'!F:F,Z47),""),"") ->  | AX47: =_xlfn.IFNA(IF(INDEX('8A'!F:F,AA47)=0,INDEX('8A'!E:E,AA47),""),"") -> 2018-10-26 | AY47: =_xlfn.IFNA(IF(INDEX('8A'!F:F,AA47)<>0,INDEX('8A'!F:F,AA47),""),"") ->  | AZ47: =_xlfn.IFNA(IF(INDEX('9B'!F:F,AB47)=0,INDEX('9B'!E:E,AB47),""),"") -> 2018-11-09 | BA47: =_xlfn.IFNA(IF(INDEX('9B'!F:F,AB47)<>0,INDEX('9B'!F:F,AB47),""),"") ->  | BB47: =_xlfn.IFNA(IF(INDEX('9C'!F:F,AC47)=0,INDEX('9C'!E:E,AC47),""),"") -> 2019-02-08 | BC47: =_xlfn.IFNA(IF(INDEX('9C'!F:F,AC47)<>0,INDEX('9C'!F:F,AC47),""),"") ->  | BD47: =_xlfn.IFNA(IF(INDEX('9D'!F:F,AD47)=0,INDEX('9D'!E:E,AD47),""),"") -> 2019-02-08 | BE47: =_xlfn.IFNA(IF(INDEX('9D'!F:F,AD47)<>0,INDEX('9D'!F:F,AD47),""),"") ->  | BF47: =_xlfn.IFNA(IF(INDEX('9Da'!F:F,AE47)=0,INDEX('9Da'!E:E,AE47),""),"") -> 2019-05-10 | BG47: =_xlfn.IFNA(IF(INDEX('9Da'!F:F,AE47)<>0,INDEX('9Da'!F:F,AE47),""),"") ->  | BH47: =_xlfn.IFNA(IF(INDEX('9E'!F:F,AF47)=0,INDEX('9E'!E:E,AF47),""),"") -> 2019-05-17 | BI47: =_xlfn.IFNA(IF(INDEX('9E'!F:F,AF47)<>0,INDEX('9E'!F:F,AF47),""),"") ->  | BJ47: =_xlfn.IFNA(IF(INDEX('10F'!F:F,AG47)=0,INDEX('10F'!E:E,AG47),""),"") -> 2019-05-31 | BK47: =_xlfn.IFNA(IF(INDEX('10F'!F:F,AG47)<>0,INDEX('10F'!F:F,AG47),""),"") ->  | BL47: =_xlfn.IFNA(IF(INDEX('11'!F:F,AH47)=0,INDEX('11'!E:E,AH47),""),"") -> 2019-07-30 | BM47: =_xlfn.IFNA(IF(INDEX('11'!F:F,AH47)<>0,INDEX('11'!F:F,AH47),""),"") ->  | BN47: =_xlfn.IFNA(IF(INDEX('12'!G:G,AI47)=0,INDEX('12'!F:F,AI47),""),"") -> 2019-08-13 | BO47: =_xlfn.IFNA(IF(INDEX('12'!G:G,AI47)<>0,INDEX('12'!G:G,AI47),""),"") ->  | BP47: =_xlfn.IFNA(IF(INDEX('12V'!F:F,AJ47)=0,INDEX('12V'!E:E,AJ47),""),"") -> 2019-09-03 | BQ47: =_xlfn.IFNA(IF(INDEX('12V'!F:F,AJ47)<>0,INDEX('12V'!F:F,AJ47),""),"") ->  | BR47: =_xlfn.IFNA(IF(INDEX('12W'!F:F,AK47)=0,INDEX('12W'!E:E,AK47),""),"") -> 2019-11-26 | BS47: =_xlfn.IFNA(IF(INDEX('12W'!F:F,AK47)<>0,INDEX('12W'!F:F,AK47),""),"") ->  | BT47: =_xlfn.IFNA(IF(INDEX('30'!F:F,AL47)=0,INDEX('30'!E:E,AL47),""),"") ->  | BU47: =_xlfn.IFNA(IF(INDEX('30'!F:F,AL47)<>0,INDEX('30'!F:F,AL47),""),"") ->  | BV47: =_xlfn.IFNA(IF(INDEX('35'!F:F,AM47)=0,INDEX('35'!E:E,AM47),""),"") ->  | BW47: =_xlfn.IFNA(IF(INDEX('35'!F:F,AM47)<>0,INDEX('35'!F:F,AM47),""),"") ->  | BX47: =_xlfn.IFNA(IF(INDEX('40'!F:F,AN47)=0,INDEX('40'!E:E,AN47),""),"") ->  | BY47: =_xlfn.IFNA(IF(INDEX('40'!F:F,AN47)<>0,INDEX('40'!F:F,AN47),""),"") ->  | BZ47: =_xlfn.IFNA(IF(INDEX('45'!F:F,AO47)=0,INDEX('45'!E:E,AO47),""),"") ->  | CA47: =_xlfn.IFNA(IF(INDEX('45'!F:F,AO47)<>0,INDEX('45'!F:F,AO47),""),"") ->  | CB47: =_xlfn.IFNA(IF(INDEX('50'!F:F,AP47)=0,INDEX('50'!E:E,AP47),""),"") ->  | CC47: =_xlfn.IFNA(IF(INDEX('50'!F:F,AP47)<>0,INDEX('50'!F:F,AP47),""),"") ->  | CD47: TCAM WG11: "on hold" | CK47: =MATCH(CJ47,EN!A:A,0) ->  | CL47: =_xlfn.IFNA(INDEX(EN!I:I,CK47),"") ->  | CN47: =_xlfn.IFNA(INDEX(EN!J:J,CK47),"") ->  | CO47: =_xlfn.IFNA(IF(INDEX(EN!K:K,CK47)<>0,INDEX(EN!K:K,CK47),""),"") -> 
A48: 300 487/A1 | B48: 1 | C48: Original | D48: 47123 | E48: =MATCH(D48,EN!A:A,0) -> 3906 | F48: =INDEX(EN!I:I,E48) -> REN/SES-00377 | G48: http://webapp.etsi.org/workProgram/Report_WorkItem.asp?wki_id=47123 | H48: =_xlfn.IFNA(INDEX(EN!F:F,E48),"") -> EN | I48: =_xlfn.IFNA(INDEX(EN!G:G,E48),"") -> 300 487 | J48: =_xlfn.IFNA(IF(INDEX(EN!L:L,E48)<>0,INDEX(EN!L:L,E48),""),"") -> 2.1.2 | K48: Cited | L48: =_xlfn.IFNA(INDEX(EN!H:H,E48),"") -> Receive-Only Mobile Earth Stations (ROMES) 1,5 GHz | M48: RED 3.2 | N48: =_xlfn.IFNA(INDEX(EN!J:J,E48),"") -> 12 | O48: =_xlfn.IFNA(IF(INDEX(EN!K:K,E48)<>0,INDEX(EN!K:K,E48),""),"") -> W | P48: =_xlfn.IFNA(INDEX(EN!M:M,E48),"") -> Citation in the OJ | Q48: =_xlfn.IFNA(INDEX(EN!N:N,E48),"") -> 2017-01-13 | R48: =_xlfn.IFNA(INDEX(EN!B:B,E48),"") -> SES HARM | S48: =INDEX(EN!O:O,E48) -> 14585 | T48: =MATCH(S48,Person!A:A) -> 6 | U48: =_xlfn.IFNA(INDEX(Person!B:B,T48),"") -> Bernt | V48: =_xlfn.IFNA(INDEX(Person!C:C,T48),"") -> Mattsson | W48: =MATCH(D48,'0a'!A:A,0) -> 3598 | X48: =MATCH(D48,'1'!A:A,0) -> 3504 | Y48: =MATCH(D48,'7'!A:A,0) ->  | Z48: =MATCH(D48,'8'!A:A,0) -> 42470 | AA48: =MATCH(D48,'8A'!A:A,0) -> 44028 | AB48: =MATCH(D48,'9B'!A:A,0) -> 6306 | AC48: =MATCH(D48,'9C'!A:A,0) -> 3595 | AD48: =MATCH(D48,'9D'!A:A,0) -> 3411 | AE48: =MATCH(D48,'9Da'!A:A,0) -> 2226 | AF48: =MATCH(D48,'9E'!A:A,0) -> 3613 | AG48: =MATCH(D48,'10F'!A:A,0) -> 1660 | AH48: =MATCH(D48,'11'!A:A,0) -> 7922 | AI48: =MATCH(D48,'12'!A:A,0) -> 43157 | AJ48: =MATCH(D48,'12V'!A:A,0) -> 801 | AK48: =MATCH(D48,'12W'!A:A,0) -> 805 | AL48: =MATCH(D48,'30'!A:A,0) ->  | AM48: =MATCH(D48,'35'!A:A,0) ->  | AN48: =MATCH(D48,'40'!A:A,0) ->  | AO48: =MATCH(D48,'45'!A:A,0) ->  | AP48: =MATCH(D48,'50'!A:A,0) ->  | AQ48: =_xlfn.IFNA(INDEX('0a'!E:E,W48),"") -> 2015-02-28 | AR48: =_xlfn.IFNA(IF(INDEX('1'!G:G,X48)=0,INDEX('1'!F:F,X48),""),"") ->  | AS48: =_xlfn.IFNA(IF(INDEX('1'!G:G,X48)<>0,INDEX('1'!G:G,X48),""),"") -> 2015-06-01 | AT48: =_xlfn.IFNA(IF(INDEX('7'!F:F,Y48)=0,INDEX('7'!E:E,Y48),""),"") ->  | AU48: =_xlfn.IFNA(IF(INDEX('7'!F:F,Y48)<>0,INDEX('7'!F:F,Y48),""),"") ->  | AV48: =_xlfn.IFNA(IF(INDEX('8'!F:F,Z48)=0,INDEX('8'!E:E,Z48),""),"") ->  | AW48: =_xlfn.IFNA(IF(INDEX('8'!F:F,Z48)<>0,INDEX('8'!F:F,Z48),""),"") -> 2015-12-22 | AX48: =_xlfn.IFNA(IF(INDEX('8A'!F:F,AA48)=0,INDEX('8A'!E:E,AA48),""),"") ->  | AY48: =_xlfn.IFNA(IF(INDEX('8A'!F:F,AA48)<>0,INDEX('8A'!F:F,AA48),""),"") -> 2016-01-13 | AZ48: =_xlfn.IFNA(IF(INDEX('9B'!F:F,AB48)=0,INDEX('9B'!E:E,AB48),""),"") ->  | BA48: =_xlfn.IFNA(IF(INDEX('9B'!F:F,AB48)<>0,INDEX('9B'!F:F,AB48),""),"") -> 2016-02-15 | BB48: =_xlfn.IFNA(IF(INDEX('9C'!F:F,AC48)=0,INDEX('9C'!E:E,AC48),""),"") ->  | BC48: =_xlfn.IFNA(IF(INDEX('9C'!F:F,AC48)<>0,INDEX('9C'!F:F,AC48),""),"") -> 2016-05-16 | BD48: =_xlfn.IFNA(IF(INDEX('9D'!F:F,AD48)=0,INDEX('9D'!E:E,AD48),""),"") ->  | BE48: =_xlfn.IFNA(IF(INDEX('9D'!F:F,AD48)<>0,INDEX('9D'!F:F,AD48),""),"") -> 2016-05-16 | BF48: =_xlfn.IFNA(IF(INDEX('9Da'!F:F,AE48)=0,INDEX('9Da'!E:E,AE48),""),"") ->  | BG48: =_xlfn.IFNA(IF(INDEX('9Da'!F:F,AE48)<>0,INDEX('9Da'!F:F,AE48),""),"") -> 2016-06-17 | BH48: =_xlfn.IFNA(IF(INDEX('9E'!F:F,AF48)=0,INDEX('9E'!E:E,AF48),""),"") ->  | BI48: =_xlfn.IFNA(IF(INDEX('9E'!F:F,AF48)<>0,INDEX('9E'!F:F,AF48),""),"") -> 2016-07-04 | BJ48: =_xlfn.IFNA(IF(INDEX('10F'!F:F,AG48)=0,INDEX('10F'!E:E,AG48),""),"") ->  | BK48: =_xlfn.IFNA(IF(INDEX('10F'!F:F,AG48)<>0,INDEX('10F'!F:F,AG48),""),"") -> 2016-07-13 | BL48: =_xlfn.IFNA(IF(INDEX('11'!F:F,AH48)=0,INDEX('11'!E:E,AH48),""),"") ->  | BM48: =_xlfn.IFNA(IF(INDEX('11'!F:F,AH48)<>0,INDEX('11'!F:F,AH48),""),"") -> 2016-09-12 | BN48: =_xlfn.IFNA(IF(INDEX('12'!G:G,AI48)=0,INDEX('12'!F:F,AI48),""),"") ->  | BO48: =_xlfn.IFNA(IF(INDEX('12'!G:G,AI48)<>0,INDEX('12'!G:G,AI48),""),"") -> 2016-11-16 | BP48: =_xlfn.IFNA(IF(INDEX('12V'!F:F,AJ48)=0,INDEX('12V'!E:E,AJ48),""),"") ->  | BQ48: =_xlfn.IFNA(IF(INDEX('12V'!F:F,AJ48)<>0,INDEX('12V'!F:F,AJ48),""),"") -> 2016-11-17 | BR48: =_xlfn.IFNA(IF(INDEX('12W'!F:F,AK48)=0,INDEX('12W'!E:E,AK48),""),"") ->  | BS48: =_xlfn.IFNA(IF(INDEX('12W'!F:F,AK48)<>0,INDEX('12W'!F:F,AK48),""),"") -> 2017-01-13 | BT48: =_xlfn.IFNA(IF(INDEX('30'!F:F,AL48)=0,INDEX('30'!E:E,AL48),""),"") ->  | BU48: =_xlfn.IFNA(IF(INDEX('30'!F:F,AL48)<>0,INDEX('30'!F:F,AL48),""),"") ->  | BV48: =_xlfn.IFNA(IF(INDEX('35'!F:F,AM48)=0,INDEX('35'!E:E,AM48),""),"") ->  | BW48: =_xlfn.IFNA(IF(INDEX('35'!F:F,AM48)<>0,INDEX('35'!F:F,AM48),""),"") ->  | BX48: =_xlfn.IFNA(IF(INDEX('40'!F:F,AN48)=0,INDEX('40'!E:E,AN48),""),"") ->  | BY48: =_xlfn.IFNA(IF(INDEX('40'!F:F,AN48)<>0,INDEX('40'!F:F,AN48),""),"") ->  | BZ48: =_xlfn.IFNA(IF(INDEX('45'!F:F,AO48)=0,INDEX('45'!E:E,AO48),""),"") ->  | CA48: =_xlfn.IFNA(IF(INDEX('45'!F:F,AO48)<>0,INDEX('45'!F:F,AO48),""),"") ->  | CB48: =_xlfn.IFNA(IF(INDEX('50'!F:F,AP48)=0,INDEX('50'!E:E,AP48),""),"") ->  | CC48: =_xlfn.IFNA(IF(INDEX('50'!F:F,AP48)<>0,INDEX('50'!F:F,AP48),""),"") ->  | CD48: =IF(AND(ISNONTEXT(BQ48),ISBLANK(#REF!),ISTEXT(BS48)),"Awaiting EC assessment","") ->  | CJ48: 50117 | CK48: =MATCH(CJ48,EN!A:A,0) -> 4096 | CL48: =_xlfn.IFNA(INDEX(EN!I:I,CK48),"") -> REN/SES-00412 | CM48: http://webapp.etsi.org/workProgram/Report_WorkItem.asp?wki_id=50117 | CN48: =_xlfn.IFNA(INDEX(EN!J:J,CK48),"") -> 7 | CO48: =_xlfn.IFNA(IF(INDEX(EN!K:K,CK48)<>0,INDEX(EN!K:K,CK48),""),"") -> 
C49: Addition | D49: 50117 | E49: =MATCH(D49,EN!A:A,0) -> 4096 | F49: =INDEX(EN!I:I,E49) -> REN/SES-00412 | G49: http://webapp.etsi.org/workProgram/Report_WorkItem.asp?wki_id=50117 | H49: =_xlfn.IFNA(INDEX(EN!F:F,E49),"") -> EN | I49: =_xlfn.IFNA(INDEX(EN!G:G,E49),"") -> 300 487 | J49: =_xlfn.IFNA(IF(INDEX(EN!L:L,E49)<>0,INDEX(EN!L:L,E49),""),"") ->  | K49: RevPending | L49: =_xlfn.IFNA(INDEX(EN!H:H,E49),"") -> Receive-Only Mobile Earth Stations (ROMES) 1,5 GHz | M49: RED 3.2 | N49: =_xlfn.IFNA(INDEX(EN!J:J,E49),"") -> 7 | O49: =_xlfn.IFNA(IF(INDEX(EN!K:K,E49)<>0,INDEX(EN!K:K,E49),""),"") ->  | P49: =_xlfn.IFNA(INDEX(EN!M:M,E49),"") -> WG approval | Q49: =_xlfn.IFNA(INDEX(EN!N:N,E49),"") -> 2018-03-07 | R49: =_xlfn.IFNA(INDEX(EN!B:B,E49),"") -> SES HARM | S49: =INDEX(EN!O:O,E49) -> 14585 | T49: =MATCH(S49,Person!A:A) -> 6 | U49: =_xlfn.IFNA(INDEX(Person!B:B,T49),"") -> Bernt | V49: =_xlfn.IFNA(INDEX(Person!C:C,T49),"") -> Mattsson | W49: =MATCH(D49,'0a'!A:A,0) -> 3787 | X49: =MATCH(D49,'1'!A:A,0) -> 3692 | Y49: =MATCH(D49,'7'!A:A,0) -> 13939 | Z49: =MATCH(D49,'8'!A:A,0) -> 45299 | AA49: =MATCH(D49,'8A'!A:A,0) -> 46896 | AB49: =MATCH(D49,'9B'!A:A,0) -> 6503 | AC49: =MATCH(D49,'9C'!A:A,0) -> 3792 | AD49: =MATCH(D49,'9D'!A:A,0) -> 3534 | AE49: =MATCH(D49,'9Da'!A:A,0) -> 2349 | AF49: =MATCH(D49,'9E'!A:A,0) -> 3744 | AG49: =MATCH(D49,'10F'!A:A,0) -> 1776 | AH49: =MATCH(D49,'11'!A:A,0) -> 8158 | AI49: =MATCH(D49,'12'!A:A,0) -> 45988 | AJ49: =MATCH(D49,'12V'!A:A,0) -> 908 | AK49: =MATCH(D49,'12W'!A:A,0) -> 906 | AL49: =MATCH(D49,'30'!A:A,0) ->  | AM49: =MATCH(D49,'35'!A:A,0) ->  | AN49: =MATCH(D49,'40'!A:A,0) ->  | AO49: =MATCH(D49,'45'!A:A,0) ->  | AP49: =MATCH(D49,'50'!A:A,0) ->  | AQ49: =_xlfn.IFNA(INDEX('0a'!E:E,W49),"") -> 2016-11-22 | AR49: =_xlfn.IFNA(IF(INDEX('1'!G:G,X49)=0,INDEX('1'!F:F,X49),""),"") ->  | AS49: =_xlfn.IFNA(IF(INDEX('1'!G:G,X49)<>0,INDEX('1'!G:G,X49),""),"") -> 2016-11-22 | AT49: =_xlfn.IFNA(IF(INDEX('7'!F:F,Y49)=0,INDEX('7'!E:E,Y49),""),"") ->  | AU49: =_xlfn.IFNA(IF(INDEX('7'!F:F,Y49)<>0,INDEX('7'!F:F,Y49),""),"") -> 2018-03-07 | AV49: =_xlfn.IFNA(IF(INDEX('8'!F:F,Z49)=0,INDEX('8'!E:E,Z49),""),"") -> 2018-06-30 | AW49: =_xlfn.IFNA(IF(INDEX('8'!F:F,Z49)<>0,INDEX('8'!F:F,Z49),""),"") ->  | AX49: =_xlfn.IFNA(IF(INDEX('8A'!F:F,AA49)=0,INDEX('8A'!E:E,AA49),""),"") -> 2018-07-14 | AY49: =_xlfn.IFNA(IF(INDEX('8A'!F:F,AA49)<>0,INDEX('8A'!F:F,AA49),""),"") ->  | AZ49: =_xlfn.IFNA(IF(INDEX('9B'!F:F,AB49)=0,INDEX('9B'!E:E,AB49),""),"") -> 2018-07-28 | BA49: =_xlfn.IFNA(IF(INDEX('9B'!F:F,AB49)<>0,INDEX('9B'!F:F,AB49),""),"") ->  | BB49: =_xlfn.IFNA(IF(INDEX('9C'!F:F,AC49)=0,INDEX('9C'!E:E,AC49),""),"") -> 2018-10-27 | BC49: =_xlfn.IFNA(IF(INDEX('9C'!F:F,AC49)<>0,INDEX('9C'!F:F,AC49),""),"") ->  | BD49: =_xlfn.IFNA(IF(INDEX('9D'!F:F,AD49)=0,INDEX('9D'!E:E,AD49),""),"") -> 2018-10-27 | BE49: =_xlfn.IFNA(IF(INDEX('9D'!F:F,AD49)<>0,INDEX('9D'!F:F,AD49),""),"") ->  | BF49: =_xlfn.IFNA(IF(INDEX('9Da'!F:F,AE49)=0,INDEX('9Da'!E:E,AE49),""),"") -> 2019-01-26 | BG49: =_xlfn.IFNA(IF(INDEX('9Da'!F:F,AE49)<>0,INDEX('9Da'!F:F,AE49),""),"") ->  | BH49: =_xlfn.IFNA(IF(INDEX('9E'!F:F,AF49)=0,INDEX('9E'!E:E,AF49),""),"") -> 2019-02-02 | BI49: =_xlfn.IFNA(IF(INDEX('9E'!F:F,AF49)<>0,INDEX('9E'!F:F,AF49),""),"") ->  | BJ49: =_xlfn.IFNA(IF(INDEX('10F'!F:F,AG49)=0,INDEX('10F'!E:E,AG49),""),"") -> 2019-02-16 | BK49: =_xlfn.IFNA(IF(INDEX('10F'!F:F,AG49)<>0,INDEX('10F'!F:F,AG49),""),"") ->  | BL49: =_xlfn.IFNA(IF(INDEX('11'!F:F,AH49)=0,INDEX('11'!E:E,AH49),""),"") -> 2019-04-17 | BM49: =_xlfn.IFNA(IF(INDEX('11'!F:F,AH49)<>0,INDEX('11'!F:F,AH49),""),"") ->  | BN49: =_xlfn.IFNA(IF(INDEX('12'!G:G,AI49)=0,INDEX('12'!F:F,AI49),""),"") -> 2019-05-01 | BO49: =_xlfn.IFNA(IF(INDEX('12'!G:G,AI49)<>0,INDEX('12'!G:G,AI49),""),"") ->  | BP49: =_xlfn.IFNA(IF(INDEX('12V'!F:F,AJ49)=0,INDEX('12V'!E:E,AJ49),""),"") -> 2019-05-22 | BQ49: =_xlfn.IFNA(IF(INDEX('12V'!F:F,AJ49)<>0,INDEX('12V'!F:F,AJ49),""),"") ->  | BR49: =_xlfn.IFNA(IF(INDEX('12W'!F:F,AK49)=0,INDEX('12W'!E:E,AK49),""),"") -> 2019-08-14 | BS49: =_xlfn.IFNA(IF(INDEX('12W'!F:F,AK49)<>0,INDEX('12W'!F:F,AK49),""),"") ->  | BT49: =_xlfn.IFNA(IF(INDEX('30'!F:F,AL49)=0,INDEX('30'!E:E,AL49),""),"") ->  | BU49: =_xlfn.IFNA(IF(INDEX('30'!F:F,AL49)<>0,INDEX('30'!F:F,AL49),""),"") ->  | BV49: =_xlfn.IFNA(IF(INDEX('35'!F:F,AM49)=0,INDEX('35'!E:E,AM49),""),"") ->  | BW49: =_xlfn.IFNA(IF(INDEX('35'!F:F,AM49)<>0,INDEX('35'!F:F,AM49),""),"") ->  | BX49: =_xlfn.IFNA(IF(INDEX('40'!F:F,AN49)=0,INDEX('40'!E:E,AN49),""),"") ->  | BY49: =_xlfn.IFNA(IF(INDEX('40'!F:F,AN49)<>0,INDEX('40'!F:F,AN49),""),"") ->  | BZ49: =_xlfn.IFNA(IF(INDEX('45'!F:F,AO49)=0,INDEX('45'!E:E,AO49),""),"") ->  | CA49: =_xlfn.IFNA(IF(INDEX('45'!F:F,AO49)<>0,INDEX('45'!F:F,AO49),""),"") ->  | CB49: =_xlfn.IFNA(IF(INDEX('50'!F:F,AP49)=0,INDEX('50'!E:E,AP49),""),"") ->  | CC49: =_xlfn.IFNA(IF(INDEX('50'!F:F,AP49)<>0,INDEX('50'!F:F,AP49),""),"") ->  | CD49: =IF(AND(ISNONTEXT(BQ49),ISBLANK(#REF!),ISTEXT(BS49)),"Awaiting EC assessment","") ->  | CK49: =MATCH(CJ49,EN!A:A,0) ->  | CL49: =_xlfn.IFNA(INDEX(EN!I:I,CK49),"") ->  | CN49: =_xlfn.IFNA(INDEX(EN!J:J,CK49),"") ->  | CO49: =_xlfn.IFNA(IF(INDEX(EN!K:K,CK49)<>0,INDEX(EN!K:K,CK49),""),"") -> 
A50: 300 609-4 | B50: 10.2.1 | C50: Original | E50: =MATCH(D50,EN!A:A,0) ->  | F50: Replaced by EN 303 609 | H50: =_xlfn.IFNA(INDEX(EN!F:F,E50),"") ->  | I50: =_xlfn.IFNA(INDEX(EN!G:G,E50),"") ->  | J50: =_xlfn.IFNA(IF(INDEX(EN!L:L,E50)<>0,INDEX(EN!L:L,E50),""),"") ->  | L50: =_xlfn.IFNA(INDEX(EN!H:H,E50),"") ->  | N50: =_xlfn.IFNA(INDEX(EN!J:J,E50),"") ->  | O50: =_xlfn.IFNA(IF(INDEX(EN!K:K,E50)<>0,INDEX(EN!K:K,E50),""),"") ->  | P50: =_xlfn.IFNA(INDEX(EN!M:M,E50),"") ->  | Q50: =_xlfn.IFNA(INDEX(EN!N:N,E50),"") ->  | R50: =_xlfn.IFNA(INDEX(EN!B:B,E50),"") ->  | S50: =INDEX(EN!O:O,E50) ->  | T50: =MATCH(S50,Person!A:A) ->  | U50: =_xlfn.IFNA(INDEX(Person!B:B,T50),"") ->  | V50: =_xlfn.IFNA(INDEX(Person!C:C,T50),"") ->  | AL50: =MATCH(D50,'30'!A:A,0) ->  | AM50: =MATCH(D50,'35'!A:A,0) ->  | AN50: =MATCH(D50,'40'!A:A,0) ->  | AO50: =MATCH(D50,'45'!A:A,0) ->  | AP50: =MATCH(D50,'50'!A:A,0) ->  | AQ50: =_xlfn.IFNA(INDEX('0a'!E:E,W50),"") -> 1995-02-23 | AT50: =_xlfn.IFNA(IF(INDEX('7'!F:F,Y50)=0,INDEX('7'!E:E,Y50),""),"") ->  | AU50: =_xlfn.IFNA(IF(INDEX('7'!F:F,Y50)<>0,INDEX('7'!F:F,Y50),""),"") -> 1990-04-06 | AV50: =_xlfn.IFNA(IF(INDEX('8'!F:F,Z50)=0,INDEX('8'!E:E,Z50),""),"") ->  | AW50: =_xlfn.IFNA(IF(INDEX('8'!F:F,Z50)<>0,INDEX('8'!F:F,Z50),""),"") -> 1990-05-18 | BD50: =_xlfn.IFNA(IF(INDEX('9D'!F:F,AD50)=0,INDEX('9D'!E:E,AD50),""),"") ->  | BE50: =_xlfn.IFNA(IF(INDEX('9D'!F:F,AD50)<>0,INDEX('9D'!F:F,AD50),""),"") -> 1992-01-03 | BH50: =_xlfn.IFNA(IF(INDEX('9E'!F:F,AF50)=0,INDEX('9E'!E:E,AF50),""),"") -> 1992-02-28 | BI50: =_xlfn.IFNA(IF(INDEX('9E'!F:F,AF50)<>0,INDEX('9E'!F:F,AF50),""),"") ->  | BN50: =_xlfn.IFNA(IF(INDEX('12'!G:G,AI50)=0,INDEX('12'!F:F,AI50),""),"") ->  | BO50: =_xlfn.IFNA(IF(INDEX('12'!G:G,AI50)<>0,INDEX('12'!G:G,AI50),""),"") -> 1992-05-19 | BP50: =_xlfn.IFNA(IF(INDEX('12V'!F:F,AJ50)=0,INDEX('12V'!E:E,AJ50),""),"") ->  | BQ50: =_xlfn.IFNA(IF(INDEX('12V'!F:F,AJ50)<>0,INDEX('12V'!F:F,AJ50),""),"") -> 2000-04-07 | BR50: =_xlfn.IFNA(IF(INDEX('12W'!F:F,AK50)=0,INDEX('12W'!E:E,AK50),""),"") ->  | BS50: =_xlfn.IFNA(IF(INDEX('12W'!F:F,AK50)<>0,INDEX('12W'!F:F,AK50),""),"") -> 1999-02-27 | BT50: =_xlfn.IFNA(IF(INDEX('30'!F:F,AL50)=0,INDEX('30'!E:E,AL50),""),"") ->  | BU50: =_xlfn.IFNA(IF(INDEX('30'!F:F,AL50)<>0,INDEX('30'!F:F,AL50),""),"") ->  | BV50: =_xlfn.IFNA(IF(INDEX('35'!F:F,AM50)=0,INDEX('35'!E:E,AM50),""),"") ->  | BW50: =_xlfn.IFNA(IF(INDEX('35'!F:F,AM50)<>0,INDEX('35'!F:F,AM50),""),"") ->  | BX50: =_xlfn.IFNA(IF(INDEX('40'!F:F,AN50)=0,INDEX('40'!E:E,AN50),""),"") ->  | BY50: =_xlfn.IFNA(IF(INDEX('40'!F:F,AN50)<>0,INDEX('40'!F:F,AN50),""),"") ->  | BZ50: =_xlfn.IFNA(IF(INDEX('45'!F:F,AO50)=0,INDEX('45'!E:E,AO50),""),"") ->  | CA50: =_xlfn.IFNA(IF(INDEX('45'!F:F,AO50)<>0,INDEX('45'!F:F,AO50),""),"") ->  | CB50: =_xlfn.IFNA(IF(INDEX('50'!F:F,AP50)=0,INDEX('50'!E:E,AP50),""),"") ->  | CC50: =_xlfn.IFNA(IF(INDEX('50'!F:F,AP50)<>0,INDEX('50'!F:F,AP50),""),"") ->  | CD50: =IF(AND(ISNONTEXT(BQ50),ISBLANK(#REF!),ISTEXT(BS50)),"Awaiting EC assessment","") ->  | CK50: =MATCH(CJ50,EN!A:A,0) ->  | CL50: =_xlfn.IFNA(INDEX(EN!I:I,CK50),"") ->  | CN50: =_xlfn.IFNA(INDEX(EN!J:J,CK50),"") ->  | CO50: =_xlfn.IFNA(IF(INDEX(EN!K:K,CK50)<>0,INDEX(EN!K:K,CK50),""),"") -> 
A51: 300 674-2-1 | B51: 1.1.1 | C51: Original | D51: 46510 | E51: =MATCH(D51,EN!A:A,0) -> 3786 | F51: =INDEX(EN!I:I,E51) -> REN/ERM-TG37-26 | G51: http://webapp.etsi.org/workProgram/Report_WorkItem.asp?wki_id=46510 | H51: =_xlfn.IFNA(INDEX(EN!F:F,E51),"") -> EN | I51: =_xlfn.IFNA(INDEX(EN!G:G,E51),"") -> 300 674-2-1 | J51: =_xlfn.IFNA(IF(INDEX(EN!L:L,E51)<>0,INDEX(EN!L:L,E51),""),"") -> 2.1.1 | K51: Published | L51: =_xlfn.IFNA(INDEX(EN!H:H,E51),"") -> HS DSRC RSU 5,8 GHz | M51: RED 3.2 | N51: =_xlfn.IFNA(INDEX(EN!J:J,E51),"") -> 12 | O51: =_xlfn.IFNA(IF(INDEX(EN!K:K,E51)<>0,INDEX(EN!K:K,E51),""),"") -> V | P51: =_xlfn.IFNA(INDEX(EN!M:M,E51),"") -> Delivery to the EC | Q51: =_xlfn.IFNA(INDEX(EN!N:N,E51),"") -> 2016-10-05 | R51: =_xlfn.IFNA(INDEX(EN!B:B,E51),"") -> ERM TG37 | S51: =INDEX(EN!O:O,E51) -> 28591 | T51: =MATCH(S51,Person!A:A) -> 8 | U51: =_xlfn.IFNA(INDEX(Person!B:B,T51),"") -> Martin | V51: =_xlfn.IFNA(INDEX(Person!C:C,T51),"") -> Arndt | W51: =MATCH(D51,'0a'!A:A,0) -> 3480 | X51: =MATCH(D51,'1'!A:A,0) -> 3388 | Y51: =MATCH(D51,'7'!A:A,0) -> 13500 | Z51: =MATCH(D51,'8'!A:A,0) -> 41863 | AA51: =MATCH(D51,'8A'!A:A,0) -> 43401 | AB51: =MATCH(D51,'9B'!A:A,0) -> 6186 | AC51: =MATCH(D51,'9C'!A:A,0) -> 3475 | AD51: =MATCH(D51,'9D'!A:A,0) -> 3350 | AE51: =MATCH(D51,'9Da'!A:A,0) -> 2166 | AF51: =MATCH(D51,'9E'!A:A,0) -> 3547 | AG51: =MATCH(D51,'10F'!A:A,0) -> 1598 | AH51: =MATCH(D51,'11'!A:A,0) -> 7785 | AI51: =MATCH(D51,'12'!A:A,0) -> 42555 | AJ51: =MATCH(D51,'12V'!A:A,0) -> 711 | AK51: =MATCH(D51,'12W'!A:A,0) -> 722 | AL51: =MATCH(D51,'30'!A:A,0) ->  | AM51: =MATCH(D51,'35'!A:A,0) ->  | AN51: =MATCH(D51,'40'!A:A,0) ->  | AO51: =MATCH(D51,'45'!A:A,0) ->  | AP51: =MATCH(D51,'50'!A:A,0) ->  | AQ51: =_xlfn.IFNA(INDEX('0a'!E:E,W51),"") -> 2015-03-13 | AR51: =_xlfn.IFNA(IF(INDEX('1'!G:G,X51)=0,INDEX('1'!F:F,X51),""),"") ->  | AS51: =_xlfn.IFNA(IF(INDEX('1'!G:G,X51)<>0,INDEX('1'!G:G,X51),""),"") -> 2015-09-28 | AT51: =_xlfn.IFNA(IF(INDEX('7'!F:F,Y51)=0,INDEX('7'!E:E,Y51),""),"") ->  | AU51: =_xlfn.IFNA(IF(INDEX('7'!F:F,Y51)<>0,INDEX('7'!F:F,Y51),""),"") -> 2015-12-15 | AV51: =_xlfn.IFNA(IF(INDEX('8'!F:F,Z51)=0,INDEX('8'!E:E,Z51),""),"") ->  | AW51: =_xlfn.IFNA(IF(INDEX('8'!F:F,Z51)<>0,INDEX('8'!F:F,Z51),""),"") -> 2016-01-18 | AX51: =_xlfn.IFNA(IF(INDEX('8A'!F:F,AA51)=0,INDEX('8A'!E:E,AA51),""),"") ->  | AY51: =_xlfn.IFNA(IF(INDEX('8A'!F:F,AA51)<>0,INDEX('8A'!F:F,AA51),""),"") -> 2016-01-19 | AZ51: =_xlfn.IFNA(IF(INDEX('9B'!F:F,AB51)=0,INDEX('9B'!E:E,AB51),""),"") ->  | BA51: =_xlfn.IFNA(IF(INDEX('9B'!F:F,AB51)<>0,INDEX('9B'!F:F,AB51),""),"") -> 2016-01-28 | BB51: =_xlfn.IFNA(IF(INDEX('9C'!F:F,AC51)=0,INDEX('9C'!E:E,AC51),""),"") ->  | BC51: =_xlfn.IFNA(IF(INDEX('9C'!F:F,AC51)<>0,INDEX('9C'!F:F,AC51),""),"") -> 2016-04-27 | BD51: =_xlfn.IFNA(IF(INDEX('9D'!F:F,AD51)=0,INDEX('9D'!E:E,AD51),""),"") ->  | BE51: =_xlfn.IFNA(IF(INDEX('9D'!F:F,AD51)<>0,INDEX('9D'!F:F,AD51),""),"") -> 2016-05-23 | BF51: =_xlfn.IFNA(IF(INDEX('9Da'!F:F,AE51)=0,INDEX('9Da'!E:E,AE51),""),"") ->  | BG51: =_xlfn.IFNA(IF(INDEX('9Da'!F:F,AE51)<>0,INDEX('9Da'!F:F,AE51),""),"") -> 2016-06-09 | BH51: =_xlfn.IFNA(IF(INDEX('9E'!F:F,AF51)=0,INDEX('9E'!E:E,AF51),""),"") ->  | BI51: =_xlfn.IFNA(IF(INDEX('9E'!F:F,AF51)<>0,INDEX('9E'!F:F,AF51),""),"") -> 2016-07-08 | BJ51: =_xlfn.IFNA(IF(INDEX('10F'!F:F,AG51)=0,INDEX('10F'!E:E,AG51),""),"") ->  | BK51: =_xlfn.IFNA(IF(INDEX('10F'!F:F,AG51)<>0,INDEX('10F'!F:F,AG51),""),"") -> 2016-07-13 | BL51: =_xlfn.IFNA(IF(INDEX('11'!F:F,AH51)=0,INDEX('11'!E:E,AH51),""),"") ->  | BM51: =_xlfn.IFNA(IF(INDEX('11'!F:F,AH51)<>0,INDEX('11'!F:F,AH51),""),"") -> 2016-09-12 | BN51: =_xlfn.IFNA(IF(INDEX('12'!G:G,AI51)=0,INDEX('12'!F:F,AI51),""),"") ->  | BO51: =_xlfn.IFNA(IF(INDEX('12'!G:G,AI51)<>0,INDEX('12'!G:G,AI51),""),"") -> 2016-09-16 | BP51: =_xlfn.IFNA(IF(INDEX('12V'!F:F,AJ51)=0,INDEX('12V'!E:E,AJ51),""),"") ->  | BQ51: =_xlfn.IFNA(IF(INDEX('12V'!F:F,AJ51)<>0,INDEX('12V'!F:F,AJ51),""),"") -> 2016-10-05 | BR51: =_xlfn.IFNA(IF(INDEX('12W'!F:F,AK51)=0,INDEX('12W'!E:E,AK51),""),"") -> 2016-12-28 | BS51: =_xlfn.IFNA(IF(INDEX('12W'!F:F,AK51)<>0,INDEX('12W'!F:F,AK51),""),"") ->  | BT51: =_xlfn.IFNA(IF(INDEX('30'!F:F,AL51)=0,INDEX('30'!E:E,AL51),""),"") ->  | BU51: =_xlfn.IFNA(IF(INDEX('30'!F:F,AL51)<>0,INDEX('30'!F:F,AL51),""),"") ->  | BV51: =_xlfn.IFNA(IF(INDEX('35'!F:F,AM51)=0,INDEX('35'!E:E,AM51),""),"") ->  | BW51: =_xlfn.IFNA(IF(INDEX('35'!F:F,AM51)<>0,INDEX('35'!F:F,AM51),""),"") ->  | BX51: =_xlfn.IFNA(IF(INDEX('40'!F:F,AN51)=0,INDEX('40'!E:E,AN51),""),"") ->  | BY51: =_xlfn.IFNA(IF(INDEX('40'!F:F,AN51)<>0,INDEX('40'!F:F,AN51),""),"") ->  | BZ51: =_xlfn.IFNA(IF(INDEX('45'!F:F,AO51)=0,INDEX('45'!E:E,AO51),""),"") ->  | CA51: =_xlfn.IFNA(IF(INDEX('45'!F:F,AO51)<>0,INDEX('45'!F:F,AO51),""),"") ->  | CB51: =_xlfn.IFNA(IF(INDEX('50'!F:F,AP51)=0,INDEX('50'!E:E,AP51),""),"") ->  | CC51: =_xlfn.IFNA(IF(INDEX('50'!F:F,AP51)<>0,INDEX('50'!F:F,AP51),""),"") ->  | CD51: TCAM WG11: "negative assessment" | CE51: Comments from EC - Revision WI open | CF51: Y | CG51: Y | CJ51: 52870 | CK51: =MATCH(CJ51,EN!A:A,0) -> 4258 | CL51: =_xlfn.IFNA(INDEX(EN!I:I,CK51),"") -> REN/ERM-TG37-271 | CM51: http://webapp.etsi.org/workProgram/Report_WorkItem.asp?wki_id=52870 | CN51: =_xlfn.IFNA(INDEX(EN!J:J,CK51),"") -> 6 | CO51: =_xlfn.IFNA(IF(INDEX(EN!K:K,CK51)<>0,INDEX(EN!K:K,CK51),""),"") -> 
C52: Addition | D52: 52870 | E52: =MATCH(D52,EN!A:A,0) -> 4258 | F52: =INDEX(EN!I:I,E52) -> REN/ERM-TG37-271 | G52: http://webapp.etsi.org/workProgram/Report_WorkItem.asp?wki_id=52870 | H52: =_xlfn.IFNA(INDEX(EN!F:F,E52),"") -> EN | I52: =_xlfn.IFNA(INDEX(EN!G:G,E52),"") -> 300 674-2-1 | J52: =_xlfn.IFNA(IF(INDEX(EN!L:L,E52)<>0,INDEX(EN!L:L,E52),""),"") -> 2.2.4 | K52: RevPending | L52: =_xlfn.IFNA(INDEX(EN!H:H,E52),"") -> HS DSRC RSU 5,8 GHz | M52: RED 3.2 | N52: =_xlfn.IFNA(INDEX(EN!J:J,E52),"") -> 6 | O52: =_xlfn.IFNA(IF(INDEX(EN!K:K,E52)<>0,INDEX(EN!K:K,E52),""),"") ->  | P52: =_xlfn.IFNA(INDEX(EN!M:M,E52),"") -> Final draft for approval | Q52: =_xlfn.IFNA(INDEX(EN!N:N,E52),"") -> 2017-08-08 | R52: =_xlfn.IFNA(INDEX(EN!B:B,E52),"") -> ERM TG37 | S52: =INDEX(EN!O:O,E52) -> 53812 | T52: =MATCH(S52,Person!A:A) -> 9 | U52: =_xlfn.IFNA(INDEX(Person!B:B,T52),"") -> Andrea | V52: =_xlfn.IFNA(INDEX(Person!C:C,T52),"") -> Lorelli | W52: =MATCH(D52,'0a'!A:A,0) -> 3942 | X52: =MATCH(D52,'1'!A:A,0) -> 3834 | Y52: =MATCH(D52,'7'!A:A,0) -> 14106 | Z52: =MATCH(D52,'8'!A:A,0) -> 48003 | AA52: =MATCH(D52,'8A'!A:A,0) -> 49625 | AB52: =MATCH(D52,'9B'!A:A,0) -> 6640 | AC52: =MATCH(D52,'9C'!A:A,0) -> 3928 | AD52: =MATCH(D52,'9D'!A:A,0) -> 3638 | AE52: =MATCH(D52,'9Da'!A:A,0) -> 2453 | AF52: =MATCH(D52,'9E'!A:A,0) -> 3849 | AG52: =MATCH(D52,'10F'!A:A,0) -> 1880 | AH52: =MATCH(D52,'11'!A:A,0) -> 8339 | AI52: =MATCH(D52,'12'!A:A,0) -> 48695 | AJ52: =MATCH(D52,'12V'!A:A,0) -> 1031 | AK52: =MATCH(D52,'12W'!A:A,0) -> 1028 | AL52: =MATCH(D52,'30'!A:A,0) ->  | AM52: =MATCH(D52,'35'!A:A,0) ->  | AN52: =MATCH(D52,'40'!A:A,0) ->  | AO52: =MATCH(D52,'45'!A:A,0) ->  | AP52: =MATCH(D52,'50'!A:A,0) ->  | AQ52: =_xlfn.IFNA(INDEX('0a'!E:E,W52),"") -> 2017-05-22 | AR52: =_xlfn.IFNA(IF(INDEX('1'!G:G,X52)=0,INDEX('1'!F:F,X52),""),"") ->  | AS52: =_xlfn.IFNA(IF(INDEX('1'!G:G,X52)<>0,INDEX('1'!G:G,X52),""),"") -> 2017-05-22 | AT52: =_xlfn.IFNA(IF(INDEX('7'!F:F,Y52)=0,INDEX('7'!E:E,Y52),""),"") -> 2018-06-27 | AU52: =_xlfn.IFNA(IF(INDEX('7'!F:F,Y52)<>0,INDEX('7'!F:F,Y52),""),"") ->  | AV52: =_xlfn.IFNA(IF(INDEX('8'!F:F,Z52)=0,INDEX('8'!E:E,Z52),""),"") -> 2018-06-29 | AW52: =_xlfn.IFNA(IF(INDEX('8'!F:F,Z52)<>0,INDEX('8'!F:F,Z52),""),"") ->  | AX52: =_xlfn.IFNA(IF(INDEX('8A'!F:F,AA52)=0,INDEX('8A'!E:E,AA52),""),"") -> 2018-07-13 | AY52: =_xlfn.IFNA(IF(INDEX('8A'!F:F,AA52)<>0,INDEX('8A'!F:F,AA52),""),"") ->  | AZ52: =_xlfn.IFNA(IF(INDEX('9B'!F:F,AB52)=0,INDEX('9B'!E:E,AB52),""),"") -> 2018-07-27 | BA52: =_xlfn.IFNA(IF(INDEX('9B'!F:F,AB52)<>0,INDEX('9B'!F:F,AB52),""),"") ->  | BB52: =_xlfn.IFNA(IF(INDEX('9C'!F:F,AC52)=0,INDEX('9C'!E:E,AC52),""),"") -> 2018-10-26 | BC52: =_xlfn.IFNA(IF(INDEX('9C'!F:F,AC52)<>0,INDEX('9C'!F:F,AC52),""),"") ->  | BD52: =_xlfn.IFNA(IF(INDEX('9D'!F:F,AD52)=0,INDEX('9D'!E:E,AD52),""),"") -> 2018-10-26 | BE52: =_xlfn.IFNA(IF(INDEX('9D'!F:F,AD52)<>0,INDEX('9D'!F:F,AD52),""),"") ->  | BF52: =_xlfn.IFNA(IF(INDEX('9Da'!F:F,AE52)=0,INDEX('9Da'!E:E,AE52),""),"") -> 2019-01-25 | BG52: =_xlfn.IFNA(IF(INDEX('9Da'!F:F,AE52)<>0,INDEX('9Da'!F:F,AE52),""),"") ->  | BH52: =_xlfn.IFNA(IF(INDEX('9E'!F:F,AF52)=0,INDEX('9E'!E:E,AF52),""),"") -> 2019-02-01 | BI52: =_xlfn.IFNA(IF(INDEX('9E'!F:F,AF52)<>0,INDEX('9E'!F:F,AF52),""),"") ->  | BJ52: =_xlfn.IFNA(IF(INDEX('10F'!F:F,AG52)=0,INDEX('10F'!E:E,AG52),""),"") -> 2019-02-15 | BK52: =_xlfn.IFNA(IF(INDEX('10F'!F:F,AG52)<>0,INDEX('10F'!F:F,AG52),""),"") ->  | BL52: =_xlfn.IFNA(IF(INDEX('11'!F:F,AH52)=0,INDEX('11'!E:E,AH52),""),"") -> 2019-04-16 | BM52: =_xlfn.IFNA(IF(INDEX('11'!F:F,AH52)<>0,INDEX('11'!F:F,AH52),""),"") ->  | BN52: =_xlfn.IFNA(IF(INDEX('12'!G:G,AI52)=0,INDEX('12'!F:F,AI52),""),"") -> 2019-04-30 | BO52: =_xlfn.IFNA(IF(INDEX('12'!G:G,AI52)<>0,INDEX('12'!G:G,AI52),""),"") ->  | BP52: =_xlfn.IFNA(IF(INDEX('12V'!F:F,AJ52)=0,INDEX('12V'!E:E,AJ52),""),"") -> 2019-05-21 | BQ52: =_xlfn.IFNA(IF(INDEX('12V'!F:F,AJ52)<>0,INDEX('12V'!F:F,AJ52),""),"") ->  | BR52: =_xlfn.IFNA(IF(INDEX('12W'!F:F,AK52)=0,INDEX('12W'!E:E,AK52),""),"") -> 2019-08-13 | BS52: =_xlfn.IFNA(IF(INDEX('12W'!F:F,AK52)<>0,INDEX('12W'!F:F,AK52),""),"") ->  | BT52: =_xlfn.IFNA(IF(INDEX('30'!F:F,AL52)=0,INDEX('30'!E:E,AL52),""),"") ->  | BU52: =_xlfn.IFNA(IF(INDEX('30'!F:F,AL52)<>0,INDEX('30'!F:F,AL52),""),"") ->  | BV52: =_xlfn.IFNA(IF(INDEX('35'!F:F,AM52)=0,INDEX('35'!E:E,AM52),""),"") ->  | BW52: =_xlfn.IFNA(IF(INDEX('35'!F:F,AM52)<>0,INDEX('35'!F:F,AM52),""),"") ->  | BX52: =_xlfn.IFNA(IF(INDEX('40'!F:F,AN52)=0,INDEX('40'!E:E,AN52),""),"") ->  | BY52: =_xlfn.IFNA(IF(INDEX('40'!F:F,AN52)<>0,INDEX('40'!F:F,AN52),""),"") ->  | BZ52: =_xlfn.IFNA(IF(INDEX('45'!F:F,AO52)=0,INDEX('45'!E:E,AO52),""),"") ->  | CA52: =_xlfn.IFNA(IF(INDEX('45'!F:F,AO52)<>0,INDEX('45'!F:F,AO52),""),"") ->  | CB52: =_xlfn.IFNA(IF(INDEX('50'!F:F,AP52)=0,INDEX('50'!E:E,AP52),""),"") ->  | CC52: =_xlfn.IFNA(IF(INDEX('50'!F:F,AP52)<>0,INDEX('50'!F:F,AP52),""),"") ->  | CK52: =MATCH(CJ52,EN!A:A,0) ->  | CL52: =_xlfn.IFNA(INDEX(EN!I:I,CK52),"") ->  | CN52: =_xlfn.IFNA(INDEX(EN!J:J,CK52),"") ->  | CO52: =_xlfn.IFNA(IF(INDEX(EN!K:K,CK52)<>0,INDEX(EN!K:K,CK52),""),"") -> 
A53: 300 674-2-2 | B53: 1.1.1 | C53: Original | D53: 46543 | E53: =MATCH(D53,EN!A:A,0) -> 3809 | F53: =INDEX(EN!I:I,E53) -> REN/ERM-TG37-27 | G53: http://webapp.etsi.org/workProgram/Report_WorkItem.asp?wki_id=46543 | H53: =_xlfn.IFNA(INDEX(EN!F:F,E53),"") -> EN | I53: =_xlfn.IFNA(INDEX(EN!G:G,E53),"") -> 300 674-2-2 | J53: =_xlfn.IFNA(IF(INDEX(EN!L:L,E53)<>0,INDEX(EN!L:L,E53),""),"") -> 2.1.1 | K53: Published | L53: =_xlfn.IFNA(INDEX(EN!H:H,E53),"") -> HS DSRC OBU 5,8 GHz | M53: RED 3.2 | N53: =_xlfn.IFNA(INDEX(EN!J:J,E53),"") -> 12 | O53: =_xlfn.IFNA(IF(INDEX(EN!K:K,E53)<>0,INDEX(EN!K:K,E53),""),"") -> W | P53: =_xlfn.IFNA(INDEX(EN!M:M,E53),"") -> Citation in the OJ | Q53: =_xlfn.IFNA(INDEX(EN!N:N,E53),"") -> 2018-03-09 | R53: =_xlfn.IFNA(INDEX(EN!B:B,E53),"") -> ERM TG37 | S53: =INDEX(EN!O:O,E53) -> 53812 | T53: =MATCH(S53,Person!A:A) -> 9 | U53: =_xlfn.IFNA(INDEX(Person!B:B,T53),"") -> Andrea | V53: =_xlfn.IFNA(INDEX(Person!C:C,T53),"") -> Lorelli | W53: =MATCH(D53,'0a'!A:A,0) -> 3502 | X53: =MATCH(D53,'1'!A:A,0) -> 3410 | Y53: =MATCH(D53,'7'!A:A,0) -> 13515 | Z53: =MATCH(D53,'8'!A:A,0) -> 41898 | AA53: =MATCH(D53,'8A'!A:A,0) -> 43437 | AB53: =MATCH(D53,'9B'!A:A,0) -> 6210 | AC53: =MATCH(D53,'9C'!A:A,0) -> 3499 | AD53: =MATCH(D53,'9D'!A:A,0) -> 3359 | AE53: =MATCH(D53,'9Da'!A:A,0) -> 2174 | AF53: =MATCH(D53,'9E'!A:A,0) -> 3557 | AG53: =MATCH(D53,'10F'!A:A,0) -> 1606 | AH53: =MATCH(D53,'11'!A:A,0) -> 7808 | AI53: =MATCH(D53,'12'!A:A,0) -> 42588 | AJ53: =MATCH(D53,'12V'!A:A,0) -> 734 | AK53: =MATCH(D53,'12W'!A:A,0) -> 744 | AL53: =MATCH(D53,'30'!A:A,0) ->  | AM53: =MATCH(D53,'35'!A:A,0) ->  | AN53: =MATCH(D53,'40'!A:A,0) ->  | AO53: =MATCH(D53,'45'!A:A,0) ->  | AP53: =MATCH(D53,'50'!A:A,0) ->  | AQ53: =_xlfn.IFNA(INDEX('0a'!E:E,W53),"") -> 2015-03-13 | AR53: =_xlfn.IFNA(IF(INDEX('1'!G:G,X53)=0,INDEX('1'!F:F,X53),""),"") ->  | AS53: =_xlfn.IFNA(IF(INDEX('1'!G:G,X53)<>0,INDEX('1'!G:G,X53),""),"") -> 2015-04-13 | AT53: =_xlfn.IFNA(IF(INDEX('7'!F:F,Y53)=0,INDEX('7'!E:E,Y53),""),"") ->  | AU53: =_xlfn.IFNA(IF(INDEX('7'!F:F,Y53)<>0,INDEX('7'!F:F,Y53),""),"") -> 2016-01-08 | AV53: =_xlfn.IFNA(IF(INDEX('8'!F:F,Z53)=0,INDEX('8'!E:E,Z53),""),"") ->  | AW53: =_xlfn.IFNA(IF(INDEX('8'!F:F,Z53)<>0,INDEX('8'!F:F,Z53),""),"") -> 2016-02-18 | AX53: =_xlfn.IFNA(IF(INDEX('8A'!F:F,AA53)=0,INDEX('8A'!E:E,AA53),""),"") ->  | AY53: =_xlfn.IFNA(IF(INDEX('8A'!F:F,AA53)<>0,INDEX('8A'!F:F,AA53),""),"") -> 2016-03-01 | AZ53: =_xlfn.IFNA(IF(INDEX('9B'!F:F,AB53)=0,INDEX('9B'!E:E,AB53),""),"") ->  | BA53: =_xlfn.IFNA(IF(INDEX('9B'!F:F,AB53)<>0,INDEX('9B'!F:F,AB53),""),"") -> 2016-03-09 | BB53: =_xlfn.IFNA(IF(INDEX('9C'!F:F,AC53)=0,INDEX('9C'!E:E,AC53),""),"") ->  | BC53: =_xlfn.IFNA(IF(INDEX('9C'!F:F,AC53)<>0,INDEX('9C'!F:F,AC53),""),"") -> 2016-06-07 | BD53: =_xlfn.IFNA(IF(INDEX('9D'!F:F,AD53)=0,INDEX('9D'!E:E,AD53),""),"") ->  | BE53: =_xlfn.IFNA(IF(INDEX('9D'!F:F,AD53)<>0,INDEX('9D'!F:F,AD53),""),"") -> 2016-06-09 | BF53: =_xlfn.IFNA(IF(INDEX('9Da'!F:F,AE53)=0,INDEX('9Da'!E:E,AE53),""),"") ->  | BG53: =_xlfn.IFNA(IF(INDEX('9Da'!F:F,AE53)<>0,INDEX('9Da'!F:F,AE53),""),"") -> 2016-08-22 | BH53: =_xlfn.IFNA(IF(INDEX('9E'!F:F,AF53)=0,INDEX('9E'!E:E,AF53),""),"") ->  | BI53: =_xlfn.IFNA(IF(INDEX('9E'!F:F,AF53)<>0,INDEX('9E'!F:F,AF53),""),"") -> 2016-09-05 | BJ53: =_xlfn.IFNA(IF(INDEX('10F'!F:F,AG53)=0,INDEX('10F'!E:E,AG53),""),"") ->  | BK53: =_xlfn.IFNA(IF(INDEX('10F'!F:F,AG53)<>0,INDEX('10F'!F:F,AG53),""),"") -> 2016-09-14 | BL53: =_xlfn.IFNA(IF(INDEX('11'!F:F,AH53)=0,INDEX('11'!E:E,AH53),""),"") ->  | BM53: =_xlfn.IFNA(IF(INDEX('11'!F:F,AH53)<>0,INDEX('11'!F:F,AH53),""),"") -> 2016-11-14 | BN53: =_xlfn.IFNA(IF(INDEX('12'!G:G,AI53)=0,INDEX('12'!F:F,AI53),""),"") ->  | BO53: =_xlfn.IFNA(IF(INDEX('12'!G:G,AI53)<>0,INDEX('12'!G:G,AI53),""),"") -> 2016-11-28 | BP53: =_xlfn.IFNA(IF(INDEX('12V'!F:F,AJ53)=0,INDEX('12V'!E:E,AJ53),""),"") ->  | BQ53: =_xlfn.IFNA(IF(INDEX('12V'!F:F,AJ53)<>0,INDEX('12V'!F:F,AJ53),""),"") -> 2016-11-29 | BR53: =_xlfn.IFNA(IF(INDEX('12W'!F:F,AK53)=0,INDEX('12W'!E:E,AK53),""),"") ->  | BS53: =_xlfn.IFNA(IF(INDEX('12W'!F:F,AK53)<>0,INDEX('12W'!F:F,AK53),""),"") -> 2018-03-09 | BT53: =_xlfn.IFNA(IF(INDEX('30'!F:F,AL53)=0,INDEX('30'!E:E,AL53),""),"") ->  | BU53: =_xlfn.IFNA(IF(INDEX('30'!F:F,AL53)<>0,INDEX('30'!F:F,AL53),""),"") ->  | BV53: =_xlfn.IFNA(IF(INDEX('35'!F:F,AM53)=0,INDEX('35'!E:E,AM53),""),"") ->  | BW53: =_xlfn.IFNA(IF(INDEX('35'!F:F,AM53)<>0,INDEX('35'!F:F,AM53),""),"") ->  | BX53: =_xlfn.IFNA(IF(INDEX('40'!F:F,AN53)=0,INDEX('40'!E:E,AN53),""),"") ->  | BY53: =_xlfn.IFNA(IF(INDEX('40'!F:F,AN53)<>0,INDEX('40'!F:F,AN53),""),"") ->  | BZ53: =_xlfn.IFNA(IF(INDEX('45'!F:F,AO53)=0,INDEX('45'!E:E,AO53),""),"") ->  | CA53: =_xlfn.IFNA(IF(INDEX('45'!F:F,AO53)<>0,INDEX('45'!F:F,AO53),""),"") ->  | CB53: =_xlfn.IFNA(IF(INDEX('50'!F:F,AP53)=0,INDEX('50'!E:E,AP53),""),"") ->  | CC53: =_xlfn.IFNA(IF(INDEX('50'!F:F,AP53)<>0,INDEX('50'!F:F,AP53),""),"") ->  | CD53: TCAM WG11: "on hold" | CE53: Comments from EC - Revision WI open | CF53: Y | CH53: Y | CJ53: 52895 | CK53: =MATCH(CJ53,EN!A:A,0) -> 4263 | CL53: =_xlfn.IFNA(INDEX(EN!I:I,CK53),"") -> REN/ERM-TG37-272 | CM53: http://webapp.etsi.org/workProgram/Report_WorkItem.asp?wki_id=52895 | CN53: =_xlfn.IFNA(INDEX(EN!J:J,CK53),"") -> 8 | CO53: =_xlfn.IFNA(IF(INDEX(EN!K:K,CK53)<>0,INDEX(EN!K:K,CK53),""),"") -> WA
C54: Addition | D54: 52895 | E54: =MATCH(D54,EN!A:A,0) -> 4263 | F54: =INDEX(EN!I:I,E54) -> REN/ERM-TG37-272 | G54: http://webapp.etsi.org/workProgram/Report_WorkItem.asp?wki_id=52895 | H54: =_xlfn.IFNA(INDEX(EN!F:F,E54),"") -> EN | I54: =_xlfn.IFNA(INDEX(EN!G:G,E54),"") -> 300 674-2-2 | J54: =_xlfn.IFNA(IF(INDEX(EN!L:L,E54)<>0,INDEX(EN!L:L,E54),""),"") -> 2.2.1 | K54: RevPending | L54: =_xlfn.IFNA(INDEX(EN!H:H,E54),"") -> HS DSRC OBU 5,8 GHz | M54: RED 3.2 | N54: =_xlfn.IFNA(INDEX(EN!J:J,E54),"") -> 8 | O54: =_xlfn.IFNA(IF(INDEX(EN!K:K,E54)<>0,INDEX(EN!K:K,E54),""),"") -> WA | P54: =_xlfn.IFNA(INDEX(EN!M:M,E54),"") -> Waiting - see "Remarks" | Q54: =_xlfn.IFNA(INDEX(EN!N:N,E54),"") -> 2017-08-18 | R54: =_xlfn.IFNA(INDEX(EN!B:B,E54),"") -> ERM TG37 | S54: =INDEX(EN!O:O,E54) -> 53812 | T54: =MATCH(S54,Person!A:A) -> 9 | U54: =_xlfn.IFNA(INDEX(Person!B:B,T54),"") -> Andrea | V54: =_xlfn.IFNA(INDEX(Person!C:C,T54),"") -> Lorelli | W54: =MATCH(D54,'0a'!A:A,0) -> 3947 | X54: =MATCH(D54,'1'!A:A,0) -> 3839 | Y54: =MATCH(D54,'7'!A:A,0) -> 14112 | Z54: =MATCH(D54,'8'!A:A,0) -> 48028 | AA54: =MATCH(D54,'8A'!A:A,0) -> 49650 | AB54: =MATCH(D54,'9B'!A:A,0) -> 6645 | AC54: =MATCH(D54,'9C'!A:A,0) -> 3933 | AD54: =MATCH(D54,'9D'!A:A,0) -> 3643 | AE54: =MATCH(D54,'9Da'!A:A,0) -> 2458 | AF54: =MATCH(D54,'9E'!A:A,0) -> 3854 | AG54: =MATCH(D54,'10F'!A:A,0) -> 1885 | AH54: =MATCH(D54,'11'!A:A,0) -> 8346 | AI54: =MATCH(D54,'12'!A:A,0) -> 48720 | AJ54: =MATCH(D54,'12V'!A:A,0) -> 1035 | AK54: =MATCH(D54,'12W'!A:A,0) -> 1032 | AL54: =MATCH(D54,'30'!A:A,0) ->  | AM54: =MATCH(D54,'35'!A:A,0) ->  | AN54: =MATCH(D54,'40'!A:A,0) ->  | AO54: =MATCH(D54,'45'!A:A,0) ->  | AP54: =MATCH(D54,'50'!A:A,0) ->  | AQ54: =_xlfn.IFNA(INDEX('0a'!E:E,W54),"") -> 2017-05-22 | AR54: =_xlfn.IFNA(IF(INDEX('1'!G:G,X54)=0,INDEX('1'!F:F,X54),""),"") ->  | AS54: =_xlfn.IFNA(IF(INDEX('1'!G:G,X54)<>0,INDEX('1'!G:G,X54),""),"") -> 2017-05-22 | AT54: =_xlfn.IFNA(IF(INDEX('7'!F:F,Y54)=0,INDEX('7'!E:E,Y54),""),"") ->  | AU54: =_xlfn.IFNA(IF(INDEX('7'!F:F,Y54)<>0,INDEX('7'!F:F,Y54),""),"") -> 2017-06-28 | AV54: =_xlfn.IFNA(IF(INDEX('8'!F:F,Z54)=0,INDEX('8'!E:E,Z54),""),"") ->  | AW54: =_xlfn.IFNA(IF(INDEX('8'!F:F,Z54)<>0,INDEX('8'!F:F,Z54),""),"") -> 2017-07-28 | AX54: =_xlfn.IFNA(IF(INDEX('8A'!F:F,AA54)=0,INDEX('8A'!E:E,AA54),""),"") ->  | AY54: =_xlfn.IFNA(IF(INDEX('8A'!F:F,AA54)<>0,INDEX('8A'!F:F,AA54),""),"") -> 2017-08-07 | AZ54: =_xlfn.IFNA(IF(INDEX('9B'!F:F,AB54)=0,INDEX('9B'!E:E,AB54),""),"") -> 2018-06-14 | BA54: =_xlfn.IFNA(IF(INDEX('9B'!F:F,AB54)<>0,INDEX('9B'!F:F,AB54),""),"") ->  | BB54: =_xlfn.IFNA(IF(INDEX('9C'!F:F,AC54)=0,INDEX('9C'!E:E,AC54),""),"") -> 2018-09-13 | BC54: =_xlfn.IFNA(IF(INDEX('9C'!F:F,AC54)<>0,INDEX('9C'!F:F,AC54),""),"") ->  | BD54: =_xlfn.IFNA(IF(INDEX('9D'!F:F,AD54)=0,INDEX('9D'!E:E,AD54),""),"") -> 2018-09-13 | BE54: =_xlfn.IFNA(IF(INDEX('9D'!F:F,AD54)<>0,INDEX('9D'!F:F,AD54),""),"") ->  | BF54: =_xlfn.IFNA(IF(INDEX('9Da'!F:F,AE54)=0,INDEX('9Da'!E:E,AE54),""),"") -> 2018-12-13 | BG54: =_xlfn.IFNA(IF(INDEX('9Da'!F:F,AE54)<>0,INDEX('9Da'!F:F,AE54),""),"") ->  | BH54: =_xlfn.IFNA(IF(INDEX('9E'!F:F,AF54)=0,INDEX('9E'!E:E,AF54),""),"") -> 2018-12-20 | BI54: =_xlfn.IFNA(IF(INDEX('9E'!F:F,AF54)<>0,INDEX('9E'!F:F,AF54),""),"") ->  | BJ54: =_xlfn.IFNA(IF(INDEX('10F'!F:F,AG54)=0,INDEX('10F'!E:E,AG54),""),"") -> 2019-01-03 | BK54: =_xlfn.IFNA(IF(INDEX('10F'!F:F,AG54)<>0,INDEX('10F'!F:F,AG54),""),"") ->  | BL54: =_xlfn.IFNA(IF(INDEX('11'!F:F,AH54)=0,INDEX('11'!E:E,AH54),""),"") -> 2019-03-04 | BM54: =_xlfn.IFNA(IF(INDEX('11'!F:F,AH54)<>0,INDEX('11'!F:F,AH54),""),"") ->  | BN54: =_xlfn.IFNA(IF(INDEX('12'!G:G,AI54)=0,INDEX('12'!F:F,AI54),""),"") -> 2019-03-18 | BO54: =_xlfn.IFNA(IF(INDEX('12'!G:G,AI54)<>0,INDEX('12'!G:G,AI54),""),"") ->  | BP54: =_xlfn.IFNA(IF(INDEX('12V'!F:F,AJ54)=0,INDEX('12V'!E:E,AJ54),""),"") -> 2019-04-08 | BQ54: =_xlfn.IFNA(IF(INDEX('12V'!F:F,AJ54)<>0,INDEX('12V'!F:F,AJ54),""),"") ->  | BR54: =_xlfn.IFNA(IF(INDEX('12W'!F:F,AK54)=0,INDEX('12W'!E:E,AK54),""),"") -> 2019-07-01 | BS54: =_xlfn.IFNA(IF(INDEX('12W'!F:F,AK54)<>0,INDEX('12W'!F:F,AK54),""),"") ->  | BT54: =_xlfn.IFNA(IF(INDEX('30'!F:F,AL54)=0,INDEX('30'!E:E,AL54),""),"") ->  | BU54: =_xlfn.IFNA(IF(INDEX('30'!F:F,AL54)<>0,INDEX('30'!F:F,AL54),""),"") ->  | BV54: =_xlfn.IFNA(IF(INDEX('35'!F:F,AM54)=0,INDEX('35'!E:E,AM54),""),"") ->  | BW54: =_xlfn.IFNA(IF(INDEX('35'!F:F,AM54)<>0,INDEX('35'!F:F,AM54),""),"") ->  | BX54: =_xlfn.IFNA(IF(INDEX('40'!F:F,AN54)=0,INDEX('40'!E:E,AN54),""),"") ->  | BY54: =_xlfn.IFNA(IF(INDEX('40'!F:F,AN54)<>0,INDEX('40'!F:F,AN54),""),"") ->  | BZ54: =_xlfn.IFNA(IF(INDEX('45'!F:F,AO54)=0,INDEX('45'!E:E,AO54),""),"") ->  | CA54: =_xlfn.IFNA(IF(INDEX('45'!F:F,AO54)<>0,INDEX('45'!F:F,AO54),""),"") ->  | CB54: =_xlfn.IFNA(IF(INDEX('50'!F:F,AP54)=0,INDEX('50'!E:E,AP54),""),"") ->  | CC54: =_xlfn.IFNA(IF(INDEX('50'!F:F,AP54)<>0,INDEX('50'!F:F,AP54),""),"") ->  | CK54: =MATCH(CJ54,EN!A:A,0) ->  | CL54: =_xlfn.IFNA(INDEX(EN!I:I,CK54),"") ->  | CN54: =_xlfn.IFNA(INDEX(EN!J:J,CK54),"") ->  | CO54: =_xlfn.IFNA(IF(INDEX(EN!K:K,CK54)<>0,INDEX(EN!K:K,CK54),""),"") -> 
A55: 300 676-2 | B55: 1.5.1 | C55: Original | D55: 46579 | E55: =MATCH(D55,EN!A:A,0) -> 3820 | F55: =INDEX(EN!I:I,E55) -> REN/ERM-JTFEA-17 | G55: http://webapp.etsi.org/workProgram/Report_WorkItem.asp?wki_id=46579 | H55: =_xlfn.IFNA(INDEX(EN!F:F,E55),"") -> EN | I55: =_xlfn.IFNA(INDEX(EN!G:G,E55),"") -> 300 676-2 | J55: =_xlfn.IFNA(IF(INDEX(EN!L:L,E55)<>0,INDEX(EN!L:L,E55),""),"") -> 2.1.1 | K55: Cited | L55: =_xlfn.IFNA(INDEX(EN!H:H,E55),"") -> HS for ground-based VHF hand-held, mobile and fixed radio tx, rx and trx for VHF AMS using AM | M55: RED 3.2 | N55: =_xlfn.IFNA(INDEX(EN!J:J,E55),"") -> 12 | O55: =_xlfn.IFNA(IF(INDEX(EN!K:K,E55)<>0,INDEX(EN!K:K,E55),""),"") -> W | P55: =_xlfn.IFNA(INDEX(EN!M:M,E55),"") -> Citation in the OJ | Q55: =_xlfn.IFNA(INDEX(EN!N:N,E55),"") -> 2016-07-08 | R55: =_xlfn.IFNA(INDEX(EN!B:B,E55),"") -> ERM JTFEA | S55: =INDEX(EN!O:O,E55) -> 26441 | T55: =MATCH(S55,Person!A:A) -> 7 | U55: =_xlfn.IFNA(INDEX(Person!B:B,T55),"") -> Igor | V55: =_xlfn.IFNA(INDEX(Person!C:C,T55),"") -> Minaev | W55: =MATCH(D55,'0a'!A:A,0) -> 3513 | X55: =MATCH(D55,'1'!A:A,0) -> 3421 | Y55: =MATCH(D55,'7'!A:A,0) -> 13521 | Z55: =MATCH(D55,'8'!A:A,0) -> 41932 | AA55: =MATCH(D55,'8A'!A:A,0) -> 43469 | AB55: =MATCH(D55,'9B'!A:A,0) -> 6221 | AC55: =MATCH(D55,'9C'!A:A,0) -> 3510 | AD55: =MATCH(D55,'9D'!A:A,0) ->  | AE55: =MATCH(D55,'9Da'!A:A,0) ->  | AF55: =MATCH(D55,'9E'!A:A,0) ->  | AG55: =MATCH(D55,'10F'!A:A,0) ->  | AH55: =MATCH(D55,'11'!A:A,0) -> 7819 | AI55: =MATCH(D55,'12'!A:A,0) -> 42622 | AJ55: =MATCH(D55,'12V'!A:A,0) -> 736 | AK55: =MATCH(D55,'12W'!A:A,0) -> 746 | AL55: =MATCH(D55,'30'!A:A,0) ->  | AM55: =MATCH(D55,'35'!A:A,0) ->  | AN55: =MATCH(D55,'40'!A:A,0) ->  | AO55: =MATCH(D55,'45'!A:A,0) ->  | AP55: =MATCH(D55,'50'!A:A,0) ->  | AQ55: =_xlfn.IFNA(INDEX('0a'!E:E,W55),"") -> 2015-03-13 | AR55: =_xlfn.IFNA(IF(INDEX('1'!G:G,X55)=0,INDEX('1'!F:F,X55),""),"") ->  | AS55: =_xlfn.IFNA(IF(INDEX('1'!G:G,X55)<>0,INDEX('1'!G:G,X55),""),"") -> 2015-03-20 | AT55: =_xlfn.IFNA(IF(INDEX('7'!F:F,Y55)=0,INDEX('7'!E:E,Y55),""),"") ->  | AU55: =_xlfn.IFNA(IF(INDEX('7'!F:F,Y55)<>0,INDEX('7'!F:F,Y55),""),"") -> 2015-04-09 | AV55: =_xlfn.IFNA(IF(INDEX('8'!F:F,Z55)=0,INDEX('8'!E:E,Z55),""),"") ->  | AW55: =_xlfn.IFNA(IF(INDEX('8'!F:F,Z55)<>0,INDEX('8'!F:F,Z55),""),"") -> 2015-05-18 | AX55: =_xlfn.IFNA(IF(INDEX('8A'!F:F,AA55)=0,INDEX('8A'!E:E,AA55),""),"") ->  | AY55: =_xlfn.IFNA(IF(INDEX('8A'!F:F,AA55)<>0,INDEX('8A'!F:F,AA55),""),"") -> 2015-07-07 | AZ55: =_xlfn.IFNA(IF(INDEX('9B'!F:F,AB55)=0,INDEX('9B'!E:E,AB55),""),"") ->  | BA55: =_xlfn.IFNA(IF(INDEX('9B'!F:F,AB55)<>0,INDEX('9B'!F:F,AB55),""),"") -> 2015-07-31 | BB55: =_xlfn.IFNA(IF(INDEX('9C'!F:F,AC55)=0,INDEX('9C'!E:E,AC55),""),"") ->  | BC55: =_xlfn.IFNA(IF(INDEX('9C'!F:F,AC55)<>0,INDEX('9C'!F:F,AC55),""),"") -> 2015-11-30 | BD55: =_xlfn.IFNA(IF(INDEX('9D'!F:F,AD55)=0,INDEX('9D'!E:E,AD55),""),"") ->  | BE55: =_xlfn.IFNA(IF(INDEX('9D'!F:F,AD55)<>0,INDEX('9D'!F:F,AD55),""),"") ->  | BF55: =_xlfn.IFNA(IF(INDEX('9Da'!F:F,AE55)=0,INDEX('9Da'!E:E,AE55),""),"") ->  | BG55: =_xlfn.IFNA(IF(INDEX('9Da'!F:F,AE55)<>0,INDEX('9Da'!F:F,AE55),""),"") ->  | BH55: =_xlfn.IFNA(IF(INDEX('9E'!F:F,AF55)=0,INDEX('9E'!E:E,AF55),""),"") ->  | BI55: =_xlfn.IFNA(IF(INDEX('9E'!F:F,AF55)<>0,INDEX('9E'!F:F,AF55),""),"") ->  | BJ55: =_xlfn.IFNA(IF(INDEX('10F'!F:F,AG55)=0,INDEX('10F'!E:E,AG55),""),"") ->  | BK55: =_xlfn.IFNA(IF(INDEX('10F'!F:F,AG55)<>0,INDEX('10F'!F:F,AG55),""),"") ->  | BL55: =_xlfn.IFNA(IF(INDEX('11'!F:F,AH55)=0,INDEX('11'!E:E,AH55),""),"") ->  | BM55: =_xlfn.IFNA(IF(INDEX('11'!F:F,AH55)<>0,INDEX('11'!F:F,AH55),""),"") -> 2015-11-30 | BN55: =_xlfn.IFNA(IF(INDEX('12'!G:G,AI55)=0,INDEX('12'!F:F,AI55),""),"") ->  | BO55: =_xlfn.IFNA(IF(INDEX('12'!G:G,AI55)<>0,INDEX('12'!G:G,AI55),""),"") -> 2015-12-09 | BP55: =_xlfn.IFNA(IF(INDEX('12V'!F:F,AJ55)=0,INDEX('12V'!E:E,AJ55),""),"") ->  | BQ55: =_xlfn.IFNA(IF(INDEX('12V'!F:F,AJ55)<>0,INDEX('12V'!F:F,AJ55),""),"") -> 2015-12-14 | BR55: =_xlfn.IFNA(IF(INDEX('12W'!F:F,AK55)=0,INDEX('12W'!E:E,AK55),""),"") ->  | BS55: =_xlfn.IFNA(IF(INDEX('12W'!F:F,AK55)<>0,INDEX('12W'!F:F,AK55),""),"") -> 2016-07-08 | BT55: =_xlfn.IFNA(IF(INDEX('30'!F:F,AL55)=0,INDEX('30'!E:E,AL55),""),"") ->  | BU55: =_xlfn.IFNA(IF(INDEX('30'!F:F,AL55)<>0,INDEX('30'!F:F,AL55),""),"") ->  | BV55: =_xlfn.IFNA(IF(INDEX('35'!F:F,AM55)=0,INDEX('35'!E:E,AM55),""),"") ->  | BW55: =_xlfn.IFNA(IF(INDEX('35'!F:F,AM55)<>0,INDEX('35'!F:F,AM55),""),"") ->  | BX55: =_xlfn.IFNA(IF(INDEX('40'!F:F,AN55)=0,INDEX('40'!E:E,AN55),""),"") ->  | BY55: =_xlfn.IFNA(IF(INDEX('40'!F:F,AN55)<>0,INDEX('40'!F:F,AN55),""),"") ->  | BZ55: =_xlfn.IFNA(IF(INDEX('45'!F:F,AO55)=0,INDEX('45'!E:E,AO55),""),"") ->  | CA55: =_xlfn.IFNA(IF(INDEX('45'!F:F,AO55)<>0,INDEX('45'!F:F,AO55),""),"") ->  | CB55: =_xlfn.IFNA(IF(INDEX('50'!F:F,AP55)=0,INDEX('50'!E:E,AP55),""),"") ->  | CC55: =_xlfn.IFNA(IF(INDEX('50'!F:F,AP55)<>0,INDEX('50'!F:F,AP55),""),"") ->  | CD55: =IF(AND(ISNONTEXT(BQ55),ISBLANK(#REF!),ISTEXT(BS55)),"Awaiting EC assessment","") ->  | CK55: =MATCH(CJ55,EN!A:A,0) ->  | CL55: =_xlfn.IFNA(INDEX(EN!I:I,CK55),"") ->  | CN55: =_xlfn.IFNA(INDEX(EN!J:J,CK55),"") ->  | CO55: =_xlfn.IFNA(IF(INDEX(EN!K:K,CK55)<>0,INDEX(EN!K:K,CK55),""),"") -> 
A56: 300 698-2 300 698-3 | B56: 1.2.1 1.2.1 | C56: Original | D56: 46517 | E56: =MATCH(D56,EN!A:A,0) -> 3789 | F56: =INDEX(EN!I:I,E56) -> REN/ERM-TG26-148 | G56: http://webapp.etsi.org/workProgram/Report_WorkItem.asp?wki_id=46517 | H56: =_xlfn.IFNA(INDEX(EN!F:F,E56),"") -> EN | I56: =_xlfn.IFNA(INDEX(EN!G:G,E56),"") -> 300 698 | J56: =_xlfn.IFNA(IF(INDEX(EN!L:L,E56)<>0,INDEX(EN!L:L,E56),""),"") -> 2.1.1 | K56: Superseded | L56: =_xlfn.IFNA(INDEX(EN!H:H,E56),"") -> Maritime VHF for use on inland waterways | M56: RED 3.2, 3.3g | N56: =_xlfn.IFNA(INDEX(EN!J:J,E56),"") -> 12 | O56: =_xlfn.IFNA(IF(INDEX(EN!K:K,E56)<>0,INDEX(EN!K:K,E56),""),"") -> W | P56: =_xlfn.IFNA(INDEX(EN!M:M,E56),"") -> Citation in the OJ | Q56: =_xlfn.IFNA(INDEX(EN!N:N,E56),"") -> 2017-01-13 | R56: =_xlfn.IFNA(INDEX(EN!B:B,E56),"") -> ERM TG26 | S56: =INDEX(EN!O:O,E56) -> 53812 | T56: =MATCH(S56,Person!A:A) -> 9 | U56: =_xlfn.IFNA(INDEX(Person!B:B,T56),"") -> Andrea | V56: =_xlfn.IFNA(INDEX(Person!C:C,T56),"") -> Lorelli | W56: =MATCH(D56,'0a'!A:A,0) -> 3483 | X56: =MATCH(D56,'1'!A:A,0) -> 3391 | Y56: =MATCH(D56,'7'!A:A,0) ->  | Z56: =MATCH(D56,'8'!A:A,0) -> 41870 | AA56: =MATCH(D56,'8A'!A:A,0) -> 43408 | AB56: =MATCH(D56,'9B'!A:A,0) -> 6189 | AC56: =MATCH(D56,'9C'!A:A,0) -> 3478 | AD56: =MATCH(D56,'9D'!A:A,0) ->  | AE56: =MATCH(D56,'9Da'!A:A,0) ->  | AF56: =MATCH(D56,'9E'!A:A,0) ->  | AG56: =MATCH(D56,'10F'!A:A,0) ->  | AH56: =MATCH(D56,'11'!A:A,0) -> 7788 | AI56: =MATCH(D56,'12'!A:A,0) -> 42562 | AJ56: =MATCH(D56,'12V'!A:A,0) -> 714 | AK56: =MATCH(D56,'12W'!A:A,0) -> 724 | AL56: =MATCH(D56,'30'!A:A,0) ->  | AM56: =MATCH(D56,'35'!A:A,0) ->  | AN56: =MATCH(D56,'40'!A:A,0) ->  | AO56: =MATCH(D56,'45'!A:A,0) ->  | AP56: =MATCH(D56,'50'!A:A,0) ->  | AQ56: =_xlfn.IFNA(INDEX('0a'!E:E,W56),"") -> 2015-02-09 | AR56: =_xlfn.IFNA(IF(INDEX('1'!G:G,X56)=0,INDEX('1'!F:F,X56),""),"") ->  | AS56: =_xlfn.IFNA(IF(INDEX('1'!G:G,X56)<>0,INDEX('1'!G:G,X56),""),"") -> 2015-05-22 | AT56: =_xlfn.IFNA(IF(INDEX('7'!F:F,Y56)=0,INDEX('7'!E:E,Y56),""),"") ->  | AU56: =_xlfn.IFNA(IF(INDEX('7'!F:F,Y56)<>0,INDEX('7'!F:F,Y56),""),"") ->  | AV56: =_xlfn.IFNA(IF(INDEX('8'!F:F,Z56)=0,INDEX('8'!E:E,Z56),""),"") ->  | AW56: =_xlfn.IFNA(IF(INDEX('8'!F:F,Z56)<>0,INDEX('8'!F:F,Z56),""),"") -> 2016-04-08 | AX56: =_xlfn.IFNA(IF(INDEX('8A'!F:F,AA56)=0,INDEX('8A'!E:E,AA56),""),"") ->  | AY56: =_xlfn.IFNA(IF(INDEX('8A'!F:F,AA56)<>0,INDEX('8A'!F:F,AA56),""),"") -> 2016-04-11 | AZ56: =_xlfn.IFNA(IF(INDEX('9B'!F:F,AB56)=0,INDEX('9B'!E:E,AB56),""),"") ->  | BA56: =_xlfn.IFNA(IF(INDEX('9B'!F:F,AB56)<>0,INDEX('9B'!F:F,AB56),""),"") -> 2016-05-03 | BB56: =_xlfn.IFNA(IF(INDEX('9C'!F:F,AC56)=0,INDEX('9C'!E:E,AC56),""),"") ->  | BC56: =_xlfn.IFNA(IF(INDEX('9C'!F:F,AC56)<>0,INDEX('9C'!F:F,AC56),""),"") -> 2016-08-01 | BD56: =_xlfn.IFNA(IF(INDEX('9D'!F:F,AD56)=0,INDEX('9D'!E:E,AD56),""),"") ->  | BE56: =_xlfn.IFNA(IF(INDEX('9D'!F:F,AD56)<>0,INDEX('9D'!F:F,AD56),""),"") ->  | BF56: =_xlfn.IFNA(IF(INDEX('9Da'!F:F,AE56)=0,INDEX('9Da'!E:E,AE56),""),"") ->  | BG56: =_xlfn.IFNA(IF(INDEX('9Da'!F:F,AE56)<>0,INDEX('9Da'!F:F,AE56),""),"") ->  | BH56: =_xlfn.IFNA(IF(INDEX('9E'!F:F,AF56)=0,INDEX('9E'!E:E,AF56),""),"") ->  | BI56: =_xlfn.IFNA(IF(INDEX('9E'!F:F,AF56)<>0,INDEX('9E'!F:F,AF56),""),"") ->  | BJ56: =_xlfn.IFNA(IF(INDEX('10F'!F:F,AG56)=0,INDEX('10F'!E:E,AG56),""),"") ->  | BK56: =_xlfn.IFNA(IF(INDEX('10F'!F:F,AG56)<>0,INDEX('10F'!F:F,AG56),""),"") ->  | BL56: =_xlfn.IFNA(IF(INDEX('11'!F:F,AH56)=0,INDEX('11'!E:E,AH56),""),"") ->  | BM56: =_xlfn.IFNA(IF(INDEX('11'!F:F,AH56)<>0,INDEX('11'!F:F,AH56),""),"") -> 2016-08-01 | BN56: =_xlfn.IFNA(IF(INDEX('12'!G:G,AI56)=0,INDEX('12'!F:F,AI56),""),"") ->  | BO56: =_xlfn.IFNA(IF(INDEX('12'!G:G,AI56)<>0,INDEX('12'!G:G,AI56),""),"") -> 2016-08-08 | BP56: =_xlfn.IFNA(IF(INDEX('12V'!F:F,AJ56)=0,INDEX('12V'!E:E,AJ56),""),"") ->  | BQ56: =_xlfn.IFNA(IF(INDEX('12V'!F:F,AJ56)<>0,INDEX('12V'!F:F,AJ56),""),"") -> 2016-08-09 | BR56: =_xlfn.IFNA(IF(INDEX('12W'!F:F,AK56)=0,INDEX('12W'!E:E,AK56),""),"") ->  | BS56: =_xlfn.IFNA(IF(INDEX('12W'!F:F,AK56)<>0,INDEX('12W'!F:F,AK56),""),"") -> 2017-01-13 | BT56: =_xlfn.IFNA(IF(INDEX('30'!F:F,AL56)=0,INDEX('30'!E:E,AL56),""),"") ->  | BU56: =_xlfn.IFNA(IF(INDEX('30'!F:F,AL56)<>0,INDEX('30'!F:F,AL56),""),"") ->  | BV56: =_xlfn.IFNA(IF(INDEX('35'!F:F,AM56)=0,INDEX('35'!E:E,AM56),""),"") ->  | BW56: =_xlfn.IFNA(IF(INDEX('35'!F:F,AM56)<>0,INDEX('35'!F:F,AM56),""),"") ->  | BX56: =_xlfn.IFNA(IF(INDEX('40'!F:F,AN56)=0,INDEX('40'!E:E,AN56),""),"") ->  | BY56: =_xlfn.IFNA(IF(INDEX('40'!F:F,AN56)<>0,INDEX('40'!F:F,AN56),""),"") ->  | BZ56: =_xlfn.IFNA(IF(INDEX('45'!F:F,AO56)=0,INDEX('45'!E:E,AO56),""),"") ->  | CA56: =_xlfn.IFNA(IF(INDEX('45'!F:F,AO56)<>0,INDEX('45'!F:F,AO56),""),"") ->  | CB56: =_xlfn.IFNA(IF(INDEX('50'!F:F,AP56)=0,INDEX('50'!E:E,AP56),""),"") ->  | CC56: =_xlfn.IFNA(IF(INDEX('50'!F:F,AP56)<>0,INDEX('50'!F:F,AP56),""),"") ->  | CD56: =IF(AND(ISNONTEXT(BQ56),ISBLANK(#REF!),ISTEXT(BS56)),"Awaiting EC assessment","") ->  | CJ56: 51214 | CK56: =MATCH(CJ56,EN!A:A,0) -> 4184 | CL56: =_xlfn.IFNA(INDEX(EN!I:I,CK56),"") -> REN/ERM-TG26-534 | CM56: http://webapp.etsi.org/workProgram/Report_WorkItem.asp?wki_id=51214 | CN56: =_xlfn.IFNA(INDEX(EN!J:J,CK56),"") -> 12 | CO56: =_xlfn.IFNA(IF(INDEX(EN!K:K,CK56)<>0,INDEX(EN!K:K,CK56),""),"") -> W
